{"text_format":"1","workbook":"xlsx","n_sheets":5,"sheets":["Introduction","EFA Log","Related Costs Log","Grant Log Summary","Hidden Value Key"],"not_rendered":{"charts":0,"images":3,"macros":1,"external_links":0,"defined_names":4,"comments":0,"pivot_tables":2},"unopened":[],"bounds":{"document_bytes":16777216,"sheet_cells":100000,"rows_first":2000,"rows_last":500,"rows_between":2000,"halvings":0,"cell_chars":16384,"cell_head_chars":4096},"cells_cut":0,"cells_raw":0,"read":"whole","date_system":"1900"}

{"sheet":"Introduction","index":0,"n_rows":24,"n_cols":3,"rows_kept":24,"cut":false,"hidden":false,"merged":[]}
[]
[null," "]
[" ",null,"Introduction "]
[]
[null," ","This workbook contains space to record the number of participants served through Emergency Financial Assistance (EFA) grants of your organization's JFNA Expanded Critical Supports Program grant.  "]
[null," "]
[null,null,"This workbook should be completed by the agency administering EFA grants. This can be a Jewish Federation, Jewish Family Service, or other agency designated by the Leadership Council. \n\nIf more than one agency is administering EFA grants, each granting agency should keep track of their grants using separate EFA Tool workbooks. These workbook should be consolidated into one EFA Tool by the Jewish Federation completing the quarterly report. "]
[]
[null,null,"To support in completion of the EFA Tool, the following resources can be found in the Expanded Critical Supports Program forms library:"]
[null,null,"https://holocaustsurvivorcare.org/grant-hub/expanded-critical-supports"]
[null,null,"1. EFA Tool Training Guide"]
[null,null,"2. Emergency Financial Assistance Definitions"]
[null,null,"3. Participant ID Generator "]
[null,null,"4. Program Participant Report Sample"]
[null,null,"5. Program Participant Report Fillable Link "]
[]
[null,null,"If you have questions or would like assistance completing this workbook, please reach out to your Expanded Critical Supports Program point-of-contact."]
[]
[]
[]
[]
[" ",null,"Notes"]
[]
[null,null,"The following section is a space for you to take notes, if needed:"]

{"sheet":"EFA Log","index":1,"n_rows":1002,"n_cols":9,"rows_kept":1002,"cut":false,"hidden":false,"merged":[[0,0,0,8]]}
["EFA Log\nUsing the log sheet below, record each emergency financial assistance grant allocated to a unique program participant. Record the grant by completing all cells in the associated row (Participant ID, Grant Target Demographic, Grant Purpose, Grant Amount, Service Date, and Grant Details). Note, the Reporting Period column automatically populates based on the service date entered. \n\nFor Federations allocating grants through multiple agencies, please consolidate information about all grants into one log sheet.\n\n\n"]
["Participant ID\n(Claims Conference ID)","Grant Target Demographic","Specify if 'Other' Demographic Type","Grant Purpose","Specify if 'Other' Grant Purpose","Grant Amount","Service Date ","Grant Details ","Reporting Period "]
["(enter ID)",null,null,null,null,0.01,null,null,{"$f":"IF(EFA_Log[[#This Row],[Service Date ]], YEAR(EFA_Log[[#This Row],[Service Date ]]) & \"-\" & \"Q\" & INT((MONTH(EFA_Log[[#This Row],[Service Date ]])+2)/3), \"\")","v":""}]
[null,null,null,null,null,null,null,null,{"$f":"IF(EFA_Log[[#This Row],[Service Date ]], YEAR(EFA_Log[[#This Row],[Service Date ]]) & \"-\" & \"Q\" & INT((MONTH(EFA_Log[[#This Row],[Service Date ]])+2)/3), \"\")","v":""}]
[null,null,null,null,null,null,null,null,{"$f":"IF(EFA_Log[[#This Row],[Service Date ]], YEAR(EFA_Log[[#This Row],[Service Date ]]) & \"-\" & \"Q\" & INT((MONTH(EFA_Log[[#This Row],[Service Date ]])+2)/3), \"\")","v":""}]
[null,null,null,null,null,null,null,null,{"$f":"IF(EFA_Log[[#This Row],[Service Date ]], YEAR(EFA_Log[[#This Row],[Service Date ]]) & \"-\" & \"Q\" & INT((MONTH(EFA_Log[[#This Row],[Service Date ]])+2)/3), \"\")","v":""}]
[null,null,null,null,null,null,null,null,{"$f":"IF(EFA_Log[[#This Row],[Service Date ]], YEAR(EFA_Log[[#This Row],[Service Date ]]) & \"-\" & \"Q\" & INT((MONTH(EFA_Log[[#This Row],[Service Date ]])+2)/3), \"\")","v":""}]
[null,null,null,null,null,null,null,null,{"$f":"IF(EFA_Log[[#This Row],[Service Date ]], YEAR(EFA_Log[[#This Row],[Service Date ]]) & \"-\" & \"Q\" & INT((MONTH(EFA_Log[[#This Row],[Service Date ]])+2)/3), \"\")","v":""}]
[null,null,null,null,null,null,null,null,{"$f":"IF(EFA_Log[[#This Row],[Service Date ]], YEAR(EFA_Log[[#This Row],[Service Date ]]) & \"-\" & \"Q\" & INT((MONTH(EFA_Log[[#This Row],[Service Date ]])+2)/3), \"\")","v":""}]
[null,null,null,null,null,null,null,null,{"$f":"IF(EFA_Log[[#This Row],[Service Date ]], YEAR(EFA_Log[[#This Row],[Service Date ]]) & \"-\" & \"Q\" & INT((MONTH(EFA_Log[[#This Row],[Service Date ]])+2)/3), \"\")","v":""}]
[null,null,null,null,null,null,null,null,{"$f":"IF(EFA_Log[[#This Row],[Service Date ]], YEAR(EFA_Log[[#This Row],[Service Date ]]) & \"-\" & \"Q\" & INT((MONTH(EFA_Log[[#This Row],[Service Date ]])+2)/3), \"\")","v":""}]
[null,null,null,null,null,null,null,null,{"$f":"IF(EFA_Log[[#This Row],[Service Date ]], YEAR(EFA_Log[[#This Row],[Service Date ]]) & \"-\" & \"Q\" & INT((MONTH(EFA_Log[[#This Row],[Service Date ]])+2)/3), \"\")","v":""}]
[null,null,null,null,null,null,null,null,{"$f":"IF(EFA_Log[[#This Row],[Service Date ]], YEAR(EFA_Log[[#This Row],[Service Date ]]) & \"-\" & \"Q\" & INT((MONTH(EFA_Log[[#This Row],[Service Date ]])+2)/3), \"\")","v":""}]
[null,null,null,null,null,null,null,null,{"$f":"IF(EFA_Log[[#This Row],[Service Date ]], YEAR(EFA_Log[[#This Row],[Service Date ]]) & \"-\" & \"Q\" & INT((MONTH(EFA_Log[[#This Row],[Service Date ]])+2)/3), \"\")","v":""}]
[null,null,null,null,null,null,null,null,{"$f":"IF(EFA_Log[[#This Row],[Service Date ]], YEAR(EFA_Log[[#This Row],[Service Date ]]) & \"-\" & \"Q\" & INT((MONTH(EFA_Log[[#This Row],[Service Date ]])+2)/3), \"\")","v":""}]
[null,null,null,null,null,null,null,null,{"$f":"IF(EFA_Log[[#This Row],[Service Date ]], YEAR(EFA_Log[[#This Row],[Service Date ]]) & \"-\" & \"Q\" & INT((MONTH(EFA_Log[[#This Row],[Service Date ]])+2)/3), \"\")","v":""}]
[null,null,null,null,null,null,null,null,{"$f":"IF(EFA_Log[[#This Row],[Service Date ]], YEAR(EFA_Log[[#This Row],[Service Date ]]) & \"-\" & \"Q\" & INT((MONTH(EFA_Log[[#This Row],[Service Date ]])+2)/3), \"\")","v":""}]
[null,null,null,null,null,null,null,null,{"$f":"IF(EFA_Log[[#This Row],[Service Date ]], YEAR(EFA_Log[[#This Row],[Service Date ]]) & \"-\" & \"Q\" & INT((MONTH(EFA_Log[[#This Row],[Service Date ]])+2)/3), \"\")","v":""}]
[null,null,null,null,null,null,null,null,{"$f":"IF(EFA_Log[[#This Row],[Service Date ]], YEAR(EFA_Log[[#This Row],[Service Date ]]) & \"-\" & \"Q\" & INT((MONTH(EFA_Log[[#This Row],[Service Date ]])+2)/3), \"\")","v":""}]
[null,null,null,null,null,null,null,null,{"$f":"IF(EFA_Log[[#This Row],[Service Date ]], YEAR(EFA_Log[[#This Row],[Service Date ]]) & \"-\" & \"Q\" & INT((MONTH(EFA_Log[[#This Row],[Service Date ]])+2)/3), \"\")","v":""}]
[null,null,null,null,null,null,null,null,{"$f":"IF(EFA_Log[[#This Row],[Service Date ]], YEAR(EFA_Log[[#This Row],[Service Date ]]) & \"-\" & \"Q\" & INT((MONTH(EFA_Log[[#This Row],[Service Date ]])+2)/3), \"\")","v":""}]
[null,null,null,null,null,null,null,null,{"$f":"IF(EFA_Log[[#This Row],[Service Date ]], YEAR(EFA_Log[[#This Row],[Service Date ]]) & \"-\" & \"Q\" & INT((MONTH(EFA_Log[[#This Row],[Service Date ]])+2)/3), \"\")","v":""}]
[null,null,null,null,null,null,null,null,{"$f":"IF(EFA_Log[[#This Row],[Service Date ]], YEAR(EFA_Log[[#This Row],[Service Date ]]) & \"-\" & \"Q\" & INT((MONTH(EFA_Log[[#This Row],[Service Date ]])+2)/3), \"\")","v":""}]
[null,null,null,null,null,null,null,null,{"$f":"IF(EFA_Log[[#This Row],[Service Date ]], YEAR(EFA_Log[[#This Row],[Service Date ]]) & \"-\" & \"Q\" & INT((MONTH(EFA_Log[[#This Row],[Service Date ]])+2)/3), \"\")","v":""}]
[null,null,null,null,null,null,null,null,{"$f":"IF(EFA_Log[[#This Row],[Service Date ]], YEAR(EFA_Log[[#This Row],[Service Date ]]) & \"-\" & \"Q\" & INT((MONTH(EFA_Log[[#This Row],[Service Date ]])+2)/3), \"\")","v":""}]
[null,null,null,null,null,null,null,null,{"$f":"IF(EFA_Log[[#This Row],[Service Date ]], YEAR(EFA_Log[[#This Row],[Service Date ]]) & \"-\" & \"Q\" & INT((MONTH(EFA_Log[[#This Row],[Service Date ]])+2)/3), \"\")","v":""}]
[null,null,null,null,null,null,null,null,{"$f":"IF(EFA_Log[[#This Row],[Service Date ]], YEAR(EFA_Log[[#This Row],[Service Date ]]) & \"-\" & \"Q\" & INT((MONTH(EFA_Log[[#This Row],[Service Date ]])+2)/3), \"\")","v":""}]
[null,null,null,null,null,null,null,null,{"$f":"IF(EFA_Log[[#This Row],[Service Date ]], YEAR(EFA_Log[[#This Row],[Service Date ]]) & \"-\" & \"Q\" & INT((MONTH(EFA_Log[[#This Row],[Service Date ]])+2)/3), \"\")","v":""}]
[null,null,null,null,null,null,null,null,{"$f":"IF(EFA_Log[[#This Row],[Service Date ]], YEAR(EFA_Log[[#This Row],[Service Date ]]) & \"-\" & \"Q\" & INT((MONTH(EFA_Log[[#This Row],[Service Date ]])+2)/3), \"\")","v":""}]
[null,null,null,null,null,null,null,null,{"$f":"IF(EFA_Log[[#This Row],[Service Date ]], YEAR(EFA_Log[[#This Row],[Service Date ]]) & \"-\" & \"Q\" & INT((MONTH(EFA_Log[[#This Row],[Service Date ]])+2)/3), \"\")","v":""}]
[null,null,null,null,null,null,null,null,{"$f":"IF(EFA_Log[[#This Row],[Service Date ]], YEAR(EFA_Log[[#This Row],[Service Date ]]) & \"-\" & \"Q\" & INT((MONTH(EFA_Log[[#This Row],[Service Date ]])+2)/3), \"\")","v":""}]
[null,null,null,null,null,null,null,null,{"$f":"IF(EFA_Log[[#This Row],[Service Date ]], YEAR(EFA_Log[[#This Row],[Service Date ]]) & \"-\" & \"Q\" & INT((MONTH(EFA_Log[[#This Row],[Service Date ]])+2)/3), \"\")","v":""}]
[null,null,null,null,null,null,null,null,{"$f":"IF(EFA_Log[[#This Row],[Service Date ]], YEAR(EFA_Log[[#This Row],[Service Date ]]) & \"-\" & \"Q\" & INT((MONTH(EFA_Log[[#This Row],[Service Date ]])+2)/3), \"\")","v":""}]
[null,null,null,null,null,null,null,null,{"$f":"IF(EFA_Log[[#This Row],[Service Date ]], YEAR(EFA_Log[[#This Row],[Service Date ]]) & \"-\" & \"Q\" & INT((MONTH(EFA_Log[[#This Row],[Service Date ]])+2)/3), \"\")","v":""}]
[null,null,null,null,null,null,null,null,{"$f":"IF(EFA_Log[[#This Row],[Service Date ]], YEAR(EFA_Log[[#This Row],[Service Date ]]) & \"-\" & \"Q\" & INT((MONTH(EFA_Log[[#This Row],[Service Date ]])+2)/3), \"\")","v":""}]
[null,null,null,null,null,null,null,null,{"$f":"IF(EFA_Log[[#This Row],[Service Date ]], YEAR(EFA_Log[[#This Row],[Service Date ]]) & \"-\" & \"Q\" & INT((MONTH(EFA_Log[[#This Row],[Service Date ]])+2)/3), \"\")","v":""}]
[null,null,null,null,null,null,null,null,{"$f":"IF(EFA_Log[[#This Row],[Service Date ]], YEAR(EFA_Log[[#This Row],[Service Date ]]) & \"-\" & \"Q\" & INT((MONTH(EFA_Log[[#This Row],[Service Date ]])+2)/3), \"\")","v":""}]
[null,null,null,null,null,null,null,null,{"$f":"IF(EFA_Log[[#This Row],[Service Date ]], YEAR(EFA_Log[[#This Row],[Service Date ]]) & \"-\" & \"Q\" & INT((MONTH(EFA_Log[[#This Row],[Service Date ]])+2)/3), \"\")","v":""}]
[null,null,null,null,null,null,null,null,{"$f":"IF(EFA_Log[[#This Row],[Service Date ]], YEAR(EFA_Log[[#This Row],[Service Date ]]) & \"-\" & \"Q\" & INT((MONTH(EFA_Log[[#This Row],[Service Date ]])+2)/3), \"\")","v":""}]
[null,null,null,null,null,null,null,null,{"$f":"IF(EFA_Log[[#This Row],[Service Date ]], YEAR(EFA_Log[[#This Row],[Service Date ]]) & \"-\" & \"Q\" & INT((MONTH(EFA_Log[[#This Row],[Service Date ]])+2)/3), \"\")","v":""}]
[null,null,null,null,null,null,null,null,{"$f":"IF(EFA_Log[[#This Row],[Service Date ]], YEAR(EFA_Log[[#This Row],[Service Date ]]) & \"-\" & \"Q\" & INT((MONTH(EFA_Log[[#This Row],[Service Date ]])+2)/3), \"\")","v":""}]
[null,null,null,null,null,null,null,null,{"$f":"IF(EFA_Log[[#This Row],[Service Date ]], YEAR(EFA_Log[[#This Row],[Service Date ]]) & \"-\" & \"Q\" & INT((MONTH(EFA_Log[[#This Row],[Service Date ]])+2)/3), \"\")","v":""}]
[null,null,null,null,null,null,null,null,{"$f":"IF(EFA_Log[[#This Row],[Service Date ]], YEAR(EFA_Log[[#This Row],[Service Date ]]) & \"-\" & \"Q\" & INT((MONTH(EFA_Log[[#This Row],[Service Date ]])+2)/3), \"\")","v":""}]
[null,null,null,null,null,null,null,null,{"$f":"IF(EFA_Log[[#This Row],[Service Date ]], YEAR(EFA_Log[[#This Row],[Service Date ]]) & \"-\" & \"Q\" & INT((MONTH(EFA_Log[[#This Row],[Service Date ]])+2)/3), \"\")","v":""}]
[null,null,null,null,null,null,null,null,{"$f":"IF(EFA_Log[[#This Row],[Service Date ]], YEAR(EFA_Log[[#This Row],[Service Date ]]) & \"-\" & \"Q\" & INT((MONTH(EFA_Log[[#This Row],[Service Date ]])+2)/3), \"\")","v":""}]
[null,null,null,null,null,null,null,null,{"$f":"IF(EFA_Log[[#This Row],[Service Date ]], YEAR(EFA_Log[[#This Row],[Service Date ]]) & \"-\" & \"Q\" & INT((MONTH(EFA_Log[[#This Row],[Service Date ]])+2)/3), \"\")","v":""}]
[null,null,null,null,null,null,null,null,{"$f":"IF(EFA_Log[[#This Row],[Service Date ]], YEAR(EFA_Log[[#This Row],[Service Date ]]) & \"-\" & \"Q\" & INT((MONTH(EFA_Log[[#This Row],[Service Date ]])+2)/3), \"\")","v":""}]
[null,null,null,null,null,null,null,null,{"$f":"IF(EFA_Log[[#This Row],[Service Date ]], YEAR(EFA_Log[[#This Row],[Service Date ]]) & \"-\" & \"Q\" & INT((MONTH(EFA_Log[[#This Row],[Service Date ]])+2)/3), \"\")","v":""}]
[null,null,null,null,null,null,null,null,{"$f":"IF(EFA_Log[[#This Row],[Service Date ]], YEAR(EFA_Log[[#This Row],[Service Date ]]) & \"-\" & \"Q\" & INT((MONTH(EFA_Log[[#This Row],[Service Date ]])+2)/3), \"\")","v":""}]
[null,null,null,null,null,null,null,null,{"$f":"IF(EFA_Log[[#This Row],[Service Date ]], YEAR(EFA_Log[[#This Row],[Service Date ]]) & \"-\" & \"Q\" & INT((MONTH(EFA_Log[[#This Row],[Service Date ]])+2)/3), \"\")","v":""}]
[null,null,null,null,null,null,null,null,{"$f":"IF(EFA_Log[[#This Row],[Service Date ]], YEAR(EFA_Log[[#This Row],[Service Date ]]) & \"-\" & \"Q\" & INT((MONTH(EFA_Log[[#This Row],[Service Date ]])+2)/3), \"\")","v":""}]
[null,null,null,null,null,null,null,null,{"$f":"IF(EFA_Log[[#This Row],[Service Date ]], YEAR(EFA_Log[[#This Row],[Service Date ]]) & \"-\" & \"Q\" & INT((MONTH(EFA_Log[[#This Row],[Service Date ]])+2)/3), \"\")","v":""}]
[null,null,null,null,null,null,null,null,{"$f":"IF(EFA_Log[[#This Row],[Service Date ]], YEAR(EFA_Log[[#This Row],[Service Date ]]) & \"-\" & \"Q\" & INT((MONTH(EFA_Log[[#This Row],[Service Date ]])+2)/3), \"\")","v":""}]
[null,null,null,null,null,null,null,null,{"$f":"IF(EFA_Log[[#This Row],[Service Date ]], YEAR(EFA_Log[[#This Row],[Service Date ]]) & \"-\" & \"Q\" & INT((MONTH(EFA_Log[[#This Row],[Service Date ]])+2)/3), \"\")","v":""}]
[null,null,null,null,null,null,null,null,{"$f":"IF(EFA_Log[[#This Row],[Service Date ]], YEAR(EFA_Log[[#This Row],[Service Date ]]) & \"-\" & \"Q\" & INT((MONTH(EFA_Log[[#This Row],[Service Date ]])+2)/3), \"\")","v":""}]
[null,null,null,null,null,null,null,null,{"$f":"IF(EFA_Log[[#This Row],[Service Date ]], YEAR(EFA_Log[[#This Row],[Service Date ]]) & \"-\" & \"Q\" & INT((MONTH(EFA_Log[[#This Row],[Service Date ]])+2)/3), \"\")","v":""}]
[null,null,null,null,null,null,null,null,{"$f":"IF(EFA_Log[[#This Row],[Service Date ]], YEAR(EFA_Log[[#This Row],[Service Date ]]) & \"-\" & \"Q\" & INT((MONTH(EFA_Log[[#This Row],[Service Date ]])+2)/3), \"\")","v":""}]
[null,null,null,null,null,null,null,null,{"$f":"IF(EFA_Log[[#This Row],[Service Date ]], YEAR(EFA_Log[[#This Row],[Service Date ]]) & \"-\" & \"Q\" & INT((MONTH(EFA_Log[[#This Row],[Service Date ]])+2)/3), \"\")","v":""}]
[null,null,null,null,null,null,null,null,{"$f":"IF(EFA_Log[[#This Row],[Service Date ]], YEAR(EFA_Log[[#This Row],[Service Date ]]) & \"-\" & \"Q\" & INT((MONTH(EFA_Log[[#This Row],[Service Date ]])+2)/3), \"\")","v":""}]
[null,null,null,null,null,null,null,null,{"$f":"IF(EFA_Log[[#This Row],[Service Date ]], YEAR(EFA_Log[[#This Row],[Service Date ]]) & \"-\" & \"Q\" & INT((MONTH(EFA_Log[[#This Row],[Service Date ]])+2)/3), \"\")","v":""}]
[null,null,null,null,null,null,null,null,{"$f":"IF(EFA_Log[[#This Row],[Service Date ]], YEAR(EFA_Log[[#This Row],[Service Date ]]) & \"-\" & \"Q\" & INT((MONTH(EFA_Log[[#This Row],[Service Date ]])+2)/3), \"\")","v":""}]
[null,null,null,null,null,null,null,null,{"$f":"IF(EFA_Log[[#This Row],[Service Date ]], YEAR(EFA_Log[[#This Row],[Service Date ]]) & \"-\" & \"Q\" & INT((MONTH(EFA_Log[[#This Row],[Service Date ]])+2)/3), \"\")","v":""}]
[null,null,null,null,null,null,null,null,{"$f":"IF(EFA_Log[[#This Row],[Service Date ]], YEAR(EFA_Log[[#This Row],[Service Date ]]) & \"-\" & \"Q\" & INT((MONTH(EFA_Log[[#This Row],[Service Date ]])+2)/3), \"\")","v":""}]
[null,null,null,null,null,null,null,null,{"$f":"IF(EFA_Log[[#This Row],[Service Date ]], YEAR(EFA_Log[[#This Row],[Service Date ]]) & \"-\" & \"Q\" & INT((MONTH(EFA_Log[[#This Row],[Service Date ]])+2)/3), \"\")","v":""}]
[null,null,null,null,null,null,null,null,{"$f":"IF(EFA_Log[[#This Row],[Service Date ]], YEAR(EFA_Log[[#This Row],[Service Date ]]) & \"-\" & \"Q\" & INT((MONTH(EFA_Log[[#This Row],[Service Date ]])+2)/3), \"\")","v":""}]
[null,null,null,null,null,null,null,null,{"$f":"IF(EFA_Log[[#This Row],[Service Date ]], YEAR(EFA_Log[[#This Row],[Service Date ]]) & \"-\" & \"Q\" & INT((MONTH(EFA_Log[[#This Row],[Service Date ]])+2)/3), \"\")","v":""}]
[null,null,null,null,null,null,null,null,{"$f":"IF(EFA_Log[[#This Row],[Service Date ]], YEAR(EFA_Log[[#This Row],[Service Date ]]) & \"-\" & \"Q\" & INT((MONTH(EFA_Log[[#This Row],[Service Date ]])+2)/3), \"\")","v":""}]
[null,null,null,null,null,null,null,null,{"$f":"IF(EFA_Log[[#This Row],[Service Date ]], YEAR(EFA_Log[[#This Row],[Service Date ]]) & \"-\" & \"Q\" & INT((MONTH(EFA_Log[[#This Row],[Service Date ]])+2)/3), \"\")","v":""}]
[null,null,null,null,null,null,null,null,{"$f":"IF(EFA_Log[[#This Row],[Service Date ]], YEAR(EFA_Log[[#This Row],[Service Date ]]) & \"-\" & \"Q\" & INT((MONTH(EFA_Log[[#This Row],[Service Date ]])+2)/3), \"\")","v":""}]
[null,null,null,null,null,null,null,null,{"$f":"IF(EFA_Log[[#This Row],[Service Date ]], YEAR(EFA_Log[[#This Row],[Service Date ]]) & \"-\" & \"Q\" & INT((MONTH(EFA_Log[[#This Row],[Service Date ]])+2)/3), \"\")","v":""}]
[null,null,null,null,null,null,null,null,{"$f":"IF(EFA_Log[[#This Row],[Service Date ]], YEAR(EFA_Log[[#This Row],[Service Date ]]) & \"-\" & \"Q\" & INT((MONTH(EFA_Log[[#This Row],[Service Date ]])+2)/3), \"\")","v":""}]
[null,null,null,null,null,null,null,null,{"$f":"IF(EFA_Log[[#This Row],[Service Date ]], YEAR(EFA_Log[[#This Row],[Service Date ]]) & \"-\" & \"Q\" & INT((MONTH(EFA_Log[[#This Row],[Service Date ]])+2)/3), \"\")","v":""}]
[null,null,null,null,null,null,null,null,{"$f":"IF(EFA_Log[[#This Row],[Service Date ]], YEAR(EFA_Log[[#This Row],[Service Date ]]) & \"-\" & \"Q\" & INT((MONTH(EFA_Log[[#This Row],[Service Date ]])+2)/3), \"\")","v":""}]
[null,null,null,null,null,null,null,null,{"$f":"IF(EFA_Log[[#This Row],[Service Date ]], YEAR(EFA_Log[[#This Row],[Service Date ]]) & \"-\" & \"Q\" & INT((MONTH(EFA_Log[[#This Row],[Service Date ]])+2)/3), \"\")","v":""}]
[null,null,null,null,null,null,null,null,{"$f":"IF(EFA_Log[[#This Row],[Service Date ]], YEAR(EFA_Log[[#This Row],[Service Date ]]) & \"-\" & \"Q\" & INT((MONTH(EFA_Log[[#This Row],[Service Date ]])+2)/3), \"\")","v":""}]
[null,null,null,null,null,null,null,null,{"$f":"IF(EFA_Log[[#This Row],[Service Date ]], YEAR(EFA_Log[[#This Row],[Service Date ]]) & \"-\" & \"Q\" & INT((MONTH(EFA_Log[[#This Row],[Service Date ]])+2)/3), \"\")","v":""}]
[null,null,null,null,null,null,null,null,{"$f":"IF(EFA_Log[[#This Row],[Service Date ]], YEAR(EFA_Log[[#This Row],[Service Date ]]) & \"-\" & \"Q\" & INT((MONTH(EFA_Log[[#This Row],[Service Date ]])+2)/3), \"\")","v":""}]
[null,null,null,null,null,null,null,null,{"$f":"IF(EFA_Log[[#This Row],[Service Date ]], YEAR(EFA_Log[[#This Row],[Service Date ]]) & \"-\" & \"Q\" & INT((MONTH(EFA_Log[[#This Row],[Service Date ]])+2)/3), \"\")","v":""}]
[null,null,null,null,null,null,null,null,{"$f":"IF(EFA_Log[[#This Row],[Service Date ]], YEAR(EFA_Log[[#This Row],[Service Date ]]) & \"-\" & \"Q\" & INT((MONTH(EFA_Log[[#This Row],[Service Date ]])+2)/3), \"\")","v":""}]
[null,null,null,null,null,null,null,null,{"$f":"IF(EFA_Log[[#This Row],[Service Date ]], YEAR(EFA_Log[[#This Row],[Service Date ]]) & \"-\" & \"Q\" & INT((MONTH(EFA_Log[[#This Row],[Service Date ]])+2)/3), \"\")","v":""}]
[null,null,null,null,null,null,null,null,{"$f":"IF(EFA_Log[[#This Row],[Service Date ]], YEAR(EFA_Log[[#This Row],[Service Date ]]) & \"-\" & \"Q\" & INT((MONTH(EFA_Log[[#This Row],[Service Date ]])+2)/3), \"\")","v":""}]
[null,null,null,null,null,null,null,null,{"$f":"IF(EFA_Log[[#This Row],[Service Date ]], YEAR(EFA_Log[[#This Row],[Service Date ]]) & \"-\" & \"Q\" & INT((MONTH(EFA_Log[[#This Row],[Service Date ]])+2)/3), \"\")","v":""}]
[null,null,null,null,null,null,null,null,{"$f":"IF(EFA_Log[[#This Row],[Service Date ]], YEAR(EFA_Log[[#This Row],[Service Date ]]) & \"-\" & \"Q\" & INT((MONTH(EFA_Log[[#This Row],[Service Date ]])+2)/3), \"\")","v":""}]
[null,null,null,null,null,null,null,null,{"$f":"IF(EFA_Log[[#This Row],[Service Date ]], YEAR(EFA_Log[[#This Row],[Service Date ]]) & \"-\" & \"Q\" & INT((MONTH(EFA_Log[[#This Row],[Service Date ]])+2)/3), \"\")","v":""}]
[null,null,null,null,null,null,null,null,{"$f":"IF(EFA_Log[[#This Row],[Service Date ]], YEAR(EFA_Log[[#This Row],[Service Date ]]) & \"-\" & \"Q\" & INT((MONTH(EFA_Log[[#This Row],[Service Date ]])+2)/3), \"\")","v":""}]
[null,null,null,null,null,null,null,null,{"$f":"IF(EFA_Log[[#This Row],[Service Date ]], YEAR(EFA_Log[[#This Row],[Service Date ]]) & \"-\" & \"Q\" & INT((MONTH(EFA_Log[[#This Row],[Service Date ]])+2)/3), \"\")","v":""}]
[null,null,null,null,null,null,null,null,{"$f":"IF(EFA_Log[[#This Row],[Service Date ]], YEAR(EFA_Log[[#This Row],[Service Date ]]) & \"-\" & \"Q\" & INT((MONTH(EFA_Log[[#This Row],[Service Date ]])+2)/3), \"\")","v":""}]
[null,null,null,null,null,null,null,null,{"$f":"IF(EFA_Log[[#This Row],[Service Date ]], YEAR(EFA_Log[[#This Row],[Service Date ]]) & \"-\" & \"Q\" & INT((MONTH(EFA_Log[[#This Row],[Service Date ]])+2)/3), \"\")","v":""}]
[null,null,null,null,null,null,null,null,{"$f":"IF(EFA_Log[[#This Row],[Service Date ]], YEAR(EFA_Log[[#This Row],[Service Date ]]) & \"-\" & \"Q\" & INT((MONTH(EFA_Log[[#This Row],[Service Date ]])+2)/3), \"\")","v":""}]
[null,null,null,null,null,null,null,null,{"$f":"IF(EFA_Log[[#This Row],[Service Date ]], YEAR(EFA_Log[[#This Row],[Service Date ]]) & \"-\" & \"Q\" & INT((MONTH(EFA_Log[[#This Row],[Service Date ]])+2)/3), \"\")","v":""}]
[null,null,null,null,null,null,null,null,{"$f":"IF(EFA_Log[[#This Row],[Service Date ]], YEAR(EFA_Log[[#This Row],[Service Date ]]) & \"-\" & \"Q\" & INT((MONTH(EFA_Log[[#This Row],[Service Date ]])+2)/3), \"\")","v":""}]
[null,null,null,null,null,null,null,null,{"$f":"IF(EFA_Log[[#This Row],[Service Date ]], YEAR(EFA_Log[[#This Row],[Service Date ]]) & \"-\" & \"Q\" & INT((MONTH(EFA_Log[[#This Row],[Service Date ]])+2)/3), \"\")","v":""}]
[null,null,null,null,null,null,null,null,{"$f":"IF(EFA_Log[[#This Row],[Service Date ]], YEAR(EFA_Log[[#This Row],[Service Date ]]) & \"-\" & \"Q\" & INT((MONTH(EFA_Log[[#This Row],[Service Date ]])+2)/3), \"\")","v":""}]
[null,null,null,null,null,null,null,null,{"$f":"IF(EFA_Log[[#This Row],[Service Date ]], YEAR(EFA_Log[[#This Row],[Service Date ]]) & \"-\" & \"Q\" & INT((MONTH(EFA_Log[[#This Row],[Service Date ]])+2)/3), \"\")","v":""}]
[null,null,null,null,null,null,null,null,{"$f":"IF(EFA_Log[[#This Row],[Service Date ]], YEAR(EFA_Log[[#This Row],[Service Date ]]) & \"-\" & \"Q\" & INT((MONTH(EFA_Log[[#This Row],[Service Date ]])+2)/3), \"\")","v":""}]
[null,null,null,null,null,null,null,null,{"$f":"IF(EFA_Log[[#This Row],[Service Date ]], YEAR(EFA_Log[[#This Row],[Service Date ]]) & \"-\" & \"Q\" & INT((MONTH(EFA_Log[[#This Row],[Service Date ]])+2)/3), \"\")","v":""}]
[null,null,null,null,null,null,null,null,{"$f":"IF(EFA_Log[[#This Row],[Service Date ]], YEAR(EFA_Log[[#This Row],[Service Date ]]) & \"-\" & \"Q\" & INT((MONTH(EFA_Log[[#This Row],[Service Date ]])+2)/3), \"\")","v":""}]
[null,null,null,null,null,null,null,null,{"$f":"IF(EFA_Log[[#This Row],[Service Date ]], YEAR(EFA_Log[[#This Row],[Service Date ]]) & \"-\" & \"Q\" & INT((MONTH(EFA_Log[[#This Row],[Service Date ]])+2)/3), \"\")","v":""}]
[null,null,null,null,null,null,null,null,{"$f":"IF(EFA_Log[[#This Row],[Service Date ]], YEAR(EFA_Log[[#This Row],[Service Date ]]) & \"-\" & \"Q\" & INT((MONTH(EFA_Log[[#This Row],[Service Date ]])+2)/3), \"\")","v":""}]
[null,null,null,null,null,null,null,null,{"$f":"IF(EFA_Log[[#This Row],[Service Date ]], YEAR(EFA_Log[[#This Row],[Service Date ]]) & \"-\" & \"Q\" & INT((MONTH(EFA_Log[[#This Row],[Service Date ]])+2)/3), \"\")","v":""}]
[null,null,null,null,null,null,null,null,{"$f":"IF(EFA_Log[[#This Row],[Service Date ]], YEAR(EFA_Log[[#This Row],[Service Date ]]) & \"-\" & \"Q\" & INT((MONTH(EFA_Log[[#This Row],[Service Date ]])+2)/3), \"\")","v":""}]
[null,null,null,null,null,null,null,null,{"$f":"IF(EFA_Log[[#This Row],[Service Date ]], YEAR(EFA_Log[[#This Row],[Service Date ]]) & \"-\" & \"Q\" & INT((MONTH(EFA_Log[[#This Row],[Service Date ]])+2)/3), \"\")","v":""}]
[null,null,null,null,null,null,null,null,{"$f":"IF(EFA_Log[[#This Row],[Service Date ]], YEAR(EFA_Log[[#This Row],[Service Date ]]) & \"-\" & \"Q\" & INT((MONTH(EFA_Log[[#This Row],[Service Date ]])+2)/3), \"\")","v":""}]
[null,null,null,null,null,null,null,null,{"$f":"IF(EFA_Log[[#This Row],[Service Date ]], YEAR(EFA_Log[[#This Row],[Service Date ]]) & \"-\" & \"Q\" & INT((MONTH(EFA_Log[[#This Row],[Service Date ]])+2)/3), \"\")","v":""}]
[null,null,null,null,null,null,null,null,{"$f":"IF(EFA_Log[[#This Row],[Service Date ]], YEAR(EFA_Log[[#This Row],[Service Date ]]) & \"-\" & \"Q\" & INT((MONTH(EFA_Log[[#This Row],[Service Date ]])+2)/3), \"\")","v":""}]
[null,null,null,null,null,null,null,null,{"$f":"IF(EFA_Log[[#This Row],[Service Date ]], YEAR(EFA_Log[[#This Row],[Service Date ]]) & \"-\" & \"Q\" & INT((MONTH(EFA_Log[[#This Row],[Service Date ]])+2)/3), \"\")","v":""}]
[null,null,null,null,null,null,null,null,{"$f":"IF(EFA_Log[[#This Row],[Service Date ]], YEAR(EFA_Log[[#This Row],[Service Date ]]) & \"-\" & \"Q\" & INT((MONTH(EFA_Log[[#This Row],[Service Date ]])+2)/3), \"\")","v":""}]
[null,null,null,null,null,null,null,null,{"$f":"IF(EFA_Log[[#This Row],[Service Date ]], YEAR(EFA_Log[[#This Row],[Service Date ]]) & \"-\" & \"Q\" & INT((MONTH(EFA_Log[[#This Row],[Service Date ]])+2)/3), \"\")","v":""}]
[null,null,null,null,null,null,null,null,{"$f":"IF(EFA_Log[[#This Row],[Service Date ]], YEAR(EFA_Log[[#This Row],[Service Date ]]) & \"-\" & \"Q\" & INT((MONTH(EFA_Log[[#This Row],[Service Date ]])+2)/3), \"\")","v":""}]
[null,null,null,null,null,null,null,null,{"$f":"IF(EFA_Log[[#This Row],[Service Date ]], YEAR(EFA_Log[[#This Row],[Service Date ]]) & \"-\" & \"Q\" & INT((MONTH(EFA_Log[[#This Row],[Service Date ]])+2)/3), \"\")","v":""}]
[null,null,null,null,null,null,null,null,{"$f":"IF(EFA_Log[[#This Row],[Service Date ]], YEAR(EFA_Log[[#This Row],[Service Date ]]) & \"-\" & \"Q\" & INT((MONTH(EFA_Log[[#This Row],[Service Date ]])+2)/3), \"\")","v":""}]
[null,null,null,null,null,null,null,null,{"$f":"IF(EFA_Log[[#This Row],[Service Date ]], YEAR(EFA_Log[[#This Row],[Service Date ]]) & \"-\" & \"Q\" & INT((MONTH(EFA_Log[[#This Row],[Service Date ]])+2)/3), \"\")","v":""}]
[null,null,null,null,null,null,null,null,{"$f":"IF(EFA_Log[[#This Row],[Service Date ]], YEAR(EFA_Log[[#This Row],[Service Date ]]) & \"-\" & \"Q\" & INT((MONTH(EFA_Log[[#This Row],[Service Date ]])+2)/3), \"\")","v":""}]
[null,null,null,null,null,null,null,null,{"$f":"IF(EFA_Log[[#This Row],[Service Date ]], YEAR(EFA_Log[[#This Row],[Service Date ]]) & \"-\" & \"Q\" & INT((MONTH(EFA_Log[[#This Row],[Service Date ]])+2)/3), \"\")","v":""}]
[null,null,null,null,null,null,null,null,{"$f":"IF(EFA_Log[[#This Row],[Service Date ]], YEAR(EFA_Log[[#This Row],[Service Date ]]) & \"-\" & \"Q\" & INT((MONTH(EFA_Log[[#This Row],[Service Date ]])+2)/3), \"\")","v":""}]
[null,null,null,null,null,null,null,null,{"$f":"IF(EFA_Log[[#This Row],[Service Date ]], YEAR(EFA_Log[[#This Row],[Service Date ]]) & \"-\" & \"Q\" & INT((MONTH(EFA_Log[[#This Row],[Service Date ]])+2)/3), \"\")","v":""}]
[null,null,null,null,null,null,null,null,{"$f":"IF(EFA_Log[[#This Row],[Service Date ]], YEAR(EFA_Log[[#This Row],[Service Date ]]) & \"-\" & \"Q\" & INT((MONTH(EFA_Log[[#This Row],[Service Date ]])+2)/3), \"\")","v":""}]
[null,null,null,null,null,null,null,null,{"$f":"IF(EFA_Log[[#This Row],[Service Date ]], YEAR(EFA_Log[[#This Row],[Service Date ]]) & \"-\" & \"Q\" & INT((MONTH(EFA_Log[[#This Row],[Service Date ]])+2)/3), \"\")","v":""}]
[null,null,null,null,null,null,null,null,{"$f":"IF(EFA_Log[[#This Row],[Service Date ]], YEAR(EFA_Log[[#This Row],[Service Date ]]) & \"-\" & \"Q\" & INT((MONTH(EFA_Log[[#This Row],[Service Date ]])+2)/3), \"\")","v":""}]
[null,null,null,null,null,null,null,null,{"$f":"IF(EFA_Log[[#This Row],[Service Date ]], YEAR(EFA_Log[[#This Row],[Service Date ]]) & \"-\" & \"Q\" & INT((MONTH(EFA_Log[[#This Row],[Service Date ]])+2)/3), \"\")","v":""}]
[null,null,null,null,null,null,null,null,{"$f":"IF(EFA_Log[[#This Row],[Service Date ]], YEAR(EFA_Log[[#This Row],[Service Date ]]) & \"-\" & \"Q\" & INT((MONTH(EFA_Log[[#This Row],[Service Date ]])+2)/3), \"\")","v":""}]
[null,null,null,null,null,null,null,null,{"$f":"IF(EFA_Log[[#This Row],[Service Date ]], YEAR(EFA_Log[[#This Row],[Service Date ]]) & \"-\" & \"Q\" & INT((MONTH(EFA_Log[[#This Row],[Service Date ]])+2)/3), \"\")","v":""}]
[null,null,null,null,null,null,null,null,{"$f":"IF(EFA_Log[[#This Row],[Service Date ]], YEAR(EFA_Log[[#This Row],[Service Date ]]) & \"-\" & \"Q\" & INT((MONTH(EFA_Log[[#This Row],[Service Date ]])+2)/3), \"\")","v":""}]
[null,null,null,null,null,null,null,null,{"$f":"IF(EFA_Log[[#This Row],[Service Date ]], YEAR(EFA_Log[[#This Row],[Service Date ]]) & \"-\" & \"Q\" & INT((MONTH(EFA_Log[[#This Row],[Service Date ]])+2)/3), \"\")","v":""}]
[null,null,null,null,null,null,null,null,{"$f":"IF(EFA_Log[[#This Row],[Service Date ]], YEAR(EFA_Log[[#This Row],[Service Date ]]) & \"-\" & \"Q\" & INT((MONTH(EFA_Log[[#This Row],[Service Date ]])+2)/3), \"\")","v":""}]
[null,null,null,null,null,null,null,null,{"$f":"IF(EFA_Log[[#This Row],[Service Date ]], YEAR(EFA_Log[[#This Row],[Service Date ]]) & \"-\" & \"Q\" & INT((MONTH(EFA_Log[[#This Row],[Service Date ]])+2)/3), \"\")","v":""}]
[null,null,null,null,null,null,null,null,{"$f":"IF(EFA_Log[[#This Row],[Service Date ]], YEAR(EFA_Log[[#This Row],[Service Date ]]) & \"-\" & \"Q\" & INT((MONTH(EFA_Log[[#This Row],[Service Date ]])+2)/3), \"\")","v":""}]
[null,null,null,null,null,null,null,null,{"$f":"IF(EFA_Log[[#This Row],[Service Date ]], YEAR(EFA_Log[[#This Row],[Service Date ]]) & \"-\" & \"Q\" & INT((MONTH(EFA_Log[[#This Row],[Service Date ]])+2)/3), \"\")","v":""}]
[null,null,null,null,null,null,null,null,{"$f":"IF(EFA_Log[[#This Row],[Service Date ]], YEAR(EFA_Log[[#This Row],[Service Date ]]) & \"-\" & \"Q\" & INT((MONTH(EFA_Log[[#This Row],[Service Date ]])+2)/3), \"\")","v":""}]
[null,null,null,null,null,null,null,null,{"$f":"IF(EFA_Log[[#This Row],[Service Date ]], YEAR(EFA_Log[[#This Row],[Service Date ]]) & \"-\" & \"Q\" & INT((MONTH(EFA_Log[[#This Row],[Service Date ]])+2)/3), \"\")","v":""}]
[null,null,null,null,null,null,null,null,{"$f":"IF(EFA_Log[[#This Row],[Service Date ]], YEAR(EFA_Log[[#This Row],[Service Date ]]) & \"-\" & \"Q\" & INT((MONTH(EFA_Log[[#This Row],[Service Date ]])+2)/3), \"\")","v":""}]
[null,null,null,null,null,null,null,null,{"$f":"IF(EFA_Log[[#This Row],[Service Date ]], YEAR(EFA_Log[[#This Row],[Service Date ]]) & \"-\" & \"Q\" & INT((MONTH(EFA_Log[[#This Row],[Service Date ]])+2)/3), \"\")","v":""}]
[null,null,null,null,null,null,null,null,{"$f":"IF(EFA_Log[[#This Row],[Service Date ]], YEAR(EFA_Log[[#This Row],[Service Date ]]) & \"-\" & \"Q\" & INT((MONTH(EFA_Log[[#This Row],[Service Date ]])+2)/3), \"\")","v":""}]
[null,null,null,null,null,null,null,null,{"$f":"IF(EFA_Log[[#This Row],[Service Date ]], YEAR(EFA_Log[[#This Row],[Service Date ]]) & \"-\" & \"Q\" & INT((MONTH(EFA_Log[[#This Row],[Service Date ]])+2)/3), \"\")","v":""}]
[null,null,null,null,null,null,null,null,{"$f":"IF(EFA_Log[[#This Row],[Service Date ]], YEAR(EFA_Log[[#This Row],[Service Date ]]) & \"-\" & \"Q\" & INT((MONTH(EFA_Log[[#This Row],[Service Date ]])+2)/3), \"\")","v":""}]
[null,null,null,null,null,null,null,null,{"$f":"IF(EFA_Log[[#This Row],[Service Date ]], YEAR(EFA_Log[[#This Row],[Service Date ]]) & \"-\" & \"Q\" & INT((MONTH(EFA_Log[[#This Row],[Service Date ]])+2)/3), \"\")","v":""}]
[null,null,null,null,null,null,null,null,{"$f":"IF(EFA_Log[[#This Row],[Service Date ]], YEAR(EFA_Log[[#This Row],[Service Date ]]) & \"-\" & \"Q\" & INT((MONTH(EFA_Log[[#This Row],[Service Date ]])+2)/3), \"\")","v":""}]
[null,null,null,null,null,null,null,null,{"$f":"IF(EFA_Log[[#This Row],[Service Date ]], YEAR(EFA_Log[[#This Row],[Service Date ]]) & \"-\" & \"Q\" & INT((MONTH(EFA_Log[[#This Row],[Service Date ]])+2)/3), \"\")","v":""}]
[null,null,null,null,null,null,null,null,{"$f":"IF(EFA_Log[[#This Row],[Service Date ]], YEAR(EFA_Log[[#This Row],[Service Date ]]) & \"-\" & \"Q\" & INT((MONTH(EFA_Log[[#This Row],[Service Date ]])+2)/3), \"\")","v":""}]
[null,null,null,null,null,null,null,null,{"$f":"IF(EFA_Log[[#This Row],[Service Date ]], YEAR(EFA_Log[[#This Row],[Service Date ]]) & \"-\" & \"Q\" & INT((MONTH(EFA_Log[[#This Row],[Service Date ]])+2)/3), \"\")","v":""}]
[null,null,null,null,null,null,null,null,{"$f":"IF(EFA_Log[[#This Row],[Service Date ]], YEAR(EFA_Log[[#This Row],[Service Date ]]) & \"-\" & \"Q\" & INT((MONTH(EFA_Log[[#This Row],[Service Date ]])+2)/3), \"\")","v":""}]
[null,null,null,null,null,null,null,null,{"$f":"IF(EFA_Log[[#This Row],[Service Date ]], YEAR(EFA_Log[[#This Row],[Service Date ]]) & \"-\" & \"Q\" & INT((MONTH(EFA_Log[[#This Row],[Service Date ]])+2)/3), \"\")","v":""}]
[null,null,null,null,null,null,null,null,{"$f":"IF(EFA_Log[[#This Row],[Service Date ]], YEAR(EFA_Log[[#This Row],[Service Date ]]) & \"-\" & \"Q\" & INT((MONTH(EFA_Log[[#This Row],[Service Date ]])+2)/3), \"\")","v":""}]
[null,null,null,null,null,null,null,null,{"$f":"IF(EFA_Log[[#This Row],[Service Date ]], YEAR(EFA_Log[[#This Row],[Service Date ]]) & \"-\" & \"Q\" & INT((MONTH(EFA_Log[[#This Row],[Service Date ]])+2)/3), \"\")","v":""}]
[null,null,null,null,null,null,null,null,{"$f":"IF(EFA_Log[[#This Row],[Service Date ]], YEAR(EFA_Log[[#This Row],[Service Date ]]) & \"-\" & \"Q\" & INT((MONTH(EFA_Log[[#This Row],[Service Date ]])+2)/3), \"\")","v":""}]
[null,null,null,null,null,null,null,null,{"$f":"IF(EFA_Log[[#This Row],[Service Date ]], YEAR(EFA_Log[[#This Row],[Service Date ]]) & \"-\" & \"Q\" & INT((MONTH(EFA_Log[[#This Row],[Service Date ]])+2)/3), \"\")","v":""}]
[null,null,null,null,null,null,null,null,{"$f":"IF(EFA_Log[[#This Row],[Service Date ]], YEAR(EFA_Log[[#This Row],[Service Date ]]) & \"-\" & \"Q\" & INT((MONTH(EFA_Log[[#This Row],[Service Date ]])+2)/3), \"\")","v":""}]
[null,null,null,null,null,null,null,null,{"$f":"IF(EFA_Log[[#This Row],[Service Date ]], YEAR(EFA_Log[[#This Row],[Service Date ]]) & \"-\" & \"Q\" & INT((MONTH(EFA_Log[[#This Row],[Service Date ]])+2)/3), \"\")","v":""}]
[null,null,null,null,null,null,null,null,{"$f":"IF(EFA_Log[[#This Row],[Service Date ]], YEAR(EFA_Log[[#This Row],[Service Date ]]) & \"-\" & \"Q\" & INT((MONTH(EFA_Log[[#This Row],[Service Date ]])+2)/3), \"\")","v":""}]
[null,null,null,null,null,null,null,null,{"$f":"IF(EFA_Log[[#This Row],[Service Date ]], YEAR(EFA_Log[[#This Row],[Service Date ]]) & \"-\" & \"Q\" & INT((MONTH(EFA_Log[[#This Row],[Service Date ]])+2)/3), \"\")","v":""}]
[null,null,null,null,null,null,null,null,{"$f":"IF(EFA_Log[[#This Row],[Service Date ]], YEAR(EFA_Log[[#This Row],[Service Date ]]) & \"-\" & \"Q\" & INT((MONTH(EFA_Log[[#This Row],[Service Date ]])+2)/3), \"\")","v":""}]
[null,null,null,null,null,null,null,null,{"$f":"IF(EFA_Log[[#This Row],[Service Date ]], YEAR(EFA_Log[[#This Row],[Service Date ]]) & \"-\" & \"Q\" & INT((MONTH(EFA_Log[[#This Row],[Service Date ]])+2)/3), \"\")","v":""}]
[null,null,null,null,null,null,null,null,{"$f":"IF(EFA_Log[[#This Row],[Service Date ]], YEAR(EFA_Log[[#This Row],[Service Date ]]) & \"-\" & \"Q\" & INT((MONTH(EFA_Log[[#This Row],[Service Date ]])+2)/3), \"\")","v":""}]
[null,null,null,null,null,null,null,null,{"$f":"IF(EFA_Log[[#This Row],[Service Date ]], YEAR(EFA_Log[[#This Row],[Service Date ]]) & \"-\" & \"Q\" & INT((MONTH(EFA_Log[[#This Row],[Service Date ]])+2)/3), \"\")","v":""}]
[null,null,null,null,null,null,null,null,{"$f":"IF(EFA_Log[[#This Row],[Service Date ]], YEAR(EFA_Log[[#This Row],[Service Date ]]) & \"-\" & \"Q\" & INT((MONTH(EFA_Log[[#This Row],[Service Date ]])+2)/3), \"\")","v":""}]
[null,null,null,null,null,null,null,null,{"$f":"IF(EFA_Log[[#This Row],[Service Date ]], YEAR(EFA_Log[[#This Row],[Service Date ]]) & \"-\" & \"Q\" & INT((MONTH(EFA_Log[[#This Row],[Service Date ]])+2)/3), \"\")","v":""}]
[null,null,null,null,null,null,null,null,{"$f":"IF(EFA_Log[[#This Row],[Service Date ]], YEAR(EFA_Log[[#This Row],[Service Date ]]) & \"-\" & \"Q\" & INT((MONTH(EFA_Log[[#This Row],[Service Date ]])+2)/3), \"\")","v":""}]
[null,null,null,null,null,null,null,null,{"$f":"IF(EFA_Log[[#This Row],[Service Date ]], YEAR(EFA_Log[[#This Row],[Service Date ]]) & \"-\" & \"Q\" & INT((MONTH(EFA_Log[[#This Row],[Service Date ]])+2)/3), \"\")","v":""}]
[null,null,null,null,null,null,null,null,{"$f":"IF(EFA_Log[[#This Row],[Service Date ]], YEAR(EFA_Log[[#This Row],[Service Date ]]) & \"-\" & \"Q\" & INT((MONTH(EFA_Log[[#This Row],[Service Date ]])+2)/3), \"\")","v":""}]
[null,null,null,null,null,null,null,null,{"$f":"IF(EFA_Log[[#This Row],[Service Date ]], YEAR(EFA_Log[[#This Row],[Service Date ]]) & \"-\" & \"Q\" & INT((MONTH(EFA_Log[[#This Row],[Service Date ]])+2)/3), \"\")","v":""}]
[null,null,null,null,null,null,null,null,{"$f":"IF(EFA_Log[[#This Row],[Service Date ]], YEAR(EFA_Log[[#This Row],[Service Date ]]) & \"-\" & \"Q\" & INT((MONTH(EFA_Log[[#This Row],[Service Date ]])+2)/3), \"\")","v":""}]
[null,null,null,null,null,null,null,null,{"$f":"IF(EFA_Log[[#This Row],[Service Date ]], YEAR(EFA_Log[[#This Row],[Service Date ]]) & \"-\" & \"Q\" & INT((MONTH(EFA_Log[[#This Row],[Service Date ]])+2)/3), \"\")","v":""}]
[null,null,null,null,null,null,null,null,{"$f":"IF(EFA_Log[[#This Row],[Service Date ]], YEAR(EFA_Log[[#This Row],[Service Date ]]) & \"-\" & \"Q\" & INT((MONTH(EFA_Log[[#This Row],[Service Date ]])+2)/3), \"\")","v":""}]
[null,null,null,null,null,null,null,null,{"$f":"IF(EFA_Log[[#This Row],[Service Date ]], YEAR(EFA_Log[[#This Row],[Service Date ]]) & \"-\" & \"Q\" & INT((MONTH(EFA_Log[[#This Row],[Service Date ]])+2)/3), \"\")","v":""}]
[null,null,null,null,null,null,null,null,{"$f":"IF(EFA_Log[[#This Row],[Service Date ]], YEAR(EFA_Log[[#This Row],[Service Date ]]) & \"-\" & \"Q\" & INT((MONTH(EFA_Log[[#This Row],[Service Date ]])+2)/3), \"\")","v":""}]
[null,null,null,null,null,null,null,null,{"$f":"IF(EFA_Log[[#This Row],[Service Date ]], YEAR(EFA_Log[[#This Row],[Service Date ]]) & \"-\" & \"Q\" & INT((MONTH(EFA_Log[[#This Row],[Service Date ]])+2)/3), \"\")","v":""}]
[null,null,null,null,null,null,null,null,{"$f":"IF(EFA_Log[[#This Row],[Service Date ]], YEAR(EFA_Log[[#This Row],[Service Date ]]) & \"-\" & \"Q\" & INT((MONTH(EFA_Log[[#This Row],[Service Date ]])+2)/3), \"\")","v":""}]
[null,null,null,null,null,null,null,null,{"$f":"IF(EFA_Log[[#This Row],[Service Date ]], YEAR(EFA_Log[[#This Row],[Service Date ]]) & \"-\" & \"Q\" & INT((MONTH(EFA_Log[[#This Row],[Service Date ]])+2)/3), \"\")","v":""}]
[null,null,null,null,null,null,null,null,{"$f":"IF(EFA_Log[[#This Row],[Service Date ]], YEAR(EFA_Log[[#This Row],[Service Date ]]) & \"-\" & \"Q\" & INT((MONTH(EFA_Log[[#This Row],[Service Date ]])+2)/3), \"\")","v":""}]
[null,null,null,null,null,null,null,null,{"$f":"IF(EFA_Log[[#This Row],[Service Date ]], YEAR(EFA_Log[[#This Row],[Service Date ]]) & \"-\" & \"Q\" & INT((MONTH(EFA_Log[[#This Row],[Service Date ]])+2)/3), \"\")","v":""}]
[null,null,null,null,null,null,null,null,{"$f":"IF(EFA_Log[[#This Row],[Service Date ]], YEAR(EFA_Log[[#This Row],[Service Date ]]) & \"-\" & \"Q\" & INT((MONTH(EFA_Log[[#This Row],[Service Date ]])+2)/3), \"\")","v":""}]
[null,null,null,null,null,null,null,null,{"$f":"IF(EFA_Log[[#This Row],[Service Date ]], YEAR(EFA_Log[[#This Row],[Service Date ]]) & \"-\" & \"Q\" & INT((MONTH(EFA_Log[[#This Row],[Service Date ]])+2)/3), \"\")","v":""}]
[null,null,null,null,null,null,null,null,{"$f":"IF(EFA_Log[[#This Row],[Service Date ]], YEAR(EFA_Log[[#This Row],[Service Date ]]) & \"-\" & \"Q\" & INT((MONTH(EFA_Log[[#This Row],[Service Date ]])+2)/3), \"\")","v":""}]
[null,null,null,null,null,null,null,null,{"$f":"IF(EFA_Log[[#This Row],[Service Date ]], YEAR(EFA_Log[[#This Row],[Service Date ]]) & \"-\" & \"Q\" & INT((MONTH(EFA_Log[[#This Row],[Service Date ]])+2)/3), \"\")","v":""}]
[null,null,null,null,null,null,null,null,{"$f":"IF(EFA_Log[[#This Row],[Service Date ]], YEAR(EFA_Log[[#This Row],[Service Date ]]) & \"-\" & \"Q\" & INT((MONTH(EFA_Log[[#This Row],[Service Date ]])+2)/3), \"\")","v":""}]
[null,null,null,null,null,null,null,null,{"$f":"IF(EFA_Log[[#This Row],[Service Date ]], YEAR(EFA_Log[[#This Row],[Service Date ]]) & \"-\" & \"Q\" & INT((MONTH(EFA_Log[[#This Row],[Service Date ]])+2)/3), \"\")","v":""}]
[null,null,null,null,null,null,null,null,{"$f":"IF(EFA_Log[[#This Row],[Service Date ]], YEAR(EFA_Log[[#This Row],[Service Date ]]) & \"-\" & \"Q\" & INT((MONTH(EFA_Log[[#This Row],[Service Date ]])+2)/3), \"\")","v":""}]
[null,null,null,null,null,null,null,null,{"$f":"IF(EFA_Log[[#This Row],[Service Date ]], YEAR(EFA_Log[[#This Row],[Service Date ]]) & \"-\" & \"Q\" & INT((MONTH(EFA_Log[[#This Row],[Service Date ]])+2)/3), \"\")","v":""}]
[null,null,null,null,null,null,null,null,{"$f":"IF(EFA_Log[[#This Row],[Service Date ]], YEAR(EFA_Log[[#This Row],[Service Date ]]) & \"-\" & \"Q\" & INT((MONTH(EFA_Log[[#This Row],[Service Date ]])+2)/3), \"\")","v":""}]
[null,null,null,null,null,null,null,null,{"$f":"IF(EFA_Log[[#This Row],[Service Date ]], YEAR(EFA_Log[[#This Row],[Service Date ]]) & \"-\" & \"Q\" & INT((MONTH(EFA_Log[[#This Row],[Service Date ]])+2)/3), \"\")","v":""}]
[null,null,null,null,null,null,null,null,{"$f":"IF(EFA_Log[[#This Row],[Service Date ]], YEAR(EFA_Log[[#This Row],[Service Date ]]) & \"-\" & \"Q\" & INT((MONTH(EFA_Log[[#This Row],[Service Date ]])+2)/3), \"\")","v":""}]
[null,null,null,null,null,null,null,null,{"$f":"IF(EFA_Log[[#This Row],[Service Date ]], YEAR(EFA_Log[[#This Row],[Service Date ]]) & \"-\" & \"Q\" & INT((MONTH(EFA_Log[[#This Row],[Service Date ]])+2)/3), \"\")","v":""}]
[null,null,null,null,null,null,null,null,{"$f":"IF(EFA_Log[[#This Row],[Service Date ]], YEAR(EFA_Log[[#This Row],[Service Date ]]) & \"-\" & \"Q\" & INT((MONTH(EFA_Log[[#This Row],[Service Date ]])+2)/3), \"\")","v":""}]
[null,null,null,null,null,null,null,null,{"$f":"IF(EFA_Log[[#This Row],[Service Date ]], YEAR(EFA_Log[[#This Row],[Service Date ]]) & \"-\" & \"Q\" & INT((MONTH(EFA_Log[[#This Row],[Service Date ]])+2)/3), \"\")","v":""}]
[null,null,null,null,null,null,null,null,{"$f":"IF(EFA_Log[[#This Row],[Service Date ]], YEAR(EFA_Log[[#This Row],[Service Date ]]) & \"-\" & \"Q\" & INT((MONTH(EFA_Log[[#This Row],[Service Date ]])+2)/3), \"\")","v":""}]
[null,null,null,null,null,null,null,null,{"$f":"IF(EFA_Log[[#This Row],[Service Date ]], YEAR(EFA_Log[[#This Row],[Service Date ]]) & \"-\" & \"Q\" & INT((MONTH(EFA_Log[[#This Row],[Service Date ]])+2)/3), \"\")","v":""}]
[null,null,null,null,null,null,null,null,{"$f":"IF(EFA_Log[[#This Row],[Service Date ]], YEAR(EFA_Log[[#This Row],[Service Date ]]) & \"-\" & \"Q\" & INT((MONTH(EFA_Log[[#This Row],[Service Date ]])+2)/3), \"\")","v":""}]
[null,null,null,null,null,null,null,null,{"$f":"IF(EFA_Log[[#This Row],[Service Date ]], YEAR(EFA_Log[[#This Row],[Service Date ]]) & \"-\" & \"Q\" & INT((MONTH(EFA_Log[[#This Row],[Service Date ]])+2)/3), \"\")","v":""}]
[null,null,null,null,null,null,null,null,{"$f":"IF(EFA_Log[[#This Row],[Service Date ]], YEAR(EFA_Log[[#This Row],[Service Date ]]) & \"-\" & \"Q\" & INT((MONTH(EFA_Log[[#This Row],[Service Date ]])+2)/3), \"\")","v":""}]
[null,null,null,null,null,null,null,null,{"$f":"IF(EFA_Log[[#This Row],[Service Date ]], YEAR(EFA_Log[[#This Row],[Service Date ]]) & \"-\" & \"Q\" & INT((MONTH(EFA_Log[[#This Row],[Service Date ]])+2)/3), \"\")","v":""}]
[null,null,null,null,null,null,null,null,{"$f":"IF(EFA_Log[[#This Row],[Service Date ]], YEAR(EFA_Log[[#This Row],[Service Date ]]) & \"-\" & \"Q\" & INT((MONTH(EFA_Log[[#This Row],[Service Date ]])+2)/3), \"\")","v":""}]
[null,null,null,null,null,null,null,null,{"$f":"IF(EFA_Log[[#This Row],[Service Date ]], YEAR(EFA_Log[[#This Row],[Service Date ]]) & \"-\" & \"Q\" & INT((MONTH(EFA_Log[[#This Row],[Service Date ]])+2)/3), \"\")","v":""}]
[null,null,null,null,null,null,null,null,{"$f":"IF(EFA_Log[[#This Row],[Service Date ]], YEAR(EFA_Log[[#This Row],[Service Date ]]) & \"-\" & \"Q\" & INT((MONTH(EFA_Log[[#This Row],[Service Date ]])+2)/3), \"\")","v":""}]
[null,null,null,null,null,null,null,null,{"$f":"IF(EFA_Log[[#This Row],[Service Date ]], YEAR(EFA_Log[[#This Row],[Service Date ]]) & \"-\" & \"Q\" & INT((MONTH(EFA_Log[[#This Row],[Service Date ]])+2)/3), \"\")","v":""}]
[null,null,null,null,null,null,null,null,{"$f":"IF(EFA_Log[[#This Row],[Service Date ]], YEAR(EFA_Log[[#This Row],[Service Date ]]) & \"-\" & \"Q\" & INT((MONTH(EFA_Log[[#This Row],[Service Date ]])+2)/3), \"\")","v":""}]
[null,null,null,null,null,null,null,null,{"$f":"IF(EFA_Log[[#This Row],[Service Date ]], YEAR(EFA_Log[[#This Row],[Service Date ]]) & \"-\" & \"Q\" & INT((MONTH(EFA_Log[[#This Row],[Service Date ]])+2)/3), \"\")","v":""}]
[null,null,null,null,null,null,null,null,{"$f":"IF(EFA_Log[[#This Row],[Service Date ]], YEAR(EFA_Log[[#This Row],[Service Date ]]) & \"-\" & \"Q\" & INT((MONTH(EFA_Log[[#This Row],[Service Date ]])+2)/3), \"\")","v":""}]
[null,null,null,null,null,null,null,null,{"$f":"IF(EFA_Log[[#This Row],[Service Date ]], YEAR(EFA_Log[[#This Row],[Service Date ]]) & \"-\" & \"Q\" & INT((MONTH(EFA_Log[[#This Row],[Service Date ]])+2)/3), \"\")","v":""}]
[null,null,null,null,null,null,null,null,{"$f":"IF(EFA_Log[[#This Row],[Service Date ]], YEAR(EFA_Log[[#This Row],[Service Date ]]) & \"-\" & \"Q\" & INT((MONTH(EFA_Log[[#This Row],[Service Date ]])+2)/3), \"\")","v":""}]
[null,null,null,null,null,null,null,null,{"$f":"IF(EFA_Log[[#This Row],[Service Date ]], YEAR(EFA_Log[[#This Row],[Service Date ]]) & \"-\" & \"Q\" & INT((MONTH(EFA_Log[[#This Row],[Service Date ]])+2)/3), \"\")","v":""}]
[null,null,null,null,null,null,null,null,{"$f":"IF(EFA_Log[[#This Row],[Service Date ]], YEAR(EFA_Log[[#This Row],[Service Date ]]) & \"-\" & \"Q\" & INT((MONTH(EFA_Log[[#This Row],[Service Date ]])+2)/3), \"\")","v":""}]
[null,null,null,null,null,null,null,null,{"$f":"IF(EFA_Log[[#This Row],[Service Date ]], YEAR(EFA_Log[[#This Row],[Service Date ]]) & \"-\" & \"Q\" & INT((MONTH(EFA_Log[[#This Row],[Service Date ]])+2)/3), \"\")","v":""}]
[null,null,null,null,null,null,null,null,{"$f":"IF(EFA_Log[[#This Row],[Service Date ]], YEAR(EFA_Log[[#This Row],[Service Date ]]) & \"-\" & \"Q\" & INT((MONTH(EFA_Log[[#This Row],[Service Date ]])+2)/3), \"\")","v":""}]
[null,null,null,null,null,null,null,null,{"$f":"IF(EFA_Log[[#This Row],[Service Date ]], YEAR(EFA_Log[[#This Row],[Service Date ]]) & \"-\" & \"Q\" & INT((MONTH(EFA_Log[[#This Row],[Service Date ]])+2)/3), \"\")","v":""}]
[null,null,null,null,null,null,null,null,{"$f":"IF(EFA_Log[[#This Row],[Service Date ]], YEAR(EFA_Log[[#This Row],[Service Date ]]) & \"-\" & \"Q\" & INT((MONTH(EFA_Log[[#This Row],[Service Date ]])+2)/3), \"\")","v":""}]
[null,null,null,null,null,null,null,null,{"$f":"IF(EFA_Log[[#This Row],[Service Date ]], YEAR(EFA_Log[[#This Row],[Service Date ]]) & \"-\" & \"Q\" & INT((MONTH(EFA_Log[[#This Row],[Service Date ]])+2)/3), \"\")","v":""}]
[null,null,null,null,null,null,null,null,{"$f":"IF(EFA_Log[[#This Row],[Service Date ]], YEAR(EFA_Log[[#This Row],[Service Date ]]) & \"-\" & \"Q\" & INT((MONTH(EFA_Log[[#This Row],[Service Date ]])+2)/3), \"\")","v":""}]
[null,null,null,null,null,null,null,null,{"$f":"IF(EFA_Log[[#This Row],[Service Date ]], YEAR(EFA_Log[[#This Row],[Service Date ]]) & \"-\" & \"Q\" & INT((MONTH(EFA_Log[[#This Row],[Service Date ]])+2)/3), \"\")","v":""}]
[null,null,null,null,null,null,null,null,{"$f":"IF(EFA_Log[[#This Row],[Service Date ]], YEAR(EFA_Log[[#This Row],[Service Date ]]) & \"-\" & \"Q\" & INT((MONTH(EFA_Log[[#This Row],[Service Date ]])+2)/3), \"\")","v":""}]
[null,null,null,null,null,null,null,null,{"$f":"IF(EFA_Log[[#This Row],[Service Date ]], YEAR(EFA_Log[[#This Row],[Service Date ]]) & \"-\" & \"Q\" & INT((MONTH(EFA_Log[[#This Row],[Service Date ]])+2)/3), \"\")","v":""}]
[null,null,null,null,null,null,null,null,{"$f":"IF(EFA_Log[[#This Row],[Service Date ]], YEAR(EFA_Log[[#This Row],[Service Date ]]) & \"-\" & \"Q\" & INT((MONTH(EFA_Log[[#This Row],[Service Date ]])+2)/3), \"\")","v":""}]
[null,null,null,null,null,null,null,null,{"$f":"IF(EFA_Log[[#This Row],[Service Date ]], YEAR(EFA_Log[[#This Row],[Service Date ]]) & \"-\" & \"Q\" & INT((MONTH(EFA_Log[[#This Row],[Service Date ]])+2)/3), \"\")","v":""}]
[null,null,null,null,null,null,null,null,{"$f":"IF(EFA_Log[[#This Row],[Service Date ]], YEAR(EFA_Log[[#This Row],[Service Date ]]) & \"-\" & \"Q\" & INT((MONTH(EFA_Log[[#This Row],[Service Date ]])+2)/3), \"\")","v":""}]
[null,null,null,null,null,null,null,null,{"$f":"IF(EFA_Log[[#This Row],[Service Date ]], YEAR(EFA_Log[[#This Row],[Service Date ]]) & \"-\" & \"Q\" & INT((MONTH(EFA_Log[[#This Row],[Service Date ]])+2)/3), \"\")","v":""}]
[null,null,null,null,null,null,null,null,{"$f":"IF(EFA_Log[[#This Row],[Service Date ]], YEAR(EFA_Log[[#This Row],[Service Date ]]) & \"-\" & \"Q\" & INT((MONTH(EFA_Log[[#This Row],[Service Date ]])+2)/3), \"\")","v":""}]
[null,null,null,null,null,null,null,null,{"$f":"IF(EFA_Log[[#This Row],[Service Date ]], YEAR(EFA_Log[[#This Row],[Service Date ]]) & \"-\" & \"Q\" & INT((MONTH(EFA_Log[[#This Row],[Service Date ]])+2)/3), \"\")","v":""}]
[null,null,null,null,null,null,null,null,{"$f":"IF(EFA_Log[[#This Row],[Service Date ]], YEAR(EFA_Log[[#This Row],[Service Date ]]) & \"-\" & \"Q\" & INT((MONTH(EFA_Log[[#This Row],[Service Date ]])+2)/3), \"\")","v":""}]
[null,null,null,null,null,null,null,null,{"$f":"IF(EFA_Log[[#This Row],[Service Date ]], YEAR(EFA_Log[[#This Row],[Service Date ]]) & \"-\" & \"Q\" & INT((MONTH(EFA_Log[[#This Row],[Service Date ]])+2)/3), \"\")","v":""}]
[null,null,null,null,null,null,null,null,{"$f":"IF(EFA_Log[[#This Row],[Service Date ]], YEAR(EFA_Log[[#This Row],[Service Date ]]) & \"-\" & \"Q\" & INT((MONTH(EFA_Log[[#This Row],[Service Date ]])+2)/3), \"\")","v":""}]
[null,null,null,null,null,null,null,null,{"$f":"IF(EFA_Log[[#This Row],[Service Date ]], YEAR(EFA_Log[[#This Row],[Service Date ]]) & \"-\" & \"Q\" & INT((MONTH(EFA_Log[[#This Row],[Service Date ]])+2)/3), \"\")","v":""}]
[null,null,null,null,null,null,null,null,{"$f":"IF(EFA_Log[[#This Row],[Service Date ]], YEAR(EFA_Log[[#This Row],[Service Date ]]) & \"-\" & \"Q\" & INT((MONTH(EFA_Log[[#This Row],[Service Date ]])+2)/3), \"\")","v":""}]
[null,null,null,null,null,null,null,null,{"$f":"IF(EFA_Log[[#This Row],[Service Date ]], YEAR(EFA_Log[[#This Row],[Service Date ]]) & \"-\" & \"Q\" & INT((MONTH(EFA_Log[[#This Row],[Service Date ]])+2)/3), \"\")","v":""}]
[null,null,null,null,null,null,null,null,{"$f":"IF(EFA_Log[[#This Row],[Service Date ]], YEAR(EFA_Log[[#This Row],[Service Date ]]) & \"-\" & \"Q\" & INT((MONTH(EFA_Log[[#This Row],[Service Date ]])+2)/3), \"\")","v":""}]
[null,null,null,null,null,null,null,null,{"$f":"IF(EFA_Log[[#This Row],[Service Date ]], YEAR(EFA_Log[[#This Row],[Service Date ]]) & \"-\" & \"Q\" & INT((MONTH(EFA_Log[[#This Row],[Service Date ]])+2)/3), \"\")","v":""}]
[null,null,null,null,null,null,null,null,{"$f":"IF(EFA_Log[[#This Row],[Service Date ]], YEAR(EFA_Log[[#This Row],[Service Date ]]) & \"-\" & \"Q\" & INT((MONTH(EFA_Log[[#This Row],[Service Date ]])+2)/3), \"\")","v":""}]
[null,null,null,null,null,null,null,null,{"$f":"IF(EFA_Log[[#This Row],[Service Date ]], YEAR(EFA_Log[[#This Row],[Service Date ]]) & \"-\" & \"Q\" & INT((MONTH(EFA_Log[[#This Row],[Service Date ]])+2)/3), \"\")","v":""}]
[null,null,null,null,null,null,null,null,{"$f":"IF(EFA_Log[[#This Row],[Service Date ]], YEAR(EFA_Log[[#This Row],[Service Date ]]) & \"-\" & \"Q\" & INT((MONTH(EFA_Log[[#This Row],[Service Date ]])+2)/3), \"\")","v":""}]
[null,null,null,null,null,null,null,null,{"$f":"IF(EFA_Log[[#This Row],[Service Date ]], YEAR(EFA_Log[[#This Row],[Service Date ]]) & \"-\" & \"Q\" & INT((MONTH(EFA_Log[[#This Row],[Service Date ]])+2)/3), \"\")","v":""}]
[null,null,null,null,null,null,null,null,{"$f":"IF(EFA_Log[[#This Row],[Service Date ]], YEAR(EFA_Log[[#This Row],[Service Date ]]) & \"-\" & \"Q\" & INT((MONTH(EFA_Log[[#This Row],[Service Date ]])+2)/3), \"\")","v":""}]
[null,null,null,null,null,null,null,null,{"$f":"IF(EFA_Log[[#This Row],[Service Date ]], YEAR(EFA_Log[[#This Row],[Service Date ]]) & \"-\" & \"Q\" & INT((MONTH(EFA_Log[[#This Row],[Service Date ]])+2)/3), \"\")","v":""}]
[null,null,null,null,null,null,null,null,{"$f":"IF(EFA_Log[[#This Row],[Service Date ]], YEAR(EFA_Log[[#This Row],[Service Date ]]) & \"-\" & \"Q\" & INT((MONTH(EFA_Log[[#This Row],[Service Date ]])+2)/3), \"\")","v":""}]
[null,null,null,null,null,null,null,null,{"$f":"IF(EFA_Log[[#This Row],[Service Date ]], YEAR(EFA_Log[[#This Row],[Service Date ]]) & \"-\" & \"Q\" & INT((MONTH(EFA_Log[[#This Row],[Service Date ]])+2)/3), \"\")","v":""}]
[null,null,null,null,null,null,null,null,{"$f":"IF(EFA_Log[[#This Row],[Service Date ]], YEAR(EFA_Log[[#This Row],[Service Date ]]) & \"-\" & \"Q\" & INT((MONTH(EFA_Log[[#This Row],[Service Date ]])+2)/3), \"\")","v":""}]
[null,null,null,null,null,null,null,null,{"$f":"IF(EFA_Log[[#This Row],[Service Date ]], YEAR(EFA_Log[[#This Row],[Service Date ]]) & \"-\" & \"Q\" & INT((MONTH(EFA_Log[[#This Row],[Service Date ]])+2)/3), \"\")","v":""}]
[null,null,null,null,null,null,null,null,{"$f":"IF(EFA_Log[[#This Row],[Service Date ]], YEAR(EFA_Log[[#This Row],[Service Date ]]) & \"-\" & \"Q\" & INT((MONTH(EFA_Log[[#This Row],[Service Date ]])+2)/3), \"\")","v":""}]
[null,null,null,null,null,null,null,null,{"$f":"IF(EFA_Log[[#This Row],[Service Date ]], YEAR(EFA_Log[[#This Row],[Service Date ]]) & \"-\" & \"Q\" & INT((MONTH(EFA_Log[[#This Row],[Service Date ]])+2)/3), \"\")","v":""}]
[null,null,null,null,null,null,null,null,{"$f":"IF(EFA_Log[[#This Row],[Service Date ]], YEAR(EFA_Log[[#This Row],[Service Date ]]) & \"-\" & \"Q\" & INT((MONTH(EFA_Log[[#This Row],[Service Date ]])+2)/3), \"\")","v":""}]
[null,null,null,null,null,null,null,null,{"$f":"IF(EFA_Log[[#This Row],[Service Date ]], YEAR(EFA_Log[[#This Row],[Service Date ]]) & \"-\" & \"Q\" & INT((MONTH(EFA_Log[[#This Row],[Service Date ]])+2)/3), \"\")","v":""}]
[null,null,null,null,null,null,null,null,{"$f":"IF(EFA_Log[[#This Row],[Service Date ]], YEAR(EFA_Log[[#This Row],[Service Date ]]) & \"-\" & \"Q\" & INT((MONTH(EFA_Log[[#This Row],[Service Date ]])+2)/3), \"\")","v":""}]
[null,null,null,null,null,null,null,null,{"$f":"IF(EFA_Log[[#This Row],[Service Date ]], YEAR(EFA_Log[[#This Row],[Service Date ]]) & \"-\" & \"Q\" & INT((MONTH(EFA_Log[[#This Row],[Service Date ]])+2)/3), \"\")","v":""}]
[null,null,null,null,null,null,null,null,{"$f":"IF(EFA_Log[[#This Row],[Service Date ]], YEAR(EFA_Log[[#This Row],[Service Date ]]) & \"-\" & \"Q\" & INT((MONTH(EFA_Log[[#This Row],[Service Date ]])+2)/3), \"\")","v":""}]
[null,null,null,null,null,null,null,null,{"$f":"IF(EFA_Log[[#This Row],[Service Date ]], YEAR(EFA_Log[[#This Row],[Service Date ]]) & \"-\" & \"Q\" & INT((MONTH(EFA_Log[[#This Row],[Service Date ]])+2)/3), \"\")","v":""}]
[null,null,null,null,null,null,null,null,{"$f":"IF(EFA_Log[[#This Row],[Service Date ]], YEAR(EFA_Log[[#This Row],[Service Date ]]) & \"-\" & \"Q\" & INT((MONTH(EFA_Log[[#This Row],[Service Date ]])+2)/3), \"\")","v":""}]
[null,null,null,null,null,null,null,null,{"$f":"IF(EFA_Log[[#This Row],[Service Date ]], YEAR(EFA_Log[[#This Row],[Service Date ]]) & \"-\" & \"Q\" & INT((MONTH(EFA_Log[[#This Row],[Service Date ]])+2)/3), \"\")","v":""}]
[null,null,null,null,null,null,null,null,{"$f":"IF(EFA_Log[[#This Row],[Service Date ]], YEAR(EFA_Log[[#This Row],[Service Date ]]) & \"-\" & \"Q\" & INT((MONTH(EFA_Log[[#This Row],[Service Date ]])+2)/3), \"\")","v":""}]
[null,null,null,null,null,null,null,null,{"$f":"IF(EFA_Log[[#This Row],[Service Date ]], YEAR(EFA_Log[[#This Row],[Service Date ]]) & \"-\" & \"Q\" & INT((MONTH(EFA_Log[[#This Row],[Service Date ]])+2)/3), \"\")","v":""}]
[null,null,null,null,null,null,null,null,{"$f":"IF(EFA_Log[[#This Row],[Service Date ]], YEAR(EFA_Log[[#This Row],[Service Date ]]) & \"-\" & \"Q\" & INT((MONTH(EFA_Log[[#This Row],[Service Date ]])+2)/3), \"\")","v":""}]
[null,null,null,null,null,null,null,null,{"$f":"IF(EFA_Log[[#This Row],[Service Date ]], YEAR(EFA_Log[[#This Row],[Service Date ]]) & \"-\" & \"Q\" & INT((MONTH(EFA_Log[[#This Row],[Service Date ]])+2)/3), \"\")","v":""}]
[null,null,null,null,null,null,null,null,{"$f":"IF(EFA_Log[[#This Row],[Service Date ]], YEAR(EFA_Log[[#This Row],[Service Date ]]) & \"-\" & \"Q\" & INT((MONTH(EFA_Log[[#This Row],[Service Date ]])+2)/3), \"\")","v":""}]
[null,null,null,null,null,null,null,null,{"$f":"IF(EFA_Log[[#This Row],[Service Date ]], YEAR(EFA_Log[[#This Row],[Service Date ]]) & \"-\" & \"Q\" & INT((MONTH(EFA_Log[[#This Row],[Service Date ]])+2)/3), \"\")","v":""}]
[null,null,null,null,null,null,null,null,{"$f":"IF(EFA_Log[[#This Row],[Service Date ]], YEAR(EFA_Log[[#This Row],[Service Date ]]) & \"-\" & \"Q\" & INT((MONTH(EFA_Log[[#This Row],[Service Date ]])+2)/3), \"\")","v":""}]
[null,null,null,null,null,null,null,null,{"$f":"IF(EFA_Log[[#This Row],[Service Date ]], YEAR(EFA_Log[[#This Row],[Service Date ]]) & \"-\" & \"Q\" & INT((MONTH(EFA_Log[[#This Row],[Service Date ]])+2)/3), \"\")","v":""}]
[null,null,null,null,null,null,null,null,{"$f":"IF(EFA_Log[[#This Row],[Service Date ]], YEAR(EFA_Log[[#This Row],[Service Date ]]) & \"-\" & \"Q\" & INT((MONTH(EFA_Log[[#This Row],[Service Date ]])+2)/3), \"\")","v":""}]
[null,null,null,null,null,null,null,null,{"$f":"IF(EFA_Log[[#This Row],[Service Date ]], YEAR(EFA_Log[[#This Row],[Service Date ]]) & \"-\" & \"Q\" & INT((MONTH(EFA_Log[[#This Row],[Service Date ]])+2)/3), \"\")","v":""}]
[null,null,null,null,null,null,null,null,{"$f":"IF(EFA_Log[[#This Row],[Service Date ]], YEAR(EFA_Log[[#This Row],[Service Date ]]) & \"-\" & \"Q\" & INT((MONTH(EFA_Log[[#This Row],[Service Date ]])+2)/3), \"\")","v":""}]
[null,null,null,null,null,null,null,null,{"$f":"IF(EFA_Log[[#This Row],[Service Date ]], YEAR(EFA_Log[[#This Row],[Service Date ]]) & \"-\" & \"Q\" & INT((MONTH(EFA_Log[[#This Row],[Service Date ]])+2)/3), \"\")","v":""}]
[null,null,null,null,null,null,null,null,{"$f":"IF(EFA_Log[[#This Row],[Service Date ]], YEAR(EFA_Log[[#This Row],[Service Date ]]) & \"-\" & \"Q\" & INT((MONTH(EFA_Log[[#This Row],[Service Date ]])+2)/3), \"\")","v":""}]
[null,null,null,null,null,null,null,null,{"$f":"IF(EFA_Log[[#This Row],[Service Date ]], YEAR(EFA_Log[[#This Row],[Service Date ]]) & \"-\" & \"Q\" & INT((MONTH(EFA_Log[[#This Row],[Service Date ]])+2)/3), \"\")","v":""}]
[null,null,null,null,null,null,null,null,{"$f":"IF(EFA_Log[[#This Row],[Service Date ]], YEAR(EFA_Log[[#This Row],[Service Date ]]) & \"-\" & \"Q\" & INT((MONTH(EFA_Log[[#This Row],[Service Date ]])+2)/3), \"\")","v":""}]
[null,null,null,null,null,null,null,null,{"$f":"IF(EFA_Log[[#This Row],[Service Date ]], YEAR(EFA_Log[[#This Row],[Service Date ]]) & \"-\" & \"Q\" & INT((MONTH(EFA_Log[[#This Row],[Service Date ]])+2)/3), \"\")","v":""}]
[null,null,null,null,null,null,null,null,{"$f":"IF(EFA_Log[[#This Row],[Service Date ]], YEAR(EFA_Log[[#This Row],[Service Date ]]) & \"-\" & \"Q\" & INT((MONTH(EFA_Log[[#This Row],[Service Date ]])+2)/3), \"\")","v":""}]
[null,null,null,null,null,null,null,null,{"$f":"IF(EFA_Log[[#This Row],[Service Date ]], YEAR(EFA_Log[[#This Row],[Service Date ]]) & \"-\" & \"Q\" & INT((MONTH(EFA_Log[[#This Row],[Service Date ]])+2)/3), \"\")","v":""}]
[null,null,null,null,null,null,null,null,{"$f":"IF(EFA_Log[[#This Row],[Service Date ]], YEAR(EFA_Log[[#This Row],[Service Date ]]) & \"-\" & \"Q\" & INT((MONTH(EFA_Log[[#This Row],[Service Date ]])+2)/3), \"\")","v":""}]
[null,null,null,null,null,null,null,null,{"$f":"IF(EFA_Log[[#This Row],[Service Date ]], YEAR(EFA_Log[[#This Row],[Service Date ]]) & \"-\" & \"Q\" & INT((MONTH(EFA_Log[[#This Row],[Service Date ]])+2)/3), \"\")","v":""}]
[null,null,null,null,null,null,null,null,{"$f":"IF(EFA_Log[[#This Row],[Service Date ]], YEAR(EFA_Log[[#This Row],[Service Date ]]) & \"-\" & \"Q\" & INT((MONTH(EFA_Log[[#This Row],[Service Date ]])+2)/3), \"\")","v":""}]
[null,null,null,null,null,null,null,null,{"$f":"IF(EFA_Log[[#This Row],[Service Date ]], YEAR(EFA_Log[[#This Row],[Service Date ]]) & \"-\" & \"Q\" & INT((MONTH(EFA_Log[[#This Row],[Service Date ]])+2)/3), \"\")","v":""}]
[null,null,null,null,null,null,null,null,{"$f":"IF(EFA_Log[[#This Row],[Service Date ]], YEAR(EFA_Log[[#This Row],[Service Date ]]) & \"-\" & \"Q\" & INT((MONTH(EFA_Log[[#This Row],[Service Date ]])+2)/3), \"\")","v":""}]
[null,null,null,null,null,null,null,null,{"$f":"IF(EFA_Log[[#This Row],[Service Date ]], YEAR(EFA_Log[[#This Row],[Service Date ]]) & \"-\" & \"Q\" & INT((MONTH(EFA_Log[[#This Row],[Service Date ]])+2)/3), \"\")","v":""}]
[null,null,null,null,null,null,null,null,{"$f":"IF(EFA_Log[[#This Row],[Service Date ]], YEAR(EFA_Log[[#This Row],[Service Date ]]) & \"-\" & \"Q\" & INT((MONTH(EFA_Log[[#This Row],[Service Date ]])+2)/3), \"\")","v":""}]
[null,null,null,null,null,null,null,null,{"$f":"IF(EFA_Log[[#This Row],[Service Date ]], YEAR(EFA_Log[[#This Row],[Service Date ]]) & \"-\" & \"Q\" & INT((MONTH(EFA_Log[[#This Row],[Service Date ]])+2)/3), \"\")","v":""}]
[null,null,null,null,null,null,null,null,{"$f":"IF(EFA_Log[[#This Row],[Service Date ]], YEAR(EFA_Log[[#This Row],[Service Date ]]) & \"-\" & \"Q\" & INT((MONTH(EFA_Log[[#This Row],[Service Date ]])+2)/3), \"\")","v":""}]
[null,null,null,null,null,null,null,null,{"$f":"IF(EFA_Log[[#This Row],[Service Date ]], YEAR(EFA_Log[[#This Row],[Service Date ]]) & \"-\" & \"Q\" & INT((MONTH(EFA_Log[[#This Row],[Service Date ]])+2)/3), \"\")","v":""}]
[null,null,null,null,null,null,null,null,{"$f":"IF(EFA_Log[[#This Row],[Service Date ]], YEAR(EFA_Log[[#This Row],[Service Date ]]) & \"-\" & \"Q\" & INT((MONTH(EFA_Log[[#This Row],[Service Date ]])+2)/3), \"\")","v":""}]
[null,null,null,null,null,null,null,null,{"$f":"IF(EFA_Log[[#This Row],[Service Date ]], YEAR(EFA_Log[[#This Row],[Service Date ]]) & \"-\" & \"Q\" & INT((MONTH(EFA_Log[[#This Row],[Service Date ]])+2)/3), \"\")","v":""}]
[null,null,null,null,null,null,null,null,{"$f":"IF(EFA_Log[[#This Row],[Service Date ]], YEAR(EFA_Log[[#This Row],[Service Date ]]) & \"-\" & \"Q\" & INT((MONTH(EFA_Log[[#This Row],[Service Date ]])+2)/3), \"\")","v":""}]
[null,null,null,null,null,null,null,null,{"$f":"IF(EFA_Log[[#This Row],[Service Date ]], YEAR(EFA_Log[[#This Row],[Service Date ]]) & \"-\" & \"Q\" & INT((MONTH(EFA_Log[[#This Row],[Service Date ]])+2)/3), \"\")","v":""}]
[null,null,null,null,null,null,null,null,{"$f":"IF(EFA_Log[[#This Row],[Service Date ]], YEAR(EFA_Log[[#This Row],[Service Date ]]) & \"-\" & \"Q\" & INT((MONTH(EFA_Log[[#This Row],[Service Date ]])+2)/3), \"\")","v":""}]
[null,null,null,null,null,null,null,null,{"$f":"IF(EFA_Log[[#This Row],[Service Date ]], YEAR(EFA_Log[[#This Row],[Service Date ]]) & \"-\" & \"Q\" & INT((MONTH(EFA_Log[[#This Row],[Service Date ]])+2)/3), \"\")","v":""}]
[null,null,null,null,null,null,null,null,{"$f":"IF(EFA_Log[[#This Row],[Service Date ]], YEAR(EFA_Log[[#This Row],[Service Date ]]) & \"-\" & \"Q\" & INT((MONTH(EFA_Log[[#This Row],[Service Date ]])+2)/3), \"\")","v":""}]
[null,null,null,null,null,null,null,null,{"$f":"IF(EFA_Log[[#This Row],[Service Date ]], YEAR(EFA_Log[[#This Row],[Service Date ]]) & \"-\" & \"Q\" & INT((MONTH(EFA_Log[[#This Row],[Service Date ]])+2)/3), \"\")","v":""}]
[null,null,null,null,null,null,null,null,{"$f":"IF(EFA_Log[[#This Row],[Service Date ]], YEAR(EFA_Log[[#This Row],[Service Date ]]) & \"-\" & \"Q\" & INT((MONTH(EFA_Log[[#This Row],[Service Date ]])+2)/3), \"\")","v":""}]
[null,null,null,null,null,null,null,null,{"$f":"IF(EFA_Log[[#This Row],[Service Date ]], YEAR(EFA_Log[[#This Row],[Service Date ]]) & \"-\" & \"Q\" & INT((MONTH(EFA_Log[[#This Row],[Service Date ]])+2)/3), \"\")","v":""}]
[null,null,null,null,null,null,null,null,{"$f":"IF(EFA_Log[[#This Row],[Service Date ]], YEAR(EFA_Log[[#This Row],[Service Date ]]) & \"-\" & \"Q\" & INT((MONTH(EFA_Log[[#This Row],[Service Date ]])+2)/3), \"\")","v":""}]
[null,null,null,null,null,null,null,null,{"$f":"IF(EFA_Log[[#This Row],[Service Date ]], YEAR(EFA_Log[[#This Row],[Service Date ]]) & \"-\" & \"Q\" & INT((MONTH(EFA_Log[[#This Row],[Service Date ]])+2)/3), \"\")","v":""}]
[null,null,null,null,null,null,null,null,{"$f":"IF(EFA_Log[[#This Row],[Service Date ]], YEAR(EFA_Log[[#This Row],[Service Date ]]) & \"-\" & \"Q\" & INT((MONTH(EFA_Log[[#This Row],[Service Date ]])+2)/3), \"\")","v":""}]
[null,null,null,null,null,null,null,null,{"$f":"IF(EFA_Log[[#This Row],[Service Date ]], YEAR(EFA_Log[[#This Row],[Service Date ]]) & \"-\" & \"Q\" & INT((MONTH(EFA_Log[[#This Row],[Service Date ]])+2)/3), \"\")","v":""}]
[null,null,null,null,null,null,null,null,{"$f":"IF(EFA_Log[[#This Row],[Service Date ]], YEAR(EFA_Log[[#This Row],[Service Date ]]) & \"-\" & \"Q\" & INT((MONTH(EFA_Log[[#This Row],[Service Date ]])+2)/3), \"\")","v":""}]
[null,null,null,null,null,null,null,null,{"$f":"IF(EFA_Log[[#This Row],[Service Date ]], YEAR(EFA_Log[[#This Row],[Service Date ]]) & \"-\" & \"Q\" & INT((MONTH(EFA_Log[[#This Row],[Service Date ]])+2)/3), \"\")","v":""}]
[null,null,null,null,null,null,null,null,{"$f":"IF(EFA_Log[[#This Row],[Service Date ]], YEAR(EFA_Log[[#This Row],[Service Date ]]) & \"-\" & \"Q\" & INT((MONTH(EFA_Log[[#This Row],[Service Date ]])+2)/3), \"\")","v":""}]
[null,null,null,null,null,null,null,null,{"$f":"IF(EFA_Log[[#This Row],[Service Date ]], YEAR(EFA_Log[[#This Row],[Service Date ]]) & \"-\" & \"Q\" & INT((MONTH(EFA_Log[[#This Row],[Service Date ]])+2)/3), \"\")","v":""}]
[null,null,null,null,null,null,null,null,{"$f":"IF(EFA_Log[[#This Row],[Service Date ]], YEAR(EFA_Log[[#This Row],[Service Date ]]) & \"-\" & \"Q\" & INT((MONTH(EFA_Log[[#This Row],[Service Date ]])+2)/3), \"\")","v":""}]
[null,null,null,null,null,null,null,null,{"$f":"IF(EFA_Log[[#This Row],[Service Date ]], YEAR(EFA_Log[[#This Row],[Service Date ]]) & \"-\" & \"Q\" & INT((MONTH(EFA_Log[[#This Row],[Service Date ]])+2)/3), \"\")","v":""}]
[null,null,null,null,null,null,null,null,{"$f":"IF(EFA_Log[[#This Row],[Service Date ]], YEAR(EFA_Log[[#This Row],[Service Date ]]) & \"-\" & \"Q\" & INT((MONTH(EFA_Log[[#This Row],[Service Date ]])+2)/3), \"\")","v":""}]
[null,null,null,null,null,null,null,null,{"$f":"IF(EFA_Log[[#This Row],[Service Date ]], YEAR(EFA_Log[[#This Row],[Service Date ]]) & \"-\" & \"Q\" & INT((MONTH(EFA_Log[[#This Row],[Service Date ]])+2)/3), \"\")","v":""}]
[null,null,null,null,null,null,null,null,{"$f":"IF(EFA_Log[[#This Row],[Service Date ]], YEAR(EFA_Log[[#This Row],[Service Date ]]) & \"-\" & \"Q\" & INT((MONTH(EFA_Log[[#This Row],[Service Date ]])+2)/3), \"\")","v":""}]
[null,null,null,null,null,null,null,null,{"$f":"IF(EFA_Log[[#This Row],[Service Date ]], YEAR(EFA_Log[[#This Row],[Service Date ]]) & \"-\" & \"Q\" & INT((MONTH(EFA_Log[[#This Row],[Service Date ]])+2)/3), \"\")","v":""}]
[null,null,null,null,null,null,null,null,{"$f":"IF(EFA_Log[[#This Row],[Service Date ]], YEAR(EFA_Log[[#This Row],[Service Date ]]) & \"-\" & \"Q\" & INT((MONTH(EFA_Log[[#This Row],[Service Date ]])+2)/3), \"\")","v":""}]
[null,null,null,null,null,null,null,null,{"$f":"IF(EFA_Log[[#This Row],[Service Date ]], YEAR(EFA_Log[[#This Row],[Service Date ]]) & \"-\" & \"Q\" & INT((MONTH(EFA_Log[[#This Row],[Service Date ]])+2)/3), \"\")","v":""}]
[null,null,null,null,null,null,null,null,{"$f":"IF(EFA_Log[[#This Row],[Service Date ]], YEAR(EFA_Log[[#This Row],[Service Date ]]) & \"-\" & \"Q\" & INT((MONTH(EFA_Log[[#This Row],[Service Date ]])+2)/3), \"\")","v":""}]
[null,null,null,null,null,null,null,null,{"$f":"IF(EFA_Log[[#This Row],[Service Date ]], YEAR(EFA_Log[[#This Row],[Service Date ]]) & \"-\" & \"Q\" & INT((MONTH(EFA_Log[[#This Row],[Service Date ]])+2)/3), \"\")","v":""}]
[null,null,null,null,null,null,null,null,{"$f":"IF(EFA_Log[[#This Row],[Service Date ]], YEAR(EFA_Log[[#This Row],[Service Date ]]) & \"-\" & \"Q\" & INT((MONTH(EFA_Log[[#This Row],[Service Date ]])+2)/3), \"\")","v":""}]
[null,null,null,null,null,null,null,null,{"$f":"IF(EFA_Log[[#This Row],[Service Date ]], YEAR(EFA_Log[[#This Row],[Service Date ]]) & \"-\" & \"Q\" & INT((MONTH(EFA_Log[[#This Row],[Service Date ]])+2)/3), \"\")","v":""}]
[null,null,null,null,null,null,null,null,{"$f":"IF(EFA_Log[[#This Row],[Service Date ]], YEAR(EFA_Log[[#This Row],[Service Date ]]) & \"-\" & \"Q\" & INT((MONTH(EFA_Log[[#This Row],[Service Date ]])+2)/3), \"\")","v":""}]
[null,null,null,null,null,null,null,null,{"$f":"IF(EFA_Log[[#This Row],[Service Date ]], YEAR(EFA_Log[[#This Row],[Service Date ]]) & \"-\" & \"Q\" & INT((MONTH(EFA_Log[[#This Row],[Service Date ]])+2)/3), \"\")","v":""}]
[null,null,null,null,null,null,null,null,{"$f":"IF(EFA_Log[[#This Row],[Service Date ]], YEAR(EFA_Log[[#This Row],[Service Date ]]) & \"-\" & \"Q\" & INT((MONTH(EFA_Log[[#This Row],[Service Date ]])+2)/3), \"\")","v":""}]
[null,null,null,null,null,null,null,null,{"$f":"IF(EFA_Log[[#This Row],[Service Date ]], YEAR(EFA_Log[[#This Row],[Service Date ]]) & \"-\" & \"Q\" & INT((MONTH(EFA_Log[[#This Row],[Service Date ]])+2)/3), \"\")","v":""}]
[null,null,null,null,null,null,null,null,{"$f":"IF(EFA_Log[[#This Row],[Service Date ]], YEAR(EFA_Log[[#This Row],[Service Date ]]) & \"-\" & \"Q\" & INT((MONTH(EFA_Log[[#This Row],[Service Date ]])+2)/3), \"\")","v":""}]
[null,null,null,null,null,null,null,null,{"$f":"IF(EFA_Log[[#This Row],[Service Date ]], YEAR(EFA_Log[[#This Row],[Service Date ]]) & \"-\" & \"Q\" & INT((MONTH(EFA_Log[[#This Row],[Service Date ]])+2)/3), \"\")","v":""}]
[null,null,null,null,null,null,null,null,{"$f":"IF(EFA_Log[[#This Row],[Service Date ]], YEAR(EFA_Log[[#This Row],[Service Date ]]) & \"-\" & \"Q\" & INT((MONTH(EFA_Log[[#This Row],[Service Date ]])+2)/3), \"\")","v":""}]
[null,null,null,null,null,null,null,null,{"$f":"IF(EFA_Log[[#This Row],[Service Date ]], YEAR(EFA_Log[[#This Row],[Service Date ]]) & \"-\" & \"Q\" & INT((MONTH(EFA_Log[[#This Row],[Service Date ]])+2)/3), \"\")","v":""}]
[null,null,null,null,null,null,null,null,{"$f":"IF(EFA_Log[[#This Row],[Service Date ]], YEAR(EFA_Log[[#This Row],[Service Date ]]) & \"-\" & \"Q\" & INT((MONTH(EFA_Log[[#This Row],[Service Date ]])+2)/3), \"\")","v":""}]
[null,null,null,null,null,null,null,null,{"$f":"IF(EFA_Log[[#This Row],[Service Date ]], YEAR(EFA_Log[[#This Row],[Service Date ]]) & \"-\" & \"Q\" & INT((MONTH(EFA_Log[[#This Row],[Service Date ]])+2)/3), \"\")","v":""}]
[null,null,null,null,null,null,null,null,{"$f":"IF(EFA_Log[[#This Row],[Service Date ]], YEAR(EFA_Log[[#This Row],[Service Date ]]) & \"-\" & \"Q\" & INT((MONTH(EFA_Log[[#This Row],[Service Date ]])+2)/3), \"\")","v":""}]
[null,null,null,null,null,null,null,null,{"$f":"IF(EFA_Log[[#This Row],[Service Date ]], YEAR(EFA_Log[[#This Row],[Service Date ]]) & \"-\" & \"Q\" & INT((MONTH(EFA_Log[[#This Row],[Service Date ]])+2)/3), \"\")","v":""}]
[null,null,null,null,null,null,null,null,{"$f":"IF(EFA_Log[[#This Row],[Service Date ]], YEAR(EFA_Log[[#This Row],[Service Date ]]) & \"-\" & \"Q\" & INT((MONTH(EFA_Log[[#This Row],[Service Date ]])+2)/3), \"\")","v":""}]
[null,null,null,null,null,null,null,null,{"$f":"IF(EFA_Log[[#This Row],[Service Date ]], YEAR(EFA_Log[[#This Row],[Service Date ]]) & \"-\" & \"Q\" & INT((MONTH(EFA_Log[[#This Row],[Service Date ]])+2)/3), \"\")","v":""}]
[null,null,null,null,null,null,null,null,{"$f":"IF(EFA_Log[[#This Row],[Service Date ]], YEAR(EFA_Log[[#This Row],[Service Date ]]) & \"-\" & \"Q\" & INT((MONTH(EFA_Log[[#This Row],[Service Date ]])+2)/3), \"\")","v":""}]
[null,null,null,null,null,null,null,null,{"$f":"IF(EFA_Log[[#This Row],[Service Date ]], YEAR(EFA_Log[[#This Row],[Service Date ]]) & \"-\" & \"Q\" & INT((MONTH(EFA_Log[[#This Row],[Service Date ]])+2)/3), \"\")","v":""}]
[null,null,null,null,null,null,null,null,{"$f":"IF(EFA_Log[[#This Row],[Service Date ]], YEAR(EFA_Log[[#This Row],[Service Date ]]) & \"-\" & \"Q\" & INT((MONTH(EFA_Log[[#This Row],[Service Date ]])+2)/3), \"\")","v":""}]
[null,null,null,null,null,null,null,null,{"$f":"IF(EFA_Log[[#This Row],[Service Date ]], YEAR(EFA_Log[[#This Row],[Service Date ]]) & \"-\" & \"Q\" & INT((MONTH(EFA_Log[[#This Row],[Service Date ]])+2)/3), \"\")","v":""}]
[null,null,null,null,null,null,null,null,{"$f":"IF(EFA_Log[[#This Row],[Service Date ]], YEAR(EFA_Log[[#This Row],[Service Date ]]) & \"-\" & \"Q\" & INT((MONTH(EFA_Log[[#This Row],[Service Date ]])+2)/3), \"\")","v":""}]
[null,null,null,null,null,null,null,null,{"$f":"IF(EFA_Log[[#This Row],[Service Date ]], YEAR(EFA_Log[[#This Row],[Service Date ]]) & \"-\" & \"Q\" & INT((MONTH(EFA_Log[[#This Row],[Service Date ]])+2)/3), \"\")","v":""}]
[null,null,null,null,null,null,null,null,{"$f":"IF(EFA_Log[[#This Row],[Service Date ]], YEAR(EFA_Log[[#This Row],[Service Date ]]) & \"-\" & \"Q\" & INT((MONTH(EFA_Log[[#This Row],[Service Date ]])+2)/3), \"\")","v":""}]
[null,null,null,null,null,null,null,null,{"$f":"IF(EFA_Log[[#This Row],[Service Date ]], YEAR(EFA_Log[[#This Row],[Service Date ]]) & \"-\" & \"Q\" & INT((MONTH(EFA_Log[[#This Row],[Service Date ]])+2)/3), \"\")","v":""}]
[null,null,null,null,null,null,null,null,{"$f":"IF(EFA_Log[[#This Row],[Service Date ]], YEAR(EFA_Log[[#This Row],[Service Date ]]) & \"-\" & \"Q\" & INT((MONTH(EFA_Log[[#This Row],[Service Date ]])+2)/3), \"\")","v":""}]
[null,null,null,null,null,null,null,null,{"$f":"IF(EFA_Log[[#This Row],[Service Date ]], YEAR(EFA_Log[[#This Row],[Service Date ]]) & \"-\" & \"Q\" & INT((MONTH(EFA_Log[[#This Row],[Service Date ]])+2)/3), \"\")","v":""}]
[null,null,null,null,null,null,null,null,{"$f":"IF(EFA_Log[[#This Row],[Service Date ]], YEAR(EFA_Log[[#This Row],[Service Date ]]) & \"-\" & \"Q\" & INT((MONTH(EFA_Log[[#This Row],[Service Date ]])+2)/3), \"\")","v":""}]
[null,null,null,null,null,null,null,null,{"$f":"IF(EFA_Log[[#This Row],[Service Date ]], YEAR(EFA_Log[[#This Row],[Service Date ]]) & \"-\" & \"Q\" & INT((MONTH(EFA_Log[[#This Row],[Service Date ]])+2)/3), \"\")","v":""}]
[null,null,null,null,null,null,null,null,{"$f":"IF(EFA_Log[[#This Row],[Service Date ]], YEAR(EFA_Log[[#This Row],[Service Date ]]) & \"-\" & \"Q\" & INT((MONTH(EFA_Log[[#This Row],[Service Date ]])+2)/3), \"\")","v":""}]
[null,null,null,null,null,null,null,null,{"$f":"IF(EFA_Log[[#This Row],[Service Date ]], YEAR(EFA_Log[[#This Row],[Service Date ]]) & \"-\" & \"Q\" & INT((MONTH(EFA_Log[[#This Row],[Service Date ]])+2)/3), \"\")","v":""}]
[null,null,null,null,null,null,null,null,{"$f":"IF(EFA_Log[[#This Row],[Service Date ]], YEAR(EFA_Log[[#This Row],[Service Date ]]) & \"-\" & \"Q\" & INT((MONTH(EFA_Log[[#This Row],[Service Date ]])+2)/3), \"\")","v":""}]
[null,null,null,null,null,null,null,null,{"$f":"IF(EFA_Log[[#This Row],[Service Date ]], YEAR(EFA_Log[[#This Row],[Service Date ]]) & \"-\" & \"Q\" & INT((MONTH(EFA_Log[[#This Row],[Service Date ]])+2)/3), \"\")","v":""}]
[null,null,null,null,null,null,null,null,{"$f":"IF(EFA_Log[[#This Row],[Service Date ]], YEAR(EFA_Log[[#This Row],[Service Date ]]) & \"-\" & \"Q\" & INT((MONTH(EFA_Log[[#This Row],[Service Date ]])+2)/3), \"\")","v":""}]
[null,null,null,null,null,null,null,null,{"$f":"IF(EFA_Log[[#This Row],[Service Date ]], YEAR(EFA_Log[[#This Row],[Service Date ]]) & \"-\" & \"Q\" & INT((MONTH(EFA_Log[[#This Row],[Service Date ]])+2)/3), \"\")","v":""}]
[null,null,null,null,null,null,null,null,{"$f":"IF(EFA_Log[[#This Row],[Service Date ]], YEAR(EFA_Log[[#This Row],[Service Date ]]) & \"-\" & \"Q\" & INT((MONTH(EFA_Log[[#This Row],[Service Date ]])+2)/3), \"\")","v":""}]
[null,null,null,null,null,null,null,null,{"$f":"IF(EFA_Log[[#This Row],[Service Date ]], YEAR(EFA_Log[[#This Row],[Service Date ]]) & \"-\" & \"Q\" & INT((MONTH(EFA_Log[[#This Row],[Service Date ]])+2)/3), \"\")","v":""}]
[null,null,null,null,null,null,null,null,{"$f":"IF(EFA_Log[[#This Row],[Service Date ]], YEAR(EFA_Log[[#This Row],[Service Date ]]) & \"-\" & \"Q\" & INT((MONTH(EFA_Log[[#This Row],[Service Date ]])+2)/3), \"\")","v":""}]
[null,null,null,null,null,null,null,null,{"$f":"IF(EFA_Log[[#This Row],[Service Date ]], YEAR(EFA_Log[[#This Row],[Service Date ]]) & \"-\" & \"Q\" & INT((MONTH(EFA_Log[[#This Row],[Service Date ]])+2)/3), \"\")","v":""}]
[null,null,null,null,null,null,null,null,{"$f":"IF(EFA_Log[[#This Row],[Service Date ]], YEAR(EFA_Log[[#This Row],[Service Date ]]) & \"-\" & \"Q\" & INT((MONTH(EFA_Log[[#This Row],[Service Date ]])+2)/3), \"\")","v":""}]
[null,null,null,null,null,null,null,null,{"$f":"IF(EFA_Log[[#This Row],[Service Date ]], YEAR(EFA_Log[[#This Row],[Service Date ]]) & \"-\" & \"Q\" & INT((MONTH(EFA_Log[[#This Row],[Service Date ]])+2)/3), \"\")","v":""}]
[null,null,null,null,null,null,null,null,{"$f":"IF(EFA_Log[[#This Row],[Service Date ]], YEAR(EFA_Log[[#This Row],[Service Date ]]) & \"-\" & \"Q\" & INT((MONTH(EFA_Log[[#This Row],[Service Date ]])+2)/3), \"\")","v":""}]
[null,null,null,null,null,null,null,null,{"$f":"IF(EFA_Log[[#This Row],[Service Date ]], YEAR(EFA_Log[[#This Row],[Service Date ]]) & \"-\" & \"Q\" & INT((MONTH(EFA_Log[[#This Row],[Service Date ]])+2)/3), \"\")","v":""}]
[null,null,null,null,null,null,null,null,{"$f":"IF(EFA_Log[[#This Row],[Service Date ]], YEAR(EFA_Log[[#This Row],[Service Date ]]) & \"-\" & \"Q\" & INT((MONTH(EFA_Log[[#This Row],[Service Date ]])+2)/3), \"\")","v":""}]
[null,null,null,null,null,null,null,null,{"$f":"IF(EFA_Log[[#This Row],[Service Date ]], YEAR(EFA_Log[[#This Row],[Service Date ]]) & \"-\" & \"Q\" & INT((MONTH(EFA_Log[[#This Row],[Service Date ]])+2)/3), \"\")","v":""}]
[null,null,null,null,null,null,null,null,{"$f":"IF(EFA_Log[[#This Row],[Service Date ]], YEAR(EFA_Log[[#This Row],[Service Date ]]) & \"-\" & \"Q\" & INT((MONTH(EFA_Log[[#This Row],[Service Date ]])+2)/3), \"\")","v":""}]
[null,null,null,null,null,null,null,null,{"$f":"IF(EFA_Log[[#This Row],[Service Date ]], YEAR(EFA_Log[[#This Row],[Service Date ]]) & \"-\" & \"Q\" & INT((MONTH(EFA_Log[[#This Row],[Service Date ]])+2)/3), \"\")","v":""}]
[null,null,null,null,null,null,null,null,{"$f":"IF(EFA_Log[[#This Row],[Service Date ]], YEAR(EFA_Log[[#This Row],[Service Date ]]) & \"-\" & \"Q\" & INT((MONTH(EFA_Log[[#This Row],[Service Date ]])+2)/3), \"\")","v":""}]
[null,null,null,null,null,null,null,null,{"$f":"IF(EFA_Log[[#This Row],[Service Date ]], YEAR(EFA_Log[[#This Row],[Service Date ]]) & \"-\" & \"Q\" & INT((MONTH(EFA_Log[[#This Row],[Service Date ]])+2)/3), \"\")","v":""}]
[null,null,null,null,null,null,null,null,{"$f":"IF(EFA_Log[[#This Row],[Service Date ]], YEAR(EFA_Log[[#This Row],[Service Date ]]) & \"-\" & \"Q\" & INT((MONTH(EFA_Log[[#This Row],[Service Date ]])+2)/3), \"\")","v":""}]
[null,null,null,null,null,null,null,null,{"$f":"IF(EFA_Log[[#This Row],[Service Date ]], YEAR(EFA_Log[[#This Row],[Service Date ]]) & \"-\" & \"Q\" & INT((MONTH(EFA_Log[[#This Row],[Service Date ]])+2)/3), \"\")","v":""}]
[null,null,null,null,null,null,null,null,{"$f":"IF(EFA_Log[[#This Row],[Service Date ]], YEAR(EFA_Log[[#This Row],[Service Date ]]) & \"-\" & \"Q\" & INT((MONTH(EFA_Log[[#This Row],[Service Date ]])+2)/3), \"\")","v":""}]
[null,null,null,null,null,null,null,null,{"$f":"IF(EFA_Log[[#This Row],[Service Date ]], YEAR(EFA_Log[[#This Row],[Service Date ]]) & \"-\" & \"Q\" & INT((MONTH(EFA_Log[[#This Row],[Service Date ]])+2)/3), \"\")","v":""}]
[null,null,null,null,null,null,null,null,{"$f":"IF(EFA_Log[[#This Row],[Service Date ]], YEAR(EFA_Log[[#This Row],[Service Date ]]) & \"-\" & \"Q\" & INT((MONTH(EFA_Log[[#This Row],[Service Date ]])+2)/3), \"\")","v":""}]
[null,null,null,null,null,null,null,null,{"$f":"IF(EFA_Log[[#This Row],[Service Date ]], YEAR(EFA_Log[[#This Row],[Service Date ]]) & \"-\" & \"Q\" & INT((MONTH(EFA_Log[[#This Row],[Service Date ]])+2)/3), \"\")","v":""}]
[null,null,null,null,null,null,null,null,{"$f":"IF(EFA_Log[[#This Row],[Service Date ]], YEAR(EFA_Log[[#This Row],[Service Date ]]) & \"-\" & \"Q\" & INT((MONTH(EFA_Log[[#This Row],[Service Date ]])+2)/3), \"\")","v":""}]
[null,null,null,null,null,null,null,null,{"$f":"IF(EFA_Log[[#This Row],[Service Date ]], YEAR(EFA_Log[[#This Row],[Service Date ]]) & \"-\" & \"Q\" & INT((MONTH(EFA_Log[[#This Row],[Service Date ]])+2)/3), \"\")","v":""}]
[null,null,null,null,null,null,null,null,{"$f":"IF(EFA_Log[[#This Row],[Service Date ]], YEAR(EFA_Log[[#This Row],[Service Date ]]) & \"-\" & \"Q\" & INT((MONTH(EFA_Log[[#This Row],[Service Date ]])+2)/3), \"\")","v":""}]
[null,null,null,null,null,null,null,null,{"$f":"IF(EFA_Log[[#This Row],[Service Date ]], YEAR(EFA_Log[[#This Row],[Service Date ]]) & \"-\" & \"Q\" & INT((MONTH(EFA_Log[[#This Row],[Service Date ]])+2)/3), \"\")","v":""}]
[null,null,null,null,null,null,null,null,{"$f":"IF(EFA_Log[[#This Row],[Service Date ]], YEAR(EFA_Log[[#This Row],[Service Date ]]) & \"-\" & \"Q\" & INT((MONTH(EFA_Log[[#This Row],[Service Date ]])+2)/3), \"\")","v":""}]
[null,null,null,null,null,null,null,null,{"$f":"IF(EFA_Log[[#This Row],[Service Date ]], YEAR(EFA_Log[[#This Row],[Service Date ]]) & \"-\" & \"Q\" & INT((MONTH(EFA_Log[[#This Row],[Service Date ]])+2)/3), \"\")","v":""}]
[null,null,null,null,null,null,null,null,{"$f":"IF(EFA_Log[[#This Row],[Service Date ]], YEAR(EFA_Log[[#This Row],[Service Date ]]) & \"-\" & \"Q\" & INT((MONTH(EFA_Log[[#This Row],[Service Date ]])+2)/3), \"\")","v":""}]
[null,null,null,null,null,null,null,null,{"$f":"IF(EFA_Log[[#This Row],[Service Date ]], YEAR(EFA_Log[[#This Row],[Service Date ]]) & \"-\" & \"Q\" & INT((MONTH(EFA_Log[[#This Row],[Service Date ]])+2)/3), \"\")","v":""}]
[null,null,null,null,null,null,null,null,{"$f":"IF(EFA_Log[[#This Row],[Service Date ]], YEAR(EFA_Log[[#This Row],[Service Date ]]) & \"-\" & \"Q\" & INT((MONTH(EFA_Log[[#This Row],[Service Date ]])+2)/3), \"\")","v":""}]
[null,null,null,null,null,null,null,null,{"$f":"IF(EFA_Log[[#This Row],[Service Date ]], YEAR(EFA_Log[[#This Row],[Service Date ]]) & \"-\" & \"Q\" & INT((MONTH(EFA_Log[[#This Row],[Service Date ]])+2)/3), \"\")","v":""}]
[null,null,null,null,null,null,null,null,{"$f":"IF(EFA_Log[[#This Row],[Service Date ]], YEAR(EFA_Log[[#This Row],[Service Date ]]) & \"-\" & \"Q\" & INT((MONTH(EFA_Log[[#This Row],[Service Date ]])+2)/3), \"\")","v":""}]
[null,null,null,null,null,null,null,null,{"$f":"IF(EFA_Log[[#This Row],[Service Date ]], YEAR(EFA_Log[[#This Row],[Service Date ]]) & \"-\" & \"Q\" & INT((MONTH(EFA_Log[[#This Row],[Service Date ]])+2)/3), \"\")","v":""}]
[null,null,null,null,null,null,null,null,{"$f":"IF(EFA_Log[[#This Row],[Service Date ]], YEAR(EFA_Log[[#This Row],[Service Date ]]) & \"-\" & \"Q\" & INT((MONTH(EFA_Log[[#This Row],[Service Date ]])+2)/3), \"\")","v":""}]
[null,null,null,null,null,null,null,null,{"$f":"IF(EFA_Log[[#This Row],[Service Date ]], YEAR(EFA_Log[[#This Row],[Service Date ]]) & \"-\" & \"Q\" & INT((MONTH(EFA_Log[[#This Row],[Service Date ]])+2)/3), \"\")","v":""}]
[null,null,null,null,null,null,null,null,{"$f":"IF(EFA_Log[[#This Row],[Service Date ]], YEAR(EFA_Log[[#This Row],[Service Date ]]) & \"-\" & \"Q\" & INT((MONTH(EFA_Log[[#This Row],[Service Date ]])+2)/3), \"\")","v":""}]
[null,null,null,null,null,null,null,null,{"$f":"IF(EFA_Log[[#This Row],[Service Date ]], YEAR(EFA_Log[[#This Row],[Service Date ]]) & \"-\" & \"Q\" & INT((MONTH(EFA_Log[[#This Row],[Service Date ]])+2)/3), \"\")","v":""}]
[null,null,null,null,null,null,null,null,{"$f":"IF(EFA_Log[[#This Row],[Service Date ]], YEAR(EFA_Log[[#This Row],[Service Date ]]) & \"-\" & \"Q\" & INT((MONTH(EFA_Log[[#This Row],[Service Date ]])+2)/3), \"\")","v":""}]
[null,null,null,null,null,null,null,null,{"$f":"IF(EFA_Log[[#This Row],[Service Date ]], YEAR(EFA_Log[[#This Row],[Service Date ]]) & \"-\" & \"Q\" & INT((MONTH(EFA_Log[[#This Row],[Service Date ]])+2)/3), \"\")","v":""}]
[null,null,null,null,null,null,null,null,{"$f":"IF(EFA_Log[[#This Row],[Service Date ]], YEAR(EFA_Log[[#This Row],[Service Date ]]) & \"-\" & \"Q\" & INT((MONTH(EFA_Log[[#This Row],[Service Date ]])+2)/3), \"\")","v":""}]
[null,null,null,null,null,null,null,null,{"$f":"IF(EFA_Log[[#This Row],[Service Date ]], YEAR(EFA_Log[[#This Row],[Service Date ]]) & \"-\" & \"Q\" & INT((MONTH(EFA_Log[[#This Row],[Service Date ]])+2)/3), \"\")","v":""}]
[null,null,null,null,null,null,null,null,{"$f":"IF(EFA_Log[[#This Row],[Service Date ]], YEAR(EFA_Log[[#This Row],[Service Date ]]) & \"-\" & \"Q\" & INT((MONTH(EFA_Log[[#This Row],[Service Date ]])+2)/3), \"\")","v":""}]
[null,null,null,null,null,null,null,null,{"$f":"IF(EFA_Log[[#This Row],[Service Date ]], YEAR(EFA_Log[[#This Row],[Service Date ]]) & \"-\" & \"Q\" & INT((MONTH(EFA_Log[[#This Row],[Service Date ]])+2)/3), \"\")","v":""}]
[null,null,null,null,null,null,null,null,{"$f":"IF(EFA_Log[[#This Row],[Service Date ]], YEAR(EFA_Log[[#This Row],[Service Date ]]) & \"-\" & \"Q\" & INT((MONTH(EFA_Log[[#This Row],[Service Date ]])+2)/3), \"\")","v":""}]
[null,null,null,null,null,null,null,null,{"$f":"IF(EFA_Log[[#This Row],[Service Date ]], YEAR(EFA_Log[[#This Row],[Service Date ]]) & \"-\" & \"Q\" & INT((MONTH(EFA_Log[[#This Row],[Service Date ]])+2)/3), \"\")","v":""}]
[null,null,null,null,null,null,null,null,{"$f":"IF(EFA_Log[[#This Row],[Service Date ]], YEAR(EFA_Log[[#This Row],[Service Date ]]) & \"-\" & \"Q\" & INT((MONTH(EFA_Log[[#This Row],[Service Date ]])+2)/3), \"\")","v":""}]
[null,null,null,null,null,null,null,null,{"$f":"IF(EFA_Log[[#This Row],[Service Date ]], YEAR(EFA_Log[[#This Row],[Service Date ]]) & \"-\" & \"Q\" & INT((MONTH(EFA_Log[[#This Row],[Service Date ]])+2)/3), \"\")","v":""}]
[null,null,null,null,null,null,null,null,{"$f":"IF(EFA_Log[[#This Row],[Service Date ]], YEAR(EFA_Log[[#This Row],[Service Date ]]) & \"-\" & \"Q\" & INT((MONTH(EFA_Log[[#This Row],[Service Date ]])+2)/3), \"\")","v":""}]
[null,null,null,null,null,null,null,null,{"$f":"IF(EFA_Log[[#This Row],[Service Date ]], YEAR(EFA_Log[[#This Row],[Service Date ]]) & \"-\" & \"Q\" & INT((MONTH(EFA_Log[[#This Row],[Service Date ]])+2)/3), \"\")","v":""}]
[null,null,null,null,null,null,null,null,{"$f":"IF(EFA_Log[[#This Row],[Service Date ]], YEAR(EFA_Log[[#This Row],[Service Date ]]) & \"-\" & \"Q\" & INT((MONTH(EFA_Log[[#This Row],[Service Date ]])+2)/3), \"\")","v":""}]
[null,null,null,null,null,null,null,null,{"$f":"IF(EFA_Log[[#This Row],[Service Date ]], YEAR(EFA_Log[[#This Row],[Service Date ]]) & \"-\" & \"Q\" & INT((MONTH(EFA_Log[[#This Row],[Service Date ]])+2)/3), \"\")","v":""}]
[null,null,null,null,null,null,null,null,{"$f":"IF(EFA_Log[[#This Row],[Service Date ]], YEAR(EFA_Log[[#This Row],[Service Date ]]) & \"-\" & \"Q\" & INT((MONTH(EFA_Log[[#This Row],[Service Date ]])+2)/3), \"\")","v":""}]
[null,null,null,null,null,null,null,null,{"$f":"IF(EFA_Log[[#This Row],[Service Date ]], YEAR(EFA_Log[[#This Row],[Service Date ]]) & \"-\" & \"Q\" & INT((MONTH(EFA_Log[[#This Row],[Service Date ]])+2)/3), \"\")","v":""}]
[null,null,null,null,null,null,null,null,{"$f":"IF(EFA_Log[[#This Row],[Service Date ]], YEAR(EFA_Log[[#This Row],[Service Date ]]) & \"-\" & \"Q\" & INT((MONTH(EFA_Log[[#This Row],[Service Date ]])+2)/3), \"\")","v":""}]
[null,null,null,null,null,null,null,null,{"$f":"IF(EFA_Log[[#This Row],[Service Date ]], YEAR(EFA_Log[[#This Row],[Service Date ]]) & \"-\" & \"Q\" & INT((MONTH(EFA_Log[[#This Row],[Service Date ]])+2)/3), \"\")","v":""}]
[null,null,null,null,null,null,null,null,{"$f":"IF(EFA_Log[[#This Row],[Service Date ]], YEAR(EFA_Log[[#This Row],[Service Date ]]) & \"-\" & \"Q\" & INT((MONTH(EFA_Log[[#This Row],[Service Date ]])+2)/3), \"\")","v":""}]
[null,null,null,null,null,null,null,null,{"$f":"IF(EFA_Log[[#This Row],[Service Date ]], YEAR(EFA_Log[[#This Row],[Service Date ]]) & \"-\" & \"Q\" & INT((MONTH(EFA_Log[[#This Row],[Service Date ]])+2)/3), \"\")","v":""}]
[null,null,null,null,null,null,null,null,{"$f":"IF(EFA_Log[[#This Row],[Service Date ]], YEAR(EFA_Log[[#This Row],[Service Date ]]) & \"-\" & \"Q\" & INT((MONTH(EFA_Log[[#This Row],[Service Date ]])+2)/3), \"\")","v":""}]
[null,null,null,null,null,null,null,null,{"$f":"IF(EFA_Log[[#This Row],[Service Date ]], YEAR(EFA_Log[[#This Row],[Service Date ]]) & \"-\" & \"Q\" & INT((MONTH(EFA_Log[[#This Row],[Service Date ]])+2)/3), \"\")","v":""}]
[null,null,null,null,null,null,null,null,{"$f":"IF(EFA_Log[[#This Row],[Service Date ]], YEAR(EFA_Log[[#This Row],[Service Date ]]) & \"-\" & \"Q\" & INT((MONTH(EFA_Log[[#This Row],[Service Date ]])+2)/3), \"\")","v":""}]
[null,null,null,null,null,null,null,null,{"$f":"IF(EFA_Log[[#This Row],[Service Date ]], YEAR(EFA_Log[[#This Row],[Service Date ]]) & \"-\" & \"Q\" & INT((MONTH(EFA_Log[[#This Row],[Service Date ]])+2)/3), \"\")","v":""}]
[null,null,null,null,null,null,null,null,{"$f":"IF(EFA_Log[[#This Row],[Service Date ]], YEAR(EFA_Log[[#This Row],[Service Date ]]) & \"-\" & \"Q\" & INT((MONTH(EFA_Log[[#This Row],[Service Date ]])+2)/3), \"\")","v":""}]
[null,null,null,null,null,null,null,null,{"$f":"IF(EFA_Log[[#This Row],[Service Date ]], YEAR(EFA_Log[[#This Row],[Service Date ]]) & \"-\" & \"Q\" & INT((MONTH(EFA_Log[[#This Row],[Service Date ]])+2)/3), \"\")","v":""}]
[null,null,null,null,null,null,null,null,{"$f":"IF(EFA_Log[[#This Row],[Service Date ]], YEAR(EFA_Log[[#This Row],[Service Date ]]) & \"-\" & \"Q\" & INT((MONTH(EFA_Log[[#This Row],[Service Date ]])+2)/3), \"\")","v":""}]
[null,null,null,null,null,null,null,null,{"$f":"IF(EFA_Log[[#This Row],[Service Date ]], YEAR(EFA_Log[[#This Row],[Service Date ]]) & \"-\" & \"Q\" & INT((MONTH(EFA_Log[[#This Row],[Service Date ]])+2)/3), \"\")","v":""}]
[null,null,null,null,null,null,null,null,{"$f":"IF(EFA_Log[[#This Row],[Service Date ]], YEAR(EFA_Log[[#This Row],[Service Date ]]) & \"-\" & \"Q\" & INT((MONTH(EFA_Log[[#This Row],[Service Date ]])+2)/3), \"\")","v":""}]
[null,null,null,null,null,null,null,null,{"$f":"IF(EFA_Log[[#This Row],[Service Date ]], YEAR(EFA_Log[[#This Row],[Service Date ]]) & \"-\" & \"Q\" & INT((MONTH(EFA_Log[[#This Row],[Service Date ]])+2)/3), \"\")","v":""}]
[null,null,null,null,null,null,null,null,{"$f":"IF(EFA_Log[[#This Row],[Service Date ]], YEAR(EFA_Log[[#This Row],[Service Date ]]) & \"-\" & \"Q\" & INT((MONTH(EFA_Log[[#This Row],[Service Date ]])+2)/3), \"\")","v":""}]
[null,null,null,null,null,null,null,null,{"$f":"IF(EFA_Log[[#This Row],[Service Date ]], YEAR(EFA_Log[[#This Row],[Service Date ]]) & \"-\" & \"Q\" & INT((MONTH(EFA_Log[[#This Row],[Service Date ]])+2)/3), \"\")","v":""}]
[null,null,null,null,null,null,null,null,{"$f":"IF(EFA_Log[[#This Row],[Service Date ]], YEAR(EFA_Log[[#This Row],[Service Date ]]) & \"-\" & \"Q\" & INT((MONTH(EFA_Log[[#This Row],[Service Date ]])+2)/3), \"\")","v":""}]
[null,null,null,null,null,null,null,null,{"$f":"IF(EFA_Log[[#This Row],[Service Date ]], YEAR(EFA_Log[[#This Row],[Service Date ]]) & \"-\" & \"Q\" & INT((MONTH(EFA_Log[[#This Row],[Service Date ]])+2)/3), \"\")","v":""}]
[null,null,null,null,null,null,null,null,{"$f":"IF(EFA_Log[[#This Row],[Service Date ]], YEAR(EFA_Log[[#This Row],[Service Date ]]) & \"-\" & \"Q\" & INT((MONTH(EFA_Log[[#This Row],[Service Date ]])+2)/3), \"\")","v":""}]
[null,null,null,null,null,null,null,null,{"$f":"IF(EFA_Log[[#This Row],[Service Date ]], YEAR(EFA_Log[[#This Row],[Service Date ]]) & \"-\" & \"Q\" & INT((MONTH(EFA_Log[[#This Row],[Service Date ]])+2)/3), \"\")","v":""}]
[null,null,null,null,null,null,null,null,{"$f":"IF(EFA_Log[[#This Row],[Service Date ]], YEAR(EFA_Log[[#This Row],[Service Date ]]) & \"-\" & \"Q\" & INT((MONTH(EFA_Log[[#This Row],[Service Date ]])+2)/3), \"\")","v":""}]
[null,null,null,null,null,null,null,null,{"$f":"IF(EFA_Log[[#This Row],[Service Date ]], YEAR(EFA_Log[[#This Row],[Service Date ]]) & \"-\" & \"Q\" & INT((MONTH(EFA_Log[[#This Row],[Service Date ]])+2)/3), \"\")","v":""}]
[null,null,null,null,null,null,null,null,{"$f":"IF(EFA_Log[[#This Row],[Service Date ]], YEAR(EFA_Log[[#This Row],[Service Date ]]) & \"-\" & \"Q\" & INT((MONTH(EFA_Log[[#This Row],[Service Date ]])+2)/3), \"\")","v":""}]
[null,null,null,null,null,null,null,null,{"$f":"IF(EFA_Log[[#This Row],[Service Date ]], YEAR(EFA_Log[[#This Row],[Service Date ]]) & \"-\" & \"Q\" & INT((MONTH(EFA_Log[[#This Row],[Service Date ]])+2)/3), \"\")","v":""}]
[null,null,null,null,null,null,null,null,{"$f":"IF(EFA_Log[[#This Row],[Service Date ]], YEAR(EFA_Log[[#This Row],[Service Date ]]) & \"-\" & \"Q\" & INT((MONTH(EFA_Log[[#This Row],[Service Date ]])+2)/3), \"\")","v":""}]
[null,null,null,null,null,null,null,null,{"$f":"IF(EFA_Log[[#This Row],[Service Date ]], YEAR(EFA_Log[[#This Row],[Service Date ]]) & \"-\" & \"Q\" & INT((MONTH(EFA_Log[[#This Row],[Service Date ]])+2)/3), \"\")","v":""}]
[null,null,null,null,null,null,null,null,{"$f":"IF(EFA_Log[[#This Row],[Service Date ]], YEAR(EFA_Log[[#This Row],[Service Date ]]) & \"-\" & \"Q\" & INT((MONTH(EFA_Log[[#This Row],[Service Date ]])+2)/3), \"\")","v":""}]
[null,null,null,null,null,null,null,null,{"$f":"IF(EFA_Log[[#This Row],[Service Date ]], YEAR(EFA_Log[[#This Row],[Service Date ]]) & \"-\" & \"Q\" & INT((MONTH(EFA_Log[[#This Row],[Service Date ]])+2)/3), \"\")","v":""}]
[null,null,null,null,null,null,null,null,{"$f":"IF(EFA_Log[[#This Row],[Service Date ]], YEAR(EFA_Log[[#This Row],[Service Date ]]) & \"-\" & \"Q\" & INT((MONTH(EFA_Log[[#This Row],[Service Date ]])+2)/3), \"\")","v":""}]
[null,null,null,null,null,null,null,null,{"$f":"IF(EFA_Log[[#This Row],[Service Date ]], YEAR(EFA_Log[[#This Row],[Service Date ]]) & \"-\" & \"Q\" & INT((MONTH(EFA_Log[[#This Row],[Service Date ]])+2)/3), \"\")","v":""}]
[null,null,null,null,null,null,null,null,{"$f":"IF(EFA_Log[[#This Row],[Service Date ]], YEAR(EFA_Log[[#This Row],[Service Date ]]) & \"-\" & \"Q\" & INT((MONTH(EFA_Log[[#This Row],[Service Date ]])+2)/3), \"\")","v":""}]
[null,null,null,null,null,null,null,null,{"$f":"IF(EFA_Log[[#This Row],[Service Date ]], YEAR(EFA_Log[[#This Row],[Service Date ]]) & \"-\" & \"Q\" & INT((MONTH(EFA_Log[[#This Row],[Service Date ]])+2)/3), \"\")","v":""}]
[null,null,null,null,null,null,null,null,{"$f":"IF(EFA_Log[[#This Row],[Service Date ]], YEAR(EFA_Log[[#This Row],[Service Date ]]) & \"-\" & \"Q\" & INT((MONTH(EFA_Log[[#This Row],[Service Date ]])+2)/3), \"\")","v":""}]
[null,null,null,null,null,null,null,null,{"$f":"IF(EFA_Log[[#This Row],[Service Date ]], YEAR(EFA_Log[[#This Row],[Service Date ]]) & \"-\" & \"Q\" & INT((MONTH(EFA_Log[[#This Row],[Service Date ]])+2)/3), \"\")","v":""}]
[null,null,null,null,null,null,null,null,{"$f":"IF(EFA_Log[[#This Row],[Service Date ]], YEAR(EFA_Log[[#This Row],[Service Date ]]) & \"-\" & \"Q\" & INT((MONTH(EFA_Log[[#This Row],[Service Date ]])+2)/3), \"\")","v":""}]
[null,null,null,null,null,null,null,null,{"$f":"IF(EFA_Log[[#This Row],[Service Date ]], YEAR(EFA_Log[[#This Row],[Service Date ]]) & \"-\" & \"Q\" & INT((MONTH(EFA_Log[[#This Row],[Service Date ]])+2)/3), \"\")","v":""}]
[null,null,null,null,null,null,null,null,{"$f":"IF(EFA_Log[[#This Row],[Service Date ]], YEAR(EFA_Log[[#This Row],[Service Date ]]) & \"-\" & \"Q\" & INT((MONTH(EFA_Log[[#This Row],[Service Date ]])+2)/3), \"\")","v":""}]
[null,null,null,null,null,null,null,null,{"$f":"IF(EFA_Log[[#This Row],[Service Date ]], YEAR(EFA_Log[[#This Row],[Service Date ]]) & \"-\" & \"Q\" & INT((MONTH(EFA_Log[[#This Row],[Service Date ]])+2)/3), \"\")","v":""}]
[null,null,null,null,null,null,null,null,{"$f":"IF(EFA_Log[[#This Row],[Service Date ]], YEAR(EFA_Log[[#This Row],[Service Date ]]) & \"-\" & \"Q\" & INT((MONTH(EFA_Log[[#This Row],[Service Date ]])+2)/3), \"\")","v":""}]
[null,null,null,null,null,null,null,null,{"$f":"IF(EFA_Log[[#This Row],[Service Date ]], YEAR(EFA_Log[[#This Row],[Service Date ]]) & \"-\" & \"Q\" & INT((MONTH(EFA_Log[[#This Row],[Service Date ]])+2)/3), \"\")","v":""}]
[null,null,null,null,null,null,null,null,{"$f":"IF(EFA_Log[[#This Row],[Service Date ]], YEAR(EFA_Log[[#This Row],[Service Date ]]) & \"-\" & \"Q\" & INT((MONTH(EFA_Log[[#This Row],[Service Date ]])+2)/3), \"\")","v":""}]
[null,null,null,null,null,null,null,null,{"$f":"IF(EFA_Log[[#This Row],[Service Date ]], YEAR(EFA_Log[[#This Row],[Service Date ]]) & \"-\" & \"Q\" & INT((MONTH(EFA_Log[[#This Row],[Service Date ]])+2)/3), \"\")","v":""}]
[null,null,null,null,null,null,null,null,{"$f":"IF(EFA_Log[[#This Row],[Service Date ]], YEAR(EFA_Log[[#This Row],[Service Date ]]) & \"-\" & \"Q\" & INT((MONTH(EFA_Log[[#This Row],[Service Date ]])+2)/3), \"\")","v":""}]
[null,null,null,null,null,null,null,null,{"$f":"IF(EFA_Log[[#This Row],[Service Date ]], YEAR(EFA_Log[[#This Row],[Service Date ]]) & \"-\" & \"Q\" & INT((MONTH(EFA_Log[[#This Row],[Service Date ]])+2)/3), \"\")","v":""}]
[null,null,null,null,null,null,null,null,{"$f":"IF(EFA_Log[[#This Row],[Service Date ]], YEAR(EFA_Log[[#This Row],[Service Date ]]) & \"-\" & \"Q\" & INT((MONTH(EFA_Log[[#This Row],[Service Date ]])+2)/3), \"\")","v":""}]
[null,null,null,null,null,null,null,null,{"$f":"IF(EFA_Log[[#This Row],[Service Date ]], YEAR(EFA_Log[[#This Row],[Service Date ]]) & \"-\" & \"Q\" & INT((MONTH(EFA_Log[[#This Row],[Service Date ]])+2)/3), \"\")","v":""}]
[null,null,null,null,null,null,null,null,{"$f":"IF(EFA_Log[[#This Row],[Service Date ]], YEAR(EFA_Log[[#This Row],[Service Date ]]) & \"-\" & \"Q\" & INT((MONTH(EFA_Log[[#This Row],[Service Date ]])+2)/3), \"\")","v":""}]
[null,null,null,null,null,null,null,null,{"$f":"IF(EFA_Log[[#This Row],[Service Date ]], YEAR(EFA_Log[[#This Row],[Service Date ]]) & \"-\" & \"Q\" & INT((MONTH(EFA_Log[[#This Row],[Service Date ]])+2)/3), \"\")","v":""}]
[null,null,null,null,null,null,null,null,{"$f":"IF(EFA_Log[[#This Row],[Service Date ]], YEAR(EFA_Log[[#This Row],[Service Date ]]) & \"-\" & \"Q\" & INT((MONTH(EFA_Log[[#This Row],[Service Date ]])+2)/3), \"\")","v":""}]
[null,null,null,null,null,null,null,null,{"$f":"IF(EFA_Log[[#This Row],[Service Date ]], YEAR(EFA_Log[[#This Row],[Service Date ]]) & \"-\" & \"Q\" & INT((MONTH(EFA_Log[[#This Row],[Service Date ]])+2)/3), \"\")","v":""}]
[null,null,null,null,null,null,null,null,{"$f":"IF(EFA_Log[[#This Row],[Service Date ]], YEAR(EFA_Log[[#This Row],[Service Date ]]) & \"-\" & \"Q\" & INT((MONTH(EFA_Log[[#This Row],[Service Date ]])+2)/3), \"\")","v":""}]
[null,null,null,null,null,null,null,null,{"$f":"IF(EFA_Log[[#This Row],[Service Date ]], YEAR(EFA_Log[[#This Row],[Service Date ]]) & \"-\" & \"Q\" & INT((MONTH(EFA_Log[[#This Row],[Service Date ]])+2)/3), \"\")","v":""}]
[null,null,null,null,null,null,null,null,{"$f":"IF(EFA_Log[[#This Row],[Service Date ]], YEAR(EFA_Log[[#This Row],[Service Date ]]) & \"-\" & \"Q\" & INT((MONTH(EFA_Log[[#This Row],[Service Date ]])+2)/3), \"\")","v":""}]
[null,null,null,null,null,null,null,null,{"$f":"IF(EFA_Log[[#This Row],[Service Date ]], YEAR(EFA_Log[[#This Row],[Service Date ]]) & \"-\" & \"Q\" & INT((MONTH(EFA_Log[[#This Row],[Service Date ]])+2)/3), \"\")","v":""}]
[null,null,null,null,null,null,null,null,{"$f":"IF(EFA_Log[[#This Row],[Service Date ]], YEAR(EFA_Log[[#This Row],[Service Date ]]) & \"-\" & \"Q\" & INT((MONTH(EFA_Log[[#This Row],[Service Date ]])+2)/3), \"\")","v":""}]
[null,null,null,null,null,null,null,null,{"$f":"IF(EFA_Log[[#This Row],[Service Date ]], YEAR(EFA_Log[[#This Row],[Service Date ]]) & \"-\" & \"Q\" & INT((MONTH(EFA_Log[[#This Row],[Service Date ]])+2)/3), \"\")","v":""}]
[null,null,null,null,null,null,null,null,{"$f":"IF(EFA_Log[[#This Row],[Service Date ]], YEAR(EFA_Log[[#This Row],[Service Date ]]) & \"-\" & \"Q\" & INT((MONTH(EFA_Log[[#This Row],[Service Date ]])+2)/3), \"\")","v":""}]
[null,null,null,null,null,null,null,null,{"$f":"IF(EFA_Log[[#This Row],[Service Date ]], YEAR(EFA_Log[[#This Row],[Service Date ]]) & \"-\" & \"Q\" & INT((MONTH(EFA_Log[[#This Row],[Service Date ]])+2)/3), \"\")","v":""}]
[null,null,null,null,null,null,null,null,{"$f":"IF(EFA_Log[[#This Row],[Service Date ]], YEAR(EFA_Log[[#This Row],[Service Date ]]) & \"-\" & \"Q\" & INT((MONTH(EFA_Log[[#This Row],[Service Date ]])+2)/3), \"\")","v":""}]
[null,null,null,null,null,null,null,null,{"$f":"IF(EFA_Log[[#This Row],[Service Date ]], YEAR(EFA_Log[[#This Row],[Service Date ]]) & \"-\" & \"Q\" & INT((MONTH(EFA_Log[[#This Row],[Service Date ]])+2)/3), \"\")","v":""}]
[null,null,null,null,null,null,null,null,{"$f":"IF(EFA_Log[[#This Row],[Service Date ]], YEAR(EFA_Log[[#This Row],[Service Date ]]) & \"-\" & \"Q\" & INT((MONTH(EFA_Log[[#This Row],[Service Date ]])+2)/3), \"\")","v":""}]
[null,null,null,null,null,null,null,null,{"$f":"IF(EFA_Log[[#This Row],[Service Date ]], YEAR(EFA_Log[[#This Row],[Service Date ]]) & \"-\" & \"Q\" & INT((MONTH(EFA_Log[[#This Row],[Service Date ]])+2)/3), \"\")","v":""}]
[null,null,null,null,null,null,null,null,{"$f":"IF(EFA_Log[[#This Row],[Service Date ]], YEAR(EFA_Log[[#This Row],[Service Date ]]) & \"-\" & \"Q\" & INT((MONTH(EFA_Log[[#This Row],[Service Date ]])+2)/3), \"\")","v":""}]
[null,null,null,null,null,null,null,null,{"$f":"IF(EFA_Log[[#This Row],[Service Date ]], YEAR(EFA_Log[[#This Row],[Service Date ]]) & \"-\" & \"Q\" & INT((MONTH(EFA_Log[[#This Row],[Service Date ]])+2)/3), \"\")","v":""}]
[null,null,null,null,null,null,null,null,{"$f":"IF(EFA_Log[[#This Row],[Service Date ]], YEAR(EFA_Log[[#This Row],[Service Date ]]) & \"-\" & \"Q\" & INT((MONTH(EFA_Log[[#This Row],[Service Date ]])+2)/3), \"\")","v":""}]
[null,null,null,null,null,null,null,null,{"$f":"IF(EFA_Log[[#This Row],[Service Date ]], YEAR(EFA_Log[[#This Row],[Service Date ]]) & \"-\" & \"Q\" & INT((MONTH(EFA_Log[[#This Row],[Service Date ]])+2)/3), \"\")","v":""}]
[null,null,null,null,null,null,null,null,{"$f":"IF(EFA_Log[[#This Row],[Service Date ]], YEAR(EFA_Log[[#This Row],[Service Date ]]) & \"-\" & \"Q\" & INT((MONTH(EFA_Log[[#This Row],[Service Date ]])+2)/3), \"\")","v":""}]
[null,null,null,null,null,null,null,null,{"$f":"IF(EFA_Log[[#This Row],[Service Date ]], YEAR(EFA_Log[[#This Row],[Service Date ]]) & \"-\" & \"Q\" & INT((MONTH(EFA_Log[[#This Row],[Service Date ]])+2)/3), \"\")","v":""}]
[null,null,null,null,null,null,null,null,{"$f":"IF(EFA_Log[[#This Row],[Service Date ]], YEAR(EFA_Log[[#This Row],[Service Date ]]) & \"-\" & \"Q\" & INT((MONTH(EFA_Log[[#This Row],[Service Date ]])+2)/3), \"\")","v":""}]
[null,null,null,null,null,null,null,null,{"$f":"IF(EFA_Log[[#This Row],[Service Date ]], YEAR(EFA_Log[[#This Row],[Service Date ]]) & \"-\" & \"Q\" & INT((MONTH(EFA_Log[[#This Row],[Service Date ]])+2)/3), \"\")","v":""}]
[null,null,null,null,null,null,null,null,{"$f":"IF(EFA_Log[[#This Row],[Service Date ]], YEAR(EFA_Log[[#This Row],[Service Date ]]) & \"-\" & \"Q\" & INT((MONTH(EFA_Log[[#This Row],[Service Date ]])+2)/3), \"\")","v":""}]
[null,null,null,null,null,null,null,null,{"$f":"IF(EFA_Log[[#This Row],[Service Date ]], YEAR(EFA_Log[[#This Row],[Service Date ]]) & \"-\" & \"Q\" & INT((MONTH(EFA_Log[[#This Row],[Service Date ]])+2)/3), \"\")","v":""}]
[null,null,null,null,null,null,null,null,{"$f":"IF(EFA_Log[[#This Row],[Service Date ]], YEAR(EFA_Log[[#This Row],[Service Date ]]) & \"-\" & \"Q\" & INT((MONTH(EFA_Log[[#This Row],[Service Date ]])+2)/3), \"\")","v":""}]
[null,null,null,null,null,null,null,null,{"$f":"IF(EFA_Log[[#This Row],[Service Date ]], YEAR(EFA_Log[[#This Row],[Service Date ]]) & \"-\" & \"Q\" & INT((MONTH(EFA_Log[[#This Row],[Service Date ]])+2)/3), \"\")","v":""}]
[null,null,null,null,null,null,null,null,{"$f":"IF(EFA_Log[[#This Row],[Service Date ]], YEAR(EFA_Log[[#This Row],[Service Date ]]) & \"-\" & \"Q\" & INT((MONTH(EFA_Log[[#This Row],[Service Date ]])+2)/3), \"\")","v":""}]
[null,null,null,null,null,null,null,null,{"$f":"IF(EFA_Log[[#This Row],[Service Date ]], YEAR(EFA_Log[[#This Row],[Service Date ]]) & \"-\" & \"Q\" & INT((MONTH(EFA_Log[[#This Row],[Service Date ]])+2)/3), \"\")","v":""}]
[null,null,null,null,null,null,null,null,{"$f":"IF(EFA_Log[[#This Row],[Service Date ]], YEAR(EFA_Log[[#This Row],[Service Date ]]) & \"-\" & \"Q\" & INT((MONTH(EFA_Log[[#This Row],[Service Date ]])+2)/3), \"\")","v":""}]
[null,null,null,null,null,null,null,null,{"$f":"IF(EFA_Log[[#This Row],[Service Date ]], YEAR(EFA_Log[[#This Row],[Service Date ]]) & \"-\" & \"Q\" & INT((MONTH(EFA_Log[[#This Row],[Service Date ]])+2)/3), \"\")","v":""}]
[null,null,null,null,null,null,null,null,{"$f":"IF(EFA_Log[[#This Row],[Service Date ]], YEAR(EFA_Log[[#This Row],[Service Date ]]) & \"-\" & \"Q\" & INT((MONTH(EFA_Log[[#This Row],[Service Date ]])+2)/3), \"\")","v":""}]
[null,null,null,null,null,null,null,null,{"$f":"IF(EFA_Log[[#This Row],[Service Date ]], YEAR(EFA_Log[[#This Row],[Service Date ]]) & \"-\" & \"Q\" & INT((MONTH(EFA_Log[[#This Row],[Service Date ]])+2)/3), \"\")","v":""}]
[null,null,null,null,null,null,null,null,{"$f":"IF(EFA_Log[[#This Row],[Service Date ]], YEAR(EFA_Log[[#This Row],[Service Date ]]) & \"-\" & \"Q\" & INT((MONTH(EFA_Log[[#This Row],[Service Date ]])+2)/3), \"\")","v":""}]
[null,null,null,null,null,null,null,null,{"$f":"IF(EFA_Log[[#This Row],[Service Date ]], YEAR(EFA_Log[[#This Row],[Service Date ]]) & \"-\" & \"Q\" & INT((MONTH(EFA_Log[[#This Row],[Service Date ]])+2)/3), \"\")","v":""}]
[null,null,null,null,null,null,null,null,{"$f":"IF(EFA_Log[[#This Row],[Service Date ]], YEAR(EFA_Log[[#This Row],[Service Date ]]) & \"-\" & \"Q\" & INT((MONTH(EFA_Log[[#This Row],[Service Date ]])+2)/3), \"\")","v":""}]
[null,null,null,null,null,null,null,null,{"$f":"IF(EFA_Log[[#This Row],[Service Date ]], YEAR(EFA_Log[[#This Row],[Service Date ]]) & \"-\" & \"Q\" & INT((MONTH(EFA_Log[[#This Row],[Service Date ]])+2)/3), \"\")","v":""}]
[null,null,null,null,null,null,null,null,{"$f":"IF(EFA_Log[[#This Row],[Service Date ]], YEAR(EFA_Log[[#This Row],[Service Date ]]) & \"-\" & \"Q\" & INT((MONTH(EFA_Log[[#This Row],[Service Date ]])+2)/3), \"\")","v":""}]
[null,null,null,null,null,null,null,null,{"$f":"IF(EFA_Log[[#This Row],[Service Date ]], YEAR(EFA_Log[[#This Row],[Service Date ]]) & \"-\" & \"Q\" & INT((MONTH(EFA_Log[[#This Row],[Service Date ]])+2)/3), \"\")","v":""}]
[null,null,null,null,null,null,null,null,{"$f":"IF(EFA_Log[[#This Row],[Service Date ]], YEAR(EFA_Log[[#This Row],[Service Date ]]) & \"-\" & \"Q\" & INT((MONTH(EFA_Log[[#This Row],[Service Date ]])+2)/3), \"\")","v":""}]
[null,null,null,null,null,null,null,null,{"$f":"IF(EFA_Log[[#This Row],[Service Date ]], YEAR(EFA_Log[[#This Row],[Service Date ]]) & \"-\" & \"Q\" & INT((MONTH(EFA_Log[[#This Row],[Service Date ]])+2)/3), \"\")","v":""}]
[null,null,null,null,null,null,null,null,{"$f":"IF(EFA_Log[[#This Row],[Service Date ]], YEAR(EFA_Log[[#This Row],[Service Date ]]) & \"-\" & \"Q\" & INT((MONTH(EFA_Log[[#This Row],[Service Date ]])+2)/3), \"\")","v":""}]
[null,null,null,null,null,null,null,null,{"$f":"IF(EFA_Log[[#This Row],[Service Date ]], YEAR(EFA_Log[[#This Row],[Service Date ]]) & \"-\" & \"Q\" & INT((MONTH(EFA_Log[[#This Row],[Service Date ]])+2)/3), \"\")","v":""}]
[null,null,null,null,null,null,null,null,{"$f":"IF(EFA_Log[[#This Row],[Service Date ]], YEAR(EFA_Log[[#This Row],[Service Date ]]) & \"-\" & \"Q\" & INT((MONTH(EFA_Log[[#This Row],[Service Date ]])+2)/3), \"\")","v":""}]
[null,null,null,null,null,null,null,null,{"$f":"IF(EFA_Log[[#This Row],[Service Date ]], YEAR(EFA_Log[[#This Row],[Service Date ]]) & \"-\" & \"Q\" & INT((MONTH(EFA_Log[[#This Row],[Service Date ]])+2)/3), \"\")","v":""}]
[null,null,null,null,null,null,null,null,{"$f":"IF(EFA_Log[[#This Row],[Service Date ]], YEAR(EFA_Log[[#This Row],[Service Date ]]) & \"-\" & \"Q\" & INT((MONTH(EFA_Log[[#This Row],[Service Date ]])+2)/3), \"\")","v":""}]
[null,null,null,null,null,null,null,null,{"$f":"IF(EFA_Log[[#This Row],[Service Date ]], YEAR(EFA_Log[[#This Row],[Service Date ]]) & \"-\" & \"Q\" & INT((MONTH(EFA_Log[[#This Row],[Service Date ]])+2)/3), \"\")","v":""}]
[null,null,null,null,null,null,null,null,{"$f":"IF(EFA_Log[[#This Row],[Service Date ]], YEAR(EFA_Log[[#This Row],[Service Date ]]) & \"-\" & \"Q\" & INT((MONTH(EFA_Log[[#This Row],[Service Date ]])+2)/3), \"\")","v":""}]
[null,null,null,null,null,null,null,null,{"$f":"IF(EFA_Log[[#This Row],[Service Date ]], YEAR(EFA_Log[[#This Row],[Service Date ]]) & \"-\" & \"Q\" & INT((MONTH(EFA_Log[[#This Row],[Service Date ]])+2)/3), \"\")","v":""}]
[null,null,null,null,null,null,null,null,{"$f":"IF(EFA_Log[[#This Row],[Service Date ]], YEAR(EFA_Log[[#This Row],[Service Date ]]) & \"-\" & \"Q\" & INT((MONTH(EFA_Log[[#This Row],[Service Date ]])+2)/3), \"\")","v":""}]
[null,null,null,null,null,null,null,null,{"$f":"IF(EFA_Log[[#This Row],[Service Date ]], YEAR(EFA_Log[[#This Row],[Service Date ]]) & \"-\" & \"Q\" & INT((MONTH(EFA_Log[[#This Row],[Service Date ]])+2)/3), \"\")","v":""}]
[null,null,null,null,null,null,null,null,{"$f":"IF(EFA_Log[[#This Row],[Service Date ]], YEAR(EFA_Log[[#This Row],[Service Date ]]) & \"-\" & \"Q\" & INT((MONTH(EFA_Log[[#This Row],[Service Date ]])+2)/3), \"\")","v":""}]
[null,null,null,null,null,null,null,null,{"$f":"IF(EFA_Log[[#This Row],[Service Date ]], YEAR(EFA_Log[[#This Row],[Service Date ]]) & \"-\" & \"Q\" & INT((MONTH(EFA_Log[[#This Row],[Service Date ]])+2)/3), \"\")","v":""}]
[null,null,null,null,null,null,null,null,{"$f":"IF(EFA_Log[[#This Row],[Service Date ]], YEAR(EFA_Log[[#This Row],[Service Date ]]) & \"-\" & \"Q\" & INT((MONTH(EFA_Log[[#This Row],[Service Date ]])+2)/3), \"\")","v":""}]
[null,null,null,null,null,null,null,null,{"$f":"IF(EFA_Log[[#This Row],[Service Date ]], YEAR(EFA_Log[[#This Row],[Service Date ]]) & \"-\" & \"Q\" & INT((MONTH(EFA_Log[[#This Row],[Service Date ]])+2)/3), \"\")","v":""}]
[null,null,null,null,null,null,null,null,{"$f":"IF(EFA_Log[[#This Row],[Service Date ]], YEAR(EFA_Log[[#This Row],[Service Date ]]) & \"-\" & \"Q\" & INT((MONTH(EFA_Log[[#This Row],[Service Date ]])+2)/3), \"\")","v":""}]
[null,null,null,null,null,null,null,null,{"$f":"IF(EFA_Log[[#This Row],[Service Date ]], YEAR(EFA_Log[[#This Row],[Service Date ]]) & \"-\" & \"Q\" & INT((MONTH(EFA_Log[[#This Row],[Service Date ]])+2)/3), \"\")","v":""}]
[null,null,null,null,null,null,null,null,{"$f":"IF(EFA_Log[[#This Row],[Service Date ]], YEAR(EFA_Log[[#This Row],[Service Date ]]) & \"-\" & \"Q\" & INT((MONTH(EFA_Log[[#This Row],[Service Date ]])+2)/3), \"\")","v":""}]
[null,null,null,null,null,null,null,null,{"$f":"IF(EFA_Log[[#This Row],[Service Date ]], YEAR(EFA_Log[[#This Row],[Service Date ]]) & \"-\" & \"Q\" & INT((MONTH(EFA_Log[[#This Row],[Service Date ]])+2)/3), \"\")","v":""}]
[null,null,null,null,null,null,null,null,{"$f":"IF(EFA_Log[[#This Row],[Service Date ]], YEAR(EFA_Log[[#This Row],[Service Date ]]) & \"-\" & \"Q\" & INT((MONTH(EFA_Log[[#This Row],[Service Date ]])+2)/3), \"\")","v":""}]
[null,null,null,null,null,null,null,null,{"$f":"IF(EFA_Log[[#This Row],[Service Date ]], YEAR(EFA_Log[[#This Row],[Service Date ]]) & \"-\" & \"Q\" & INT((MONTH(EFA_Log[[#This Row],[Service Date ]])+2)/3), \"\")","v":""}]
[null,null,null,null,null,null,null,null,{"$f":"IF(EFA_Log[[#This Row],[Service Date ]], YEAR(EFA_Log[[#This Row],[Service Date ]]) & \"-\" & \"Q\" & INT((MONTH(EFA_Log[[#This Row],[Service Date ]])+2)/3), \"\")","v":""}]
[null,null,null,null,null,null,null,null,{"$f":"IF(EFA_Log[[#This Row],[Service Date ]], YEAR(EFA_Log[[#This Row],[Service Date ]]) & \"-\" & \"Q\" & INT((MONTH(EFA_Log[[#This Row],[Service Date ]])+2)/3), \"\")","v":""}]
[null,null,null,null,null,null,null,null,{"$f":"IF(EFA_Log[[#This Row],[Service Date ]], YEAR(EFA_Log[[#This Row],[Service Date ]]) & \"-\" & \"Q\" & INT((MONTH(EFA_Log[[#This Row],[Service Date ]])+2)/3), \"\")","v":""}]
[null,null,null,null,null,null,null,null,{"$f":"IF(EFA_Log[[#This Row],[Service Date ]], YEAR(EFA_Log[[#This Row],[Service Date ]]) & \"-\" & \"Q\" & INT((MONTH(EFA_Log[[#This Row],[Service Date ]])+2)/3), \"\")","v":""}]
[null,null,null,null,null,null,null,null,{"$f":"IF(EFA_Log[[#This Row],[Service Date ]], YEAR(EFA_Log[[#This Row],[Service Date ]]) & \"-\" & \"Q\" & INT((MONTH(EFA_Log[[#This Row],[Service Date ]])+2)/3), \"\")","v":""}]
[null,null,null,null,null,null,null,null,{"$f":"IF(EFA_Log[[#This Row],[Service Date ]], YEAR(EFA_Log[[#This Row],[Service Date ]]) & \"-\" & \"Q\" & INT((MONTH(EFA_Log[[#This Row],[Service Date ]])+2)/3), \"\")","v":""}]
[null,null,null,null,null,null,null,null,{"$f":"IF(EFA_Log[[#This Row],[Service Date ]], YEAR(EFA_Log[[#This Row],[Service Date ]]) & \"-\" & \"Q\" & INT((MONTH(EFA_Log[[#This Row],[Service Date ]])+2)/3), \"\")","v":""}]
[null,null,null,null,null,null,null,null,{"$f":"IF(EFA_Log[[#This Row],[Service Date ]], YEAR(EFA_Log[[#This Row],[Service Date ]]) & \"-\" & \"Q\" & INT((MONTH(EFA_Log[[#This Row],[Service Date ]])+2)/3), \"\")","v":""}]
[null,null,null,null,null,null,null,null,{"$f":"IF(EFA_Log[[#This Row],[Service Date ]], YEAR(EFA_Log[[#This Row],[Service Date ]]) & \"-\" & \"Q\" & INT((MONTH(EFA_Log[[#This Row],[Service Date ]])+2)/3), \"\")","v":""}]
[null,null,null,null,null,null,null,null,{"$f":"IF(EFA_Log[[#This Row],[Service Date ]], YEAR(EFA_Log[[#This Row],[Service Date ]]) & \"-\" & \"Q\" & INT((MONTH(EFA_Log[[#This Row],[Service Date ]])+2)/3), \"\")","v":""}]
[null,null,null,null,null,null,null,null,{"$f":"IF(EFA_Log[[#This Row],[Service Date ]], YEAR(EFA_Log[[#This Row],[Service Date ]]) & \"-\" & \"Q\" & INT((MONTH(EFA_Log[[#This Row],[Service Date ]])+2)/3), \"\")","v":""}]
[null,null,null,null,null,null,null,null,{"$f":"IF(EFA_Log[[#This Row],[Service Date ]], YEAR(EFA_Log[[#This Row],[Service Date ]]) & \"-\" & \"Q\" & INT((MONTH(EFA_Log[[#This Row],[Service Date ]])+2)/3), \"\")","v":""}]
[null,null,null,null,null,null,null,null,{"$f":"IF(EFA_Log[[#This Row],[Service Date ]], YEAR(EFA_Log[[#This Row],[Service Date ]]) & \"-\" & \"Q\" & INT((MONTH(EFA_Log[[#This Row],[Service Date ]])+2)/3), \"\")","v":""}]
[null,null,null,null,null,null,null,null,{"$f":"IF(EFA_Log[[#This Row],[Service Date ]], YEAR(EFA_Log[[#This Row],[Service Date ]]) & \"-\" & \"Q\" & INT((MONTH(EFA_Log[[#This Row],[Service Date ]])+2)/3), \"\")","v":""}]
[null,null,null,null,null,null,null,null,{"$f":"IF(EFA_Log[[#This Row],[Service Date ]], YEAR(EFA_Log[[#This Row],[Service Date ]]) & \"-\" & \"Q\" & INT((MONTH(EFA_Log[[#This Row],[Service Date ]])+2)/3), \"\")","v":""}]
[null,null,null,null,null,null,null,null,{"$f":"IF(EFA_Log[[#This Row],[Service Date ]], YEAR(EFA_Log[[#This Row],[Service Date ]]) & \"-\" & \"Q\" & INT((MONTH(EFA_Log[[#This Row],[Service Date ]])+2)/3), \"\")","v":""}]
[null,null,null,null,null,null,null,null,{"$f":"IF(EFA_Log[[#This Row],[Service Date ]], YEAR(EFA_Log[[#This Row],[Service Date ]]) & \"-\" & \"Q\" & INT((MONTH(EFA_Log[[#This Row],[Service Date ]])+2)/3), \"\")","v":""}]
[null,null,null,null,null,null,null,null,{"$f":"IF(EFA_Log[[#This Row],[Service Date ]], YEAR(EFA_Log[[#This Row],[Service Date ]]) & \"-\" & \"Q\" & INT((MONTH(EFA_Log[[#This Row],[Service Date ]])+2)/3), \"\")","v":""}]
[null,null,null,null,null,null,null,null,{"$f":"IF(EFA_Log[[#This Row],[Service Date ]], YEAR(EFA_Log[[#This Row],[Service Date ]]) & \"-\" & \"Q\" & INT((MONTH(EFA_Log[[#This Row],[Service Date ]])+2)/3), \"\")","v":""}]
[null,null,null,null,null,null,null,null,{"$f":"IF(EFA_Log[[#This Row],[Service Date ]], YEAR(EFA_Log[[#This Row],[Service Date ]]) & \"-\" & \"Q\" & INT((MONTH(EFA_Log[[#This Row],[Service Date ]])+2)/3), \"\")","v":""}]
[null,null,null,null,null,null,null,null,{"$f":"IF(EFA_Log[[#This Row],[Service Date ]], YEAR(EFA_Log[[#This Row],[Service Date ]]) & \"-\" & \"Q\" & INT((MONTH(EFA_Log[[#This Row],[Service Date ]])+2)/3), \"\")","v":""}]
[null,null,null,null,null,null,null,null,{"$f":"IF(EFA_Log[[#This Row],[Service Date ]], YEAR(EFA_Log[[#This Row],[Service Date ]]) & \"-\" & \"Q\" & INT((MONTH(EFA_Log[[#This Row],[Service Date ]])+2)/3), \"\")","v":""}]
[null,null,null,null,null,null,null,null,{"$f":"IF(EFA_Log[[#This Row],[Service Date ]], YEAR(EFA_Log[[#This Row],[Service Date ]]) & \"-\" & \"Q\" & INT((MONTH(EFA_Log[[#This Row],[Service Date ]])+2)/3), \"\")","v":""}]
[null,null,null,null,null,null,null,null,{"$f":"IF(EFA_Log[[#This Row],[Service Date ]], YEAR(EFA_Log[[#This Row],[Service Date ]]) & \"-\" & \"Q\" & INT((MONTH(EFA_Log[[#This Row],[Service Date ]])+2)/3), \"\")","v":""}]
[null,null,null,null,null,null,null,null,{"$f":"IF(EFA_Log[[#This Row],[Service Date ]], YEAR(EFA_Log[[#This Row],[Service Date ]]) & \"-\" & \"Q\" & INT((MONTH(EFA_Log[[#This Row],[Service Date ]])+2)/3), \"\")","v":""}]
[null,null,null,null,null,null,null,null,{"$f":"IF(EFA_Log[[#This Row],[Service Date ]], YEAR(EFA_Log[[#This Row],[Service Date ]]) & \"-\" & \"Q\" & INT((MONTH(EFA_Log[[#This Row],[Service Date ]])+2)/3), \"\")","v":""}]
[null,null,null,null,null,null,null,null,{"$f":"IF(EFA_Log[[#This Row],[Service Date ]], YEAR(EFA_Log[[#This Row],[Service Date ]]) & \"-\" & \"Q\" & INT((MONTH(EFA_Log[[#This Row],[Service Date ]])+2)/3), \"\")","v":""}]
[null,null,null,null,null,null,null,null,{"$f":"IF(EFA_Log[[#This Row],[Service Date ]], YEAR(EFA_Log[[#This Row],[Service Date ]]) & \"-\" & \"Q\" & INT((MONTH(EFA_Log[[#This Row],[Service Date ]])+2)/3), \"\")","v":""}]
[null,null,null,null,null,null,null,null,{"$f":"IF(EFA_Log[[#This Row],[Service Date ]], YEAR(EFA_Log[[#This Row],[Service Date ]]) & \"-\" & \"Q\" & INT((MONTH(EFA_Log[[#This Row],[Service Date ]])+2)/3), \"\")","v":""}]
[null,null,null,null,null,null,null,null,{"$f":"IF(EFA_Log[[#This Row],[Service Date ]], YEAR(EFA_Log[[#This Row],[Service Date ]]) & \"-\" & \"Q\" & INT((MONTH(EFA_Log[[#This Row],[Service Date ]])+2)/3), \"\")","v":""}]
[null,null,null,null,null,null,null,null,{"$f":"IF(EFA_Log[[#This Row],[Service Date ]], YEAR(EFA_Log[[#This Row],[Service Date ]]) & \"-\" & \"Q\" & INT((MONTH(EFA_Log[[#This Row],[Service Date ]])+2)/3), \"\")","v":""}]
[null,null,null,null,null,null,null,null,{"$f":"IF(EFA_Log[[#This Row],[Service Date ]], YEAR(EFA_Log[[#This Row],[Service Date ]]) & \"-\" & \"Q\" & INT((MONTH(EFA_Log[[#This Row],[Service Date ]])+2)/3), \"\")","v":""}]
[null,null,null,null,null,null,null,null,{"$f":"IF(EFA_Log[[#This Row],[Service Date ]], YEAR(EFA_Log[[#This Row],[Service Date ]]) & \"-\" & \"Q\" & INT((MONTH(EFA_Log[[#This Row],[Service Date ]])+2)/3), \"\")","v":""}]
[null,null,null,null,null,null,null,null,{"$f":"IF(EFA_Log[[#This Row],[Service Date ]], YEAR(EFA_Log[[#This Row],[Service Date ]]) & \"-\" & \"Q\" & INT((MONTH(EFA_Log[[#This Row],[Service Date ]])+2)/3), \"\")","v":""}]
[null,null,null,null,null,null,null,null,{"$f":"IF(EFA_Log[[#This Row],[Service Date ]], YEAR(EFA_Log[[#This Row],[Service Date ]]) & \"-\" & \"Q\" & INT((MONTH(EFA_Log[[#This Row],[Service Date ]])+2)/3), \"\")","v":""}]
[null,null,null,null,null,null,null,null,{"$f":"IF(EFA_Log[[#This Row],[Service Date ]], YEAR(EFA_Log[[#This Row],[Service Date ]]) & \"-\" & \"Q\" & INT((MONTH(EFA_Log[[#This Row],[Service Date ]])+2)/3), \"\")","v":""}]
[null,null,null,null,null,null,null,null,{"$f":"IF(EFA_Log[[#This Row],[Service Date ]], YEAR(EFA_Log[[#This Row],[Service Date ]]) & \"-\" & \"Q\" & INT((MONTH(EFA_Log[[#This Row],[Service Date ]])+2)/3), \"\")","v":""}]
[null,null,null,null,null,null,null,null,{"$f":"IF(EFA_Log[[#This Row],[Service Date ]], YEAR(EFA_Log[[#This Row],[Service Date ]]) & \"-\" & \"Q\" & INT((MONTH(EFA_Log[[#This Row],[Service Date ]])+2)/3), \"\")","v":""}]
[null,null,null,null,null,null,null,null,{"$f":"IF(EFA_Log[[#This Row],[Service Date ]], YEAR(EFA_Log[[#This Row],[Service Date ]]) & \"-\" & \"Q\" & INT((MONTH(EFA_Log[[#This Row],[Service Date ]])+2)/3), \"\")","v":""}]
[null,null,null,null,null,null,null,null,{"$f":"IF(EFA_Log[[#This Row],[Service Date ]], YEAR(EFA_Log[[#This Row],[Service Date ]]) & \"-\" & \"Q\" & INT((MONTH(EFA_Log[[#This Row],[Service Date ]])+2)/3), \"\")","v":""}]
[null,null,null,null,null,null,null,null,{"$f":"IF(EFA_Log[[#This Row],[Service Date ]], YEAR(EFA_Log[[#This Row],[Service Date ]]) & \"-\" & \"Q\" & INT((MONTH(EFA_Log[[#This Row],[Service Date ]])+2)/3), \"\")","v":""}]
[null,null,null,null,null,null,null,null,{"$f":"IF(EFA_Log[[#This Row],[Service Date ]], YEAR(EFA_Log[[#This Row],[Service Date ]]) & \"-\" & \"Q\" & INT((MONTH(EFA_Log[[#This Row],[Service Date ]])+2)/3), \"\")","v":""}]
[null,null,null,null,null,null,null,null,{"$f":"IF(EFA_Log[[#This Row],[Service Date ]], YEAR(EFA_Log[[#This Row],[Service Date ]]) & \"-\" & \"Q\" & INT((MONTH(EFA_Log[[#This Row],[Service Date ]])+2)/3), \"\")","v":""}]
[null,null,null,null,null,null,null,null,{"$f":"IF(EFA_Log[[#This Row],[Service Date ]], YEAR(EFA_Log[[#This Row],[Service Date ]]) & \"-\" & \"Q\" & INT((MONTH(EFA_Log[[#This Row],[Service Date ]])+2)/3), \"\")","v":""}]
[null,null,null,null,null,null,null,null,{"$f":"IF(EFA_Log[[#This Row],[Service Date ]], YEAR(EFA_Log[[#This Row],[Service Date ]]) & \"-\" & \"Q\" & INT((MONTH(EFA_Log[[#This Row],[Service Date ]])+2)/3), \"\")","v":""}]
[null,null,null,null,null,null,null,null,{"$f":"IF(EFA_Log[[#This Row],[Service Date ]], YEAR(EFA_Log[[#This Row],[Service Date ]]) & \"-\" & \"Q\" & INT((MONTH(EFA_Log[[#This Row],[Service Date ]])+2)/3), \"\")","v":""}]
[null,null,null,null,null,null,null,null,{"$f":"IF(EFA_Log[[#This Row],[Service Date ]], YEAR(EFA_Log[[#This Row],[Service Date ]]) & \"-\" & \"Q\" & INT((MONTH(EFA_Log[[#This Row],[Service Date ]])+2)/3), \"\")","v":""}]
[null,null,null,null,null,null,null,null,{"$f":"IF(EFA_Log[[#This Row],[Service Date ]], YEAR(EFA_Log[[#This Row],[Service Date ]]) & \"-\" & \"Q\" & INT((MONTH(EFA_Log[[#This Row],[Service Date ]])+2)/3), \"\")","v":""}]
[null,null,null,null,null,null,null,null,{"$f":"IF(EFA_Log[[#This Row],[Service Date ]], YEAR(EFA_Log[[#This Row],[Service Date ]]) & \"-\" & \"Q\" & INT((MONTH(EFA_Log[[#This Row],[Service Date ]])+2)/3), \"\")","v":""}]
[null,null,null,null,null,null,null,null,{"$f":"IF(EFA_Log[[#This Row],[Service Date ]], YEAR(EFA_Log[[#This Row],[Service Date ]]) & \"-\" & \"Q\" & INT((MONTH(EFA_Log[[#This Row],[Service Date ]])+2)/3), \"\")","v":""}]
[null,null,null,null,null,null,null,null,{"$f":"IF(EFA_Log[[#This Row],[Service Date ]], YEAR(EFA_Log[[#This Row],[Service Date ]]) & \"-\" & \"Q\" & INT((MONTH(EFA_Log[[#This Row],[Service Date ]])+2)/3), \"\")","v":""}]
[null,null,null,null,null,null,null,null,{"$f":"IF(EFA_Log[[#This Row],[Service Date ]], YEAR(EFA_Log[[#This Row],[Service Date ]]) & \"-\" & \"Q\" & INT((MONTH(EFA_Log[[#This Row],[Service Date ]])+2)/3), \"\")","v":""}]
[null,null,null,null,null,null,null,null,{"$f":"IF(EFA_Log[[#This Row],[Service Date ]], YEAR(EFA_Log[[#This Row],[Service Date ]]) & \"-\" & \"Q\" & INT((MONTH(EFA_Log[[#This Row],[Service Date ]])+2)/3), \"\")","v":""}]
[null,null,null,null,null,null,null,null,{"$f":"IF(EFA_Log[[#This Row],[Service Date ]], YEAR(EFA_Log[[#This Row],[Service Date ]]) & \"-\" & \"Q\" & INT((MONTH(EFA_Log[[#This Row],[Service Date ]])+2)/3), \"\")","v":""}]
[null,null,null,null,null,null,null,null,{"$f":"IF(EFA_Log[[#This Row],[Service Date ]], YEAR(EFA_Log[[#This Row],[Service Date ]]) & \"-\" & \"Q\" & INT((MONTH(EFA_Log[[#This Row],[Service Date ]])+2)/3), \"\")","v":""}]
[null,null,null,null,null,null,null,null,{"$f":"IF(EFA_Log[[#This Row],[Service Date ]], YEAR(EFA_Log[[#This Row],[Service Date ]]) & \"-\" & \"Q\" & INT((MONTH(EFA_Log[[#This Row],[Service Date ]])+2)/3), \"\")","v":""}]
[null,null,null,null,null,null,null,null,{"$f":"IF(EFA_Log[[#This Row],[Service Date ]], YEAR(EFA_Log[[#This Row],[Service Date ]]) & \"-\" & \"Q\" & INT((MONTH(EFA_Log[[#This Row],[Service Date ]])+2)/3), \"\")","v":""}]
[null,null,null,null,null,null,null,null,{"$f":"IF(EFA_Log[[#This Row],[Service Date ]], YEAR(EFA_Log[[#This Row],[Service Date ]]) & \"-\" & \"Q\" & INT((MONTH(EFA_Log[[#This Row],[Service Date ]])+2)/3), \"\")","v":""}]
[null,null,null,null,null,null,null,null,{"$f":"IF(EFA_Log[[#This Row],[Service Date ]], YEAR(EFA_Log[[#This Row],[Service Date ]]) & \"-\" & \"Q\" & INT((MONTH(EFA_Log[[#This Row],[Service Date ]])+2)/3), \"\")","v":""}]
[null,null,null,null,null,null,null,null,{"$f":"IF(EFA_Log[[#This Row],[Service Date ]], YEAR(EFA_Log[[#This Row],[Service Date ]]) & \"-\" & \"Q\" & INT((MONTH(EFA_Log[[#This Row],[Service Date ]])+2)/3), \"\")","v":""}]
[null,null,null,null,null,null,null,null,{"$f":"IF(EFA_Log[[#This Row],[Service Date ]], YEAR(EFA_Log[[#This Row],[Service Date ]]) & \"-\" & \"Q\" & INT((MONTH(EFA_Log[[#This Row],[Service Date ]])+2)/3), \"\")","v":""}]
[null,null,null,null,null,null,null,null,{"$f":"IF(EFA_Log[[#This Row],[Service Date ]], YEAR(EFA_Log[[#This Row],[Service Date ]]) & \"-\" & \"Q\" & INT((MONTH(EFA_Log[[#This Row],[Service Date ]])+2)/3), \"\")","v":""}]
[null,null,null,null,null,null,null,null,{"$f":"IF(EFA_Log[[#This Row],[Service Date ]], YEAR(EFA_Log[[#This Row],[Service Date ]]) & \"-\" & \"Q\" & INT((MONTH(EFA_Log[[#This Row],[Service Date ]])+2)/3), \"\")","v":""}]
[null,null,null,null,null,null,null,null,{"$f":"IF(EFA_Log[[#This Row],[Service Date ]], YEAR(EFA_Log[[#This Row],[Service Date ]]) & \"-\" & \"Q\" & INT((MONTH(EFA_Log[[#This Row],[Service Date ]])+2)/3), \"\")","v":""}]
[null,null,null,null,null,null,null,null,{"$f":"IF(EFA_Log[[#This Row],[Service Date ]], YEAR(EFA_Log[[#This Row],[Service Date ]]) & \"-\" & \"Q\" & INT((MONTH(EFA_Log[[#This Row],[Service Date ]])+2)/3), \"\")","v":""}]
[null,null,null,null,null,null,null,null,{"$f":"IF(EFA_Log[[#This Row],[Service Date ]], YEAR(EFA_Log[[#This Row],[Service Date ]]) & \"-\" & \"Q\" & INT((MONTH(EFA_Log[[#This Row],[Service Date ]])+2)/3), \"\")","v":""}]
[null,null,null,null,null,null,null,null,{"$f":"IF(EFA_Log[[#This Row],[Service Date ]], YEAR(EFA_Log[[#This Row],[Service Date ]]) & \"-\" & \"Q\" & INT((MONTH(EFA_Log[[#This Row],[Service Date ]])+2)/3), \"\")","v":""}]
[null,null,null,null,null,null,null,null,{"$f":"IF(EFA_Log[[#This Row],[Service Date ]], YEAR(EFA_Log[[#This Row],[Service Date ]]) & \"-\" & \"Q\" & INT((MONTH(EFA_Log[[#This Row],[Service Date ]])+2)/3), \"\")","v":""}]
[null,null,null,null,null,null,null,null,{"$f":"IF(EFA_Log[[#This Row],[Service Date ]], YEAR(EFA_Log[[#This Row],[Service Date ]]) & \"-\" & \"Q\" & INT((MONTH(EFA_Log[[#This Row],[Service Date ]])+2)/3), \"\")","v":""}]
[null,null,null,null,null,null,null,null,{"$f":"IF(EFA_Log[[#This Row],[Service Date ]], YEAR(EFA_Log[[#This Row],[Service Date ]]) & \"-\" & \"Q\" & INT((MONTH(EFA_Log[[#This Row],[Service Date ]])+2)/3), \"\")","v":""}]
[null,null,null,null,null,null,null,null,{"$f":"IF(EFA_Log[[#This Row],[Service Date ]], YEAR(EFA_Log[[#This Row],[Service Date ]]) & \"-\" & \"Q\" & INT((MONTH(EFA_Log[[#This Row],[Service Date ]])+2)/3), \"\")","v":""}]
[null,null,null,null,null,null,null,null,{"$f":"IF(EFA_Log[[#This Row],[Service Date ]], YEAR(EFA_Log[[#This Row],[Service Date ]]) & \"-\" & \"Q\" & INT((MONTH(EFA_Log[[#This Row],[Service Date ]])+2)/3), \"\")","v":""}]
[null,null,null,null,null,null,null,null,{"$f":"IF(EFA_Log[[#This Row],[Service Date ]], YEAR(EFA_Log[[#This Row],[Service Date ]]) & \"-\" & \"Q\" & INT((MONTH(EFA_Log[[#This Row],[Service Date ]])+2)/3), \"\")","v":""}]
[null,null,null,null,null,null,null,null,{"$f":"IF(EFA_Log[[#This Row],[Service Date ]], YEAR(EFA_Log[[#This Row],[Service Date ]]) & \"-\" & \"Q\" & INT((MONTH(EFA_Log[[#This Row],[Service Date ]])+2)/3), \"\")","v":""}]
[null,null,null,null,null,null,null,null,{"$f":"IF(EFA_Log[[#This Row],[Service Date ]], YEAR(EFA_Log[[#This Row],[Service Date ]]) & \"-\" & \"Q\" & INT((MONTH(EFA_Log[[#This Row],[Service Date ]])+2)/3), \"\")","v":""}]
[null,null,null,null,null,null,null,null,{"$f":"IF(EFA_Log[[#This Row],[Service Date ]], YEAR(EFA_Log[[#This Row],[Service Date ]]) & \"-\" & \"Q\" & INT((MONTH(EFA_Log[[#This Row],[Service Date ]])+2)/3), \"\")","v":""}]
[null,null,null,null,null,null,null,null,{"$f":"IF(EFA_Log[[#This Row],[Service Date ]], YEAR(EFA_Log[[#This Row],[Service Date ]]) & \"-\" & \"Q\" & INT((MONTH(EFA_Log[[#This Row],[Service Date ]])+2)/3), \"\")","v":""}]
[null,null,null,null,null,null,null,null,{"$f":"IF(EFA_Log[[#This Row],[Service Date ]], YEAR(EFA_Log[[#This Row],[Service Date ]]) & \"-\" & \"Q\" & INT((MONTH(EFA_Log[[#This Row],[Service Date ]])+2)/3), \"\")","v":""}]
[null,null,null,null,null,null,null,null,{"$f":"IF(EFA_Log[[#This Row],[Service Date ]], YEAR(EFA_Log[[#This Row],[Service Date ]]) & \"-\" & \"Q\" & INT((MONTH(EFA_Log[[#This Row],[Service Date ]])+2)/3), \"\")","v":""}]
[null,null,null,null,null,null,null,null,{"$f":"IF(EFA_Log[[#This Row],[Service Date ]], YEAR(EFA_Log[[#This Row],[Service Date ]]) & \"-\" & \"Q\" & INT((MONTH(EFA_Log[[#This Row],[Service Date ]])+2)/3), \"\")","v":""}]
[null,null,null,null,null,null,null,null,{"$f":"IF(EFA_Log[[#This Row],[Service Date ]], YEAR(EFA_Log[[#This Row],[Service Date ]]) & \"-\" & \"Q\" & INT((MONTH(EFA_Log[[#This Row],[Service Date ]])+2)/3), \"\")","v":""}]
[null,null,null,null,null,null,null,null,{"$f":"IF(EFA_Log[[#This Row],[Service Date ]], YEAR(EFA_Log[[#This Row],[Service Date ]]) & \"-\" & \"Q\" & INT((MONTH(EFA_Log[[#This Row],[Service Date ]])+2)/3), \"\")","v":""}]
[null,null,null,null,null,null,null,null,{"$f":"IF(EFA_Log[[#This Row],[Service Date ]], YEAR(EFA_Log[[#This Row],[Service Date ]]) & \"-\" & \"Q\" & INT((MONTH(EFA_Log[[#This Row],[Service Date ]])+2)/3), \"\")","v":""}]
[null,null,null,null,null,null,null,null,{"$f":"IF(EFA_Log[[#This Row],[Service Date ]], YEAR(EFA_Log[[#This Row],[Service Date ]]) & \"-\" & \"Q\" & INT((MONTH(EFA_Log[[#This Row],[Service Date ]])+2)/3), \"\")","v":""}]
[null,null,null,null,null,null,null,null,{"$f":"IF(EFA_Log[[#This Row],[Service Date ]], YEAR(EFA_Log[[#This Row],[Service Date ]]) & \"-\" & \"Q\" & INT((MONTH(EFA_Log[[#This Row],[Service Date ]])+2)/3), \"\")","v":""}]
[null,null,null,null,null,null,null,null,{"$f":"IF(EFA_Log[[#This Row],[Service Date ]], YEAR(EFA_Log[[#This Row],[Service Date ]]) & \"-\" & \"Q\" & INT((MONTH(EFA_Log[[#This Row],[Service Date ]])+2)/3), \"\")","v":""}]
[null,null,null,null,null,null,null,null,{"$f":"IF(EFA_Log[[#This Row],[Service Date ]], YEAR(EFA_Log[[#This Row],[Service Date ]]) & \"-\" & \"Q\" & INT((MONTH(EFA_Log[[#This Row],[Service Date ]])+2)/3), \"\")","v":""}]
[null,null,null,null,null,null,null,null,{"$f":"IF(EFA_Log[[#This Row],[Service Date ]], YEAR(EFA_Log[[#This Row],[Service Date ]]) & \"-\" & \"Q\" & INT((MONTH(EFA_Log[[#This Row],[Service Date ]])+2)/3), \"\")","v":""}]
[null,null,null,null,null,null,null,null,{"$f":"IF(EFA_Log[[#This Row],[Service Date ]], YEAR(EFA_Log[[#This Row],[Service Date ]]) & \"-\" & \"Q\" & INT((MONTH(EFA_Log[[#This Row],[Service Date ]])+2)/3), \"\")","v":""}]
[null,null,null,null,null,null,null,null,{"$f":"IF(EFA_Log[[#This Row],[Service Date ]], YEAR(EFA_Log[[#This Row],[Service Date ]]) & \"-\" & \"Q\" & INT((MONTH(EFA_Log[[#This Row],[Service Date ]])+2)/3), \"\")","v":""}]
[null,null,null,null,null,null,null,null,{"$f":"IF(EFA_Log[[#This Row],[Service Date ]], YEAR(EFA_Log[[#This Row],[Service Date ]]) & \"-\" & \"Q\" & INT((MONTH(EFA_Log[[#This Row],[Service Date ]])+2)/3), \"\")","v":""}]
[null,null,null,null,null,null,null,null,{"$f":"IF(EFA_Log[[#This Row],[Service Date ]], YEAR(EFA_Log[[#This Row],[Service Date ]]) & \"-\" & \"Q\" & INT((MONTH(EFA_Log[[#This Row],[Service Date ]])+2)/3), \"\")","v":""}]
[null,null,null,null,null,null,null,null,{"$f":"IF(EFA_Log[[#This Row],[Service Date ]], YEAR(EFA_Log[[#This Row],[Service Date ]]) & \"-\" & \"Q\" & INT((MONTH(EFA_Log[[#This Row],[Service Date ]])+2)/3), \"\")","v":""}]
[null,null,null,null,null,null,null,null,{"$f":"IF(EFA_Log[[#This Row],[Service Date ]], YEAR(EFA_Log[[#This Row],[Service Date ]]) & \"-\" & \"Q\" & INT((MONTH(EFA_Log[[#This Row],[Service Date ]])+2)/3), \"\")","v":""}]
[null,null,null,null,null,null,null,null,{"$f":"IF(EFA_Log[[#This Row],[Service Date ]], YEAR(EFA_Log[[#This Row],[Service Date ]]) & \"-\" & \"Q\" & INT((MONTH(EFA_Log[[#This Row],[Service Date ]])+2)/3), \"\")","v":""}]
[null,null,null,null,null,null,null,null,{"$f":"IF(EFA_Log[[#This Row],[Service Date ]], YEAR(EFA_Log[[#This Row],[Service Date ]]) & \"-\" & \"Q\" & INT((MONTH(EFA_Log[[#This Row],[Service Date ]])+2)/3), \"\")","v":""}]
[null,null,null,null,null,null,null,null,{"$f":"IF(EFA_Log[[#This Row],[Service Date ]], YEAR(EFA_Log[[#This Row],[Service Date ]]) & \"-\" & \"Q\" & INT((MONTH(EFA_Log[[#This Row],[Service Date ]])+2)/3), \"\")","v":""}]
[null,null,null,null,null,null,null,null,{"$f":"IF(EFA_Log[[#This Row],[Service Date ]], YEAR(EFA_Log[[#This Row],[Service Date ]]) & \"-\" & \"Q\" & INT((MONTH(EFA_Log[[#This Row],[Service Date ]])+2)/3), \"\")","v":""}]
[null,null,null,null,null,null,null,null,{"$f":"IF(EFA_Log[[#This Row],[Service Date ]], YEAR(EFA_Log[[#This Row],[Service Date ]]) & \"-\" & \"Q\" & INT((MONTH(EFA_Log[[#This Row],[Service Date ]])+2)/3), \"\")","v":""}]
[null,null,null,null,null,null,null,null,{"$f":"IF(EFA_Log[[#This Row],[Service Date ]], YEAR(EFA_Log[[#This Row],[Service Date ]]) & \"-\" & \"Q\" & INT((MONTH(EFA_Log[[#This Row],[Service Date ]])+2)/3), \"\")","v":""}]
[null,null,null,null,null,null,null,null,{"$f":"IF(EFA_Log[[#This Row],[Service Date ]], YEAR(EFA_Log[[#This Row],[Service Date ]]) & \"-\" & \"Q\" & INT((MONTH(EFA_Log[[#This Row],[Service Date ]])+2)/3), \"\")","v":""}]
[null,null,null,null,null,null,null,null,{"$f":"IF(EFA_Log[[#This Row],[Service Date ]], YEAR(EFA_Log[[#This Row],[Service Date ]]) & \"-\" & \"Q\" & INT((MONTH(EFA_Log[[#This Row],[Service Date ]])+2)/3), \"\")","v":""}]
[null,null,null,null,null,null,null,null,{"$f":"IF(EFA_Log[[#This Row],[Service Date ]], YEAR(EFA_Log[[#This Row],[Service Date ]]) & \"-\" & \"Q\" & INT((MONTH(EFA_Log[[#This Row],[Service Date ]])+2)/3), \"\")","v":""}]
[null,null,null,null,null,null,null,null,{"$f":"IF(EFA_Log[[#This Row],[Service Date ]], YEAR(EFA_Log[[#This Row],[Service Date ]]) & \"-\" & \"Q\" & INT((MONTH(EFA_Log[[#This Row],[Service Date ]])+2)/3), \"\")","v":""}]
[null,null,null,null,null,null,null,null,{"$f":"IF(EFA_Log[[#This Row],[Service Date ]], YEAR(EFA_Log[[#This Row],[Service Date ]]) & \"-\" & \"Q\" & INT((MONTH(EFA_Log[[#This Row],[Service Date ]])+2)/3), \"\")","v":""}]
[null,null,null,null,null,null,null,null,{"$f":"IF(EFA_Log[[#This Row],[Service Date ]], YEAR(EFA_Log[[#This Row],[Service Date ]]) & \"-\" & \"Q\" & INT((MONTH(EFA_Log[[#This Row],[Service Date ]])+2)/3), \"\")","v":""}]
[null,null,null,null,null,null,null,null,{"$f":"IF(EFA_Log[[#This Row],[Service Date ]], YEAR(EFA_Log[[#This Row],[Service Date ]]) & \"-\" & \"Q\" & INT((MONTH(EFA_Log[[#This Row],[Service Date ]])+2)/3), \"\")","v":""}]
[null,null,null,null,null,null,null,null,{"$f":"IF(EFA_Log[[#This Row],[Service Date ]], YEAR(EFA_Log[[#This Row],[Service Date ]]) & \"-\" & \"Q\" & INT((MONTH(EFA_Log[[#This Row],[Service Date ]])+2)/3), \"\")","v":""}]
[null,null,null,null,null,null,null,null,{"$f":"IF(EFA_Log[[#This Row],[Service Date ]], YEAR(EFA_Log[[#This Row],[Service Date ]]) & \"-\" & \"Q\" & INT((MONTH(EFA_Log[[#This Row],[Service Date ]])+2)/3), \"\")","v":""}]
[null,null,null,null,null,null,null,null,{"$f":"IF(EFA_Log[[#This Row],[Service Date ]], YEAR(EFA_Log[[#This Row],[Service Date ]]) & \"-\" & \"Q\" & INT((MONTH(EFA_Log[[#This Row],[Service Date ]])+2)/3), \"\")","v":""}]
[null,null,null,null,null,null,null,null,{"$f":"IF(EFA_Log[[#This Row],[Service Date ]], YEAR(EFA_Log[[#This Row],[Service Date ]]) & \"-\" & \"Q\" & INT((MONTH(EFA_Log[[#This Row],[Service Date ]])+2)/3), \"\")","v":""}]
[null,null,null,null,null,null,null,null,{"$f":"IF(EFA_Log[[#This Row],[Service Date ]], YEAR(EFA_Log[[#This Row],[Service Date ]]) & \"-\" & \"Q\" & INT((MONTH(EFA_Log[[#This Row],[Service Date ]])+2)/3), \"\")","v":""}]
[null,null,null,null,null,null,null,null,{"$f":"IF(EFA_Log[[#This Row],[Service Date ]], YEAR(EFA_Log[[#This Row],[Service Date ]]) & \"-\" & \"Q\" & INT((MONTH(EFA_Log[[#This Row],[Service Date ]])+2)/3), \"\")","v":""}]
[null,null,null,null,null,null,null,null,{"$f":"IF(EFA_Log[[#This Row],[Service Date ]], YEAR(EFA_Log[[#This Row],[Service Date ]]) & \"-\" & \"Q\" & INT((MONTH(EFA_Log[[#This Row],[Service Date ]])+2)/3), \"\")","v":""}]
[null,null,null,null,null,null,null,null,{"$f":"IF(EFA_Log[[#This Row],[Service Date ]], YEAR(EFA_Log[[#This Row],[Service Date ]]) & \"-\" & \"Q\" & INT((MONTH(EFA_Log[[#This Row],[Service Date ]])+2)/3), \"\")","v":""}]
[null,null,null,null,null,null,null,null,{"$f":"IF(EFA_Log[[#This Row],[Service Date ]], YEAR(EFA_Log[[#This Row],[Service Date ]]) & \"-\" & \"Q\" & INT((MONTH(EFA_Log[[#This Row],[Service Date ]])+2)/3), \"\")","v":""}]
[null,null,null,null,null,null,null,null,{"$f":"IF(EFA_Log[[#This Row],[Service Date ]], YEAR(EFA_Log[[#This Row],[Service Date ]]) & \"-\" & \"Q\" & INT((MONTH(EFA_Log[[#This Row],[Service Date ]])+2)/3), \"\")","v":""}]
[null,null,null,null,null,null,null,null,{"$f":"IF(EFA_Log[[#This Row],[Service Date ]], YEAR(EFA_Log[[#This Row],[Service Date ]]) & \"-\" & \"Q\" & INT((MONTH(EFA_Log[[#This Row],[Service Date ]])+2)/3), \"\")","v":""}]
[null,null,null,null,null,null,null,null,{"$f":"IF(EFA_Log[[#This Row],[Service Date ]], YEAR(EFA_Log[[#This Row],[Service Date ]]) & \"-\" & \"Q\" & INT((MONTH(EFA_Log[[#This Row],[Service Date ]])+2)/3), \"\")","v":""}]
[null,null,null,null,null,null,null,null,{"$f":"IF(EFA_Log[[#This Row],[Service Date ]], YEAR(EFA_Log[[#This Row],[Service Date ]]) & \"-\" & \"Q\" & INT((MONTH(EFA_Log[[#This Row],[Service Date ]])+2)/3), \"\")","v":""}]
[null,null,null,null,null,null,null,null,{"$f":"IF(EFA_Log[[#This Row],[Service Date ]], YEAR(EFA_Log[[#This Row],[Service Date ]]) & \"-\" & \"Q\" & INT((MONTH(EFA_Log[[#This Row],[Service Date ]])+2)/3), \"\")","v":""}]
[null,null,null,null,null,null,null,null,{"$f":"IF(EFA_Log[[#This Row],[Service Date ]], YEAR(EFA_Log[[#This Row],[Service Date ]]) & \"-\" & \"Q\" & INT((MONTH(EFA_Log[[#This Row],[Service Date ]])+2)/3), \"\")","v":""}]
[null,null,null,null,null,null,null,null,{"$f":"IF(EFA_Log[[#This Row],[Service Date ]], YEAR(EFA_Log[[#This Row],[Service Date ]]) & \"-\" & \"Q\" & INT((MONTH(EFA_Log[[#This Row],[Service Date ]])+2)/3), \"\")","v":""}]
[null,null,null,null,null,null,null,null,{"$f":"IF(EFA_Log[[#This Row],[Service Date ]], YEAR(EFA_Log[[#This Row],[Service Date ]]) & \"-\" & \"Q\" & INT((MONTH(EFA_Log[[#This Row],[Service Date ]])+2)/3), \"\")","v":""}]
[null,null,null,null,null,null,null,null,{"$f":"IF(EFA_Log[[#This Row],[Service Date ]], YEAR(EFA_Log[[#This Row],[Service Date ]]) & \"-\" & \"Q\" & INT((MONTH(EFA_Log[[#This Row],[Service Date ]])+2)/3), \"\")","v":""}]
[null,null,null,null,null,null,null,null,{"$f":"IF(EFA_Log[[#This Row],[Service Date ]], YEAR(EFA_Log[[#This Row],[Service Date ]]) & \"-\" & \"Q\" & INT((MONTH(EFA_Log[[#This Row],[Service Date ]])+2)/3), \"\")","v":""}]
[null,null,null,null,null,null,null,null,{"$f":"IF(EFA_Log[[#This Row],[Service Date ]], YEAR(EFA_Log[[#This Row],[Service Date ]]) & \"-\" & \"Q\" & INT((MONTH(EFA_Log[[#This Row],[Service Date ]])+2)/3), \"\")","v":""}]
[null,null,null,null,null,null,null,null,{"$f":"IF(EFA_Log[[#This Row],[Service Date ]], YEAR(EFA_Log[[#This Row],[Service Date ]]) & \"-\" & \"Q\" & INT((MONTH(EFA_Log[[#This Row],[Service Date ]])+2)/3), \"\")","v":""}]
[null,null,null,null,null,null,null,null,{"$f":"IF(EFA_Log[[#This Row],[Service Date ]], YEAR(EFA_Log[[#This Row],[Service Date ]]) & \"-\" & \"Q\" & INT((MONTH(EFA_Log[[#This Row],[Service Date ]])+2)/3), \"\")","v":""}]
[null,null,null,null,null,null,null,null,{"$f":"IF(EFA_Log[[#This Row],[Service Date ]], YEAR(EFA_Log[[#This Row],[Service Date ]]) & \"-\" & \"Q\" & INT((MONTH(EFA_Log[[#This Row],[Service Date ]])+2)/3), \"\")","v":""}]
[null,null,null,null,null,null,null,null,{"$f":"IF(EFA_Log[[#This Row],[Service Date ]], YEAR(EFA_Log[[#This Row],[Service Date ]]) & \"-\" & \"Q\" & INT((MONTH(EFA_Log[[#This Row],[Service Date ]])+2)/3), \"\")","v":""}]
[null,null,null,null,null,null,null,null,{"$f":"IF(EFA_Log[[#This Row],[Service Date ]], YEAR(EFA_Log[[#This Row],[Service Date ]]) & \"-\" & \"Q\" & INT((MONTH(EFA_Log[[#This Row],[Service Date ]])+2)/3), \"\")","v":""}]
[null,null,null,null,null,null,null,null,{"$f":"IF(EFA_Log[[#This Row],[Service Date ]], YEAR(EFA_Log[[#This Row],[Service Date ]]) & \"-\" & \"Q\" & INT((MONTH(EFA_Log[[#This Row],[Service Date ]])+2)/3), \"\")","v":""}]
[null,null,null,null,null,null,null,null,{"$f":"IF(EFA_Log[[#This Row],[Service Date ]], YEAR(EFA_Log[[#This Row],[Service Date ]]) & \"-\" & \"Q\" & INT((MONTH(EFA_Log[[#This Row],[Service Date ]])+2)/3), \"\")","v":""}]
[null,null,null,null,null,null,null,null,{"$f":"IF(EFA_Log[[#This Row],[Service Date ]], YEAR(EFA_Log[[#This Row],[Service Date ]]) & \"-\" & \"Q\" & INT((MONTH(EFA_Log[[#This Row],[Service Date ]])+2)/3), \"\")","v":""}]
[null,null,null,null,null,null,null,null,{"$f":"IF(EFA_Log[[#This Row],[Service Date ]], YEAR(EFA_Log[[#This Row],[Service Date ]]) & \"-\" & \"Q\" & INT((MONTH(EFA_Log[[#This Row],[Service Date ]])+2)/3), \"\")","v":""}]
[null,null,null,null,null,null,null,null,{"$f":"IF(EFA_Log[[#This Row],[Service Date ]], YEAR(EFA_Log[[#This Row],[Service Date ]]) & \"-\" & \"Q\" & INT((MONTH(EFA_Log[[#This Row],[Service Date ]])+2)/3), \"\")","v":""}]
[null,null,null,null,null,null,null,null,{"$f":"IF(EFA_Log[[#This Row],[Service Date ]], YEAR(EFA_Log[[#This Row],[Service Date ]]) & \"-\" & \"Q\" & INT((MONTH(EFA_Log[[#This Row],[Service Date ]])+2)/3), \"\")","v":""}]
[null,null,null,null,null,null,null,null,{"$f":"IF(EFA_Log[[#This Row],[Service Date ]], YEAR(EFA_Log[[#This Row],[Service Date ]]) & \"-\" & \"Q\" & INT((MONTH(EFA_Log[[#This Row],[Service Date ]])+2)/3), \"\")","v":""}]
[null,null,null,null,null,null,null,null,{"$f":"IF(EFA_Log[[#This Row],[Service Date ]], YEAR(EFA_Log[[#This Row],[Service Date ]]) & \"-\" & \"Q\" & INT((MONTH(EFA_Log[[#This Row],[Service Date ]])+2)/3), \"\")","v":""}]
[null,null,null,null,null,null,null,null,{"$f":"IF(EFA_Log[[#This Row],[Service Date ]], YEAR(EFA_Log[[#This Row],[Service Date ]]) & \"-\" & \"Q\" & INT((MONTH(EFA_Log[[#This Row],[Service Date ]])+2)/3), \"\")","v":""}]
[null,null,null,null,null,null,null,null,{"$f":"IF(EFA_Log[[#This Row],[Service Date ]], YEAR(EFA_Log[[#This Row],[Service Date ]]) & \"-\" & \"Q\" & INT((MONTH(EFA_Log[[#This Row],[Service Date ]])+2)/3), \"\")","v":""}]
[null,null,null,null,null,null,null,null,{"$f":"IF(EFA_Log[[#This Row],[Service Date ]], YEAR(EFA_Log[[#This Row],[Service Date ]]) & \"-\" & \"Q\" & INT((MONTH(EFA_Log[[#This Row],[Service Date ]])+2)/3), \"\")","v":""}]
[null,null,null,null,null,null,null,null,{"$f":"IF(EFA_Log[[#This Row],[Service Date ]], YEAR(EFA_Log[[#This Row],[Service Date ]]) & \"-\" & \"Q\" & INT((MONTH(EFA_Log[[#This Row],[Service Date ]])+2)/3), \"\")","v":""}]
[null,null,null,null,null,null,null,null,{"$f":"IF(EFA_Log[[#This Row],[Service Date ]], YEAR(EFA_Log[[#This Row],[Service Date ]]) & \"-\" & \"Q\" & INT((MONTH(EFA_Log[[#This Row],[Service Date ]])+2)/3), \"\")","v":""}]
[null,null,null,null,null,null,null,null,{"$f":"IF(EFA_Log[[#This Row],[Service Date ]], YEAR(EFA_Log[[#This Row],[Service Date ]]) & \"-\" & \"Q\" & INT((MONTH(EFA_Log[[#This Row],[Service Date ]])+2)/3), \"\")","v":""}]
[null,null,null,null,null,null,null,null,{"$f":"IF(EFA_Log[[#This Row],[Service Date ]], YEAR(EFA_Log[[#This Row],[Service Date ]]) & \"-\" & \"Q\" & INT((MONTH(EFA_Log[[#This Row],[Service Date ]])+2)/3), \"\")","v":""}]
[null,null,null,null,null,null,null,null,{"$f":"IF(EFA_Log[[#This Row],[Service Date ]], YEAR(EFA_Log[[#This Row],[Service Date ]]) & \"-\" & \"Q\" & INT((MONTH(EFA_Log[[#This Row],[Service Date ]])+2)/3), \"\")","v":""}]
[null,null,null,null,null,null,null,null,{"$f":"IF(EFA_Log[[#This Row],[Service Date ]], YEAR(EFA_Log[[#This Row],[Service Date ]]) & \"-\" & \"Q\" & INT((MONTH(EFA_Log[[#This Row],[Service Date ]])+2)/3), \"\")","v":""}]
[null,null,null,null,null,null,null,null,{"$f":"IF(EFA_Log[[#This Row],[Service Date ]], YEAR(EFA_Log[[#This Row],[Service Date ]]) & \"-\" & \"Q\" & INT((MONTH(EFA_Log[[#This Row],[Service Date ]])+2)/3), \"\")","v":""}]
[null,null,null,null,null,null,null,null,{"$f":"IF(EFA_Log[[#This Row],[Service Date ]], YEAR(EFA_Log[[#This Row],[Service Date ]]) & \"-\" & \"Q\" & INT((MONTH(EFA_Log[[#This Row],[Service Date ]])+2)/3), \"\")","v":""}]
[null,null,null,null,null,null,null,null,{"$f":"IF(EFA_Log[[#This Row],[Service Date ]], YEAR(EFA_Log[[#This Row],[Service Date ]]) & \"-\" & \"Q\" & INT((MONTH(EFA_Log[[#This Row],[Service Date ]])+2)/3), \"\")","v":""}]
[null,null,null,null,null,null,null,null,{"$f":"IF(EFA_Log[[#This Row],[Service Date ]], YEAR(EFA_Log[[#This Row],[Service Date ]]) & \"-\" & \"Q\" & INT((MONTH(EFA_Log[[#This Row],[Service Date ]])+2)/3), \"\")","v":""}]
[null,null,null,null,null,null,null,null,{"$f":"IF(EFA_Log[[#This Row],[Service Date ]], YEAR(EFA_Log[[#This Row],[Service Date ]]) & \"-\" & \"Q\" & INT((MONTH(EFA_Log[[#This Row],[Service Date ]])+2)/3), \"\")","v":""}]
[null,null,null,null,null,null,null,null,{"$f":"IF(EFA_Log[[#This Row],[Service Date ]], YEAR(EFA_Log[[#This Row],[Service Date ]]) & \"-\" & \"Q\" & INT((MONTH(EFA_Log[[#This Row],[Service Date ]])+2)/3), \"\")","v":""}]
[null,null,null,null,null,null,null,null,{"$f":"IF(EFA_Log[[#This Row],[Service Date ]], YEAR(EFA_Log[[#This Row],[Service Date ]]) & \"-\" & \"Q\" & INT((MONTH(EFA_Log[[#This Row],[Service Date ]])+2)/3), \"\")","v":""}]
[null,null,null,null,null,null,null,null,{"$f":"IF(EFA_Log[[#This Row],[Service Date ]], YEAR(EFA_Log[[#This Row],[Service Date ]]) & \"-\" & \"Q\" & INT((MONTH(EFA_Log[[#This Row],[Service Date ]])+2)/3), \"\")","v":""}]
[null,null,null,null,null,null,null,null,{"$f":"IF(EFA_Log[[#This Row],[Service Date ]], YEAR(EFA_Log[[#This Row],[Service Date ]]) & \"-\" & \"Q\" & INT((MONTH(EFA_Log[[#This Row],[Service Date ]])+2)/3), \"\")","v":""}]
[null,null,null,null,null,null,null,null,{"$f":"IF(EFA_Log[[#This Row],[Service Date ]], YEAR(EFA_Log[[#This Row],[Service Date ]]) & \"-\" & \"Q\" & INT((MONTH(EFA_Log[[#This Row],[Service Date ]])+2)/3), \"\")","v":""}]
[null,null,null,null,null,null,null,null,{"$f":"IF(EFA_Log[[#This Row],[Service Date ]], YEAR(EFA_Log[[#This Row],[Service Date ]]) & \"-\" & \"Q\" & INT((MONTH(EFA_Log[[#This Row],[Service Date ]])+2)/3), \"\")","v":""}]
[null,null,null,null,null,null,null,null,{"$f":"IF(EFA_Log[[#This Row],[Service Date ]], YEAR(EFA_Log[[#This Row],[Service Date ]]) & \"-\" & \"Q\" & INT((MONTH(EFA_Log[[#This Row],[Service Date ]])+2)/3), \"\")","v":""}]
[null,null,null,null,null,null,null,null,{"$f":"IF(EFA_Log[[#This Row],[Service Date ]], YEAR(EFA_Log[[#This Row],[Service Date ]]) & \"-\" & \"Q\" & INT((MONTH(EFA_Log[[#This Row],[Service Date ]])+2)/3), \"\")","v":""}]
[null,null,null,null,null,null,null,null,{"$f":"IF(EFA_Log[[#This Row],[Service Date ]], YEAR(EFA_Log[[#This Row],[Service Date ]]) & \"-\" & \"Q\" & INT((MONTH(EFA_Log[[#This Row],[Service Date ]])+2)/3), \"\")","v":""}]
[null,null,null,null,null,null,null,null,{"$f":"IF(EFA_Log[[#This Row],[Service Date ]], YEAR(EFA_Log[[#This Row],[Service Date ]]) & \"-\" & \"Q\" & INT((MONTH(EFA_Log[[#This Row],[Service Date ]])+2)/3), \"\")","v":""}]
[null,null,null,null,null,null,null,null,{"$f":"IF(EFA_Log[[#This Row],[Service Date ]], YEAR(EFA_Log[[#This Row],[Service Date ]]) & \"-\" & \"Q\" & INT((MONTH(EFA_Log[[#This Row],[Service Date ]])+2)/3), \"\")","v":""}]
[null,null,null,null,null,null,null,null,{"$f":"IF(EFA_Log[[#This Row],[Service Date ]], YEAR(EFA_Log[[#This Row],[Service Date ]]) & \"-\" & \"Q\" & INT((MONTH(EFA_Log[[#This Row],[Service Date ]])+2)/3), \"\")","v":""}]
[null,null,null,null,null,null,null,null,{"$f":"IF(EFA_Log[[#This Row],[Service Date ]], YEAR(EFA_Log[[#This Row],[Service Date ]]) & \"-\" & \"Q\" & INT((MONTH(EFA_Log[[#This Row],[Service Date ]])+2)/3), \"\")","v":""}]
[null,null,null,null,null,null,null,null,{"$f":"IF(EFA_Log[[#This Row],[Service Date ]], YEAR(EFA_Log[[#This Row],[Service Date ]]) & \"-\" & \"Q\" & INT((MONTH(EFA_Log[[#This Row],[Service Date ]])+2)/3), \"\")","v":""}]
[null,null,null,null,null,null,null,null,{"$f":"IF(EFA_Log[[#This Row],[Service Date ]], YEAR(EFA_Log[[#This Row],[Service Date ]]) & \"-\" & \"Q\" & INT((MONTH(EFA_Log[[#This Row],[Service Date ]])+2)/3), \"\")","v":""}]
[null,null,null,null,null,null,null,null,{"$f":"IF(EFA_Log[[#This Row],[Service Date ]], YEAR(EFA_Log[[#This Row],[Service Date ]]) & \"-\" & \"Q\" & INT((MONTH(EFA_Log[[#This Row],[Service Date ]])+2)/3), \"\")","v":""}]
[null,null,null,null,null,null,null,null,{"$f":"IF(EFA_Log[[#This Row],[Service Date ]], YEAR(EFA_Log[[#This Row],[Service Date ]]) & \"-\" & \"Q\" & INT((MONTH(EFA_Log[[#This Row],[Service Date ]])+2)/3), \"\")","v":""}]
[null,null,null,null,null,null,null,null,{"$f":"IF(EFA_Log[[#This Row],[Service Date ]], YEAR(EFA_Log[[#This Row],[Service Date ]]) & \"-\" & \"Q\" & INT((MONTH(EFA_Log[[#This Row],[Service Date ]])+2)/3), \"\")","v":""}]
[null,null,null,null,null,null,null,null,{"$f":"IF(EFA_Log[[#This Row],[Service Date ]], YEAR(EFA_Log[[#This Row],[Service Date ]]) & \"-\" & \"Q\" & INT((MONTH(EFA_Log[[#This Row],[Service Date ]])+2)/3), \"\")","v":""}]
[null,null,null,null,null,null,null,null,{"$f":"IF(EFA_Log[[#This Row],[Service Date ]], YEAR(EFA_Log[[#This Row],[Service Date ]]) & \"-\" & \"Q\" & INT((MONTH(EFA_Log[[#This Row],[Service Date ]])+2)/3), \"\")","v":""}]
[null,null,null,null,null,null,null,null,{"$f":"IF(EFA_Log[[#This Row],[Service Date ]], YEAR(EFA_Log[[#This Row],[Service Date ]]) & \"-\" & \"Q\" & INT((MONTH(EFA_Log[[#This Row],[Service Date ]])+2)/3), \"\")","v":""}]
[null,null,null,null,null,null,null,null,{"$f":"IF(EFA_Log[[#This Row],[Service Date ]], YEAR(EFA_Log[[#This Row],[Service Date ]]) & \"-\" & \"Q\" & INT((MONTH(EFA_Log[[#This Row],[Service Date ]])+2)/3), \"\")","v":""}]
[null,null,null,null,null,null,null,null,{"$f":"IF(EFA_Log[[#This Row],[Service Date ]], YEAR(EFA_Log[[#This Row],[Service Date ]]) & \"-\" & \"Q\" & INT((MONTH(EFA_Log[[#This Row],[Service Date ]])+2)/3), \"\")","v":""}]
[null,null,null,null,null,null,null,null,{"$f":"IF(EFA_Log[[#This Row],[Service Date ]], YEAR(EFA_Log[[#This Row],[Service Date ]]) & \"-\" & \"Q\" & INT((MONTH(EFA_Log[[#This Row],[Service Date ]])+2)/3), \"\")","v":""}]
[null,null,null,null,null,null,null,null,{"$f":"IF(EFA_Log[[#This Row],[Service Date ]], YEAR(EFA_Log[[#This Row],[Service Date ]]) & \"-\" & \"Q\" & INT((MONTH(EFA_Log[[#This Row],[Service Date ]])+2)/3), \"\")","v":""}]
[null,null,null,null,null,null,null,null,{"$f":"IF(EFA_Log[[#This Row],[Service Date ]], YEAR(EFA_Log[[#This Row],[Service Date ]]) & \"-\" & \"Q\" & INT((MONTH(EFA_Log[[#This Row],[Service Date ]])+2)/3), \"\")","v":""}]
[null,null,null,null,null,null,null,null,{"$f":"IF(EFA_Log[[#This Row],[Service Date ]], YEAR(EFA_Log[[#This Row],[Service Date ]]) & \"-\" & \"Q\" & INT((MONTH(EFA_Log[[#This Row],[Service Date ]])+2)/3), \"\")","v":""}]
[null,null,null,null,null,null,null,null,{"$f":"IF(EFA_Log[[#This Row],[Service Date ]], YEAR(EFA_Log[[#This Row],[Service Date ]]) & \"-\" & \"Q\" & INT((MONTH(EFA_Log[[#This Row],[Service Date ]])+2)/3), \"\")","v":""}]
[null,null,null,null,null,null,null,null,{"$f":"IF(EFA_Log[[#This Row],[Service Date ]], YEAR(EFA_Log[[#This Row],[Service Date ]]) & \"-\" & \"Q\" & INT((MONTH(EFA_Log[[#This Row],[Service Date ]])+2)/3), \"\")","v":""}]
[null,null,null,null,null,null,null,null,{"$f":"IF(EFA_Log[[#This Row],[Service Date ]], YEAR(EFA_Log[[#This Row],[Service Date ]]) & \"-\" & \"Q\" & INT((MONTH(EFA_Log[[#This Row],[Service Date ]])+2)/3), \"\")","v":""}]
[null,null,null,null,null,null,null,null,{"$f":"IF(EFA_Log[[#This Row],[Service Date ]], YEAR(EFA_Log[[#This Row],[Service Date ]]) & \"-\" & \"Q\" & INT((MONTH(EFA_Log[[#This Row],[Service Date ]])+2)/3), \"\")","v":""}]
[null,null,null,null,null,null,null,null,{"$f":"IF(EFA_Log[[#This Row],[Service Date ]], YEAR(EFA_Log[[#This Row],[Service Date ]]) & \"-\" & \"Q\" & INT((MONTH(EFA_Log[[#This Row],[Service Date ]])+2)/3), \"\")","v":""}]
[null,null,null,null,null,null,null,null,{"$f":"IF(EFA_Log[[#This Row],[Service Date ]], YEAR(EFA_Log[[#This Row],[Service Date ]]) & \"-\" & \"Q\" & INT((MONTH(EFA_Log[[#This Row],[Service Date ]])+2)/3), \"\")","v":""}]
[null,null,null,null,null,null,null,null,{"$f":"IF(EFA_Log[[#This Row],[Service Date ]], YEAR(EFA_Log[[#This Row],[Service Date ]]) & \"-\" & \"Q\" & INT((MONTH(EFA_Log[[#This Row],[Service Date ]])+2)/3), \"\")","v":""}]
[null,null,null,null,null,null,null,null,{"$f":"IF(EFA_Log[[#This Row],[Service Date ]], YEAR(EFA_Log[[#This Row],[Service Date ]]) & \"-\" & \"Q\" & INT((MONTH(EFA_Log[[#This Row],[Service Date ]])+2)/3), \"\")","v":""}]
[null,null,null,null,null,null,null,null,{"$f":"IF(EFA_Log[[#This Row],[Service Date ]], YEAR(EFA_Log[[#This Row],[Service Date ]]) & \"-\" & \"Q\" & INT((MONTH(EFA_Log[[#This Row],[Service Date ]])+2)/3), \"\")","v":""}]
[null,null,null,null,null,null,null,null,{"$f":"IF(EFA_Log[[#This Row],[Service Date ]], YEAR(EFA_Log[[#This Row],[Service Date ]]) & \"-\" & \"Q\" & INT((MONTH(EFA_Log[[#This Row],[Service Date ]])+2)/3), \"\")","v":""}]
[null,null,null,null,null,null,null,null,{"$f":"IF(EFA_Log[[#This Row],[Service Date ]], YEAR(EFA_Log[[#This Row],[Service Date ]]) & \"-\" & \"Q\" & INT((MONTH(EFA_Log[[#This Row],[Service Date ]])+2)/3), \"\")","v":""}]
[null,null,null,null,null,null,null,null,{"$f":"IF(EFA_Log[[#This Row],[Service Date ]], YEAR(EFA_Log[[#This Row],[Service Date ]]) & \"-\" & \"Q\" & INT((MONTH(EFA_Log[[#This Row],[Service Date ]])+2)/3), \"\")","v":""}]
[null,null,null,null,null,null,null,null,{"$f":"IF(EFA_Log[[#This Row],[Service Date ]], YEAR(EFA_Log[[#This Row],[Service Date ]]) & \"-\" & \"Q\" & INT((MONTH(EFA_Log[[#This Row],[Service Date ]])+2)/3), \"\")","v":""}]
[null,null,null,null,null,null,null,null,{"$f":"IF(EFA_Log[[#This Row],[Service Date ]], YEAR(EFA_Log[[#This Row],[Service Date ]]) & \"-\" & \"Q\" & INT((MONTH(EFA_Log[[#This Row],[Service Date ]])+2)/3), \"\")","v":""}]
[null,null,null,null,null,null,null,null,{"$f":"IF(EFA_Log[[#This Row],[Service Date ]], YEAR(EFA_Log[[#This Row],[Service Date ]]) & \"-\" & \"Q\" & INT((MONTH(EFA_Log[[#This Row],[Service Date ]])+2)/3), \"\")","v":""}]
[null,null,null,null,null,null,null,null,{"$f":"IF(EFA_Log[[#This Row],[Service Date ]], YEAR(EFA_Log[[#This Row],[Service Date ]]) & \"-\" & \"Q\" & INT((MONTH(EFA_Log[[#This Row],[Service Date ]])+2)/3), \"\")","v":""}]
[null,null,null,null,null,null,null,null,{"$f":"IF(EFA_Log[[#This Row],[Service Date ]], YEAR(EFA_Log[[#This Row],[Service Date ]]) & \"-\" & \"Q\" & INT((MONTH(EFA_Log[[#This Row],[Service Date ]])+2)/3), \"\")","v":""}]
[null,null,null,null,null,null,null,null,{"$f":"IF(EFA_Log[[#This Row],[Service Date ]], YEAR(EFA_Log[[#This Row],[Service Date ]]) & \"-\" & \"Q\" & INT((MONTH(EFA_Log[[#This Row],[Service Date ]])+2)/3), \"\")","v":""}]
[null,null,null,null,null,null,null,null,{"$f":"IF(EFA_Log[[#This Row],[Service Date ]], YEAR(EFA_Log[[#This Row],[Service Date ]]) & \"-\" & \"Q\" & INT((MONTH(EFA_Log[[#This Row],[Service Date ]])+2)/3), \"\")","v":""}]
[null,null,null,null,null,null,null,null,{"$f":"IF(EFA_Log[[#This Row],[Service Date ]], YEAR(EFA_Log[[#This Row],[Service Date ]]) & \"-\" & \"Q\" & INT((MONTH(EFA_Log[[#This Row],[Service Date ]])+2)/3), \"\")","v":""}]
[null,null,null,null,null,null,null,null,{"$f":"IF(EFA_Log[[#This Row],[Service Date ]], YEAR(EFA_Log[[#This Row],[Service Date ]]) & \"-\" & \"Q\" & INT((MONTH(EFA_Log[[#This Row],[Service Date ]])+2)/3), \"\")","v":""}]
[null,null,null,null,null,null,null,null,{"$f":"IF(EFA_Log[[#This Row],[Service Date ]], YEAR(EFA_Log[[#This Row],[Service Date ]]) & \"-\" & \"Q\" & INT((MONTH(EFA_Log[[#This Row],[Service Date ]])+2)/3), \"\")","v":""}]
[null,null,null,null,null,null,null,null,{"$f":"IF(EFA_Log[[#This Row],[Service Date ]], YEAR(EFA_Log[[#This Row],[Service Date ]]) & \"-\" & \"Q\" & INT((MONTH(EFA_Log[[#This Row],[Service Date ]])+2)/3), \"\")","v":""}]
[null,null,null,null,null,null,null,null,{"$f":"IF(EFA_Log[[#This Row],[Service Date ]], YEAR(EFA_Log[[#This Row],[Service Date ]]) & \"-\" & \"Q\" & INT((MONTH(EFA_Log[[#This Row],[Service Date ]])+2)/3), \"\")","v":""}]
[null,null,null,null,null,null,null,null,{"$f":"IF(EFA_Log[[#This Row],[Service Date ]], YEAR(EFA_Log[[#This Row],[Service Date ]]) & \"-\" & \"Q\" & INT((MONTH(EFA_Log[[#This Row],[Service Date ]])+2)/3), \"\")","v":""}]
[null,null,null,null,null,null,null,null,{"$f":"IF(EFA_Log[[#This Row],[Service Date ]], YEAR(EFA_Log[[#This Row],[Service Date ]]) & \"-\" & \"Q\" & INT((MONTH(EFA_Log[[#This Row],[Service Date ]])+2)/3), \"\")","v":""}]
[null,null,null,null,null,null,null,null,{"$f":"IF(EFA_Log[[#This Row],[Service Date ]], YEAR(EFA_Log[[#This Row],[Service Date ]]) & \"-\" & \"Q\" & INT((MONTH(EFA_Log[[#This Row],[Service Date ]])+2)/3), \"\")","v":""}]
[null,null,null,null,null,null,null,null,{"$f":"IF(EFA_Log[[#This Row],[Service Date ]], YEAR(EFA_Log[[#This Row],[Service Date ]]) & \"-\" & \"Q\" & INT((MONTH(EFA_Log[[#This Row],[Service Date ]])+2)/3), \"\")","v":""}]
[null,null,null,null,null,null,null,null,{"$f":"IF(EFA_Log[[#This Row],[Service Date ]], YEAR(EFA_Log[[#This Row],[Service Date ]]) & \"-\" & \"Q\" & INT((MONTH(EFA_Log[[#This Row],[Service Date ]])+2)/3), \"\")","v":""}]
[null,null,null,null,null,null,null,null,{"$f":"IF(EFA_Log[[#This Row],[Service Date ]], YEAR(EFA_Log[[#This Row],[Service Date ]]) & \"-\" & \"Q\" & INT((MONTH(EFA_Log[[#This Row],[Service Date ]])+2)/3), \"\")","v":""}]
[null,null,null,null,null,null,null,null,{"$f":"IF(EFA_Log[[#This Row],[Service Date ]], YEAR(EFA_Log[[#This Row],[Service Date ]]) & \"-\" & \"Q\" & INT((MONTH(EFA_Log[[#This Row],[Service Date ]])+2)/3), \"\")","v":""}]
[null,null,null,null,null,null,null,null,{"$f":"IF(EFA_Log[[#This Row],[Service Date ]], YEAR(EFA_Log[[#This Row],[Service Date ]]) & \"-\" & \"Q\" & INT((MONTH(EFA_Log[[#This Row],[Service Date ]])+2)/3), \"\")","v":""}]
[null,null,null,null,null,null,null,null,{"$f":"IF(EFA_Log[[#This Row],[Service Date ]], YEAR(EFA_Log[[#This Row],[Service Date ]]) & \"-\" & \"Q\" & INT((MONTH(EFA_Log[[#This Row],[Service Date ]])+2)/3), \"\")","v":""}]
[null,null,null,null,null,null,null,null,{"$f":"IF(EFA_Log[[#This Row],[Service Date ]], YEAR(EFA_Log[[#This Row],[Service Date ]]) & \"-\" & \"Q\" & INT((MONTH(EFA_Log[[#This Row],[Service Date ]])+2)/3), \"\")","v":""}]
[null,null,null,null,null,null,null,null,{"$f":"IF(EFA_Log[[#This Row],[Service Date ]], YEAR(EFA_Log[[#This Row],[Service Date ]]) & \"-\" & \"Q\" & INT((MONTH(EFA_Log[[#This Row],[Service Date ]])+2)/3), \"\")","v":""}]
[null,null,null,null,null,null,null,null,{"$f":"IF(EFA_Log[[#This Row],[Service Date ]], YEAR(EFA_Log[[#This Row],[Service Date ]]) & \"-\" & \"Q\" & INT((MONTH(EFA_Log[[#This Row],[Service Date ]])+2)/3), \"\")","v":""}]
[null,null,null,null,null,null,null,null,{"$f":"IF(EFA_Log[[#This Row],[Service Date ]], YEAR(EFA_Log[[#This Row],[Service Date ]]) & \"-\" & \"Q\" & INT((MONTH(EFA_Log[[#This Row],[Service Date ]])+2)/3), \"\")","v":""}]
[null,null,null,null,null,null,null,null,{"$f":"IF(EFA_Log[[#This Row],[Service Date ]], YEAR(EFA_Log[[#This Row],[Service Date ]]) & \"-\" & \"Q\" & INT((MONTH(EFA_Log[[#This Row],[Service Date ]])+2)/3), \"\")","v":""}]
[null,null,null,null,null,null,null,null,{"$f":"IF(EFA_Log[[#This Row],[Service Date ]], YEAR(EFA_Log[[#This Row],[Service Date ]]) & \"-\" & \"Q\" & INT((MONTH(EFA_Log[[#This Row],[Service Date ]])+2)/3), \"\")","v":""}]
[null,null,null,null,null,null,null,null,{"$f":"IF(EFA_Log[[#This Row],[Service Date ]], YEAR(EFA_Log[[#This Row],[Service Date ]]) & \"-\" & \"Q\" & INT((MONTH(EFA_Log[[#This Row],[Service Date ]])+2)/3), \"\")","v":""}]
[null,null,null,null,null,null,null,null,{"$f":"IF(EFA_Log[[#This Row],[Service Date ]], YEAR(EFA_Log[[#This Row],[Service Date ]]) & \"-\" & \"Q\" & INT((MONTH(EFA_Log[[#This Row],[Service Date ]])+2)/3), \"\")","v":""}]
[null,null,null,null,null,null,null,null,{"$f":"IF(EFA_Log[[#This Row],[Service Date ]], YEAR(EFA_Log[[#This Row],[Service Date ]]) & \"-\" & \"Q\" & INT((MONTH(EFA_Log[[#This Row],[Service Date ]])+2)/3), \"\")","v":""}]
[null,null,null,null,null,null,null,null,{"$f":"IF(EFA_Log[[#This Row],[Service Date ]], YEAR(EFA_Log[[#This Row],[Service Date ]]) & \"-\" & \"Q\" & INT((MONTH(EFA_Log[[#This Row],[Service Date ]])+2)/3), \"\")","v":""}]
[null,null,null,null,null,null,null,null,{"$f":"IF(EFA_Log[[#This Row],[Service Date ]], YEAR(EFA_Log[[#This Row],[Service Date ]]) & \"-\" & \"Q\" & INT((MONTH(EFA_Log[[#This Row],[Service Date ]])+2)/3), \"\")","v":""}]
[null,null,null,null,null,null,null,null,{"$f":"IF(EFA_Log[[#This Row],[Service Date ]], YEAR(EFA_Log[[#This Row],[Service Date ]]) & \"-\" & \"Q\" & INT((MONTH(EFA_Log[[#This Row],[Service Date ]])+2)/3), \"\")","v":""}]
[null,null,null,null,null,null,null,null,{"$f":"IF(EFA_Log[[#This Row],[Service Date ]], YEAR(EFA_Log[[#This Row],[Service Date ]]) & \"-\" & \"Q\" & INT((MONTH(EFA_Log[[#This Row],[Service Date ]])+2)/3), \"\")","v":""}]
[null,null,null,null,null,null,null,null,{"$f":"IF(EFA_Log[[#This Row],[Service Date ]], YEAR(EFA_Log[[#This Row],[Service Date ]]) & \"-\" & \"Q\" & INT((MONTH(EFA_Log[[#This Row],[Service Date ]])+2)/3), \"\")","v":""}]
[null,null,null,null,null,null,null,null,{"$f":"IF(EFA_Log[[#This Row],[Service Date ]], YEAR(EFA_Log[[#This Row],[Service Date ]]) & \"-\" & \"Q\" & INT((MONTH(EFA_Log[[#This Row],[Service Date ]])+2)/3), \"\")","v":""}]
[null,null,null,null,null,null,null,null,{"$f":"IF(EFA_Log[[#This Row],[Service Date ]], YEAR(EFA_Log[[#This Row],[Service Date ]]) & \"-\" & \"Q\" & INT((MONTH(EFA_Log[[#This Row],[Service Date ]])+2)/3), \"\")","v":""}]
[null,null,null,null,null,null,null,null,{"$f":"IF(EFA_Log[[#This Row],[Service Date ]], YEAR(EFA_Log[[#This Row],[Service Date ]]) & \"-\" & \"Q\" & INT((MONTH(EFA_Log[[#This Row],[Service Date ]])+2)/3), \"\")","v":""}]
[null,null,null,null,null,null,null,null,{"$f":"IF(EFA_Log[[#This Row],[Service Date ]], YEAR(EFA_Log[[#This Row],[Service Date ]]) & \"-\" & \"Q\" & INT((MONTH(EFA_Log[[#This Row],[Service Date ]])+2)/3), \"\")","v":""}]
[null,null,null,null,null,null,null,null,{"$f":"IF(EFA_Log[[#This Row],[Service Date ]], YEAR(EFA_Log[[#This Row],[Service Date ]]) & \"-\" & \"Q\" & INT((MONTH(EFA_Log[[#This Row],[Service Date ]])+2)/3), \"\")","v":""}]
[null,null,null,null,null,null,null,null,{"$f":"IF(EFA_Log[[#This Row],[Service Date ]], YEAR(EFA_Log[[#This Row],[Service Date ]]) & \"-\" & \"Q\" & INT((MONTH(EFA_Log[[#This Row],[Service Date ]])+2)/3), \"\")","v":""}]
[null,null,null,null,null,null,null,null,{"$f":"IF(EFA_Log[[#This Row],[Service Date ]], YEAR(EFA_Log[[#This Row],[Service Date ]]) & \"-\" & \"Q\" & INT((MONTH(EFA_Log[[#This Row],[Service Date ]])+2)/3), \"\")","v":""}]
[null,null,null,null,null,null,null,null,{"$f":"IF(EFA_Log[[#This Row],[Service Date ]], YEAR(EFA_Log[[#This Row],[Service Date ]]) & \"-\" & \"Q\" & INT((MONTH(EFA_Log[[#This Row],[Service Date ]])+2)/3), \"\")","v":""}]
[null,null,null,null,null,null,null,null,{"$f":"IF(EFA_Log[[#This Row],[Service Date ]], YEAR(EFA_Log[[#This Row],[Service Date ]]) & \"-\" & \"Q\" & INT((MONTH(EFA_Log[[#This Row],[Service Date ]])+2)/3), \"\")","v":""}]
[null,null,null,null,null,null,null,null,{"$f":"IF(EFA_Log[[#This Row],[Service Date ]], YEAR(EFA_Log[[#This Row],[Service Date ]]) & \"-\" & \"Q\" & INT((MONTH(EFA_Log[[#This Row],[Service Date ]])+2)/3), \"\")","v":""}]
[null,null,null,null,null,null,null,null,{"$f":"IF(EFA_Log[[#This Row],[Service Date ]], YEAR(EFA_Log[[#This Row],[Service Date ]]) & \"-\" & \"Q\" & INT((MONTH(EFA_Log[[#This Row],[Service Date ]])+2)/3), \"\")","v":""}]
[null,null,null,null,null,null,null,null,{"$f":"IF(EFA_Log[[#This Row],[Service Date ]], YEAR(EFA_Log[[#This Row],[Service Date ]]) & \"-\" & \"Q\" & INT((MONTH(EFA_Log[[#This Row],[Service Date ]])+2)/3), \"\")","v":""}]
[null,null,null,null,null,null,null,null,{"$f":"IF(EFA_Log[[#This Row],[Service Date ]], YEAR(EFA_Log[[#This Row],[Service Date ]]) & \"-\" & \"Q\" & INT((MONTH(EFA_Log[[#This Row],[Service Date ]])+2)/3), \"\")","v":""}]
[null,null,null,null,null,null,null,null,{"$f":"IF(EFA_Log[[#This Row],[Service Date ]], YEAR(EFA_Log[[#This Row],[Service Date ]]) & \"-\" & \"Q\" & INT((MONTH(EFA_Log[[#This Row],[Service Date ]])+2)/3), \"\")","v":""}]
[null,null,null,null,null,null,null,null,{"$f":"IF(EFA_Log[[#This Row],[Service Date ]], YEAR(EFA_Log[[#This Row],[Service Date ]]) & \"-\" & \"Q\" & INT((MONTH(EFA_Log[[#This Row],[Service Date ]])+2)/3), \"\")","v":""}]
[null,null,null,null,null,null,null,null,{"$f":"IF(EFA_Log[[#This Row],[Service Date ]], YEAR(EFA_Log[[#This Row],[Service Date ]]) & \"-\" & \"Q\" & INT((MONTH(EFA_Log[[#This Row],[Service Date ]])+2)/3), \"\")","v":""}]
[null,null,null,null,null,null,null,null,{"$f":"IF(EFA_Log[[#This Row],[Service Date ]], YEAR(EFA_Log[[#This Row],[Service Date ]]) & \"-\" & \"Q\" & INT((MONTH(EFA_Log[[#This Row],[Service Date ]])+2)/3), \"\")","v":""}]
[null,null,null,null,null,null,null,null,{"$f":"IF(EFA_Log[[#This Row],[Service Date ]], YEAR(EFA_Log[[#This Row],[Service Date ]]) & \"-\" & \"Q\" & INT((MONTH(EFA_Log[[#This Row],[Service Date ]])+2)/3), \"\")","v":""}]
[null,null,null,null,null,null,null,null,{"$f":"IF(EFA_Log[[#This Row],[Service Date ]], YEAR(EFA_Log[[#This Row],[Service Date ]]) & \"-\" & \"Q\" & INT((MONTH(EFA_Log[[#This Row],[Service Date ]])+2)/3), \"\")","v":""}]
[null,null,null,null,null,null,null,null,{"$f":"IF(EFA_Log[[#This Row],[Service Date ]], YEAR(EFA_Log[[#This Row],[Service Date ]]) & \"-\" & \"Q\" & INT((MONTH(EFA_Log[[#This Row],[Service Date ]])+2)/3), \"\")","v":""}]
[null,null,null,null,null,null,null,null,{"$f":"IF(EFA_Log[[#This Row],[Service Date ]], YEAR(EFA_Log[[#This Row],[Service Date ]]) & \"-\" & \"Q\" & INT((MONTH(EFA_Log[[#This Row],[Service Date ]])+2)/3), \"\")","v":""}]
[null,null,null,null,null,null,null,null,{"$f":"IF(EFA_Log[[#This Row],[Service Date ]], YEAR(EFA_Log[[#This Row],[Service Date ]]) & \"-\" & \"Q\" & INT((MONTH(EFA_Log[[#This Row],[Service Date ]])+2)/3), \"\")","v":""}]
[null,null,null,null,null,null,null,null,{"$f":"IF(EFA_Log[[#This Row],[Service Date ]], YEAR(EFA_Log[[#This Row],[Service Date ]]) & \"-\" & \"Q\" & INT((MONTH(EFA_Log[[#This Row],[Service Date ]])+2)/3), \"\")","v":""}]
[null,null,null,null,null,null,null,null,{"$f":"IF(EFA_Log[[#This Row],[Service Date ]], YEAR(EFA_Log[[#This Row],[Service Date ]]) & \"-\" & \"Q\" & INT((MONTH(EFA_Log[[#This Row],[Service Date ]])+2)/3), \"\")","v":""}]
[null,null,null,null,null,null,null,null,{"$f":"IF(EFA_Log[[#This Row],[Service Date ]], YEAR(EFA_Log[[#This Row],[Service Date ]]) & \"-\" & \"Q\" & INT((MONTH(EFA_Log[[#This Row],[Service Date ]])+2)/3), \"\")","v":""}]
[null,null,null,null,null,null,null,null,{"$f":"IF(EFA_Log[[#This Row],[Service Date ]], YEAR(EFA_Log[[#This Row],[Service Date ]]) & \"-\" & \"Q\" & INT((MONTH(EFA_Log[[#This Row],[Service Date ]])+2)/3), \"\")","v":""}]
[null,null,null,null,null,null,null,null,{"$f":"IF(EFA_Log[[#This Row],[Service Date ]], YEAR(EFA_Log[[#This Row],[Service Date ]]) & \"-\" & \"Q\" & INT((MONTH(EFA_Log[[#This Row],[Service Date ]])+2)/3), \"\")","v":""}]
[null,null,null,null,null,null,null,null,{"$f":"IF(EFA_Log[[#This Row],[Service Date ]], YEAR(EFA_Log[[#This Row],[Service Date ]]) & \"-\" & \"Q\" & INT((MONTH(EFA_Log[[#This Row],[Service Date ]])+2)/3), \"\")","v":""}]
[null,null,null,null,null,null,null,null,{"$f":"IF(EFA_Log[[#This Row],[Service Date ]], YEAR(EFA_Log[[#This Row],[Service Date ]]) & \"-\" & \"Q\" & INT((MONTH(EFA_Log[[#This Row],[Service Date ]])+2)/3), \"\")","v":""}]
[null,null,null,null,null,null,null,null,{"$f":"IF(EFA_Log[[#This Row],[Service Date ]], YEAR(EFA_Log[[#This Row],[Service Date ]]) & \"-\" & \"Q\" & INT((MONTH(EFA_Log[[#This Row],[Service Date ]])+2)/3), \"\")","v":""}]
[null,null,null,null,null,null,null,null,{"$f":"IF(EFA_Log[[#This Row],[Service Date ]], YEAR(EFA_Log[[#This Row],[Service Date ]]) & \"-\" & \"Q\" & INT((MONTH(EFA_Log[[#This Row],[Service Date ]])+2)/3), \"\")","v":""}]
[null,null,null,null,null,null,null,null,{"$f":"IF(EFA_Log[[#This Row],[Service Date ]], YEAR(EFA_Log[[#This Row],[Service Date ]]) & \"-\" & \"Q\" & INT((MONTH(EFA_Log[[#This Row],[Service Date ]])+2)/3), \"\")","v":""}]
[null,null,null,null,null,null,null,null,{"$f":"IF(EFA_Log[[#This Row],[Service Date ]], YEAR(EFA_Log[[#This Row],[Service Date ]]) & \"-\" & \"Q\" & INT((MONTH(EFA_Log[[#This Row],[Service Date ]])+2)/3), \"\")","v":""}]
[null,null,null,null,null,null,null,null,{"$f":"IF(EFA_Log[[#This Row],[Service Date ]], YEAR(EFA_Log[[#This Row],[Service Date ]]) & \"-\" & \"Q\" & INT((MONTH(EFA_Log[[#This Row],[Service Date ]])+2)/3), \"\")","v":""}]
[null,null,null,null,null,null,null,null,{"$f":"IF(EFA_Log[[#This Row],[Service Date ]], YEAR(EFA_Log[[#This Row],[Service Date ]]) & \"-\" & \"Q\" & INT((MONTH(EFA_Log[[#This Row],[Service Date ]])+2)/3), \"\")","v":""}]
[null,null,null,null,null,null,null,null,{"$f":"IF(EFA_Log[[#This Row],[Service Date ]], YEAR(EFA_Log[[#This Row],[Service Date ]]) & \"-\" & \"Q\" & INT((MONTH(EFA_Log[[#This Row],[Service Date ]])+2)/3), \"\")","v":""}]
[null,null,null,null,null,null,null,null,{"$f":"IF(EFA_Log[[#This Row],[Service Date ]], YEAR(EFA_Log[[#This Row],[Service Date ]]) & \"-\" & \"Q\" & INT((MONTH(EFA_Log[[#This Row],[Service Date ]])+2)/3), \"\")","v":""}]
[null,null,null,null,null,null,null,null,{"$f":"IF(EFA_Log[[#This Row],[Service Date ]], YEAR(EFA_Log[[#This Row],[Service Date ]]) & \"-\" & \"Q\" & INT((MONTH(EFA_Log[[#This Row],[Service Date ]])+2)/3), \"\")","v":""}]
[null,null,null,null,null,null,null,null,{"$f":"IF(EFA_Log[[#This Row],[Service Date ]], YEAR(EFA_Log[[#This Row],[Service Date ]]) & \"-\" & \"Q\" & INT((MONTH(EFA_Log[[#This Row],[Service Date ]])+2)/3), \"\")","v":""}]
[null,null,null,null,null,null,null,null,{"$f":"IF(EFA_Log[[#This Row],[Service Date ]], YEAR(EFA_Log[[#This Row],[Service Date ]]) & \"-\" & \"Q\" & INT((MONTH(EFA_Log[[#This Row],[Service Date ]])+2)/3), \"\")","v":""}]
[null,null,null,null,null,null,null,null,{"$f":"IF(EFA_Log[[#This Row],[Service Date ]], YEAR(EFA_Log[[#This Row],[Service Date ]]) & \"-\" & \"Q\" & INT((MONTH(EFA_Log[[#This Row],[Service Date ]])+2)/3), \"\")","v":""}]
[null,null,null,null,null,null,null,null,{"$f":"IF(EFA_Log[[#This Row],[Service Date ]], YEAR(EFA_Log[[#This Row],[Service Date ]]) & \"-\" & \"Q\" & INT((MONTH(EFA_Log[[#This Row],[Service Date ]])+2)/3), \"\")","v":""}]
[null,null,null,null,null,null,null,null,{"$f":"IF(EFA_Log[[#This Row],[Service Date ]], YEAR(EFA_Log[[#This Row],[Service Date ]]) & \"-\" & \"Q\" & INT((MONTH(EFA_Log[[#This Row],[Service Date ]])+2)/3), \"\")","v":""}]
[null,null,null,null,null,null,null,null,{"$f":"IF(EFA_Log[[#This Row],[Service Date ]], YEAR(EFA_Log[[#This Row],[Service Date ]]) & \"-\" & \"Q\" & INT((MONTH(EFA_Log[[#This Row],[Service Date ]])+2)/3), \"\")","v":""}]
[null,null,null,null,null,null,null,null,{"$f":"IF(EFA_Log[[#This Row],[Service Date ]], YEAR(EFA_Log[[#This Row],[Service Date ]]) & \"-\" & \"Q\" & INT((MONTH(EFA_Log[[#This Row],[Service Date ]])+2)/3), \"\")","v":""}]
[null,null,null,null,null,null,null,null,{"$f":"IF(EFA_Log[[#This Row],[Service Date ]], YEAR(EFA_Log[[#This Row],[Service Date ]]) & \"-\" & \"Q\" & INT((MONTH(EFA_Log[[#This Row],[Service Date ]])+2)/3), \"\")","v":""}]
[null,null,null,null,null,null,null,null,{"$f":"IF(EFA_Log[[#This Row],[Service Date ]], YEAR(EFA_Log[[#This Row],[Service Date ]]) & \"-\" & \"Q\" & INT((MONTH(EFA_Log[[#This Row],[Service Date ]])+2)/3), \"\")","v":""}]
[null,null,null,null,null,null,null,null,{"$f":"IF(EFA_Log[[#This Row],[Service Date ]], YEAR(EFA_Log[[#This Row],[Service Date ]]) & \"-\" & \"Q\" & INT((MONTH(EFA_Log[[#This Row],[Service Date ]])+2)/3), \"\")","v":""}]
[null,null,null,null,null,null,null,null,{"$f":"IF(EFA_Log[[#This Row],[Service Date ]], YEAR(EFA_Log[[#This Row],[Service Date ]]) & \"-\" & \"Q\" & INT((MONTH(EFA_Log[[#This Row],[Service Date ]])+2)/3), \"\")","v":""}]
[null,null,null,null,null,null,null,null,{"$f":"IF(EFA_Log[[#This Row],[Service Date ]], YEAR(EFA_Log[[#This Row],[Service Date ]]) & \"-\" & \"Q\" & INT((MONTH(EFA_Log[[#This Row],[Service Date ]])+2)/3), \"\")","v":""}]
[null,null,null,null,null,null,null,null,{"$f":"IF(EFA_Log[[#This Row],[Service Date ]], YEAR(EFA_Log[[#This Row],[Service Date ]]) & \"-\" & \"Q\" & INT((MONTH(EFA_Log[[#This Row],[Service Date ]])+2)/3), \"\")","v":""}]
[null,null,null,null,null,null,null,null,{"$f":"IF(EFA_Log[[#This Row],[Service Date ]], YEAR(EFA_Log[[#This Row],[Service Date ]]) & \"-\" & \"Q\" & INT((MONTH(EFA_Log[[#This Row],[Service Date ]])+2)/3), \"\")","v":""}]
[null,null,null,null,null,null,null,null,{"$f":"IF(EFA_Log[[#This Row],[Service Date ]], YEAR(EFA_Log[[#This Row],[Service Date ]]) & \"-\" & \"Q\" & INT((MONTH(EFA_Log[[#This Row],[Service Date ]])+2)/3), \"\")","v":""}]
[null,null,null,null,null,null,null,null,{"$f":"IF(EFA_Log[[#This Row],[Service Date ]], YEAR(EFA_Log[[#This Row],[Service Date ]]) & \"-\" & \"Q\" & INT((MONTH(EFA_Log[[#This Row],[Service Date ]])+2)/3), \"\")","v":""}]
[null,null,null,null,null,null,null,null,{"$f":"IF(EFA_Log[[#This Row],[Service Date ]], YEAR(EFA_Log[[#This Row],[Service Date ]]) & \"-\" & \"Q\" & INT((MONTH(EFA_Log[[#This Row],[Service Date ]])+2)/3), \"\")","v":""}]
[null,null,null,null,null,null,null,null,{"$f":"IF(EFA_Log[[#This Row],[Service Date ]], YEAR(EFA_Log[[#This Row],[Service Date ]]) & \"-\" & \"Q\" & INT((MONTH(EFA_Log[[#This Row],[Service Date ]])+2)/3), \"\")","v":""}]
[null,null,null,null,null,null,null,null,{"$f":"IF(EFA_Log[[#This Row],[Service Date ]], YEAR(EFA_Log[[#This Row],[Service Date ]]) & \"-\" & \"Q\" & INT((MONTH(EFA_Log[[#This Row],[Service Date ]])+2)/3), \"\")","v":""}]
[null,null,null,null,null,null,null,null,{"$f":"IF(EFA_Log[[#This Row],[Service Date ]], YEAR(EFA_Log[[#This Row],[Service Date ]]) & \"-\" & \"Q\" & INT((MONTH(EFA_Log[[#This Row],[Service Date ]])+2)/3), \"\")","v":""}]
[null,null,null,null,null,null,null,null,{"$f":"IF(EFA_Log[[#This Row],[Service Date ]], YEAR(EFA_Log[[#This Row],[Service Date ]]) & \"-\" & \"Q\" & INT((MONTH(EFA_Log[[#This Row],[Service Date ]])+2)/3), \"\")","v":""}]
[null,null,null,null,null,null,null,null,{"$f":"IF(EFA_Log[[#This Row],[Service Date ]], YEAR(EFA_Log[[#This Row],[Service Date ]]) & \"-\" & \"Q\" & INT((MONTH(EFA_Log[[#This Row],[Service Date ]])+2)/3), \"\")","v":""}]
[null,null,null,null,null,null,null,null,{"$f":"IF(EFA_Log[[#This Row],[Service Date ]], YEAR(EFA_Log[[#This Row],[Service Date ]]) & \"-\" & \"Q\" & INT((MONTH(EFA_Log[[#This Row],[Service Date ]])+2)/3), \"\")","v":""}]
[null,null,null,null,null,null,null,null,{"$f":"IF(EFA_Log[[#This Row],[Service Date ]], YEAR(EFA_Log[[#This Row],[Service Date ]]) & \"-\" & \"Q\" & INT((MONTH(EFA_Log[[#This Row],[Service Date ]])+2)/3), \"\")","v":""}]
[null,null,null,null,null,null,null,null,{"$f":"IF(EFA_Log[[#This Row],[Service Date ]], YEAR(EFA_Log[[#This Row],[Service Date ]]) & \"-\" & \"Q\" & INT((MONTH(EFA_Log[[#This Row],[Service Date ]])+2)/3), \"\")","v":""}]
[null,null,null,null,null,null,null,null,{"$f":"IF(EFA_Log[[#This Row],[Service Date ]], YEAR(EFA_Log[[#This Row],[Service Date ]]) & \"-\" & \"Q\" & INT((MONTH(EFA_Log[[#This Row],[Service Date ]])+2)/3), \"\")","v":""}]
[null,null,null,null,null,null,null,null,{"$f":"IF(EFA_Log[[#This Row],[Service Date ]], YEAR(EFA_Log[[#This Row],[Service Date ]]) & \"-\" & \"Q\" & INT((MONTH(EFA_Log[[#This Row],[Service Date ]])+2)/3), \"\")","v":""}]
[null,null,null,null,null,null,null,null,{"$f":"IF(EFA_Log[[#This Row],[Service Date ]], YEAR(EFA_Log[[#This Row],[Service Date ]]) & \"-\" & \"Q\" & INT((MONTH(EFA_Log[[#This Row],[Service Date ]])+2)/3), \"\")","v":""}]
[null,null,null,null,null,null,null,null,{"$f":"IF(EFA_Log[[#This Row],[Service Date ]], YEAR(EFA_Log[[#This Row],[Service Date ]]) & \"-\" & \"Q\" & INT((MONTH(EFA_Log[[#This Row],[Service Date ]])+2)/3), \"\")","v":""}]
[null,null,null,null,null,null,null,null,{"$f":"IF(EFA_Log[[#This Row],[Service Date ]], YEAR(EFA_Log[[#This Row],[Service Date ]]) & \"-\" & \"Q\" & INT((MONTH(EFA_Log[[#This Row],[Service Date ]])+2)/3), \"\")","v":""}]
[null,null,null,null,null,null,null,null,{"$f":"IF(EFA_Log[[#This Row],[Service Date ]], YEAR(EFA_Log[[#This Row],[Service Date ]]) & \"-\" & \"Q\" & INT((MONTH(EFA_Log[[#This Row],[Service Date ]])+2)/3), \"\")","v":""}]
[null,null,null,null,null,null,null,null,{"$f":"IF(EFA_Log[[#This Row],[Service Date ]], YEAR(EFA_Log[[#This Row],[Service Date ]]) & \"-\" & \"Q\" & INT((MONTH(EFA_Log[[#This Row],[Service Date ]])+2)/3), \"\")","v":""}]
[null,null,null,null,null,null,null,null,{"$f":"IF(EFA_Log[[#This Row],[Service Date ]], YEAR(EFA_Log[[#This Row],[Service Date ]]) & \"-\" & \"Q\" & INT((MONTH(EFA_Log[[#This Row],[Service Date ]])+2)/3), \"\")","v":""}]
[null,null,null,null,null,null,null,null,{"$f":"IF(EFA_Log[[#This Row],[Service Date ]], YEAR(EFA_Log[[#This Row],[Service Date ]]) & \"-\" & \"Q\" & INT((MONTH(EFA_Log[[#This Row],[Service Date ]])+2)/3), \"\")","v":""}]
[null,null,null,null,null,null,null,null,{"$f":"IF(EFA_Log[[#This Row],[Service Date ]], YEAR(EFA_Log[[#This Row],[Service Date ]]) & \"-\" & \"Q\" & INT((MONTH(EFA_Log[[#This Row],[Service Date ]])+2)/3), \"\")","v":""}]
[null,null,null,null,null,null,null,null,{"$f":"IF(EFA_Log[[#This Row],[Service Date ]], YEAR(EFA_Log[[#This Row],[Service Date ]]) & \"-\" & \"Q\" & INT((MONTH(EFA_Log[[#This Row],[Service Date ]])+2)/3), \"\")","v":""}]
[null,null,null,null,null,null,null,null,{"$f":"IF(EFA_Log[[#This Row],[Service Date ]], YEAR(EFA_Log[[#This Row],[Service Date ]]) & \"-\" & \"Q\" & INT((MONTH(EFA_Log[[#This Row],[Service Date ]])+2)/3), \"\")","v":""}]
[null,null,null,null,null,null,null,null,{"$f":"IF(EFA_Log[[#This Row],[Service Date ]], YEAR(EFA_Log[[#This Row],[Service Date ]]) & \"-\" & \"Q\" & INT((MONTH(EFA_Log[[#This Row],[Service Date ]])+2)/3), \"\")","v":""}]
[null,null,null,null,null,null,null,null,{"$f":"IF(EFA_Log[[#This Row],[Service Date ]], YEAR(EFA_Log[[#This Row],[Service Date ]]) & \"-\" & \"Q\" & INT((MONTH(EFA_Log[[#This Row],[Service Date ]])+2)/3), \"\")","v":""}]
[null,null,null,null,null,null,null,null,{"$f":"IF(EFA_Log[[#This Row],[Service Date ]], YEAR(EFA_Log[[#This Row],[Service Date ]]) & \"-\" & \"Q\" & INT((MONTH(EFA_Log[[#This Row],[Service Date ]])+2)/3), \"\")","v":""}]
[null,null,null,null,null,null,null,null,{"$f":"IF(EFA_Log[[#This Row],[Service Date ]], YEAR(EFA_Log[[#This Row],[Service Date ]]) & \"-\" & \"Q\" & INT((MONTH(EFA_Log[[#This Row],[Service Date ]])+2)/3), \"\")","v":""}]
[null,null,null,null,null,null,null,null,{"$f":"IF(EFA_Log[[#This Row],[Service Date ]], YEAR(EFA_Log[[#This Row],[Service Date ]]) & \"-\" & \"Q\" & INT((MONTH(EFA_Log[[#This Row],[Service Date ]])+2)/3), \"\")","v":""}]
[null,null,null,null,null,null,null,null,{"$f":"IF(EFA_Log[[#This Row],[Service Date ]], YEAR(EFA_Log[[#This Row],[Service Date ]]) & \"-\" & \"Q\" & INT((MONTH(EFA_Log[[#This Row],[Service Date ]])+2)/3), \"\")","v":""}]
[null,null,null,null,null,null,null,null,{"$f":"IF(EFA_Log[[#This Row],[Service Date ]], YEAR(EFA_Log[[#This Row],[Service Date ]]) & \"-\" & \"Q\" & INT((MONTH(EFA_Log[[#This Row],[Service Date ]])+2)/3), \"\")","v":""}]
[null,null,null,null,null,null,null,null,{"$f":"IF(EFA_Log[[#This Row],[Service Date ]], YEAR(EFA_Log[[#This Row],[Service Date ]]) & \"-\" & \"Q\" & INT((MONTH(EFA_Log[[#This Row],[Service Date ]])+2)/3), \"\")","v":""}]
[null,null,null,null,null,null,null,null,{"$f":"IF(EFA_Log[[#This Row],[Service Date ]], YEAR(EFA_Log[[#This Row],[Service Date ]]) & \"-\" & \"Q\" & INT((MONTH(EFA_Log[[#This Row],[Service Date ]])+2)/3), \"\")","v":""}]
[null,null,null,null,null,null,null,null,{"$f":"IF(EFA_Log[[#This Row],[Service Date ]], YEAR(EFA_Log[[#This Row],[Service Date ]]) & \"-\" & \"Q\" & INT((MONTH(EFA_Log[[#This Row],[Service Date ]])+2)/3), \"\")","v":""}]
[null,null,null,null,null,null,null,null,{"$f":"IF(EFA_Log[[#This Row],[Service Date ]], YEAR(EFA_Log[[#This Row],[Service Date ]]) & \"-\" & \"Q\" & INT((MONTH(EFA_Log[[#This Row],[Service Date ]])+2)/3), \"\")","v":""}]
[null,null,null,null,null,null,null,null,{"$f":"IF(EFA_Log[[#This Row],[Service Date ]], YEAR(EFA_Log[[#This Row],[Service Date ]]) & \"-\" & \"Q\" & INT((MONTH(EFA_Log[[#This Row],[Service Date ]])+2)/3), \"\")","v":""}]
[null,null,null,null,null,null,null,null,{"$f":"IF(EFA_Log[[#This Row],[Service Date ]], YEAR(EFA_Log[[#This Row],[Service Date ]]) & \"-\" & \"Q\" & INT((MONTH(EFA_Log[[#This Row],[Service Date ]])+2)/3), \"\")","v":""}]
[null,null,null,null,null,null,null,null,{"$f":"IF(EFA_Log[[#This Row],[Service Date ]], YEAR(EFA_Log[[#This Row],[Service Date ]]) & \"-\" & \"Q\" & INT((MONTH(EFA_Log[[#This Row],[Service Date ]])+2)/3), \"\")","v":""}]
[null,null,null,null,null,null,null,null,{"$f":"IF(EFA_Log[[#This Row],[Service Date ]], YEAR(EFA_Log[[#This Row],[Service Date ]]) & \"-\" & \"Q\" & INT((MONTH(EFA_Log[[#This Row],[Service Date ]])+2)/3), \"\")","v":""}]
[null,null,null,null,null,null,null,null,{"$f":"IF(EFA_Log[[#This Row],[Service Date ]], YEAR(EFA_Log[[#This Row],[Service Date ]]) & \"-\" & \"Q\" & INT((MONTH(EFA_Log[[#This Row],[Service Date ]])+2)/3), \"\")","v":""}]
[null,null,null,null,null,null,null,null,{"$f":"IF(EFA_Log[[#This Row],[Service Date ]], YEAR(EFA_Log[[#This Row],[Service Date ]]) & \"-\" & \"Q\" & INT((MONTH(EFA_Log[[#This Row],[Service Date ]])+2)/3), \"\")","v":""}]
[null,null,null,null,null,null,null,null,{"$f":"IF(EFA_Log[[#This Row],[Service Date ]], YEAR(EFA_Log[[#This Row],[Service Date ]]) & \"-\" & \"Q\" & INT((MONTH(EFA_Log[[#This Row],[Service Date ]])+2)/3), \"\")","v":""}]
[null,null,null,null,null,null,null,null,{"$f":"IF(EFA_Log[[#This Row],[Service Date ]], YEAR(EFA_Log[[#This Row],[Service Date ]]) & \"-\" & \"Q\" & INT((MONTH(EFA_Log[[#This Row],[Service Date ]])+2)/3), \"\")","v":""}]
[null,null,null,null,null,null,null,null,{"$f":"IF(EFA_Log[[#This Row],[Service Date ]], YEAR(EFA_Log[[#This Row],[Service Date ]]) & \"-\" & \"Q\" & INT((MONTH(EFA_Log[[#This Row],[Service Date ]])+2)/3), \"\")","v":""}]
[null,null,null,null,null,null,null,null,{"$f":"IF(EFA_Log[[#This Row],[Service Date ]], YEAR(EFA_Log[[#This Row],[Service Date ]]) & \"-\" & \"Q\" & INT((MONTH(EFA_Log[[#This Row],[Service Date ]])+2)/3), \"\")","v":""}]
[null,null,null,null,null,null,null,null,{"$f":"IF(EFA_Log[[#This Row],[Service Date ]], YEAR(EFA_Log[[#This Row],[Service Date ]]) & \"-\" & \"Q\" & INT((MONTH(EFA_Log[[#This Row],[Service Date ]])+2)/3), \"\")","v":""}]
[null,null,null,null,null,null,null,null,{"$f":"IF(EFA_Log[[#This Row],[Service Date ]], YEAR(EFA_Log[[#This Row],[Service Date ]]) & \"-\" & \"Q\" & INT((MONTH(EFA_Log[[#This Row],[Service Date ]])+2)/3), \"\")","v":""}]
[null,null,null,null,null,null,null,null,{"$f":"IF(EFA_Log[[#This Row],[Service Date ]], YEAR(EFA_Log[[#This Row],[Service Date ]]) & \"-\" & \"Q\" & INT((MONTH(EFA_Log[[#This Row],[Service Date ]])+2)/3), \"\")","v":""}]
[null,null,null,null,null,null,null,null,{"$f":"IF(EFA_Log[[#This Row],[Service Date ]], YEAR(EFA_Log[[#This Row],[Service Date ]]) & \"-\" & \"Q\" & INT((MONTH(EFA_Log[[#This Row],[Service Date ]])+2)/3), \"\")","v":""}]
[null,null,null,null,null,null,null,null,{"$f":"IF(EFA_Log[[#This Row],[Service Date ]], YEAR(EFA_Log[[#This Row],[Service Date ]]) & \"-\" & \"Q\" & INT((MONTH(EFA_Log[[#This Row],[Service Date ]])+2)/3), \"\")","v":""}]
[null,null,null,null,null,null,null,null,{"$f":"IF(EFA_Log[[#This Row],[Service Date ]], YEAR(EFA_Log[[#This Row],[Service Date ]]) & \"-\" & \"Q\" & INT((MONTH(EFA_Log[[#This Row],[Service Date ]])+2)/3), \"\")","v":""}]
[null,null,null,null,null,null,null,null,{"$f":"IF(EFA_Log[[#This Row],[Service Date ]], YEAR(EFA_Log[[#This Row],[Service Date ]]) & \"-\" & \"Q\" & INT((MONTH(EFA_Log[[#This Row],[Service Date ]])+2)/3), \"\")","v":""}]
[null,null,null,null,null,null,null,null,{"$f":"IF(EFA_Log[[#This Row],[Service Date ]], YEAR(EFA_Log[[#This Row],[Service Date ]]) & \"-\" & \"Q\" & INT((MONTH(EFA_Log[[#This Row],[Service Date ]])+2)/3), \"\")","v":""}]
[null,null,null,null,null,null,null,null,{"$f":"IF(EFA_Log[[#This Row],[Service Date ]], YEAR(EFA_Log[[#This Row],[Service Date ]]) & \"-\" & \"Q\" & INT((MONTH(EFA_Log[[#This Row],[Service Date ]])+2)/3), \"\")","v":""}]
[null,null,null,null,null,null,null,null,{"$f":"IF(EFA_Log[[#This Row],[Service Date ]], YEAR(EFA_Log[[#This Row],[Service Date ]]) & \"-\" & \"Q\" & INT((MONTH(EFA_Log[[#This Row],[Service Date ]])+2)/3), \"\")","v":""}]
[null,null,null,null,null,null,null,null,{"$f":"IF(EFA_Log[[#This Row],[Service Date ]], YEAR(EFA_Log[[#This Row],[Service Date ]]) & \"-\" & \"Q\" & INT((MONTH(EFA_Log[[#This Row],[Service Date ]])+2)/3), \"\")","v":""}]
[null,null,null,null,null,null,null,null,{"$f":"IF(EFA_Log[[#This Row],[Service Date ]], YEAR(EFA_Log[[#This Row],[Service Date ]]) & \"-\" & \"Q\" & INT((MONTH(EFA_Log[[#This Row],[Service Date ]])+2)/3), \"\")","v":""}]
[null,null,null,null,null,null,null,null,{"$f":"IF(EFA_Log[[#This Row],[Service Date ]], YEAR(EFA_Log[[#This Row],[Service Date ]]) & \"-\" & \"Q\" & INT((MONTH(EFA_Log[[#This Row],[Service Date ]])+2)/3), \"\")","v":""}]
[null,null,null,null,null,null,null,null,{"$f":"IF(EFA_Log[[#This Row],[Service Date ]], YEAR(EFA_Log[[#This Row],[Service Date ]]) & \"-\" & \"Q\" & INT((MONTH(EFA_Log[[#This Row],[Service Date ]])+2)/3), \"\")","v":""}]
[null,null,null,null,null,null,null,null,{"$f":"IF(EFA_Log[[#This Row],[Service Date ]], YEAR(EFA_Log[[#This Row],[Service Date ]]) & \"-\" & \"Q\" & INT((MONTH(EFA_Log[[#This Row],[Service Date ]])+2)/3), \"\")","v":""}]
[null,null,null,null,null,null,null,null,{"$f":"IF(EFA_Log[[#This Row],[Service Date ]], YEAR(EFA_Log[[#This Row],[Service Date ]]) & \"-\" & \"Q\" & INT((MONTH(EFA_Log[[#This Row],[Service Date ]])+2)/3), \"\")","v":""}]
[null,null,null,null,null,null,null,null,{"$f":"IF(EFA_Log[[#This Row],[Service Date ]], YEAR(EFA_Log[[#This Row],[Service Date ]]) & \"-\" & \"Q\" & INT((MONTH(EFA_Log[[#This Row],[Service Date ]])+2)/3), \"\")","v":""}]
[null,null,null,null,null,null,null,null,{"$f":"IF(EFA_Log[[#This Row],[Service Date ]], YEAR(EFA_Log[[#This Row],[Service Date ]]) & \"-\" & \"Q\" & INT((MONTH(EFA_Log[[#This Row],[Service Date ]])+2)/3), \"\")","v":""}]
[null,null,null,null,null,null,null,null,{"$f":"IF(EFA_Log[[#This Row],[Service Date ]], YEAR(EFA_Log[[#This Row],[Service Date ]]) & \"-\" & \"Q\" & INT((MONTH(EFA_Log[[#This Row],[Service Date ]])+2)/3), \"\")","v":""}]
[null,null,null,null,null,null,null,null,{"$f":"IF(EFA_Log[[#This Row],[Service Date ]], YEAR(EFA_Log[[#This Row],[Service Date ]]) & \"-\" & \"Q\" & INT((MONTH(EFA_Log[[#This Row],[Service Date ]])+2)/3), \"\")","v":""}]
[null,null,null,null,null,null,null,null,{"$f":"IF(EFA_Log[[#This Row],[Service Date ]], YEAR(EFA_Log[[#This Row],[Service Date ]]) & \"-\" & \"Q\" & INT((MONTH(EFA_Log[[#This Row],[Service Date ]])+2)/3), \"\")","v":""}]
[null,null,null,null,null,null,null,null,{"$f":"IF(EFA_Log[[#This Row],[Service Date ]], YEAR(EFA_Log[[#This Row],[Service Date ]]) & \"-\" & \"Q\" & INT((MONTH(EFA_Log[[#This Row],[Service Date ]])+2)/3), \"\")","v":""}]
[null,null,null,null,null,null,null,null,{"$f":"IF(EFA_Log[[#This Row],[Service Date ]], YEAR(EFA_Log[[#This Row],[Service Date ]]) & \"-\" & \"Q\" & INT((MONTH(EFA_Log[[#This Row],[Service Date ]])+2)/3), \"\")","v":""}]
[null,null,null,null,null,null,null,null,{"$f":"IF(EFA_Log[[#This Row],[Service Date ]], YEAR(EFA_Log[[#This Row],[Service Date ]]) & \"-\" & \"Q\" & INT((MONTH(EFA_Log[[#This Row],[Service Date ]])+2)/3), \"\")","v":""}]
[null,null,null,null,null,null,null,null,{"$f":"IF(EFA_Log[[#This Row],[Service Date ]], YEAR(EFA_Log[[#This Row],[Service Date ]]) & \"-\" & \"Q\" & INT((MONTH(EFA_Log[[#This Row],[Service Date ]])+2)/3), \"\")","v":""}]
[null,null,null,null,null,null,null,null,{"$f":"IF(EFA_Log[[#This Row],[Service Date ]], YEAR(EFA_Log[[#This Row],[Service Date ]]) & \"-\" & \"Q\" & INT((MONTH(EFA_Log[[#This Row],[Service Date ]])+2)/3), \"\")","v":""}]
[null,null,null,null,null,null,null,null,{"$f":"IF(EFA_Log[[#This Row],[Service Date ]], YEAR(EFA_Log[[#This Row],[Service Date ]]) & \"-\" & \"Q\" & INT((MONTH(EFA_Log[[#This Row],[Service Date ]])+2)/3), \"\")","v":""}]
[null,null,null,null,null,null,null,null,{"$f":"IF(EFA_Log[[#This Row],[Service Date ]], YEAR(EFA_Log[[#This Row],[Service Date ]]) & \"-\" & \"Q\" & INT((MONTH(EFA_Log[[#This Row],[Service Date ]])+2)/3), \"\")","v":""}]
[null,null,null,null,null,null,null,null,{"$f":"IF(EFA_Log[[#This Row],[Service Date ]], YEAR(EFA_Log[[#This Row],[Service Date ]]) & \"-\" & \"Q\" & INT((MONTH(EFA_Log[[#This Row],[Service Date ]])+2)/3), \"\")","v":""}]
[null,null,null,null,null,null,null,null,{"$f":"IF(EFA_Log[[#This Row],[Service Date ]], YEAR(EFA_Log[[#This Row],[Service Date ]]) & \"-\" & \"Q\" & INT((MONTH(EFA_Log[[#This Row],[Service Date ]])+2)/3), \"\")","v":""}]
[null,null,null,null,null,null,null,null,{"$f":"IF(EFA_Log[[#This Row],[Service Date ]], YEAR(EFA_Log[[#This Row],[Service Date ]]) & \"-\" & \"Q\" & INT((MONTH(EFA_Log[[#This Row],[Service Date ]])+2)/3), \"\")","v":""}]
[null,null,null,null,null,null,null,null,{"$f":"IF(EFA_Log[[#This Row],[Service Date ]], YEAR(EFA_Log[[#This Row],[Service Date ]]) & \"-\" & \"Q\" & INT((MONTH(EFA_Log[[#This Row],[Service Date ]])+2)/3), \"\")","v":""}]
[null,null,null,null,null,null,null,null,{"$f":"IF(EFA_Log[[#This Row],[Service Date ]], YEAR(EFA_Log[[#This Row],[Service Date ]]) & \"-\" & \"Q\" & INT((MONTH(EFA_Log[[#This Row],[Service Date ]])+2)/3), \"\")","v":""}]
[null,null,null,null,null,null,null,null,{"$f":"IF(EFA_Log[[#This Row],[Service Date ]], YEAR(EFA_Log[[#This Row],[Service Date ]]) & \"-\" & \"Q\" & INT((MONTH(EFA_Log[[#This Row],[Service Date ]])+2)/3), \"\")","v":""}]
[null,null,null,null,null,null,null,null,{"$f":"IF(EFA_Log[[#This Row],[Service Date ]], YEAR(EFA_Log[[#This Row],[Service Date ]]) & \"-\" & \"Q\" & INT((MONTH(EFA_Log[[#This Row],[Service Date ]])+2)/3), \"\")","v":""}]
[null,null,null,null,null,null,null,null,{"$f":"IF(EFA_Log[[#This Row],[Service Date ]], YEAR(EFA_Log[[#This Row],[Service Date ]]) & \"-\" & \"Q\" & INT((MONTH(EFA_Log[[#This Row],[Service Date ]])+2)/3), \"\")","v":""}]
[null,null,null,null,null,null,null,null,{"$f":"IF(EFA_Log[[#This Row],[Service Date ]], YEAR(EFA_Log[[#This Row],[Service Date ]]) & \"-\" & \"Q\" & INT((MONTH(EFA_Log[[#This Row],[Service Date ]])+2)/3), \"\")","v":""}]
[null,null,null,null,null,null,null,null,{"$f":"IF(EFA_Log[[#This Row],[Service Date ]], YEAR(EFA_Log[[#This Row],[Service Date ]]) & \"-\" & \"Q\" & INT((MONTH(EFA_Log[[#This Row],[Service Date ]])+2)/3), \"\")","v":""}]
[null,null,null,null,null,null,null,null,{"$f":"IF(EFA_Log[[#This Row],[Service Date ]], YEAR(EFA_Log[[#This Row],[Service Date ]]) & \"-\" & \"Q\" & INT((MONTH(EFA_Log[[#This Row],[Service Date ]])+2)/3), \"\")","v":""}]
[null,null,null,null,null,null,null,null,{"$f":"IF(EFA_Log[[#This Row],[Service Date ]], YEAR(EFA_Log[[#This Row],[Service Date ]]) & \"-\" & \"Q\" & INT((MONTH(EFA_Log[[#This Row],[Service Date ]])+2)/3), \"\")","v":""}]
[null,null,null,null,null,null,null,null,{"$f":"IF(EFA_Log[[#This Row],[Service Date ]], YEAR(EFA_Log[[#This Row],[Service Date ]]) & \"-\" & \"Q\" & INT((MONTH(EFA_Log[[#This Row],[Service Date ]])+2)/3), \"\")","v":""}]
[null,null,null,null,null,null,null,null,{"$f":"IF(EFA_Log[[#This Row],[Service Date ]], YEAR(EFA_Log[[#This Row],[Service Date ]]) & \"-\" & \"Q\" & INT((MONTH(EFA_Log[[#This Row],[Service Date ]])+2)/3), \"\")","v":""}]
[null,null,null,null,null,null,null,null,{"$f":"IF(EFA_Log[[#This Row],[Service Date ]], YEAR(EFA_Log[[#This Row],[Service Date ]]) & \"-\" & \"Q\" & INT((MONTH(EFA_Log[[#This Row],[Service Date ]])+2)/3), \"\")","v":""}]
[null,null,null,null,null,null,null,null,{"$f":"IF(EFA_Log[[#This Row],[Service Date ]], YEAR(EFA_Log[[#This Row],[Service Date ]]) & \"-\" & \"Q\" & INT((MONTH(EFA_Log[[#This Row],[Service Date ]])+2)/3), \"\")","v":""}]
[null,null,null,null,null,null,null,null,{"$f":"IF(EFA_Log[[#This Row],[Service Date ]], YEAR(EFA_Log[[#This Row],[Service Date ]]) & \"-\" & \"Q\" & INT((MONTH(EFA_Log[[#This Row],[Service Date ]])+2)/3), \"\")","v":""}]
[null,null,null,null,null,null,null,null,{"$f":"IF(EFA_Log[[#This Row],[Service Date ]], YEAR(EFA_Log[[#This Row],[Service Date ]]) & \"-\" & \"Q\" & INT((MONTH(EFA_Log[[#This Row],[Service Date ]])+2)/3), \"\")","v":""}]
[null,null,null,null,null,null,null,null,{"$f":"IF(EFA_Log[[#This Row],[Service Date ]], YEAR(EFA_Log[[#This Row],[Service Date ]]) & \"-\" & \"Q\" & INT((MONTH(EFA_Log[[#This Row],[Service Date ]])+2)/3), \"\")","v":""}]
[null,null,null,null,null,null,null,null,{"$f":"IF(EFA_Log[[#This Row],[Service Date ]], YEAR(EFA_Log[[#This Row],[Service Date ]]) & \"-\" & \"Q\" & INT((MONTH(EFA_Log[[#This Row],[Service Date ]])+2)/3), \"\")","v":""}]
[null,null,null,null,null,null,null,null,{"$f":"IF(EFA_Log[[#This Row],[Service Date ]], YEAR(EFA_Log[[#This Row],[Service Date ]]) & \"-\" & \"Q\" & INT((MONTH(EFA_Log[[#This Row],[Service Date ]])+2)/3), \"\")","v":""}]
[null,null,null,null,null,null,null,null,{"$f":"IF(EFA_Log[[#This Row],[Service Date ]], YEAR(EFA_Log[[#This Row],[Service Date ]]) & \"-\" & \"Q\" & INT((MONTH(EFA_Log[[#This Row],[Service Date ]])+2)/3), \"\")","v":""}]
[null,null,null,null,null,null,null,null,{"$f":"IF(EFA_Log[[#This Row],[Service Date ]], YEAR(EFA_Log[[#This Row],[Service Date ]]) & \"-\" & \"Q\" & INT((MONTH(EFA_Log[[#This Row],[Service Date ]])+2)/3), \"\")","v":""}]
[null,null,null,null,null,null,null,null,{"$f":"IF(EFA_Log[[#This Row],[Service Date ]], YEAR(EFA_Log[[#This Row],[Service Date ]]) & \"-\" & \"Q\" & INT((MONTH(EFA_Log[[#This Row],[Service Date ]])+2)/3), \"\")","v":""}]
[null,null,null,null,null,null,null,null,{"$f":"IF(EFA_Log[[#This Row],[Service Date ]], YEAR(EFA_Log[[#This Row],[Service Date ]]) & \"-\" & \"Q\" & INT((MONTH(EFA_Log[[#This Row],[Service Date ]])+2)/3), \"\")","v":""}]
[null,null,null,null,null,null,null,null,{"$f":"IF(EFA_Log[[#This Row],[Service Date ]], YEAR(EFA_Log[[#This Row],[Service Date ]]) & \"-\" & \"Q\" & INT((MONTH(EFA_Log[[#This Row],[Service Date ]])+2)/3), \"\")","v":""}]
[null,null,null,null,null,null,null,null,{"$f":"IF(EFA_Log[[#This Row],[Service Date ]], YEAR(EFA_Log[[#This Row],[Service Date ]]) & \"-\" & \"Q\" & INT((MONTH(EFA_Log[[#This Row],[Service Date ]])+2)/3), \"\")","v":""}]
[null,null,null,null,null,null,null,null,{"$f":"IF(EFA_Log[[#This Row],[Service Date ]], YEAR(EFA_Log[[#This Row],[Service Date ]]) & \"-\" & \"Q\" & INT((MONTH(EFA_Log[[#This Row],[Service Date ]])+2)/3), \"\")","v":""}]
[null,null,null,null,null,null,null,null,{"$f":"IF(EFA_Log[[#This Row],[Service Date ]], YEAR(EFA_Log[[#This Row],[Service Date ]]) & \"-\" & \"Q\" & INT((MONTH(EFA_Log[[#This Row],[Service Date ]])+2)/3), \"\")","v":""}]
[null,null,null,null,null,null,null,null,{"$f":"IF(EFA_Log[[#This Row],[Service Date ]], YEAR(EFA_Log[[#This Row],[Service Date ]]) & \"-\" & \"Q\" & INT((MONTH(EFA_Log[[#This Row],[Service Date ]])+2)/3), \"\")","v":""}]
[null,null,null,null,null,null,null,null,{"$f":"IF(EFA_Log[[#This Row],[Service Date ]], YEAR(EFA_Log[[#This Row],[Service Date ]]) & \"-\" & \"Q\" & INT((MONTH(EFA_Log[[#This Row],[Service Date ]])+2)/3), \"\")","v":""}]
[null,null,null,null,null,null,null,null,{"$f":"IF(EFA_Log[[#This Row],[Service Date ]], YEAR(EFA_Log[[#This Row],[Service Date ]]) & \"-\" & \"Q\" & INT((MONTH(EFA_Log[[#This Row],[Service Date ]])+2)/3), \"\")","v":""}]
[null,null,null,null,null,null,null,null,{"$f":"IF(EFA_Log[[#This Row],[Service Date ]], YEAR(EFA_Log[[#This Row],[Service Date ]]) & \"-\" & \"Q\" & INT((MONTH(EFA_Log[[#This Row],[Service Date ]])+2)/3), \"\")","v":""}]
[null,null,null,null,null,null,null,null,{"$f":"IF(EFA_Log[[#This Row],[Service Date ]], YEAR(EFA_Log[[#This Row],[Service Date ]]) & \"-\" & \"Q\" & INT((MONTH(EFA_Log[[#This Row],[Service Date ]])+2)/3), \"\")","v":""}]
[null,null,null,null,null,null,null,null,{"$f":"IF(EFA_Log[[#This Row],[Service Date ]], YEAR(EFA_Log[[#This Row],[Service Date ]]) & \"-\" & \"Q\" & INT((MONTH(EFA_Log[[#This Row],[Service Date ]])+2)/3), \"\")","v":""}]
[null,null,null,null,null,null,null,null,{"$f":"IF(EFA_Log[[#This Row],[Service Date ]], YEAR(EFA_Log[[#This Row],[Service Date ]]) & \"-\" & \"Q\" & INT((MONTH(EFA_Log[[#This Row],[Service Date ]])+2)/3), \"\")","v":""}]
[null,null,null,null,null,null,null,null,{"$f":"IF(EFA_Log[[#This Row],[Service Date ]], YEAR(EFA_Log[[#This Row],[Service Date ]]) & \"-\" & \"Q\" & INT((MONTH(EFA_Log[[#This Row],[Service Date ]])+2)/3), \"\")","v":""}]
[null,null,null,null,null,null,null,null,{"$f":"IF(EFA_Log[[#This Row],[Service Date ]], YEAR(EFA_Log[[#This Row],[Service Date ]]) & \"-\" & \"Q\" & INT((MONTH(EFA_Log[[#This Row],[Service Date ]])+2)/3), \"\")","v":""}]
[null,null,null,null,null,null,null,null,{"$f":"IF(EFA_Log[[#This Row],[Service Date ]], YEAR(EFA_Log[[#This Row],[Service Date ]]) & \"-\" & \"Q\" & INT((MONTH(EFA_Log[[#This Row],[Service Date ]])+2)/3), \"\")","v":""}]
[null,null,null,null,null,null,null,null,{"$f":"IF(EFA_Log[[#This Row],[Service Date ]], YEAR(EFA_Log[[#This Row],[Service Date ]]) & \"-\" & \"Q\" & INT((MONTH(EFA_Log[[#This Row],[Service Date ]])+2)/3), \"\")","v":""}]
[null,null,null,null,null,null,null,null,{"$f":"IF(EFA_Log[[#This Row],[Service Date ]], YEAR(EFA_Log[[#This Row],[Service Date ]]) & \"-\" & \"Q\" & INT((MONTH(EFA_Log[[#This Row],[Service Date ]])+2)/3), \"\")","v":""}]
[null,null,null,null,null,null,null,null,{"$f":"IF(EFA_Log[[#This Row],[Service Date ]], YEAR(EFA_Log[[#This Row],[Service Date ]]) & \"-\" & \"Q\" & INT((MONTH(EFA_Log[[#This Row],[Service Date ]])+2)/3), \"\")","v":""}]
[null,null,null,null,null,null,null,null,{"$f":"IF(EFA_Log[[#This Row],[Service Date ]], YEAR(EFA_Log[[#This Row],[Service Date ]]) & \"-\" & \"Q\" & INT((MONTH(EFA_Log[[#This Row],[Service Date ]])+2)/3), \"\")","v":""}]
[null,null,null,null,null,null,null,null,{"$f":"IF(EFA_Log[[#This Row],[Service Date ]], YEAR(EFA_Log[[#This Row],[Service Date ]]) & \"-\" & \"Q\" & INT((MONTH(EFA_Log[[#This Row],[Service Date ]])+2)/3), \"\")","v":""}]
[null,null,null,null,null,null,null,null,{"$f":"IF(EFA_Log[[#This Row],[Service Date ]], YEAR(EFA_Log[[#This Row],[Service Date ]]) & \"-\" & \"Q\" & INT((MONTH(EFA_Log[[#This Row],[Service Date ]])+2)/3), \"\")","v":""}]
[null,null,null,null,null,null,null,null,{"$f":"IF(EFA_Log[[#This Row],[Service Date ]], YEAR(EFA_Log[[#This Row],[Service Date ]]) & \"-\" & \"Q\" & INT((MONTH(EFA_Log[[#This Row],[Service Date ]])+2)/3), \"\")","v":""}]
[null,null,null,null,null,null,null,null,{"$f":"IF(EFA_Log[[#This Row],[Service Date ]], YEAR(EFA_Log[[#This Row],[Service Date ]]) & \"-\" & \"Q\" & INT((MONTH(EFA_Log[[#This Row],[Service Date ]])+2)/3), \"\")","v":""}]
[null,null,null,null,null,null,null,null,{"$f":"IF(EFA_Log[[#This Row],[Service Date ]], YEAR(EFA_Log[[#This Row],[Service Date ]]) & \"-\" & \"Q\" & INT((MONTH(EFA_Log[[#This Row],[Service Date ]])+2)/3), \"\")","v":""}]
[null,null,null,null,null,null,null,null,{"$f":"IF(EFA_Log[[#This Row],[Service Date ]], YEAR(EFA_Log[[#This Row],[Service Date ]]) & \"-\" & \"Q\" & INT((MONTH(EFA_Log[[#This Row],[Service Date ]])+2)/3), \"\")","v":""}]
[null,null,null,null,null,null,null,null,{"$f":"IF(EFA_Log[[#This Row],[Service Date ]], YEAR(EFA_Log[[#This Row],[Service Date ]]) & \"-\" & \"Q\" & INT((MONTH(EFA_Log[[#This Row],[Service Date ]])+2)/3), \"\")","v":""}]
[null,null,null,null,null,null,null,null,{"$f":"IF(EFA_Log[[#This Row],[Service Date ]], YEAR(EFA_Log[[#This Row],[Service Date ]]) & \"-\" & \"Q\" & INT((MONTH(EFA_Log[[#This Row],[Service Date ]])+2)/3), \"\")","v":""}]
[null,null,null,null,null,null,null,null,{"$f":"IF(EFA_Log[[#This Row],[Service Date ]], YEAR(EFA_Log[[#This Row],[Service Date ]]) & \"-\" & \"Q\" & INT((MONTH(EFA_Log[[#This Row],[Service Date ]])+2)/3), \"\")","v":""}]
[null,null,null,null,null,null,null,null,{"$f":"IF(EFA_Log[[#This Row],[Service Date ]], YEAR(EFA_Log[[#This Row],[Service Date ]]) & \"-\" & \"Q\" & INT((MONTH(EFA_Log[[#This Row],[Service Date ]])+2)/3), \"\")","v":""}]
[null,null,null,null,null,null,null,null,{"$f":"IF(EFA_Log[[#This Row],[Service Date ]], YEAR(EFA_Log[[#This Row],[Service Date ]]) & \"-\" & \"Q\" & INT((MONTH(EFA_Log[[#This Row],[Service Date ]])+2)/3), \"\")","v":""}]
[null,null,null,null,null,null,null,null,{"$f":"IF(EFA_Log[[#This Row],[Service Date ]], YEAR(EFA_Log[[#This Row],[Service Date ]]) & \"-\" & \"Q\" & INT((MONTH(EFA_Log[[#This Row],[Service Date ]])+2)/3), \"\")","v":""}]
[null,null,null,null,null,null,null,null,{"$f":"IF(EFA_Log[[#This Row],[Service Date ]], YEAR(EFA_Log[[#This Row],[Service Date ]]) & \"-\" & \"Q\" & INT((MONTH(EFA_Log[[#This Row],[Service Date ]])+2)/3), \"\")","v":""}]
[null,null,null,null,null,null,null,null,{"$f":"IF(EFA_Log[[#This Row],[Service Date ]], YEAR(EFA_Log[[#This Row],[Service Date ]]) & \"-\" & \"Q\" & INT((MONTH(EFA_Log[[#This Row],[Service Date ]])+2)/3), \"\")","v":""}]
[null,null,null,null,null,null,null,null,{"$f":"IF(EFA_Log[[#This Row],[Service Date ]], YEAR(EFA_Log[[#This Row],[Service Date ]]) & \"-\" & \"Q\" & INT((MONTH(EFA_Log[[#This Row],[Service Date ]])+2)/3), \"\")","v":""}]
[null,null,null,null,null,null,null,null,{"$f":"IF(EFA_Log[[#This Row],[Service Date ]], YEAR(EFA_Log[[#This Row],[Service Date ]]) & \"-\" & \"Q\" & INT((MONTH(EFA_Log[[#This Row],[Service Date ]])+2)/3), \"\")","v":""}]
[null,null,null,null,null,null,null,null,{"$f":"IF(EFA_Log[[#This Row],[Service Date ]], YEAR(EFA_Log[[#This Row],[Service Date ]]) & \"-\" & \"Q\" & INT((MONTH(EFA_Log[[#This Row],[Service Date ]])+2)/3), \"\")","v":""}]
[null,null,null,null,null,null,null,null,{"$f":"IF(EFA_Log[[#This Row],[Service Date ]], YEAR(EFA_Log[[#This Row],[Service Date ]]) & \"-\" & \"Q\" & INT((MONTH(EFA_Log[[#This Row],[Service Date ]])+2)/3), \"\")","v":""}]
[null,null,null,null,null,null,null,null,{"$f":"IF(EFA_Log[[#This Row],[Service Date ]], YEAR(EFA_Log[[#This Row],[Service Date ]]) & \"-\" & \"Q\" & INT((MONTH(EFA_Log[[#This Row],[Service Date ]])+2)/3), \"\")","v":""}]
[null,null,null,null,null,null,null,null,{"$f":"IF(EFA_Log[[#This Row],[Service Date ]], YEAR(EFA_Log[[#This Row],[Service Date ]]) & \"-\" & \"Q\" & INT((MONTH(EFA_Log[[#This Row],[Service Date ]])+2)/3), \"\")","v":""}]
[null,null,null,null,null,null,null,null,{"$f":"IF(EFA_Log[[#This Row],[Service Date ]], YEAR(EFA_Log[[#This Row],[Service Date ]]) & \"-\" & \"Q\" & INT((MONTH(EFA_Log[[#This Row],[Service Date ]])+2)/3), \"\")","v":""}]
[null,null,null,null,null,null,null,null,{"$f":"IF(EFA_Log[[#This Row],[Service Date ]], YEAR(EFA_Log[[#This Row],[Service Date ]]) & \"-\" & \"Q\" & INT((MONTH(EFA_Log[[#This Row],[Service Date ]])+2)/3), \"\")","v":""}]
[null,null,null,null,null,null,null,null,{"$f":"IF(EFA_Log[[#This Row],[Service Date ]], YEAR(EFA_Log[[#This Row],[Service Date ]]) & \"-\" & \"Q\" & INT((MONTH(EFA_Log[[#This Row],[Service Date ]])+2)/3), \"\")","v":""}]
[null,null,null,null,null,null,null,null,{"$f":"IF(EFA_Log[[#This Row],[Service Date ]], YEAR(EFA_Log[[#This Row],[Service Date ]]) & \"-\" & \"Q\" & INT((MONTH(EFA_Log[[#This Row],[Service Date ]])+2)/3), \"\")","v":""}]
[null,null,null,null,null,null,null,null,{"$f":"IF(EFA_Log[[#This Row],[Service Date ]], YEAR(EFA_Log[[#This Row],[Service Date ]]) & \"-\" & \"Q\" & INT((MONTH(EFA_Log[[#This Row],[Service Date ]])+2)/3), \"\")","v":""}]
[null,null,null,null,null,null,null,null,{"$f":"IF(EFA_Log[[#This Row],[Service Date ]], YEAR(EFA_Log[[#This Row],[Service Date ]]) & \"-\" & \"Q\" & INT((MONTH(EFA_Log[[#This Row],[Service Date ]])+2)/3), \"\")","v":""}]
[null,null,null,null,null,null,null,null,{"$f":"IF(EFA_Log[[#This Row],[Service Date ]], YEAR(EFA_Log[[#This Row],[Service Date ]]) & \"-\" & \"Q\" & INT((MONTH(EFA_Log[[#This Row],[Service Date ]])+2)/3), \"\")","v":""}]
[null,null,null,null,null,null,null,null,{"$f":"IF(EFA_Log[[#This Row],[Service Date ]], YEAR(EFA_Log[[#This Row],[Service Date ]]) & \"-\" & \"Q\" & INT((MONTH(EFA_Log[[#This Row],[Service Date ]])+2)/3), \"\")","v":""}]
[null,null,null,null,null,null,null,null,{"$f":"IF(EFA_Log[[#This Row],[Service Date ]], YEAR(EFA_Log[[#This Row],[Service Date ]]) & \"-\" & \"Q\" & INT((MONTH(EFA_Log[[#This Row],[Service Date ]])+2)/3), \"\")","v":""}]
[null,null,null,null,null,null,null,null,{"$f":"IF(EFA_Log[[#This Row],[Service Date ]], YEAR(EFA_Log[[#This Row],[Service Date ]]) & \"-\" & \"Q\" & INT((MONTH(EFA_Log[[#This Row],[Service Date ]])+2)/3), \"\")","v":""}]
[null,null,null,null,null,null,null,null,{"$f":"IF(EFA_Log[[#This Row],[Service Date ]], YEAR(EFA_Log[[#This Row],[Service Date ]]) & \"-\" & \"Q\" & INT((MONTH(EFA_Log[[#This Row],[Service Date ]])+2)/3), \"\")","v":""}]
[null,null,null,null,null,null,null,null,{"$f":"IF(EFA_Log[[#This Row],[Service Date ]], YEAR(EFA_Log[[#This Row],[Service Date ]]) & \"-\" & \"Q\" & INT((MONTH(EFA_Log[[#This Row],[Service Date ]])+2)/3), \"\")","v":""}]
[null,null,null,null,null,null,null,null,{"$f":"IF(EFA_Log[[#This Row],[Service Date ]], YEAR(EFA_Log[[#This Row],[Service Date ]]) & \"-\" & \"Q\" & INT((MONTH(EFA_Log[[#This Row],[Service Date ]])+2)/3), \"\")","v":""}]
[null,null,null,null,null,null,null,null,{"$f":"IF(EFA_Log[[#This Row],[Service Date ]], YEAR(EFA_Log[[#This Row],[Service Date ]]) & \"-\" & \"Q\" & INT((MONTH(EFA_Log[[#This Row],[Service Date ]])+2)/3), \"\")","v":""}]
[null,null,null,null,null,null,null,null,{"$f":"IF(EFA_Log[[#This Row],[Service Date ]], YEAR(EFA_Log[[#This Row],[Service Date ]]) & \"-\" & \"Q\" & INT((MONTH(EFA_Log[[#This Row],[Service Date ]])+2)/3), \"\")","v":""}]
[null,null,null,null,null,null,null,null,{"$f":"IF(EFA_Log[[#This Row],[Service Date ]], YEAR(EFA_Log[[#This Row],[Service Date ]]) & \"-\" & \"Q\" & INT((MONTH(EFA_Log[[#This Row],[Service Date ]])+2)/3), \"\")","v":""}]
[null,null,null,null,null,null,null,null,{"$f":"IF(EFA_Log[[#This Row],[Service Date ]], YEAR(EFA_Log[[#This Row],[Service Date ]]) & \"-\" & \"Q\" & INT((MONTH(EFA_Log[[#This Row],[Service Date ]])+2)/3), \"\")","v":""}]
[null,null,null,null,null,null,null,null,{"$f":"IF(EFA_Log[[#This Row],[Service Date ]], YEAR(EFA_Log[[#This Row],[Service Date ]]) & \"-\" & \"Q\" & INT((MONTH(EFA_Log[[#This Row],[Service Date ]])+2)/3), \"\")","v":""}]
[null,null,null,null,null,null,null,null,{"$f":"IF(EFA_Log[[#This Row],[Service Date ]], YEAR(EFA_Log[[#This Row],[Service Date ]]) & \"-\" & \"Q\" & INT((MONTH(EFA_Log[[#This Row],[Service Date ]])+2)/3), \"\")","v":""}]
[null,null,null,null,null,null,null,null,{"$f":"IF(EFA_Log[[#This Row],[Service Date ]], YEAR(EFA_Log[[#This Row],[Service Date ]]) & \"-\" & \"Q\" & INT((MONTH(EFA_Log[[#This Row],[Service Date ]])+2)/3), \"\")","v":""}]
[null,null,null,null,null,null,null,null,{"$f":"IF(EFA_Log[[#This Row],[Service Date ]], YEAR(EFA_Log[[#This Row],[Service Date ]]) & \"-\" & \"Q\" & INT((MONTH(EFA_Log[[#This Row],[Service Date ]])+2)/3), \"\")","v":""}]
[null,null,null,null,null,null,null,null,{"$f":"IF(EFA_Log[[#This Row],[Service Date ]], YEAR(EFA_Log[[#This Row],[Service Date ]]) & \"-\" & \"Q\" & INT((MONTH(EFA_Log[[#This Row],[Service Date ]])+2)/3), \"\")","v":""}]
[null,null,null,null,null,null,null,null,{"$f":"IF(EFA_Log[[#This Row],[Service Date ]], YEAR(EFA_Log[[#This Row],[Service Date ]]) & \"-\" & \"Q\" & INT((MONTH(EFA_Log[[#This Row],[Service Date ]])+2)/3), \"\")","v":""}]
[null,null,null,null,null,null,null,null,{"$f":"IF(EFA_Log[[#This Row],[Service Date ]], YEAR(EFA_Log[[#This Row],[Service Date ]]) & \"-\" & \"Q\" & INT((MONTH(EFA_Log[[#This Row],[Service Date ]])+2)/3), \"\")","v":""}]
[null,null,null,null,null,null,null,null,{"$f":"IF(EFA_Log[[#This Row],[Service Date ]], YEAR(EFA_Log[[#This Row],[Service Date ]]) & \"-\" & \"Q\" & INT((MONTH(EFA_Log[[#This Row],[Service Date ]])+2)/3), \"\")","v":""}]
[null,null,null,null,null,null,null,null,{"$f":"IF(EFA_Log[[#This Row],[Service Date ]], YEAR(EFA_Log[[#This Row],[Service Date ]]) & \"-\" & \"Q\" & INT((MONTH(EFA_Log[[#This Row],[Service Date ]])+2)/3), \"\")","v":""}]
[null,null,null,null,null,null,null,null,{"$f":"IF(EFA_Log[[#This Row],[Service Date ]], YEAR(EFA_Log[[#This Row],[Service Date ]]) & \"-\" & \"Q\" & INT((MONTH(EFA_Log[[#This Row],[Service Date ]])+2)/3), \"\")","v":""}]
[null,null,null,null,null,null,null,null,{"$f":"IF(EFA_Log[[#This Row],[Service Date ]], YEAR(EFA_Log[[#This Row],[Service Date ]]) & \"-\" & \"Q\" & INT((MONTH(EFA_Log[[#This Row],[Service Date ]])+2)/3), \"\")","v":""}]
[null,null,null,null,null,null,null,null,{"$f":"IF(EFA_Log[[#This Row],[Service Date ]], YEAR(EFA_Log[[#This Row],[Service Date ]]) & \"-\" & \"Q\" & INT((MONTH(EFA_Log[[#This Row],[Service Date ]])+2)/3), \"\")","v":""}]
[null,null,null,null,null,null,null,null,{"$f":"IF(EFA_Log[[#This Row],[Service Date ]], YEAR(EFA_Log[[#This Row],[Service Date ]]) & \"-\" & \"Q\" & INT((MONTH(EFA_Log[[#This Row],[Service Date ]])+2)/3), \"\")","v":""}]
[null,null,null,null,null,null,null,null,{"$f":"IF(EFA_Log[[#This Row],[Service Date ]], YEAR(EFA_Log[[#This Row],[Service Date ]]) & \"-\" & \"Q\" & INT((MONTH(EFA_Log[[#This Row],[Service Date ]])+2)/3), \"\")","v":""}]
[null,null,null,null,null,null,null,null,{"$f":"IF(EFA_Log[[#This Row],[Service Date ]], YEAR(EFA_Log[[#This Row],[Service Date ]]) & \"-\" & \"Q\" & INT((MONTH(EFA_Log[[#This Row],[Service Date ]])+2)/3), \"\")","v":""}]
[null,null,null,null,null,null,null,null,{"$f":"IF(EFA_Log[[#This Row],[Service Date ]], YEAR(EFA_Log[[#This Row],[Service Date ]]) & \"-\" & \"Q\" & INT((MONTH(EFA_Log[[#This Row],[Service Date ]])+2)/3), \"\")","v":""}]
[null,null,null,null,null,null,null,null,{"$f":"IF(EFA_Log[[#This Row],[Service Date ]], YEAR(EFA_Log[[#This Row],[Service Date ]]) & \"-\" & \"Q\" & INT((MONTH(EFA_Log[[#This Row],[Service Date ]])+2)/3), \"\")","v":""}]
[null,null,null,null,null,null,null,null,{"$f":"IF(EFA_Log[[#This Row],[Service Date ]], YEAR(EFA_Log[[#This Row],[Service Date ]]) & \"-\" & \"Q\" & INT((MONTH(EFA_Log[[#This Row],[Service Date ]])+2)/3), \"\")","v":""}]
[null,null,null,null,null,null,null,null,{"$f":"IF(EFA_Log[[#This Row],[Service Date ]], YEAR(EFA_Log[[#This Row],[Service Date ]]) & \"-\" & \"Q\" & INT((MONTH(EFA_Log[[#This Row],[Service Date ]])+2)/3), \"\")","v":""}]
[null,null,null,null,null,null,null,null,{"$f":"IF(EFA_Log[[#This Row],[Service Date ]], YEAR(EFA_Log[[#This Row],[Service Date ]]) & \"-\" & \"Q\" & INT((MONTH(EFA_Log[[#This Row],[Service Date ]])+2)/3), \"\")","v":""}]
[null,null,null,null,null,null,null,null,{"$f":"IF(EFA_Log[[#This Row],[Service Date ]], YEAR(EFA_Log[[#This Row],[Service Date ]]) & \"-\" & \"Q\" & INT((MONTH(EFA_Log[[#This Row],[Service Date ]])+2)/3), \"\")","v":""}]
[null,null,null,null,null,null,null,null,{"$f":"IF(EFA_Log[[#This Row],[Service Date ]], YEAR(EFA_Log[[#This Row],[Service Date ]]) & \"-\" & \"Q\" & INT((MONTH(EFA_Log[[#This Row],[Service Date ]])+2)/3), \"\")","v":""}]
[null,null,null,null,null,null,null,null,{"$f":"IF(EFA_Log[[#This Row],[Service Date ]], YEAR(EFA_Log[[#This Row],[Service Date ]]) & \"-\" & \"Q\" & INT((MONTH(EFA_Log[[#This Row],[Service Date ]])+2)/3), \"\")","v":""}]
[null,null,null,null,null,null,null,null,{"$f":"IF(EFA_Log[[#This Row],[Service Date ]], YEAR(EFA_Log[[#This Row],[Service Date ]]) & \"-\" & \"Q\" & INT((MONTH(EFA_Log[[#This Row],[Service Date ]])+2)/3), \"\")","v":""}]
[null,null,null,null,null,null,null,null,{"$f":"IF(EFA_Log[[#This Row],[Service Date ]], YEAR(EFA_Log[[#This Row],[Service Date ]]) & \"-\" & \"Q\" & INT((MONTH(EFA_Log[[#This Row],[Service Date ]])+2)/3), \"\")","v":""}]
[null,null,null,null,null,null,null,null,{"$f":"IF(EFA_Log[[#This Row],[Service Date ]], YEAR(EFA_Log[[#This Row],[Service Date ]]) & \"-\" & \"Q\" & INT((MONTH(EFA_Log[[#This Row],[Service Date ]])+2)/3), \"\")","v":""}]
[null,null,null,null,null,null,null,null,{"$f":"IF(EFA_Log[[#This Row],[Service Date ]], YEAR(EFA_Log[[#This Row],[Service Date ]]) & \"-\" & \"Q\" & INT((MONTH(EFA_Log[[#This Row],[Service Date ]])+2)/3), \"\")","v":""}]
[null,null,null,null,null,null,null,null,{"$f":"IF(EFA_Log[[#This Row],[Service Date ]], YEAR(EFA_Log[[#This Row],[Service Date ]]) & \"-\" & \"Q\" & INT((MONTH(EFA_Log[[#This Row],[Service Date ]])+2)/3), \"\")","v":""}]
[null,null,null,null,null,null,null,null,{"$f":"IF(EFA_Log[[#This Row],[Service Date ]], YEAR(EFA_Log[[#This Row],[Service Date ]]) & \"-\" & \"Q\" & INT((MONTH(EFA_Log[[#This Row],[Service Date ]])+2)/3), \"\")","v":""}]
[null,null,null,null,null,null,null,null,{"$f":"IF(EFA_Log[[#This Row],[Service Date ]], YEAR(EFA_Log[[#This Row],[Service Date ]]) & \"-\" & \"Q\" & INT((MONTH(EFA_Log[[#This Row],[Service Date ]])+2)/3), \"\")","v":""}]
[null,null,null,null,null,null,null,null,{"$f":"IF(EFA_Log[[#This Row],[Service Date ]], YEAR(EFA_Log[[#This Row],[Service Date ]]) & \"-\" & \"Q\" & INT((MONTH(EFA_Log[[#This Row],[Service Date ]])+2)/3), \"\")","v":""}]
[null,null,null,null,null,null,null,null,{"$f":"IF(EFA_Log[[#This Row],[Service Date ]], YEAR(EFA_Log[[#This Row],[Service Date ]]) & \"-\" & \"Q\" & INT((MONTH(EFA_Log[[#This Row],[Service Date ]])+2)/3), \"\")","v":""}]
[null,null,null,null,null,null,null,null,{"$f":"IF(EFA_Log[[#This Row],[Service Date ]], YEAR(EFA_Log[[#This Row],[Service Date ]]) & \"-\" & \"Q\" & INT((MONTH(EFA_Log[[#This Row],[Service Date ]])+2)/3), \"\")","v":""}]
[null,null,null,null,null,null,null,null,{"$f":"IF(EFA_Log[[#This Row],[Service Date ]], YEAR(EFA_Log[[#This Row],[Service Date ]]) & \"-\" & \"Q\" & INT((MONTH(EFA_Log[[#This Row],[Service Date ]])+2)/3), \"\")","v":""}]
[null,null,null,null,null,null,null,null,{"$f":"IF(EFA_Log[[#This Row],[Service Date ]], YEAR(EFA_Log[[#This Row],[Service Date ]]) & \"-\" & \"Q\" & INT((MONTH(EFA_Log[[#This Row],[Service Date ]])+2)/3), \"\")","v":""}]
[null,null,null,null,null,null,null,null,{"$f":"IF(EFA_Log[[#This Row],[Service Date ]], YEAR(EFA_Log[[#This Row],[Service Date ]]) & \"-\" & \"Q\" & INT((MONTH(EFA_Log[[#This Row],[Service Date ]])+2)/3), \"\")","v":""}]
[null,null,null,null,null,null,null,null,{"$f":"IF(EFA_Log[[#This Row],[Service Date ]], YEAR(EFA_Log[[#This Row],[Service Date ]]) & \"-\" & \"Q\" & INT((MONTH(EFA_Log[[#This Row],[Service Date ]])+2)/3), \"\")","v":""}]
[null,null,null,null,null,null,null,null,{"$f":"IF(EFA_Log[[#This Row],[Service Date ]], YEAR(EFA_Log[[#This Row],[Service Date ]]) & \"-\" & \"Q\" & INT((MONTH(EFA_Log[[#This Row],[Service Date ]])+2)/3), \"\")","v":""}]
[null,null,null,null,null,null,null,null,{"$f":"IF(EFA_Log[[#This Row],[Service Date ]], YEAR(EFA_Log[[#This Row],[Service Date ]]) & \"-\" & \"Q\" & INT((MONTH(EFA_Log[[#This Row],[Service Date ]])+2)/3), \"\")","v":""}]
[null,null,null,null,null,null,null,null,{"$f":"IF(EFA_Log[[#This Row],[Service Date ]], YEAR(EFA_Log[[#This Row],[Service Date ]]) & \"-\" & \"Q\" & INT((MONTH(EFA_Log[[#This Row],[Service Date ]])+2)/3), \"\")","v":""}]
[null,null,null,null,null,null,null,null,{"$f":"IF(EFA_Log[[#This Row],[Service Date ]], YEAR(EFA_Log[[#This Row],[Service Date ]]) & \"-\" & \"Q\" & INT((MONTH(EFA_Log[[#This Row],[Service Date ]])+2)/3), \"\")","v":""}]
[null,null,null,null,null,null,null,null,{"$f":"IF(EFA_Log[[#This Row],[Service Date ]], YEAR(EFA_Log[[#This Row],[Service Date ]]) & \"-\" & \"Q\" & INT((MONTH(EFA_Log[[#This Row],[Service Date ]])+2)/3), \"\")","v":""}]
[null,null,null,null,null,null,null,null,{"$f":"IF(EFA_Log[[#This Row],[Service Date ]], YEAR(EFA_Log[[#This Row],[Service Date ]]) & \"-\" & \"Q\" & INT((MONTH(EFA_Log[[#This Row],[Service Date ]])+2)/3), \"\")","v":""}]
[null,null,null,null,null,null,null,null,{"$f":"IF(EFA_Log[[#This Row],[Service Date ]], YEAR(EFA_Log[[#This Row],[Service Date ]]) & \"-\" & \"Q\" & INT((MONTH(EFA_Log[[#This Row],[Service Date ]])+2)/3), \"\")","v":""}]
[null,null,null,null,null,null,null,null,{"$f":"IF(EFA_Log[[#This Row],[Service Date ]], YEAR(EFA_Log[[#This Row],[Service Date ]]) & \"-\" & \"Q\" & INT((MONTH(EFA_Log[[#This Row],[Service Date ]])+2)/3), \"\")","v":""}]
[null,null,null,null,null,null,null,null,{"$f":"IF(EFA_Log[[#This Row],[Service Date ]], YEAR(EFA_Log[[#This Row],[Service Date ]]) & \"-\" & \"Q\" & INT((MONTH(EFA_Log[[#This Row],[Service Date ]])+2)/3), \"\")","v":""}]
[null,null,null,null,null,null,null,null,{"$f":"IF(EFA_Log[[#This Row],[Service Date ]], YEAR(EFA_Log[[#This Row],[Service Date ]]) & \"-\" & \"Q\" & INT((MONTH(EFA_Log[[#This Row],[Service Date ]])+2)/3), \"\")","v":""}]
[null,null,null,null,null,null,null,null,{"$f":"IF(EFA_Log[[#This Row],[Service Date ]], YEAR(EFA_Log[[#This Row],[Service Date ]]) & \"-\" & \"Q\" & INT((MONTH(EFA_Log[[#This Row],[Service Date ]])+2)/3), \"\")","v":""}]
[null,null,null,null,null,null,null,null,{"$f":"IF(EFA_Log[[#This Row],[Service Date ]], YEAR(EFA_Log[[#This Row],[Service Date ]]) & \"-\" & \"Q\" & INT((MONTH(EFA_Log[[#This Row],[Service Date ]])+2)/3), \"\")","v":""}]
[null,null,null,null,null,null,null,null,{"$f":"IF(EFA_Log[[#This Row],[Service Date ]], YEAR(EFA_Log[[#This Row],[Service Date ]]) & \"-\" & \"Q\" & INT((MONTH(EFA_Log[[#This Row],[Service Date ]])+2)/3), \"\")","v":""}]
[null,null,null,null,null,null,null,null,{"$f":"IF(EFA_Log[[#This Row],[Service Date ]], YEAR(EFA_Log[[#This Row],[Service Date ]]) & \"-\" & \"Q\" & INT((MONTH(EFA_Log[[#This Row],[Service Date ]])+2)/3), \"\")","v":""}]
[null,null,null,null,null,null,null,null,{"$f":"IF(EFA_Log[[#This Row],[Service Date ]], YEAR(EFA_Log[[#This Row],[Service Date ]]) & \"-\" & \"Q\" & INT((MONTH(EFA_Log[[#This Row],[Service Date ]])+2)/3), \"\")","v":""}]
[null,null,null,null,null,null,null,null,{"$f":"IF(EFA_Log[[#This Row],[Service Date ]], YEAR(EFA_Log[[#This Row],[Service Date ]]) & \"-\" & \"Q\" & INT((MONTH(EFA_Log[[#This Row],[Service Date ]])+2)/3), \"\")","v":""}]
[null,null,null,null,null,null,null,null,{"$f":"IF(EFA_Log[[#This Row],[Service Date ]], YEAR(EFA_Log[[#This Row],[Service Date ]]) & \"-\" & \"Q\" & INT((MONTH(EFA_Log[[#This Row],[Service Date ]])+2)/3), \"\")","v":""}]
[null,null,null,null,null,null,null,null,{"$f":"IF(EFA_Log[[#This Row],[Service Date ]], YEAR(EFA_Log[[#This Row],[Service Date ]]) & \"-\" & \"Q\" & INT((MONTH(EFA_Log[[#This Row],[Service Date ]])+2)/3), \"\")","v":""}]
[null,null,null,null,null,null,null,null,{"$f":"IF(EFA_Log[[#This Row],[Service Date ]], YEAR(EFA_Log[[#This Row],[Service Date ]]) & \"-\" & \"Q\" & INT((MONTH(EFA_Log[[#This Row],[Service Date ]])+2)/3), \"\")","v":""}]
[null,null,null,null,null,null,null,null,{"$f":"IF(EFA_Log[[#This Row],[Service Date ]], YEAR(EFA_Log[[#This Row],[Service Date ]]) & \"-\" & \"Q\" & INT((MONTH(EFA_Log[[#This Row],[Service Date ]])+2)/3), \"\")","v":""}]
[null,null,null,null,null,null,null,null,{"$f":"IF(EFA_Log[[#This Row],[Service Date ]], YEAR(EFA_Log[[#This Row],[Service Date ]]) & \"-\" & \"Q\" & INT((MONTH(EFA_Log[[#This Row],[Service Date ]])+2)/3), \"\")","v":""}]
[null,null,null,null,null,null,null,null,{"$f":"IF(EFA_Log[[#This Row],[Service Date ]], YEAR(EFA_Log[[#This Row],[Service Date ]]) & \"-\" & \"Q\" & INT((MONTH(EFA_Log[[#This Row],[Service Date ]])+2)/3), \"\")","v":""}]
[null,null,null,null,null,null,null,null,{"$f":"IF(EFA_Log[[#This Row],[Service Date ]], YEAR(EFA_Log[[#This Row],[Service Date ]]) & \"-\" & \"Q\" & INT((MONTH(EFA_Log[[#This Row],[Service Date ]])+2)/3), \"\")","v":""}]
[null,null,null,null,null,null,null,null,{"$f":"IF(EFA_Log[[#This Row],[Service Date ]], YEAR(EFA_Log[[#This Row],[Service Date ]]) & \"-\" & \"Q\" & INT((MONTH(EFA_Log[[#This Row],[Service Date ]])+2)/3), \"\")","v":""}]
[null,null,null,null,null,null,null,null,{"$f":"IF(EFA_Log[[#This Row],[Service Date ]], YEAR(EFA_Log[[#This Row],[Service Date ]]) & \"-\" & \"Q\" & INT((MONTH(EFA_Log[[#This Row],[Service Date ]])+2)/3), \"\")","v":""}]
[null,null,null,null,null,null,null,null,{"$f":"IF(EFA_Log[[#This Row],[Service Date ]], YEAR(EFA_Log[[#This Row],[Service Date ]]) & \"-\" & \"Q\" & INT((MONTH(EFA_Log[[#This Row],[Service Date ]])+2)/3), \"\")","v":""}]
[null,null,null,null,null,null,null,null,{"$f":"IF(EFA_Log[[#This Row],[Service Date ]], YEAR(EFA_Log[[#This Row],[Service Date ]]) & \"-\" & \"Q\" & INT((MONTH(EFA_Log[[#This Row],[Service Date ]])+2)/3), \"\")","v":""}]
[null,null,null,null,null,null,null,null,{"$f":"IF(EFA_Log[[#This Row],[Service Date ]], YEAR(EFA_Log[[#This Row],[Service Date ]]) & \"-\" & \"Q\" & INT((MONTH(EFA_Log[[#This Row],[Service Date ]])+2)/3), \"\")","v":""}]
[null,null,null,null,null,null,null,null,{"$f":"IF(EFA_Log[[#This Row],[Service Date ]], YEAR(EFA_Log[[#This Row],[Service Date ]]) & \"-\" & \"Q\" & INT((MONTH(EFA_Log[[#This Row],[Service Date ]])+2)/3), \"\")","v":""}]
[null,null,null,null,null,null,null,null,{"$f":"IF(EFA_Log[[#This Row],[Service Date ]], YEAR(EFA_Log[[#This Row],[Service Date ]]) & \"-\" & \"Q\" & INT((MONTH(EFA_Log[[#This Row],[Service Date ]])+2)/3), \"\")","v":""}]
[null,null,null,null,null,null,null,null,{"$f":"IF(EFA_Log[[#This Row],[Service Date ]], YEAR(EFA_Log[[#This Row],[Service Date ]]) & \"-\" & \"Q\" & INT((MONTH(EFA_Log[[#This Row],[Service Date ]])+2)/3), \"\")","v":""}]
[null,null,null,null,null,null,null,null,{"$f":"IF(EFA_Log[[#This Row],[Service Date ]], YEAR(EFA_Log[[#This Row],[Service Date ]]) & \"-\" & \"Q\" & INT((MONTH(EFA_Log[[#This Row],[Service Date ]])+2)/3), \"\")","v":""}]
[null,null,null,null,null,null,null,null,{"$f":"IF(EFA_Log[[#This Row],[Service Date ]], YEAR(EFA_Log[[#This Row],[Service Date ]]) & \"-\" & \"Q\" & INT((MONTH(EFA_Log[[#This Row],[Service Date ]])+2)/3), \"\")","v":""}]
[null,null,null,null,null,null,null,null,{"$f":"IF(EFA_Log[[#This Row],[Service Date ]], YEAR(EFA_Log[[#This Row],[Service Date ]]) & \"-\" & \"Q\" & INT((MONTH(EFA_Log[[#This Row],[Service Date ]])+2)/3), \"\")","v":""}]
[null,null,null,null,null,null,null,null,{"$f":"IF(EFA_Log[[#This Row],[Service Date ]], YEAR(EFA_Log[[#This Row],[Service Date ]]) & \"-\" & \"Q\" & INT((MONTH(EFA_Log[[#This Row],[Service Date ]])+2)/3), \"\")","v":""}]
[null,null,null,null,null,null,null,null,{"$f":"IF(EFA_Log[[#This Row],[Service Date ]], YEAR(EFA_Log[[#This Row],[Service Date ]]) & \"-\" & \"Q\" & INT((MONTH(EFA_Log[[#This Row],[Service Date ]])+2)/3), \"\")","v":""}]
[null,null,null,null,null,null,null,null,{"$f":"IF(EFA_Log[[#This Row],[Service Date ]], YEAR(EFA_Log[[#This Row],[Service Date ]]) & \"-\" & \"Q\" & INT((MONTH(EFA_Log[[#This Row],[Service Date ]])+2)/3), \"\")","v":""}]
[null,null,null,null,null,null,null,null,{"$f":"IF(EFA_Log[[#This Row],[Service Date ]], YEAR(EFA_Log[[#This Row],[Service Date ]]) & \"-\" & \"Q\" & INT((MONTH(EFA_Log[[#This Row],[Service Date ]])+2)/3), \"\")","v":""}]
[null,null,null,null,null,null,null,null,{"$f":"IF(EFA_Log[[#This Row],[Service Date ]], YEAR(EFA_Log[[#This Row],[Service Date ]]) & \"-\" & \"Q\" & INT((MONTH(EFA_Log[[#This Row],[Service Date ]])+2)/3), \"\")","v":""}]

{"sheet":"Related Costs Log","index":2,"n_rows":1002,"n_cols":7,"rows_kept":1002,"cut":false,"hidden":false,"merged":[[0,0,0,6]]}
["Related Costs Log\nUsing the log sheet below, record each case of costs related emergency financial assistance that cannot be entered into the EFA log. Please keep in mind that the majority of EFA costs should be recorded directly in the EFA log, however, this log provides your organization with room to record those related expenses that cannot be attributed to a unique program participant and fall outside of quarterly budget reporting. For example, this can include a congregate meal, translation of group documents, or group transportation for which the cost cannot be distributed to unique participants. Note, this does not include staff salaries or other regular program administration expenses. \n\nFor Federations allocating grants through multiple agencies, please consolidate information about all grants into one log sheet.\n"]
["Grant Purpose","Number of Participants Served","Grant Target Demographic","Specify if 'Other' Demographic Type","Grant Amount","Service Date ","Reporting Period "]
["(enter purpose)",null,null,null,0.01,null,{"$f":"IF(AC_Log[[#This Row],[Service Date ]], YEAR(AC_Log[[#This Row],[Service Date ]]) & \"-\" & \"Q\" & INT((MONTH(AC_Log[[#This Row],[Service Date ]])+2)/3), \"\")","v":""}]
[null,null,null,null,null,null,{"$f":"IF(AC_Log[[#This Row],[Service Date ]], YEAR(AC_Log[[#This Row],[Service Date ]]) & \"-\" & \"Q\" & INT((MONTH(AC_Log[[#This Row],[Service Date ]])+2)/3), \"\")","v":""}]
[null,null,null,null,null,null,{"$f":"IF(AC_Log[[#This Row],[Service Date ]], YEAR(AC_Log[[#This Row],[Service Date ]]) & \"-\" & \"Q\" & INT((MONTH(AC_Log[[#This Row],[Service Date ]])+2)/3), \"\")","v":""}]
[null,null,null,null,null,null,{"$f":"IF(AC_Log[[#This Row],[Service Date ]], YEAR(AC_Log[[#This Row],[Service Date ]]) & \"-\" & \"Q\" & INT((MONTH(AC_Log[[#This Row],[Service Date ]])+2)/3), \"\")","v":""}]
[null,null,null,null,null,null,{"$f":"IF(AC_Log[[#This Row],[Service Date ]], YEAR(AC_Log[[#This Row],[Service Date ]]) & \"-\" & \"Q\" & INT((MONTH(AC_Log[[#This Row],[Service Date ]])+2)/3), \"\")","v":""}]
[null,null,null,null,null,null,{"$f":"IF(AC_Log[[#This Row],[Service Date ]], YEAR(AC_Log[[#This Row],[Service Date ]]) & \"-\" & \"Q\" & INT((MONTH(AC_Log[[#This Row],[Service Date ]])+2)/3), \"\")","v":""}]
[null,null,null,null,null,null,{"$f":"IF(AC_Log[[#This Row],[Service Date ]], YEAR(AC_Log[[#This Row],[Service Date ]]) & \"-\" & \"Q\" & INT((MONTH(AC_Log[[#This Row],[Service Date ]])+2)/3), \"\")","v":""}]
[null,null,null,null,null,null,{"$f":"IF(AC_Log[[#This Row],[Service Date ]], YEAR(AC_Log[[#This Row],[Service Date ]]) & \"-\" & \"Q\" & INT((MONTH(AC_Log[[#This Row],[Service Date ]])+2)/3), \"\")","v":""}]
[null,null,null,null,null,null,{"$f":"IF(AC_Log[[#This Row],[Service Date ]], YEAR(AC_Log[[#This Row],[Service Date ]]) & \"-\" & \"Q\" & INT((MONTH(AC_Log[[#This Row],[Service Date ]])+2)/3), \"\")","v":""}]
[null,null,null,null,null,null,{"$f":"IF(AC_Log[[#This Row],[Service Date ]], YEAR(AC_Log[[#This Row],[Service Date ]]) & \"-\" & \"Q\" & INT((MONTH(AC_Log[[#This Row],[Service Date ]])+2)/3), \"\")","v":""}]
[null,null,null,null,null,null,{"$f":"IF(AC_Log[[#This Row],[Service Date ]], YEAR(AC_Log[[#This Row],[Service Date ]]) & \"-\" & \"Q\" & INT((MONTH(AC_Log[[#This Row],[Service Date ]])+2)/3), \"\")","v":""}]
[null,null,null,null,null,null,{"$f":"IF(AC_Log[[#This Row],[Service Date ]], YEAR(AC_Log[[#This Row],[Service Date ]]) & \"-\" & \"Q\" & INT((MONTH(AC_Log[[#This Row],[Service Date ]])+2)/3), \"\")","v":""}]
[null,null,null,null,null,null,{"$f":"IF(AC_Log[[#This Row],[Service Date ]], YEAR(AC_Log[[#This Row],[Service Date ]]) & \"-\" & \"Q\" & INT((MONTH(AC_Log[[#This Row],[Service Date ]])+2)/3), \"\")","v":""}]
[null,null,null,null,null,null,{"$f":"IF(AC_Log[[#This Row],[Service Date ]], YEAR(AC_Log[[#This Row],[Service Date ]]) & \"-\" & \"Q\" & INT((MONTH(AC_Log[[#This Row],[Service Date ]])+2)/3), \"\")","v":""}]
[null,null,null,null,null,null,{"$f":"IF(AC_Log[[#This Row],[Service Date ]], YEAR(AC_Log[[#This Row],[Service Date ]]) & \"-\" & \"Q\" & INT((MONTH(AC_Log[[#This Row],[Service Date ]])+2)/3), \"\")","v":""}]
[null,null,null,null,null,null,{"$f":"IF(AC_Log[[#This Row],[Service Date ]], YEAR(AC_Log[[#This Row],[Service Date ]]) & \"-\" & \"Q\" & INT((MONTH(AC_Log[[#This Row],[Service Date ]])+2)/3), \"\")","v":""}]
[null,null,null,null,null,null,{"$f":"IF(AC_Log[[#This Row],[Service Date ]], YEAR(AC_Log[[#This Row],[Service Date ]]) & \"-\" & \"Q\" & INT((MONTH(AC_Log[[#This Row],[Service Date ]])+2)/3), \"\")","v":""}]
[null,null,null,null,null,null,{"$f":"IF(AC_Log[[#This Row],[Service Date ]], YEAR(AC_Log[[#This Row],[Service Date ]]) & \"-\" & \"Q\" & INT((MONTH(AC_Log[[#This Row],[Service Date ]])+2)/3), \"\")","v":""}]
[null,null,null,null,null,null,{"$f":"IF(AC_Log[[#This Row],[Service Date ]], YEAR(AC_Log[[#This Row],[Service Date ]]) & \"-\" & \"Q\" & INT((MONTH(AC_Log[[#This Row],[Service Date ]])+2)/3), \"\")","v":""}]
[null,null,null,null,null,null,{"$f":"IF(AC_Log[[#This Row],[Service Date ]], YEAR(AC_Log[[#This Row],[Service Date ]]) & \"-\" & \"Q\" & INT((MONTH(AC_Log[[#This Row],[Service Date ]])+2)/3), \"\")","v":""}]
[null,null,null,null,null,null,{"$f":"IF(AC_Log[[#This Row],[Service Date ]], YEAR(AC_Log[[#This Row],[Service Date ]]) & \"-\" & \"Q\" & INT((MONTH(AC_Log[[#This Row],[Service Date ]])+2)/3), \"\")","v":""}]
[null,null,null,null,null,null,{"$f":"IF(AC_Log[[#This Row],[Service Date ]], YEAR(AC_Log[[#This Row],[Service Date ]]) & \"-\" & \"Q\" & INT((MONTH(AC_Log[[#This Row],[Service Date ]])+2)/3), \"\")","v":""}]
[null,null,null,null,null,null,{"$f":"IF(AC_Log[[#This Row],[Service Date ]], YEAR(AC_Log[[#This Row],[Service Date ]]) & \"-\" & \"Q\" & INT((MONTH(AC_Log[[#This Row],[Service Date ]])+2)/3), \"\")","v":""}]
[null,null,null,null,null,null,{"$f":"IF(AC_Log[[#This Row],[Service Date ]], YEAR(AC_Log[[#This Row],[Service Date ]]) & \"-\" & \"Q\" & INT((MONTH(AC_Log[[#This Row],[Service Date ]])+2)/3), \"\")","v":""}]
[null,null,null,null,null,null,{"$f":"IF(AC_Log[[#This Row],[Service Date ]], YEAR(AC_Log[[#This Row],[Service Date ]]) & \"-\" & \"Q\" & INT((MONTH(AC_Log[[#This Row],[Service Date ]])+2)/3), \"\")","v":""}]
[null,null,null,null,null,null,{"$f":"IF(AC_Log[[#This Row],[Service Date ]], YEAR(AC_Log[[#This Row],[Service Date ]]) & \"-\" & \"Q\" & INT((MONTH(AC_Log[[#This Row],[Service Date ]])+2)/3), \"\")","v":""}]
[null,null,null,null,null,null,{"$f":"IF(AC_Log[[#This Row],[Service Date ]], YEAR(AC_Log[[#This Row],[Service Date ]]) & \"-\" & \"Q\" & INT((MONTH(AC_Log[[#This Row],[Service Date ]])+2)/3), \"\")","v":""}]
[null,null,null,null,null,null,{"$f":"IF(AC_Log[[#This Row],[Service Date ]], YEAR(AC_Log[[#This Row],[Service Date ]]) & \"-\" & \"Q\" & INT((MONTH(AC_Log[[#This Row],[Service Date ]])+2)/3), \"\")","v":""}]
[null,null,null,null,null,null,{"$f":"IF(AC_Log[[#This Row],[Service Date ]], YEAR(AC_Log[[#This Row],[Service Date ]]) & \"-\" & \"Q\" & INT((MONTH(AC_Log[[#This Row],[Service Date ]])+2)/3), \"\")","v":""}]
[null,null,null,null,null,null,{"$f":"IF(AC_Log[[#This Row],[Service Date ]], YEAR(AC_Log[[#This Row],[Service Date ]]) & \"-\" & \"Q\" & INT((MONTH(AC_Log[[#This Row],[Service Date ]])+2)/3), \"\")","v":""}]
[null,null,null,null,null,null,{"$f":"IF(AC_Log[[#This Row],[Service Date ]], YEAR(AC_Log[[#This Row],[Service Date ]]) & \"-\" & \"Q\" & INT((MONTH(AC_Log[[#This Row],[Service Date ]])+2)/3), \"\")","v":""}]
[null,null,null,null,null,null,{"$f":"IF(AC_Log[[#This Row],[Service Date ]], YEAR(AC_Log[[#This Row],[Service Date ]]) & \"-\" & \"Q\" & INT((MONTH(AC_Log[[#This Row],[Service Date ]])+2)/3), \"\")","v":""}]
[null,null,null,null,null,null,{"$f":"IF(AC_Log[[#This Row],[Service Date ]], YEAR(AC_Log[[#This Row],[Service Date ]]) & \"-\" & \"Q\" & INT((MONTH(AC_Log[[#This Row],[Service Date ]])+2)/3), \"\")","v":""}]
[null,null,null,null,null,null,{"$f":"IF(AC_Log[[#This Row],[Service Date ]], YEAR(AC_Log[[#This Row],[Service Date ]]) & \"-\" & \"Q\" & INT((MONTH(AC_Log[[#This Row],[Service Date ]])+2)/3), \"\")","v":""}]
[null,null,null,null,null,null,{"$f":"IF(AC_Log[[#This Row],[Service Date ]], YEAR(AC_Log[[#This Row],[Service Date ]]) & \"-\" & \"Q\" & INT((MONTH(AC_Log[[#This Row],[Service Date ]])+2)/3), \"\")","v":""}]
[null,null,null,null,null,null,{"$f":"IF(AC_Log[[#This Row],[Service Date ]], YEAR(AC_Log[[#This Row],[Service Date ]]) & \"-\" & \"Q\" & INT((MONTH(AC_Log[[#This Row],[Service Date ]])+2)/3), \"\")","v":""}]
[null,null,null,null,null,null,{"$f":"IF(AC_Log[[#This Row],[Service Date ]], YEAR(AC_Log[[#This Row],[Service Date ]]) & \"-\" & \"Q\" & INT((MONTH(AC_Log[[#This Row],[Service Date ]])+2)/3), \"\")","v":""}]
[null,null,null,null,null,null,{"$f":"IF(AC_Log[[#This Row],[Service Date ]], YEAR(AC_Log[[#This Row],[Service Date ]]) & \"-\" & \"Q\" & INT((MONTH(AC_Log[[#This Row],[Service Date ]])+2)/3), \"\")","v":""}]
[null,null,null,null,null,null,{"$f":"IF(AC_Log[[#This Row],[Service Date ]], YEAR(AC_Log[[#This Row],[Service Date ]]) & \"-\" & \"Q\" & INT((MONTH(AC_Log[[#This Row],[Service Date ]])+2)/3), \"\")","v":""}]
[null,null,null,null,null,null,{"$f":"IF(AC_Log[[#This Row],[Service Date ]], YEAR(AC_Log[[#This Row],[Service Date ]]) & \"-\" & \"Q\" & INT((MONTH(AC_Log[[#This Row],[Service Date ]])+2)/3), \"\")","v":""}]
[null,null,null,null,null,null,{"$f":"IF(AC_Log[[#This Row],[Service Date ]], YEAR(AC_Log[[#This Row],[Service Date ]]) & \"-\" & \"Q\" & INT((MONTH(AC_Log[[#This Row],[Service Date ]])+2)/3), \"\")","v":""}]
[null,null,null,null,null,null,{"$f":"IF(AC_Log[[#This Row],[Service Date ]], YEAR(AC_Log[[#This Row],[Service Date ]]) & \"-\" & \"Q\" & INT((MONTH(AC_Log[[#This Row],[Service Date ]])+2)/3), \"\")","v":""}]
[null,null,null,null,null,null,{"$f":"IF(AC_Log[[#This Row],[Service Date ]], YEAR(AC_Log[[#This Row],[Service Date ]]) & \"-\" & \"Q\" & INT((MONTH(AC_Log[[#This Row],[Service Date ]])+2)/3), \"\")","v":""}]
[null,null,null,null,null,null,{"$f":"IF(AC_Log[[#This Row],[Service Date ]], YEAR(AC_Log[[#This Row],[Service Date ]]) & \"-\" & \"Q\" & INT((MONTH(AC_Log[[#This Row],[Service Date ]])+2)/3), \"\")","v":""}]
[null,null,null,null,null,null,{"$f":"IF(AC_Log[[#This Row],[Service Date ]], YEAR(AC_Log[[#This Row],[Service Date ]]) & \"-\" & \"Q\" & INT((MONTH(AC_Log[[#This Row],[Service Date ]])+2)/3), \"\")","v":""}]
[null,null,null,null,null,null,{"$f":"IF(AC_Log[[#This Row],[Service Date ]], YEAR(AC_Log[[#This Row],[Service Date ]]) & \"-\" & \"Q\" & INT((MONTH(AC_Log[[#This Row],[Service Date ]])+2)/3), \"\")","v":""}]
[null,null,null,null,null,null,{"$f":"IF(AC_Log[[#This Row],[Service Date ]], YEAR(AC_Log[[#This Row],[Service Date ]]) & \"-\" & \"Q\" & INT((MONTH(AC_Log[[#This Row],[Service Date ]])+2)/3), \"\")","v":""}]
[null,null,null,null,null,null,{"$f":"IF(AC_Log[[#This Row],[Service Date ]], YEAR(AC_Log[[#This Row],[Service Date ]]) & \"-\" & \"Q\" & INT((MONTH(AC_Log[[#This Row],[Service Date ]])+2)/3), \"\")","v":""}]
[null,null,null,null,null,null,{"$f":"IF(AC_Log[[#This Row],[Service Date ]], YEAR(AC_Log[[#This Row],[Service Date ]]) & \"-\" & \"Q\" & INT((MONTH(AC_Log[[#This Row],[Service Date ]])+2)/3), \"\")","v":""}]
[null,null,null,null,null,null,{"$f":"IF(AC_Log[[#This Row],[Service Date ]], YEAR(AC_Log[[#This Row],[Service Date ]]) & \"-\" & \"Q\" & INT((MONTH(AC_Log[[#This Row],[Service Date ]])+2)/3), \"\")","v":""}]
[null,null,null,null,null,null,{"$f":"IF(AC_Log[[#This Row],[Service Date ]], YEAR(AC_Log[[#This Row],[Service Date ]]) & \"-\" & \"Q\" & INT((MONTH(AC_Log[[#This Row],[Service Date ]])+2)/3), \"\")","v":""}]
[null,null,null,null,null,null,{"$f":"IF(AC_Log[[#This Row],[Service Date ]], YEAR(AC_Log[[#This Row],[Service Date ]]) & \"-\" & \"Q\" & INT((MONTH(AC_Log[[#This Row],[Service Date ]])+2)/3), \"\")","v":""}]
[null,null,null,null,null,null,{"$f":"IF(AC_Log[[#This Row],[Service Date ]], YEAR(AC_Log[[#This Row],[Service Date ]]) & \"-\" & \"Q\" & INT((MONTH(AC_Log[[#This Row],[Service Date ]])+2)/3), \"\")","v":""}]
[null,null,null,null,null,null,{"$f":"IF(AC_Log[[#This Row],[Service Date ]], YEAR(AC_Log[[#This Row],[Service Date ]]) & \"-\" & \"Q\" & INT((MONTH(AC_Log[[#This Row],[Service Date ]])+2)/3), \"\")","v":""}]
[null,null,null,null,null,null,{"$f":"IF(AC_Log[[#This Row],[Service Date ]], YEAR(AC_Log[[#This Row],[Service Date ]]) & \"-\" & \"Q\" & INT((MONTH(AC_Log[[#This Row],[Service Date ]])+2)/3), \"\")","v":""}]
[null,null,null,null,null,null,{"$f":"IF(AC_Log[[#This Row],[Service Date ]], YEAR(AC_Log[[#This Row],[Service Date ]]) & \"-\" & \"Q\" & INT((MONTH(AC_Log[[#This Row],[Service Date ]])+2)/3), \"\")","v":""}]
[null,null,null,null,null,null,{"$f":"IF(AC_Log[[#This Row],[Service Date ]], YEAR(AC_Log[[#This Row],[Service Date ]]) & \"-\" & \"Q\" & INT((MONTH(AC_Log[[#This Row],[Service Date ]])+2)/3), \"\")","v":""}]
[null,null,null,null,null,null,{"$f":"IF(AC_Log[[#This Row],[Service Date ]], YEAR(AC_Log[[#This Row],[Service Date ]]) & \"-\" & \"Q\" & INT((MONTH(AC_Log[[#This Row],[Service Date ]])+2)/3), \"\")","v":""}]
[null,null,null,null,null,null,{"$f":"IF(AC_Log[[#This Row],[Service Date ]], YEAR(AC_Log[[#This Row],[Service Date ]]) & \"-\" & \"Q\" & INT((MONTH(AC_Log[[#This Row],[Service Date ]])+2)/3), \"\")","v":""}]
[null,null,null,null,null,null,{"$f":"IF(AC_Log[[#This Row],[Service Date ]], YEAR(AC_Log[[#This Row],[Service Date ]]) & \"-\" & \"Q\" & INT((MONTH(AC_Log[[#This Row],[Service Date ]])+2)/3), \"\")","v":""}]
[null,null,null,null,null,null,{"$f":"IF(AC_Log[[#This Row],[Service Date ]], YEAR(AC_Log[[#This Row],[Service Date ]]) & \"-\" & \"Q\" & INT((MONTH(AC_Log[[#This Row],[Service Date ]])+2)/3), \"\")","v":""}]
[null,null,null,null,null,null,{"$f":"IF(AC_Log[[#This Row],[Service Date ]], YEAR(AC_Log[[#This Row],[Service Date ]]) & \"-\" & \"Q\" & INT((MONTH(AC_Log[[#This Row],[Service Date ]])+2)/3), \"\")","v":""}]
[null,null,null,null,null,null,{"$f":"IF(AC_Log[[#This Row],[Service Date ]], YEAR(AC_Log[[#This Row],[Service Date ]]) & \"-\" & \"Q\" & INT((MONTH(AC_Log[[#This Row],[Service Date ]])+2)/3), \"\")","v":""}]
[null,null,null,null,null,null,{"$f":"IF(AC_Log[[#This Row],[Service Date ]], YEAR(AC_Log[[#This Row],[Service Date ]]) & \"-\" & \"Q\" & INT((MONTH(AC_Log[[#This Row],[Service Date ]])+2)/3), \"\")","v":""}]
[null,null,null,null,null,null,{"$f":"IF(AC_Log[[#This Row],[Service Date ]], YEAR(AC_Log[[#This Row],[Service Date ]]) & \"-\" & \"Q\" & INT((MONTH(AC_Log[[#This Row],[Service Date ]])+2)/3), \"\")","v":""}]
[null,null,null,null,null,null,{"$f":"IF(AC_Log[[#This Row],[Service Date ]], YEAR(AC_Log[[#This Row],[Service Date ]]) & \"-\" & \"Q\" & INT((MONTH(AC_Log[[#This Row],[Service Date ]])+2)/3), \"\")","v":""}]
[null,null,null,null,null,null,{"$f":"IF(AC_Log[[#This Row],[Service Date ]], YEAR(AC_Log[[#This Row],[Service Date ]]) & \"-\" & \"Q\" & INT((MONTH(AC_Log[[#This Row],[Service Date ]])+2)/3), \"\")","v":""}]
[null,null,null,null,null,null,{"$f":"IF(AC_Log[[#This Row],[Service Date ]], YEAR(AC_Log[[#This Row],[Service Date ]]) & \"-\" & \"Q\" & INT((MONTH(AC_Log[[#This Row],[Service Date ]])+2)/3), \"\")","v":""}]
[null,null,null,null,null,null,{"$f":"IF(AC_Log[[#This Row],[Service Date ]], YEAR(AC_Log[[#This Row],[Service Date ]]) & \"-\" & \"Q\" & INT((MONTH(AC_Log[[#This Row],[Service Date ]])+2)/3), \"\")","v":""}]
[null,null,null,null,null,null,{"$f":"IF(AC_Log[[#This Row],[Service Date ]], YEAR(AC_Log[[#This Row],[Service Date ]]) & \"-\" & \"Q\" & INT((MONTH(AC_Log[[#This Row],[Service Date ]])+2)/3), \"\")","v":""}]
[null,null,null,null,null,null,{"$f":"IF(AC_Log[[#This Row],[Service Date ]], YEAR(AC_Log[[#This Row],[Service Date ]]) & \"-\" & \"Q\" & INT((MONTH(AC_Log[[#This Row],[Service Date ]])+2)/3), \"\")","v":""}]
[null,null,null,null,null,null,{"$f":"IF(AC_Log[[#This Row],[Service Date ]], YEAR(AC_Log[[#This Row],[Service Date ]]) & \"-\" & \"Q\" & INT((MONTH(AC_Log[[#This Row],[Service Date ]])+2)/3), \"\")","v":""}]
[null,null,null,null,null,null,{"$f":"IF(AC_Log[[#This Row],[Service Date ]], YEAR(AC_Log[[#This Row],[Service Date ]]) & \"-\" & \"Q\" & INT((MONTH(AC_Log[[#This Row],[Service Date ]])+2)/3), \"\")","v":""}]
[null,null,null,null,null,null,{"$f":"IF(AC_Log[[#This Row],[Service Date ]], YEAR(AC_Log[[#This Row],[Service Date ]]) & \"-\" & \"Q\" & INT((MONTH(AC_Log[[#This Row],[Service Date ]])+2)/3), \"\")","v":""}]
[null,null,null,null,null,null,{"$f":"IF(AC_Log[[#This Row],[Service Date ]], YEAR(AC_Log[[#This Row],[Service Date ]]) & \"-\" & \"Q\" & INT((MONTH(AC_Log[[#This Row],[Service Date ]])+2)/3), \"\")","v":""}]
[null,null,null,null,null,null,{"$f":"IF(AC_Log[[#This Row],[Service Date ]], YEAR(AC_Log[[#This Row],[Service Date ]]) & \"-\" & \"Q\" & INT((MONTH(AC_Log[[#This Row],[Service Date ]])+2)/3), \"\")","v":""}]
[null,null,null,null,null,null,{"$f":"IF(AC_Log[[#This Row],[Service Date ]], YEAR(AC_Log[[#This Row],[Service Date ]]) & \"-\" & \"Q\" & INT((MONTH(AC_Log[[#This Row],[Service Date ]])+2)/3), \"\")","v":""}]
[null,null,null,null,null,null,{"$f":"IF(AC_Log[[#This Row],[Service Date ]], YEAR(AC_Log[[#This Row],[Service Date ]]) & \"-\" & \"Q\" & INT((MONTH(AC_Log[[#This Row],[Service Date ]])+2)/3), \"\")","v":""}]
[null,null,null,null,null,null,{"$f":"IF(AC_Log[[#This Row],[Service Date ]], YEAR(AC_Log[[#This Row],[Service Date ]]) & \"-\" & \"Q\" & INT((MONTH(AC_Log[[#This Row],[Service Date ]])+2)/3), \"\")","v":""}]
[null,null,null,null,null,null,{"$f":"IF(AC_Log[[#This Row],[Service Date ]], YEAR(AC_Log[[#This Row],[Service Date ]]) & \"-\" & \"Q\" & INT((MONTH(AC_Log[[#This Row],[Service Date ]])+2)/3), \"\")","v":""}]
[null,null,null,null,null,null,{"$f":"IF(AC_Log[[#This Row],[Service Date ]], YEAR(AC_Log[[#This Row],[Service Date ]]) & \"-\" & \"Q\" & INT((MONTH(AC_Log[[#This Row],[Service Date ]])+2)/3), \"\")","v":""}]
[null,null,null,null,null,null,{"$f":"IF(AC_Log[[#This Row],[Service Date ]], YEAR(AC_Log[[#This Row],[Service Date ]]) & \"-\" & \"Q\" & INT((MONTH(AC_Log[[#This Row],[Service Date ]])+2)/3), \"\")","v":""}]
[null,null,null,null,null,null,{"$f":"IF(AC_Log[[#This Row],[Service Date ]], YEAR(AC_Log[[#This Row],[Service Date ]]) & \"-\" & \"Q\" & INT((MONTH(AC_Log[[#This Row],[Service Date ]])+2)/3), \"\")","v":""}]
[null,null,null,null,null,null,{"$f":"IF(AC_Log[[#This Row],[Service Date ]], YEAR(AC_Log[[#This Row],[Service Date ]]) & \"-\" & \"Q\" & INT((MONTH(AC_Log[[#This Row],[Service Date ]])+2)/3), \"\")","v":""}]
[null,null,null,null,null,null,{"$f":"IF(AC_Log[[#This Row],[Service Date ]], YEAR(AC_Log[[#This Row],[Service Date ]]) & \"-\" & \"Q\" & INT((MONTH(AC_Log[[#This Row],[Service Date ]])+2)/3), \"\")","v":""}]
[null,null,null,null,null,null,{"$f":"IF(AC_Log[[#This Row],[Service Date ]], YEAR(AC_Log[[#This Row],[Service Date ]]) & \"-\" & \"Q\" & INT((MONTH(AC_Log[[#This Row],[Service Date ]])+2)/3), \"\")","v":""}]
[null,null,null,null,null,null,{"$f":"IF(AC_Log[[#This Row],[Service Date ]], YEAR(AC_Log[[#This Row],[Service Date ]]) & \"-\" & \"Q\" & INT((MONTH(AC_Log[[#This Row],[Service Date ]])+2)/3), \"\")","v":""}]
[null,null,null,null,null,null,{"$f":"IF(AC_Log[[#This Row],[Service Date ]], YEAR(AC_Log[[#This Row],[Service Date ]]) & \"-\" & \"Q\" & INT((MONTH(AC_Log[[#This Row],[Service Date ]])+2)/3), \"\")","v":""}]
[null,null,null,null,null,null,{"$f":"IF(AC_Log[[#This Row],[Service Date ]], YEAR(AC_Log[[#This Row],[Service Date ]]) & \"-\" & \"Q\" & INT((MONTH(AC_Log[[#This Row],[Service Date ]])+2)/3), \"\")","v":""}]
[null,null,null,null,null,null,{"$f":"IF(AC_Log[[#This Row],[Service Date ]], YEAR(AC_Log[[#This Row],[Service Date ]]) & \"-\" & \"Q\" & INT((MONTH(AC_Log[[#This Row],[Service Date ]])+2)/3), \"\")","v":""}]
[null,null,null,null,null,null,{"$f":"IF(AC_Log[[#This Row],[Service Date ]], YEAR(AC_Log[[#This Row],[Service Date ]]) & \"-\" & \"Q\" & INT((MONTH(AC_Log[[#This Row],[Service Date ]])+2)/3), \"\")","v":""}]
[null,null,null,null,null,null,{"$f":"IF(AC_Log[[#This Row],[Service Date ]], YEAR(AC_Log[[#This Row],[Service Date ]]) & \"-\" & \"Q\" & INT((MONTH(AC_Log[[#This Row],[Service Date ]])+2)/3), \"\")","v":""}]
[null,null,null,null,null,null,{"$f":"IF(AC_Log[[#This Row],[Service Date ]], YEAR(AC_Log[[#This Row],[Service Date ]]) & \"-\" & \"Q\" & INT((MONTH(AC_Log[[#This Row],[Service Date ]])+2)/3), \"\")","v":""}]
[null,null,null,null,null,null,{"$f":"IF(AC_Log[[#This Row],[Service Date ]], YEAR(AC_Log[[#This Row],[Service Date ]]) & \"-\" & \"Q\" & INT((MONTH(AC_Log[[#This Row],[Service Date ]])+2)/3), \"\")","v":""}]
[null,null,null,null,null,null,{"$f":"IF(AC_Log[[#This Row],[Service Date ]], YEAR(AC_Log[[#This Row],[Service Date ]]) & \"-\" & \"Q\" & INT((MONTH(AC_Log[[#This Row],[Service Date ]])+2)/3), \"\")","v":""}]
[null,null,null,null,null,null,{"$f":"IF(AC_Log[[#This Row],[Service Date ]], YEAR(AC_Log[[#This Row],[Service Date ]]) & \"-\" & \"Q\" & INT((MONTH(AC_Log[[#This Row],[Service Date ]])+2)/3), \"\")","v":""}]
[null,null,null,null,null,null,{"$f":"IF(AC_Log[[#This Row],[Service Date ]], YEAR(AC_Log[[#This Row],[Service Date ]]) & \"-\" & \"Q\" & INT((MONTH(AC_Log[[#This Row],[Service Date ]])+2)/3), \"\")","v":""}]
[null,null,null,null,null,null,{"$f":"IF(AC_Log[[#This Row],[Service Date ]], YEAR(AC_Log[[#This Row],[Service Date ]]) & \"-\" & \"Q\" & INT((MONTH(AC_Log[[#This Row],[Service Date ]])+2)/3), \"\")","v":""}]
[null,null,null,null,null,null,{"$f":"IF(AC_Log[[#This Row],[Service Date ]], YEAR(AC_Log[[#This Row],[Service Date ]]) & \"-\" & \"Q\" & INT((MONTH(AC_Log[[#This Row],[Service Date ]])+2)/3), \"\")","v":""}]
[null,null,null,null,null,null,{"$f":"IF(AC_Log[[#This Row],[Service Date ]], YEAR(AC_Log[[#This Row],[Service Date ]]) & \"-\" & \"Q\" & INT((MONTH(AC_Log[[#This Row],[Service Date ]])+2)/3), \"\")","v":""}]
[null,null,null,null,null,null,{"$f":"IF(AC_Log[[#This Row],[Service Date ]], YEAR(AC_Log[[#This Row],[Service Date ]]) & \"-\" & \"Q\" & INT((MONTH(AC_Log[[#This Row],[Service Date ]])+2)/3), \"\")","v":""}]
[null,null,null,null,null,null,{"$f":"IF(AC_Log[[#This Row],[Service Date ]], YEAR(AC_Log[[#This Row],[Service Date ]]) & \"-\" & \"Q\" & INT((MONTH(AC_Log[[#This Row],[Service Date ]])+2)/3), \"\")","v":""}]
[null,null,null,null,null,null,{"$f":"IF(AC_Log[[#This Row],[Service Date ]], YEAR(AC_Log[[#This Row],[Service Date ]]) & \"-\" & \"Q\" & INT((MONTH(AC_Log[[#This Row],[Service Date ]])+2)/3), \"\")","v":""}]
[null,null,null,null,null,null,{"$f":"IF(AC_Log[[#This Row],[Service Date ]], YEAR(AC_Log[[#This Row],[Service Date ]]) & \"-\" & \"Q\" & INT((MONTH(AC_Log[[#This Row],[Service Date ]])+2)/3), \"\")","v":""}]
[null,null,null,null,null,null,{"$f":"IF(AC_Log[[#This Row],[Service Date ]], YEAR(AC_Log[[#This Row],[Service Date ]]) & \"-\" & \"Q\" & INT((MONTH(AC_Log[[#This Row],[Service Date ]])+2)/3), \"\")","v":""}]
[null,null,null,null,null,null,{"$f":"IF(AC_Log[[#This Row],[Service Date ]], YEAR(AC_Log[[#This Row],[Service Date ]]) & \"-\" & \"Q\" & INT((MONTH(AC_Log[[#This Row],[Service Date ]])+2)/3), \"\")","v":""}]
[null,null,null,null,null,null,{"$f":"IF(AC_Log[[#This Row],[Service Date ]], YEAR(AC_Log[[#This Row],[Service Date ]]) & \"-\" & \"Q\" & INT((MONTH(AC_Log[[#This Row],[Service Date ]])+2)/3), \"\")","v":""}]
[null,null,null,null,null,null,{"$f":"IF(AC_Log[[#This Row],[Service Date ]], YEAR(AC_Log[[#This Row],[Service Date ]]) & \"-\" & \"Q\" & INT((MONTH(AC_Log[[#This Row],[Service Date ]])+2)/3), \"\")","v":""}]
[null,null,null,null,null,null,{"$f":"IF(AC_Log[[#This Row],[Service Date ]], YEAR(AC_Log[[#This Row],[Service Date ]]) & \"-\" & \"Q\" & INT((MONTH(AC_Log[[#This Row],[Service Date ]])+2)/3), \"\")","v":""}]
[null,null,null,null,null,null,{"$f":"IF(AC_Log[[#This Row],[Service Date ]], YEAR(AC_Log[[#This Row],[Service Date ]]) & \"-\" & \"Q\" & INT((MONTH(AC_Log[[#This Row],[Service Date ]])+2)/3), \"\")","v":""}]
[null,null,null,null,null,null,{"$f":"IF(AC_Log[[#This Row],[Service Date ]], YEAR(AC_Log[[#This Row],[Service Date ]]) & \"-\" & \"Q\" & INT((MONTH(AC_Log[[#This Row],[Service Date ]])+2)/3), \"\")","v":""}]
[null,null,null,null,null,null,{"$f":"IF(AC_Log[[#This Row],[Service Date ]], YEAR(AC_Log[[#This Row],[Service Date ]]) & \"-\" & \"Q\" & INT((MONTH(AC_Log[[#This Row],[Service Date ]])+2)/3), \"\")","v":""}]
[null,null,null,null,null,null,{"$f":"IF(AC_Log[[#This Row],[Service Date ]], YEAR(AC_Log[[#This Row],[Service Date ]]) & \"-\" & \"Q\" & INT((MONTH(AC_Log[[#This Row],[Service Date ]])+2)/3), \"\")","v":""}]
[null,null,null,null,null,null,{"$f":"IF(AC_Log[[#This Row],[Service Date ]], YEAR(AC_Log[[#This Row],[Service Date ]]) & \"-\" & \"Q\" & INT((MONTH(AC_Log[[#This Row],[Service Date ]])+2)/3), \"\")","v":""}]
[null,null,null,null,null,null,{"$f":"IF(AC_Log[[#This Row],[Service Date ]], YEAR(AC_Log[[#This Row],[Service Date ]]) & \"-\" & \"Q\" & INT((MONTH(AC_Log[[#This Row],[Service Date ]])+2)/3), \"\")","v":""}]
[null,null,null,null,null,null,{"$f":"IF(AC_Log[[#This Row],[Service Date ]], YEAR(AC_Log[[#This Row],[Service Date ]]) & \"-\" & \"Q\" & INT((MONTH(AC_Log[[#This Row],[Service Date ]])+2)/3), \"\")","v":""}]
[null,null,null,null,null,null,{"$f":"IF(AC_Log[[#This Row],[Service Date ]], YEAR(AC_Log[[#This Row],[Service Date ]]) & \"-\" & \"Q\" & INT((MONTH(AC_Log[[#This Row],[Service Date ]])+2)/3), \"\")","v":""}]
[null,null,null,null,null,null,{"$f":"IF(AC_Log[[#This Row],[Service Date ]], YEAR(AC_Log[[#This Row],[Service Date ]]) & \"-\" & \"Q\" & INT((MONTH(AC_Log[[#This Row],[Service Date ]])+2)/3), \"\")","v":""}]
[null,null,null,null,null,null,{"$f":"IF(AC_Log[[#This Row],[Service Date ]], YEAR(AC_Log[[#This Row],[Service Date ]]) & \"-\" & \"Q\" & INT((MONTH(AC_Log[[#This Row],[Service Date ]])+2)/3), \"\")","v":""}]
[null,null,null,null,null,null,{"$f":"IF(AC_Log[[#This Row],[Service Date ]], YEAR(AC_Log[[#This Row],[Service Date ]]) & \"-\" & \"Q\" & INT((MONTH(AC_Log[[#This Row],[Service Date ]])+2)/3), \"\")","v":""}]
[null,null,null,null,null,null,{"$f":"IF(AC_Log[[#This Row],[Service Date ]], YEAR(AC_Log[[#This Row],[Service Date ]]) & \"-\" & \"Q\" & INT((MONTH(AC_Log[[#This Row],[Service Date ]])+2)/3), \"\")","v":""}]
[null,null,null,null,null,null,{"$f":"IF(AC_Log[[#This Row],[Service Date ]], YEAR(AC_Log[[#This Row],[Service Date ]]) & \"-\" & \"Q\" & INT((MONTH(AC_Log[[#This Row],[Service Date ]])+2)/3), \"\")","v":""}]
[null,null,null,null,null,null,{"$f":"IF(AC_Log[[#This Row],[Service Date ]], YEAR(AC_Log[[#This Row],[Service Date ]]) & \"-\" & \"Q\" & INT((MONTH(AC_Log[[#This Row],[Service Date ]])+2)/3), \"\")","v":""}]
[null,null,null,null,null,null,{"$f":"IF(AC_Log[[#This Row],[Service Date ]], YEAR(AC_Log[[#This Row],[Service Date ]]) & \"-\" & \"Q\" & INT((MONTH(AC_Log[[#This Row],[Service Date ]])+2)/3), \"\")","v":""}]
[null,null,null,null,null,null,{"$f":"IF(AC_Log[[#This Row],[Service Date ]], YEAR(AC_Log[[#This Row],[Service Date ]]) & \"-\" & \"Q\" & INT((MONTH(AC_Log[[#This Row],[Service Date ]])+2)/3), \"\")","v":""}]
[null,null,null,null,null,null,{"$f":"IF(AC_Log[[#This Row],[Service Date ]], YEAR(AC_Log[[#This Row],[Service Date ]]) & \"-\" & \"Q\" & INT((MONTH(AC_Log[[#This Row],[Service Date ]])+2)/3), \"\")","v":""}]
[null,null,null,null,null,null,{"$f":"IF(AC_Log[[#This Row],[Service Date ]], YEAR(AC_Log[[#This Row],[Service Date ]]) & \"-\" & \"Q\" & INT((MONTH(AC_Log[[#This Row],[Service Date ]])+2)/3), \"\")","v":""}]
[null,null,null,null,null,null,{"$f":"IF(AC_Log[[#This Row],[Service Date ]], YEAR(AC_Log[[#This Row],[Service Date ]]) & \"-\" & \"Q\" & INT((MONTH(AC_Log[[#This Row],[Service Date ]])+2)/3), \"\")","v":""}]
[null,null,null,null,null,null,{"$f":"IF(AC_Log[[#This Row],[Service Date ]], YEAR(AC_Log[[#This Row],[Service Date ]]) & \"-\" & \"Q\" & INT((MONTH(AC_Log[[#This Row],[Service Date ]])+2)/3), \"\")","v":""}]
[null,null,null,null,null,null,{"$f":"IF(AC_Log[[#This Row],[Service Date ]], YEAR(AC_Log[[#This Row],[Service Date ]]) & \"-\" & \"Q\" & INT((MONTH(AC_Log[[#This Row],[Service Date ]])+2)/3), \"\")","v":""}]
[null,null,null,null,null,null,{"$f":"IF(AC_Log[[#This Row],[Service Date ]], YEAR(AC_Log[[#This Row],[Service Date ]]) & \"-\" & \"Q\" & INT((MONTH(AC_Log[[#This Row],[Service Date ]])+2)/3), \"\")","v":""}]
[null,null,null,null,null,null,{"$f":"IF(AC_Log[[#This Row],[Service Date ]], YEAR(AC_Log[[#This Row],[Service Date ]]) & \"-\" & \"Q\" & INT((MONTH(AC_Log[[#This Row],[Service Date ]])+2)/3), \"\")","v":""}]
[null,null,null,null,null,null,{"$f":"IF(AC_Log[[#This Row],[Service Date ]], YEAR(AC_Log[[#This Row],[Service Date ]]) & \"-\" & \"Q\" & INT((MONTH(AC_Log[[#This Row],[Service Date ]])+2)/3), \"\")","v":""}]
[null,null,null,null,null,null,{"$f":"IF(AC_Log[[#This Row],[Service Date ]], YEAR(AC_Log[[#This Row],[Service Date ]]) & \"-\" & \"Q\" & INT((MONTH(AC_Log[[#This Row],[Service Date ]])+2)/3), \"\")","v":""}]
[null,null,null,null,null,null,{"$f":"IF(AC_Log[[#This Row],[Service Date ]], YEAR(AC_Log[[#This Row],[Service Date ]]) & \"-\" & \"Q\" & INT((MONTH(AC_Log[[#This Row],[Service Date ]])+2)/3), \"\")","v":""}]
[null,null,null,null,null,null,{"$f":"IF(AC_Log[[#This Row],[Service Date ]], YEAR(AC_Log[[#This Row],[Service Date ]]) & \"-\" & \"Q\" & INT((MONTH(AC_Log[[#This Row],[Service Date ]])+2)/3), \"\")","v":""}]
[null,null,null,null,null,null,{"$f":"IF(AC_Log[[#This Row],[Service Date ]], YEAR(AC_Log[[#This Row],[Service Date ]]) & \"-\" & \"Q\" & INT((MONTH(AC_Log[[#This Row],[Service Date ]])+2)/3), \"\")","v":""}]
[null,null,null,null,null,null,{"$f":"IF(AC_Log[[#This Row],[Service Date ]], YEAR(AC_Log[[#This Row],[Service Date ]]) & \"-\" & \"Q\" & INT((MONTH(AC_Log[[#This Row],[Service Date ]])+2)/3), \"\")","v":""}]
[null,null,null,null,null,null,{"$f":"IF(AC_Log[[#This Row],[Service Date ]], YEAR(AC_Log[[#This Row],[Service Date ]]) & \"-\" & \"Q\" & INT((MONTH(AC_Log[[#This Row],[Service Date ]])+2)/3), \"\")","v":""}]
[null,null,null,null,null,null,{"$f":"IF(AC_Log[[#This Row],[Service Date ]], YEAR(AC_Log[[#This Row],[Service Date ]]) & \"-\" & \"Q\" & INT((MONTH(AC_Log[[#This Row],[Service Date ]])+2)/3), \"\")","v":""}]
[null,null,null,null,null,null,{"$f":"IF(AC_Log[[#This Row],[Service Date ]], YEAR(AC_Log[[#This Row],[Service Date ]]) & \"-\" & \"Q\" & INT((MONTH(AC_Log[[#This Row],[Service Date ]])+2)/3), \"\")","v":""}]
[null,null,null,null,null,null,{"$f":"IF(AC_Log[[#This Row],[Service Date ]], YEAR(AC_Log[[#This Row],[Service Date ]]) & \"-\" & \"Q\" & INT((MONTH(AC_Log[[#This Row],[Service Date ]])+2)/3), \"\")","v":""}]
[null,null,null,null,null,null,{"$f":"IF(AC_Log[[#This Row],[Service Date ]], YEAR(AC_Log[[#This Row],[Service Date ]]) & \"-\" & \"Q\" & INT((MONTH(AC_Log[[#This Row],[Service Date ]])+2)/3), \"\")","v":""}]
[null,null,null,null,null,null,{"$f":"IF(AC_Log[[#This Row],[Service Date ]], YEAR(AC_Log[[#This Row],[Service Date ]]) & \"-\" & \"Q\" & INT((MONTH(AC_Log[[#This Row],[Service Date ]])+2)/3), \"\")","v":""}]
[null,null,null,null,null,null,{"$f":"IF(AC_Log[[#This Row],[Service Date ]], YEAR(AC_Log[[#This Row],[Service Date ]]) & \"-\" & \"Q\" & INT((MONTH(AC_Log[[#This Row],[Service Date ]])+2)/3), \"\")","v":""}]
[null,null,null,null,null,null,{"$f":"IF(AC_Log[[#This Row],[Service Date ]], YEAR(AC_Log[[#This Row],[Service Date ]]) & \"-\" & \"Q\" & INT((MONTH(AC_Log[[#This Row],[Service Date ]])+2)/3), \"\")","v":""}]
[null,null,null,null,null,null,{"$f":"IF(AC_Log[[#This Row],[Service Date ]], YEAR(AC_Log[[#This Row],[Service Date ]]) & \"-\" & \"Q\" & INT((MONTH(AC_Log[[#This Row],[Service Date ]])+2)/3), \"\")","v":""}]
[null,null,null,null,null,null,{"$f":"IF(AC_Log[[#This Row],[Service Date ]], YEAR(AC_Log[[#This Row],[Service Date ]]) & \"-\" & \"Q\" & INT((MONTH(AC_Log[[#This Row],[Service Date ]])+2)/3), \"\")","v":""}]
[null,null,null,null,null,null,{"$f":"IF(AC_Log[[#This Row],[Service Date ]], YEAR(AC_Log[[#This Row],[Service Date ]]) & \"-\" & \"Q\" & INT((MONTH(AC_Log[[#This Row],[Service Date ]])+2)/3), \"\")","v":""}]
[null,null,null,null,null,null,{"$f":"IF(AC_Log[[#This Row],[Service Date ]], YEAR(AC_Log[[#This Row],[Service Date ]]) & \"-\" & \"Q\" & INT((MONTH(AC_Log[[#This Row],[Service Date ]])+2)/3), \"\")","v":""}]
[null,null,null,null,null,null,{"$f":"IF(AC_Log[[#This Row],[Service Date ]], YEAR(AC_Log[[#This Row],[Service Date ]]) & \"-\" & \"Q\" & INT((MONTH(AC_Log[[#This Row],[Service Date ]])+2)/3), \"\")","v":""}]
[null,null,null,null,null,null,{"$f":"IF(AC_Log[[#This Row],[Service Date ]], YEAR(AC_Log[[#This Row],[Service Date ]]) & \"-\" & \"Q\" & INT((MONTH(AC_Log[[#This Row],[Service Date ]])+2)/3), \"\")","v":""}]
[null,null,null,null,null,null,{"$f":"IF(AC_Log[[#This Row],[Service Date ]], YEAR(AC_Log[[#This Row],[Service Date ]]) & \"-\" & \"Q\" & INT((MONTH(AC_Log[[#This Row],[Service Date ]])+2)/3), \"\")","v":""}]
[null,null,null,null,null,null,{"$f":"IF(AC_Log[[#This Row],[Service Date ]], YEAR(AC_Log[[#This Row],[Service Date ]]) & \"-\" & \"Q\" & INT((MONTH(AC_Log[[#This Row],[Service Date ]])+2)/3), \"\")","v":""}]
[null,null,null,null,null,null,{"$f":"IF(AC_Log[[#This Row],[Service Date ]], YEAR(AC_Log[[#This Row],[Service Date ]]) & \"-\" & \"Q\" & INT((MONTH(AC_Log[[#This Row],[Service Date ]])+2)/3), \"\")","v":""}]
[null,null,null,null,null,null,{"$f":"IF(AC_Log[[#This Row],[Service Date ]], YEAR(AC_Log[[#This Row],[Service Date ]]) & \"-\" & \"Q\" & INT((MONTH(AC_Log[[#This Row],[Service Date ]])+2)/3), \"\")","v":""}]
[null,null,null,null,null,null,{"$f":"IF(AC_Log[[#This Row],[Service Date ]], YEAR(AC_Log[[#This Row],[Service Date ]]) & \"-\" & \"Q\" & INT((MONTH(AC_Log[[#This Row],[Service Date ]])+2)/3), \"\")","v":""}]
[null,null,null,null,null,null,{"$f":"IF(AC_Log[[#This Row],[Service Date ]], YEAR(AC_Log[[#This Row],[Service Date ]]) & \"-\" & \"Q\" & INT((MONTH(AC_Log[[#This Row],[Service Date ]])+2)/3), \"\")","v":""}]
[null,null,null,null,null,null,{"$f":"IF(AC_Log[[#This Row],[Service Date ]], YEAR(AC_Log[[#This Row],[Service Date ]]) & \"-\" & \"Q\" & INT((MONTH(AC_Log[[#This Row],[Service Date ]])+2)/3), \"\")","v":""}]
[null,null,null,null,null,null,{"$f":"IF(AC_Log[[#This Row],[Service Date ]], YEAR(AC_Log[[#This Row],[Service Date ]]) & \"-\" & \"Q\" & INT((MONTH(AC_Log[[#This Row],[Service Date ]])+2)/3), \"\")","v":""}]
[null,null,null,null,null,null,{"$f":"IF(AC_Log[[#This Row],[Service Date ]], YEAR(AC_Log[[#This Row],[Service Date ]]) & \"-\" & \"Q\" & INT((MONTH(AC_Log[[#This Row],[Service Date ]])+2)/3), \"\")","v":""}]
[null,null,null,null,null,null,{"$f":"IF(AC_Log[[#This Row],[Service Date ]], YEAR(AC_Log[[#This Row],[Service Date ]]) & \"-\" & \"Q\" & INT((MONTH(AC_Log[[#This Row],[Service Date ]])+2)/3), \"\")","v":""}]
[null,null,null,null,null,null,{"$f":"IF(AC_Log[[#This Row],[Service Date ]], YEAR(AC_Log[[#This Row],[Service Date ]]) & \"-\" & \"Q\" & INT((MONTH(AC_Log[[#This Row],[Service Date ]])+2)/3), \"\")","v":""}]
[null,null,null,null,null,null,{"$f":"IF(AC_Log[[#This Row],[Service Date ]], YEAR(AC_Log[[#This Row],[Service Date ]]) & \"-\" & \"Q\" & INT((MONTH(AC_Log[[#This Row],[Service Date ]])+2)/3), \"\")","v":""}]
[null,null,null,null,null,null,{"$f":"IF(AC_Log[[#This Row],[Service Date ]], YEAR(AC_Log[[#This Row],[Service Date ]]) & \"-\" & \"Q\" & INT((MONTH(AC_Log[[#This Row],[Service Date ]])+2)/3), \"\")","v":""}]
[null,null,null,null,null,null,{"$f":"IF(AC_Log[[#This Row],[Service Date ]], YEAR(AC_Log[[#This Row],[Service Date ]]) & \"-\" & \"Q\" & INT((MONTH(AC_Log[[#This Row],[Service Date ]])+2)/3), \"\")","v":""}]
[null,null,null,null,null,null,{"$f":"IF(AC_Log[[#This Row],[Service Date ]], YEAR(AC_Log[[#This Row],[Service Date ]]) & \"-\" & \"Q\" & INT((MONTH(AC_Log[[#This Row],[Service Date ]])+2)/3), \"\")","v":""}]
[null,null,null,null,null,null,{"$f":"IF(AC_Log[[#This Row],[Service Date ]], YEAR(AC_Log[[#This Row],[Service Date ]]) & \"-\" & \"Q\" & INT((MONTH(AC_Log[[#This Row],[Service Date ]])+2)/3), \"\")","v":""}]
[null,null,null,null,null,null,{"$f":"IF(AC_Log[[#This Row],[Service Date ]], YEAR(AC_Log[[#This Row],[Service Date ]]) & \"-\" & \"Q\" & INT((MONTH(AC_Log[[#This Row],[Service Date ]])+2)/3), \"\")","v":""}]
[null,null,null,null,null,null,{"$f":"IF(AC_Log[[#This Row],[Service Date ]], YEAR(AC_Log[[#This Row],[Service Date ]]) & \"-\" & \"Q\" & INT((MONTH(AC_Log[[#This Row],[Service Date ]])+2)/3), \"\")","v":""}]
[null,null,null,null,null,null,{"$f":"IF(AC_Log[[#This Row],[Service Date ]], YEAR(AC_Log[[#This Row],[Service Date ]]) & \"-\" & \"Q\" & INT((MONTH(AC_Log[[#This Row],[Service Date ]])+2)/3), \"\")","v":""}]
[null,null,null,null,null,null,{"$f":"IF(AC_Log[[#This Row],[Service Date ]], YEAR(AC_Log[[#This Row],[Service Date ]]) & \"-\" & \"Q\" & INT((MONTH(AC_Log[[#This Row],[Service Date ]])+2)/3), \"\")","v":""}]
[null,null,null,null,null,null,{"$f":"IF(AC_Log[[#This Row],[Service Date ]], YEAR(AC_Log[[#This Row],[Service Date ]]) & \"-\" & \"Q\" & INT((MONTH(AC_Log[[#This Row],[Service Date ]])+2)/3), \"\")","v":""}]
[null,null,null,null,null,null,{"$f":"IF(AC_Log[[#This Row],[Service Date ]], YEAR(AC_Log[[#This Row],[Service Date ]]) & \"-\" & \"Q\" & INT((MONTH(AC_Log[[#This Row],[Service Date ]])+2)/3), \"\")","v":""}]
[null,null,null,null,null,null,{"$f":"IF(AC_Log[[#This Row],[Service Date ]], YEAR(AC_Log[[#This Row],[Service Date ]]) & \"-\" & \"Q\" & INT((MONTH(AC_Log[[#This Row],[Service Date ]])+2)/3), \"\")","v":""}]
[null,null,null,null,null,null,{"$f":"IF(AC_Log[[#This Row],[Service Date ]], YEAR(AC_Log[[#This Row],[Service Date ]]) & \"-\" & \"Q\" & INT((MONTH(AC_Log[[#This Row],[Service Date ]])+2)/3), \"\")","v":""}]
[null,null,null,null,null,null,{"$f":"IF(AC_Log[[#This Row],[Service Date ]], YEAR(AC_Log[[#This Row],[Service Date ]]) & \"-\" & \"Q\" & INT((MONTH(AC_Log[[#This Row],[Service Date ]])+2)/3), \"\")","v":""}]
[null,null,null,null,null,null,{"$f":"IF(AC_Log[[#This Row],[Service Date ]], YEAR(AC_Log[[#This Row],[Service Date ]]) & \"-\" & \"Q\" & INT((MONTH(AC_Log[[#This Row],[Service Date ]])+2)/3), \"\")","v":""}]
[null,null,null,null,null,null,{"$f":"IF(AC_Log[[#This Row],[Service Date ]], YEAR(AC_Log[[#This Row],[Service Date ]]) & \"-\" & \"Q\" & INT((MONTH(AC_Log[[#This Row],[Service Date ]])+2)/3), \"\")","v":""}]
[null,null,null,null,null,null,{"$f":"IF(AC_Log[[#This Row],[Service Date ]], YEAR(AC_Log[[#This Row],[Service Date ]]) & \"-\" & \"Q\" & INT((MONTH(AC_Log[[#This Row],[Service Date ]])+2)/3), \"\")","v":""}]
[null,null,null,null,null,null,{"$f":"IF(AC_Log[[#This Row],[Service Date ]], YEAR(AC_Log[[#This Row],[Service Date ]]) & \"-\" & \"Q\" & INT((MONTH(AC_Log[[#This Row],[Service Date ]])+2)/3), \"\")","v":""}]
[null,null,null,null,null,null,{"$f":"IF(AC_Log[[#This Row],[Service Date ]], YEAR(AC_Log[[#This Row],[Service Date ]]) & \"-\" & \"Q\" & INT((MONTH(AC_Log[[#This Row],[Service Date ]])+2)/3), \"\")","v":""}]
[null,null,null,null,null,null,{"$f":"IF(AC_Log[[#This Row],[Service Date ]], YEAR(AC_Log[[#This Row],[Service Date ]]) & \"-\" & \"Q\" & INT((MONTH(AC_Log[[#This Row],[Service Date ]])+2)/3), \"\")","v":""}]
[null,null,null,null,null,null,{"$f":"IF(AC_Log[[#This Row],[Service Date ]], YEAR(AC_Log[[#This Row],[Service Date ]]) & \"-\" & \"Q\" & INT((MONTH(AC_Log[[#This Row],[Service Date ]])+2)/3), \"\")","v":""}]
[null,null,null,null,null,null,{"$f":"IF(AC_Log[[#This Row],[Service Date ]], YEAR(AC_Log[[#This Row],[Service Date ]]) & \"-\" & \"Q\" & INT((MONTH(AC_Log[[#This Row],[Service Date ]])+2)/3), \"\")","v":""}]
[null,null,null,null,null,null,{"$f":"IF(AC_Log[[#This Row],[Service Date ]], YEAR(AC_Log[[#This Row],[Service Date ]]) & \"-\" & \"Q\" & INT((MONTH(AC_Log[[#This Row],[Service Date ]])+2)/3), \"\")","v":""}]
[null,null,null,null,null,null,{"$f":"IF(AC_Log[[#This Row],[Service Date ]], YEAR(AC_Log[[#This Row],[Service Date ]]) & \"-\" & \"Q\" & INT((MONTH(AC_Log[[#This Row],[Service Date ]])+2)/3), \"\")","v":""}]
[null,null,null,null,null,null,{"$f":"IF(AC_Log[[#This Row],[Service Date ]], YEAR(AC_Log[[#This Row],[Service Date ]]) & \"-\" & \"Q\" & INT((MONTH(AC_Log[[#This Row],[Service Date ]])+2)/3), \"\")","v":""}]
[null,null,null,null,null,null,{"$f":"IF(AC_Log[[#This Row],[Service Date ]], YEAR(AC_Log[[#This Row],[Service Date ]]) & \"-\" & \"Q\" & INT((MONTH(AC_Log[[#This Row],[Service Date ]])+2)/3), \"\")","v":""}]
[null,null,null,null,null,null,{"$f":"IF(AC_Log[[#This Row],[Service Date ]], YEAR(AC_Log[[#This Row],[Service Date ]]) & \"-\" & \"Q\" & INT((MONTH(AC_Log[[#This Row],[Service Date ]])+2)/3), \"\")","v":""}]
[null,null,null,null,null,null,{"$f":"IF(AC_Log[[#This Row],[Service Date ]], YEAR(AC_Log[[#This Row],[Service Date ]]) & \"-\" & \"Q\" & INT((MONTH(AC_Log[[#This Row],[Service Date ]])+2)/3), \"\")","v":""}]
[null,null,null,null,null,null,{"$f":"IF(AC_Log[[#This Row],[Service Date ]], YEAR(AC_Log[[#This Row],[Service Date ]]) & \"-\" & \"Q\" & INT((MONTH(AC_Log[[#This Row],[Service Date ]])+2)/3), \"\")","v":""}]
[null,null,null,null,null,null,{"$f":"IF(AC_Log[[#This Row],[Service Date ]], YEAR(AC_Log[[#This Row],[Service Date ]]) & \"-\" & \"Q\" & INT((MONTH(AC_Log[[#This Row],[Service Date ]])+2)/3), \"\")","v":""}]
[null,null,null,null,null,null,{"$f":"IF(AC_Log[[#This Row],[Service Date ]], YEAR(AC_Log[[#This Row],[Service Date ]]) & \"-\" & \"Q\" & INT((MONTH(AC_Log[[#This Row],[Service Date ]])+2)/3), \"\")","v":""}]
[null,null,null,null,null,null,{"$f":"IF(AC_Log[[#This Row],[Service Date ]], YEAR(AC_Log[[#This Row],[Service Date ]]) & \"-\" & \"Q\" & INT((MONTH(AC_Log[[#This Row],[Service Date ]])+2)/3), \"\")","v":""}]
[null,null,null,null,null,null,{"$f":"IF(AC_Log[[#This Row],[Service Date ]], YEAR(AC_Log[[#This Row],[Service Date ]]) & \"-\" & \"Q\" & INT((MONTH(AC_Log[[#This Row],[Service Date ]])+2)/3), \"\")","v":""}]
[null,null,null,null,null,null,{"$f":"IF(AC_Log[[#This Row],[Service Date ]], YEAR(AC_Log[[#This Row],[Service Date ]]) & \"-\" & \"Q\" & INT((MONTH(AC_Log[[#This Row],[Service Date ]])+2)/3), \"\")","v":""}]
[null,null,null,null,null,null,{"$f":"IF(AC_Log[[#This Row],[Service Date ]], YEAR(AC_Log[[#This Row],[Service Date ]]) & \"-\" & \"Q\" & INT((MONTH(AC_Log[[#This Row],[Service Date ]])+2)/3), \"\")","v":""}]
[null,null,null,null,null,null,{"$f":"IF(AC_Log[[#This Row],[Service Date ]], YEAR(AC_Log[[#This Row],[Service Date ]]) & \"-\" & \"Q\" & INT((MONTH(AC_Log[[#This Row],[Service Date ]])+2)/3), \"\")","v":""}]
[null,null,null,null,null,null,{"$f":"IF(AC_Log[[#This Row],[Service Date ]], YEAR(AC_Log[[#This Row],[Service Date ]]) & \"-\" & \"Q\" & INT((MONTH(AC_Log[[#This Row],[Service Date ]])+2)/3), \"\")","v":""}]
[null,null,null,null,null,null,{"$f":"IF(AC_Log[[#This Row],[Service Date ]], YEAR(AC_Log[[#This Row],[Service Date ]]) & \"-\" & \"Q\" & INT((MONTH(AC_Log[[#This Row],[Service Date ]])+2)/3), \"\")","v":""}]
[null,null,null,null,null,null,{"$f":"IF(AC_Log[[#This Row],[Service Date ]], YEAR(AC_Log[[#This Row],[Service Date ]]) & \"-\" & \"Q\" & INT((MONTH(AC_Log[[#This Row],[Service Date ]])+2)/3), \"\")","v":""}]
[null,null,null,null,null,null,{"$f":"IF(AC_Log[[#This Row],[Service Date ]], YEAR(AC_Log[[#This Row],[Service Date ]]) & \"-\" & \"Q\" & INT((MONTH(AC_Log[[#This Row],[Service Date ]])+2)/3), \"\")","v":""}]
[null,null,null,null,null,null,{"$f":"IF(AC_Log[[#This Row],[Service Date ]], YEAR(AC_Log[[#This Row],[Service Date ]]) & \"-\" & \"Q\" & INT((MONTH(AC_Log[[#This Row],[Service Date ]])+2)/3), \"\")","v":""}]
[null,null,null,null,null,null,{"$f":"IF(AC_Log[[#This Row],[Service Date ]], YEAR(AC_Log[[#This Row],[Service Date ]]) & \"-\" & \"Q\" & INT((MONTH(AC_Log[[#This Row],[Service Date ]])+2)/3), \"\")","v":""}]
[null,null,null,null,null,null,{"$f":"IF(AC_Log[[#This Row],[Service Date ]], YEAR(AC_Log[[#This Row],[Service Date ]]) & \"-\" & \"Q\" & INT((MONTH(AC_Log[[#This Row],[Service Date ]])+2)/3), \"\")","v":""}]
[null,null,null,null,null,null,{"$f":"IF(AC_Log[[#This Row],[Service Date ]], YEAR(AC_Log[[#This Row],[Service Date ]]) & \"-\" & \"Q\" & INT((MONTH(AC_Log[[#This Row],[Service Date ]])+2)/3), \"\")","v":""}]
[null,null,null,null,null,null,{"$f":"IF(AC_Log[[#This Row],[Service Date ]], YEAR(AC_Log[[#This Row],[Service Date ]]) & \"-\" & \"Q\" & INT((MONTH(AC_Log[[#This Row],[Service Date ]])+2)/3), \"\")","v":""}]
[null,null,null,null,null,null,{"$f":"IF(AC_Log[[#This Row],[Service Date ]], YEAR(AC_Log[[#This Row],[Service Date ]]) & \"-\" & \"Q\" & INT((MONTH(AC_Log[[#This Row],[Service Date ]])+2)/3), \"\")","v":""}]
[null,null,null,null,null,null,{"$f":"IF(AC_Log[[#This Row],[Service Date ]], YEAR(AC_Log[[#This Row],[Service Date ]]) & \"-\" & \"Q\" & INT((MONTH(AC_Log[[#This Row],[Service Date ]])+2)/3), \"\")","v":""}]
[null,null,null,null,null,null,{"$f":"IF(AC_Log[[#This Row],[Service Date ]], YEAR(AC_Log[[#This Row],[Service Date ]]) & \"-\" & \"Q\" & INT((MONTH(AC_Log[[#This Row],[Service Date ]])+2)/3), \"\")","v":""}]
[null,null,null,null,null,null,{"$f":"IF(AC_Log[[#This Row],[Service Date ]], YEAR(AC_Log[[#This Row],[Service Date ]]) & \"-\" & \"Q\" & INT((MONTH(AC_Log[[#This Row],[Service Date ]])+2)/3), \"\")","v":""}]
[null,null,null,null,null,null,{"$f":"IF(AC_Log[[#This Row],[Service Date ]], YEAR(AC_Log[[#This Row],[Service Date ]]) & \"-\" & \"Q\" & INT((MONTH(AC_Log[[#This Row],[Service Date ]])+2)/3), \"\")","v":""}]
[null,null,null,null,null,null,{"$f":"IF(AC_Log[[#This Row],[Service Date ]], YEAR(AC_Log[[#This Row],[Service Date ]]) & \"-\" & \"Q\" & INT((MONTH(AC_Log[[#This Row],[Service Date ]])+2)/3), \"\")","v":""}]
[null,null,null,null,null,null,{"$f":"IF(AC_Log[[#This Row],[Service Date ]], YEAR(AC_Log[[#This Row],[Service Date ]]) & \"-\" & \"Q\" & INT((MONTH(AC_Log[[#This Row],[Service Date ]])+2)/3), \"\")","v":""}]
[null,null,null,null,null,null,{"$f":"IF(AC_Log[[#This Row],[Service Date ]], YEAR(AC_Log[[#This Row],[Service Date ]]) & \"-\" & \"Q\" & INT((MONTH(AC_Log[[#This Row],[Service Date ]])+2)/3), \"\")","v":""}]
[null,null,null,null,null,null,{"$f":"IF(AC_Log[[#This Row],[Service Date ]], YEAR(AC_Log[[#This Row],[Service Date ]]) & \"-\" & \"Q\" & INT((MONTH(AC_Log[[#This Row],[Service Date ]])+2)/3), \"\")","v":""}]
[null,null,null,null,null,null,{"$f":"IF(AC_Log[[#This Row],[Service Date ]], YEAR(AC_Log[[#This Row],[Service Date ]]) & \"-\" & \"Q\" & INT((MONTH(AC_Log[[#This Row],[Service Date ]])+2)/3), \"\")","v":""}]
[null,null,null,null,null,null,{"$f":"IF(AC_Log[[#This Row],[Service Date ]], YEAR(AC_Log[[#This Row],[Service Date ]]) & \"-\" & \"Q\" & INT((MONTH(AC_Log[[#This Row],[Service Date ]])+2)/3), \"\")","v":""}]
[null,null,null,null,null,null,{"$f":"IF(AC_Log[[#This Row],[Service Date ]], YEAR(AC_Log[[#This Row],[Service Date ]]) & \"-\" & \"Q\" & INT((MONTH(AC_Log[[#This Row],[Service Date ]])+2)/3), \"\")","v":""}]
[null,null,null,null,null,null,{"$f":"IF(AC_Log[[#This Row],[Service Date ]], YEAR(AC_Log[[#This Row],[Service Date ]]) & \"-\" & \"Q\" & INT((MONTH(AC_Log[[#This Row],[Service Date ]])+2)/3), \"\")","v":""}]
[null,null,null,null,null,null,{"$f":"IF(AC_Log[[#This Row],[Service Date ]], YEAR(AC_Log[[#This Row],[Service Date ]]) & \"-\" & \"Q\" & INT((MONTH(AC_Log[[#This Row],[Service Date ]])+2)/3), \"\")","v":""}]
[null,null,null,null,null,null,{"$f":"IF(AC_Log[[#This Row],[Service Date ]], YEAR(AC_Log[[#This Row],[Service Date ]]) & \"-\" & \"Q\" & INT((MONTH(AC_Log[[#This Row],[Service Date ]])+2)/3), \"\")","v":""}]
[null,null,null,null,null,null,{"$f":"IF(AC_Log[[#This Row],[Service Date ]], YEAR(AC_Log[[#This Row],[Service Date ]]) & \"-\" & \"Q\" & INT((MONTH(AC_Log[[#This Row],[Service Date ]])+2)/3), \"\")","v":""}]
[null,null,null,null,null,null,{"$f":"IF(AC_Log[[#This Row],[Service Date ]], YEAR(AC_Log[[#This Row],[Service Date ]]) & \"-\" & \"Q\" & INT((MONTH(AC_Log[[#This Row],[Service Date ]])+2)/3), \"\")","v":""}]
[null,null,null,null,null,null,{"$f":"IF(AC_Log[[#This Row],[Service Date ]], YEAR(AC_Log[[#This Row],[Service Date ]]) & \"-\" & \"Q\" & INT((MONTH(AC_Log[[#This Row],[Service Date ]])+2)/3), \"\")","v":""}]
[null,null,null,null,null,null,{"$f":"IF(AC_Log[[#This Row],[Service Date ]], YEAR(AC_Log[[#This Row],[Service Date ]]) & \"-\" & \"Q\" & INT((MONTH(AC_Log[[#This Row],[Service Date ]])+2)/3), \"\")","v":""}]
[null,null,null,null,null,null,{"$f":"IF(AC_Log[[#This Row],[Service Date ]], YEAR(AC_Log[[#This Row],[Service Date ]]) & \"-\" & \"Q\" & INT((MONTH(AC_Log[[#This Row],[Service Date ]])+2)/3), \"\")","v":""}]
[null,null,null,null,null,null,{"$f":"IF(AC_Log[[#This Row],[Service Date ]], YEAR(AC_Log[[#This Row],[Service Date ]]) & \"-\" & \"Q\" & INT((MONTH(AC_Log[[#This Row],[Service Date ]])+2)/3), \"\")","v":""}]
[null,null,null,null,null,null,{"$f":"IF(AC_Log[[#This Row],[Service Date ]], YEAR(AC_Log[[#This Row],[Service Date ]]) & \"-\" & \"Q\" & INT((MONTH(AC_Log[[#This Row],[Service Date ]])+2)/3), \"\")","v":""}]
[null,null,null,null,null,null,{"$f":"IF(AC_Log[[#This Row],[Service Date ]], YEAR(AC_Log[[#This Row],[Service Date ]]) & \"-\" & \"Q\" & INT((MONTH(AC_Log[[#This Row],[Service Date ]])+2)/3), \"\")","v":""}]
[null,null,null,null,null,null,{"$f":"IF(AC_Log[[#This Row],[Service Date ]], YEAR(AC_Log[[#This Row],[Service Date ]]) & \"-\" & \"Q\" & INT((MONTH(AC_Log[[#This Row],[Service Date ]])+2)/3), \"\")","v":""}]
[null,null,null,null,null,null,{"$f":"IF(AC_Log[[#This Row],[Service Date ]], YEAR(AC_Log[[#This Row],[Service Date ]]) & \"-\" & \"Q\" & INT((MONTH(AC_Log[[#This Row],[Service Date ]])+2)/3), \"\")","v":""}]
[null,null,null,null,null,null,{"$f":"IF(AC_Log[[#This Row],[Service Date ]], YEAR(AC_Log[[#This Row],[Service Date ]]) & \"-\" & \"Q\" & INT((MONTH(AC_Log[[#This Row],[Service Date ]])+2)/3), \"\")","v":""}]
[null,null,null,null,null,null,{"$f":"IF(AC_Log[[#This Row],[Service Date ]], YEAR(AC_Log[[#This Row],[Service Date ]]) & \"-\" & \"Q\" & INT((MONTH(AC_Log[[#This Row],[Service Date ]])+2)/3), \"\")","v":""}]
[null,null,null,null,null,null,{"$f":"IF(AC_Log[[#This Row],[Service Date ]], YEAR(AC_Log[[#This Row],[Service Date ]]) & \"-\" & \"Q\" & INT((MONTH(AC_Log[[#This Row],[Service Date ]])+2)/3), \"\")","v":""}]
[null,null,null,null,null,null,{"$f":"IF(AC_Log[[#This Row],[Service Date ]], YEAR(AC_Log[[#This Row],[Service Date ]]) & \"-\" & \"Q\" & INT((MONTH(AC_Log[[#This Row],[Service Date ]])+2)/3), \"\")","v":""}]
[null,null,null,null,null,null,{"$f":"IF(AC_Log[[#This Row],[Service Date ]], YEAR(AC_Log[[#This Row],[Service Date ]]) & \"-\" & \"Q\" & INT((MONTH(AC_Log[[#This Row],[Service Date ]])+2)/3), \"\")","v":""}]
[null,null,null,null,null,null,{"$f":"IF(AC_Log[[#This Row],[Service Date ]], YEAR(AC_Log[[#This Row],[Service Date ]]) & \"-\" & \"Q\" & INT((MONTH(AC_Log[[#This Row],[Service Date ]])+2)/3), \"\")","v":""}]
[null,null,null,null,null,null,{"$f":"IF(AC_Log[[#This Row],[Service Date ]], YEAR(AC_Log[[#This Row],[Service Date ]]) & \"-\" & \"Q\" & INT((MONTH(AC_Log[[#This Row],[Service Date ]])+2)/3), \"\")","v":""}]
[null,null,null,null,null,null,{"$f":"IF(AC_Log[[#This Row],[Service Date ]], YEAR(AC_Log[[#This Row],[Service Date ]]) & \"-\" & \"Q\" & INT((MONTH(AC_Log[[#This Row],[Service Date ]])+2)/3), \"\")","v":""}]
[null,null,null,null,null,null,{"$f":"IF(AC_Log[[#This Row],[Service Date ]], YEAR(AC_Log[[#This Row],[Service Date ]]) & \"-\" & \"Q\" & INT((MONTH(AC_Log[[#This Row],[Service Date ]])+2)/3), \"\")","v":""}]
[null,null,null,null,null,null,{"$f":"IF(AC_Log[[#This Row],[Service Date ]], YEAR(AC_Log[[#This Row],[Service Date ]]) & \"-\" & \"Q\" & INT((MONTH(AC_Log[[#This Row],[Service Date ]])+2)/3), \"\")","v":""}]
[null,null,null,null,null,null,{"$f":"IF(AC_Log[[#This Row],[Service Date ]], YEAR(AC_Log[[#This Row],[Service Date ]]) & \"-\" & \"Q\" & INT((MONTH(AC_Log[[#This Row],[Service Date ]])+2)/3), \"\")","v":""}]
[null,null,null,null,null,null,{"$f":"IF(AC_Log[[#This Row],[Service Date ]], YEAR(AC_Log[[#This Row],[Service Date ]]) & \"-\" & \"Q\" & INT((MONTH(AC_Log[[#This Row],[Service Date ]])+2)/3), \"\")","v":""}]
[null,null,null,null,null,null,{"$f":"IF(AC_Log[[#This Row],[Service Date ]], YEAR(AC_Log[[#This Row],[Service Date ]]) & \"-\" & \"Q\" & INT((MONTH(AC_Log[[#This Row],[Service Date ]])+2)/3), \"\")","v":""}]
[null,null,null,null,null,null,{"$f":"IF(AC_Log[[#This Row],[Service Date ]], YEAR(AC_Log[[#This Row],[Service Date ]]) & \"-\" & \"Q\" & INT((MONTH(AC_Log[[#This Row],[Service Date ]])+2)/3), \"\")","v":""}]
[null,null,null,null,null,null,{"$f":"IF(AC_Log[[#This Row],[Service Date ]], YEAR(AC_Log[[#This Row],[Service Date ]]) & \"-\" & \"Q\" & INT((MONTH(AC_Log[[#This Row],[Service Date ]])+2)/3), \"\")","v":""}]
[null,null,null,null,null,null,{"$f":"IF(AC_Log[[#This Row],[Service Date ]], YEAR(AC_Log[[#This Row],[Service Date ]]) & \"-\" & \"Q\" & INT((MONTH(AC_Log[[#This Row],[Service Date ]])+2)/3), \"\")","v":""}]
[null,null,null,null,null,null,{"$f":"IF(AC_Log[[#This Row],[Service Date ]], YEAR(AC_Log[[#This Row],[Service Date ]]) & \"-\" & \"Q\" & INT((MONTH(AC_Log[[#This Row],[Service Date ]])+2)/3), \"\")","v":""}]
[null,null,null,null,null,null,{"$f":"IF(AC_Log[[#This Row],[Service Date ]], YEAR(AC_Log[[#This Row],[Service Date ]]) & \"-\" & \"Q\" & INT((MONTH(AC_Log[[#This Row],[Service Date ]])+2)/3), \"\")","v":""}]
[null,null,null,null,null,null,{"$f":"IF(AC_Log[[#This Row],[Service Date ]], YEAR(AC_Log[[#This Row],[Service Date ]]) & \"-\" & \"Q\" & INT((MONTH(AC_Log[[#This Row],[Service Date ]])+2)/3), \"\")","v":""}]
[null,null,null,null,null,null,{"$f":"IF(AC_Log[[#This Row],[Service Date ]], YEAR(AC_Log[[#This Row],[Service Date ]]) & \"-\" & \"Q\" & INT((MONTH(AC_Log[[#This Row],[Service Date ]])+2)/3), \"\")","v":""}]
[null,null,null,null,null,null,{"$f":"IF(AC_Log[[#This Row],[Service Date ]], YEAR(AC_Log[[#This Row],[Service Date ]]) & \"-\" & \"Q\" & INT((MONTH(AC_Log[[#This Row],[Service Date ]])+2)/3), \"\")","v":""}]
[null,null,null,null,null,null,{"$f":"IF(AC_Log[[#This Row],[Service Date ]], YEAR(AC_Log[[#This Row],[Service Date ]]) & \"-\" & \"Q\" & INT((MONTH(AC_Log[[#This Row],[Service Date ]])+2)/3), \"\")","v":""}]
[null,null,null,null,null,null,{"$f":"IF(AC_Log[[#This Row],[Service Date ]], YEAR(AC_Log[[#This Row],[Service Date ]]) & \"-\" & \"Q\" & INT((MONTH(AC_Log[[#This Row],[Service Date ]])+2)/3), \"\")","v":""}]
[null,null,null,null,null,null,{"$f":"IF(AC_Log[[#This Row],[Service Date ]], YEAR(AC_Log[[#This Row],[Service Date ]]) & \"-\" & \"Q\" & INT((MONTH(AC_Log[[#This Row],[Service Date ]])+2)/3), \"\")","v":""}]
[null,null,null,null,null,null,{"$f":"IF(AC_Log[[#This Row],[Service Date ]], YEAR(AC_Log[[#This Row],[Service Date ]]) & \"-\" & \"Q\" & INT((MONTH(AC_Log[[#This Row],[Service Date ]])+2)/3), \"\")","v":""}]
[null,null,null,null,null,null,{"$f":"IF(AC_Log[[#This Row],[Service Date ]], YEAR(AC_Log[[#This Row],[Service Date ]]) & \"-\" & \"Q\" & INT((MONTH(AC_Log[[#This Row],[Service Date ]])+2)/3), \"\")","v":""}]
[null,null,null,null,null,null,{"$f":"IF(AC_Log[[#This Row],[Service Date ]], YEAR(AC_Log[[#This Row],[Service Date ]]) & \"-\" & \"Q\" & INT((MONTH(AC_Log[[#This Row],[Service Date ]])+2)/3), \"\")","v":""}]
[null,null,null,null,null,null,{"$f":"IF(AC_Log[[#This Row],[Service Date ]], YEAR(AC_Log[[#This Row],[Service Date ]]) & \"-\" & \"Q\" & INT((MONTH(AC_Log[[#This Row],[Service Date ]])+2)/3), \"\")","v":""}]
[null,null,null,null,null,null,{"$f":"IF(AC_Log[[#This Row],[Service Date ]], YEAR(AC_Log[[#This Row],[Service Date ]]) & \"-\" & \"Q\" & INT((MONTH(AC_Log[[#This Row],[Service Date ]])+2)/3), \"\")","v":""}]
[null,null,null,null,null,null,{"$f":"IF(AC_Log[[#This Row],[Service Date ]], YEAR(AC_Log[[#This Row],[Service Date ]]) & \"-\" & \"Q\" & INT((MONTH(AC_Log[[#This Row],[Service Date ]])+2)/3), \"\")","v":""}]
[null,null,null,null,null,null,{"$f":"IF(AC_Log[[#This Row],[Service Date ]], YEAR(AC_Log[[#This Row],[Service Date ]]) & \"-\" & \"Q\" & INT((MONTH(AC_Log[[#This Row],[Service Date ]])+2)/3), \"\")","v":""}]
[null,null,null,null,null,null,{"$f":"IF(AC_Log[[#This Row],[Service Date ]], YEAR(AC_Log[[#This Row],[Service Date ]]) & \"-\" & \"Q\" & INT((MONTH(AC_Log[[#This Row],[Service Date ]])+2)/3), \"\")","v":""}]
[null,null,null,null,null,null,{"$f":"IF(AC_Log[[#This Row],[Service Date ]], YEAR(AC_Log[[#This Row],[Service Date ]]) & \"-\" & \"Q\" & INT((MONTH(AC_Log[[#This Row],[Service Date ]])+2)/3), \"\")","v":""}]
[null,null,null,null,null,null,{"$f":"IF(AC_Log[[#This Row],[Service Date ]], YEAR(AC_Log[[#This Row],[Service Date ]]) & \"-\" & \"Q\" & INT((MONTH(AC_Log[[#This Row],[Service Date ]])+2)/3), \"\")","v":""}]
[null,null,null,null,null,null,{"$f":"IF(AC_Log[[#This Row],[Service Date ]], YEAR(AC_Log[[#This Row],[Service Date ]]) & \"-\" & \"Q\" & INT((MONTH(AC_Log[[#This Row],[Service Date ]])+2)/3), \"\")","v":""}]
[null,null,null,null,null,null,{"$f":"IF(AC_Log[[#This Row],[Service Date ]], YEAR(AC_Log[[#This Row],[Service Date ]]) & \"-\" & \"Q\" & INT((MONTH(AC_Log[[#This Row],[Service Date ]])+2)/3), \"\")","v":""}]
[null,null,null,null,null,null,{"$f":"IF(AC_Log[[#This Row],[Service Date ]], YEAR(AC_Log[[#This Row],[Service Date ]]) & \"-\" & \"Q\" & INT((MONTH(AC_Log[[#This Row],[Service Date ]])+2)/3), \"\")","v":""}]
[null,null,null,null,null,null,{"$f":"IF(AC_Log[[#This Row],[Service Date ]], YEAR(AC_Log[[#This Row],[Service Date ]]) & \"-\" & \"Q\" & INT((MONTH(AC_Log[[#This Row],[Service Date ]])+2)/3), \"\")","v":""}]
[null,null,null,null,null,null,{"$f":"IF(AC_Log[[#This Row],[Service Date ]], YEAR(AC_Log[[#This Row],[Service Date ]]) & \"-\" & \"Q\" & INT((MONTH(AC_Log[[#This Row],[Service Date ]])+2)/3), \"\")","v":""}]
[null,null,null,null,null,null,{"$f":"IF(AC_Log[[#This Row],[Service Date ]], YEAR(AC_Log[[#This Row],[Service Date ]]) & \"-\" & \"Q\" & INT((MONTH(AC_Log[[#This Row],[Service Date ]])+2)/3), \"\")","v":""}]
[null,null,null,null,null,null,{"$f":"IF(AC_Log[[#This Row],[Service Date ]], YEAR(AC_Log[[#This Row],[Service Date ]]) & \"-\" & \"Q\" & INT((MONTH(AC_Log[[#This Row],[Service Date ]])+2)/3), \"\")","v":""}]
[null,null,null,null,null,null,{"$f":"IF(AC_Log[[#This Row],[Service Date ]], YEAR(AC_Log[[#This Row],[Service Date ]]) & \"-\" & \"Q\" & INT((MONTH(AC_Log[[#This Row],[Service Date ]])+2)/3), \"\")","v":""}]
[null,null,null,null,null,null,{"$f":"IF(AC_Log[[#This Row],[Service Date ]], YEAR(AC_Log[[#This Row],[Service Date ]]) & \"-\" & \"Q\" & INT((MONTH(AC_Log[[#This Row],[Service Date ]])+2)/3), \"\")","v":""}]
[null,null,null,null,null,null,{"$f":"IF(AC_Log[[#This Row],[Service Date ]], YEAR(AC_Log[[#This Row],[Service Date ]]) & \"-\" & \"Q\" & INT((MONTH(AC_Log[[#This Row],[Service Date ]])+2)/3), \"\")","v":""}]
[null,null,null,null,null,null,{"$f":"IF(AC_Log[[#This Row],[Service Date ]], YEAR(AC_Log[[#This Row],[Service Date ]]) & \"-\" & \"Q\" & INT((MONTH(AC_Log[[#This Row],[Service Date ]])+2)/3), \"\")","v":""}]
[null,null,null,null,null,null,{"$f":"IF(AC_Log[[#This Row],[Service Date ]], YEAR(AC_Log[[#This Row],[Service Date ]]) & \"-\" & \"Q\" & INT((MONTH(AC_Log[[#This Row],[Service Date ]])+2)/3), \"\")","v":""}]
[null,null,null,null,null,null,{"$f":"IF(AC_Log[[#This Row],[Service Date ]], YEAR(AC_Log[[#This Row],[Service Date ]]) & \"-\" & \"Q\" & INT((MONTH(AC_Log[[#This Row],[Service Date ]])+2)/3), \"\")","v":""}]
[null,null,null,null,null,null,{"$f":"IF(AC_Log[[#This Row],[Service Date ]], YEAR(AC_Log[[#This Row],[Service Date ]]) & \"-\" & \"Q\" & INT((MONTH(AC_Log[[#This Row],[Service Date ]])+2)/3), \"\")","v":""}]
[null,null,null,null,null,null,{"$f":"IF(AC_Log[[#This Row],[Service Date ]], YEAR(AC_Log[[#This Row],[Service Date ]]) & \"-\" & \"Q\" & INT((MONTH(AC_Log[[#This Row],[Service Date ]])+2)/3), \"\")","v":""}]
[null,null,null,null,null,null,{"$f":"IF(AC_Log[[#This Row],[Service Date ]], YEAR(AC_Log[[#This Row],[Service Date ]]) & \"-\" & \"Q\" & INT((MONTH(AC_Log[[#This Row],[Service Date ]])+2)/3), \"\")","v":""}]
[null,null,null,null,null,null,{"$f":"IF(AC_Log[[#This Row],[Service Date ]], YEAR(AC_Log[[#This Row],[Service Date ]]) & \"-\" & \"Q\" & INT((MONTH(AC_Log[[#This Row],[Service Date ]])+2)/3), \"\")","v":""}]
[null,null,null,null,null,null,{"$f":"IF(AC_Log[[#This Row],[Service Date ]], YEAR(AC_Log[[#This Row],[Service Date ]]) & \"-\" & \"Q\" & INT((MONTH(AC_Log[[#This Row],[Service Date ]])+2)/3), \"\")","v":""}]
[null,null,null,null,null,null,{"$f":"IF(AC_Log[[#This Row],[Service Date ]], YEAR(AC_Log[[#This Row],[Service Date ]]) & \"-\" & \"Q\" & INT((MONTH(AC_Log[[#This Row],[Service Date ]])+2)/3), \"\")","v":""}]
[null,null,null,null,null,null,{"$f":"IF(AC_Log[[#This Row],[Service Date ]], YEAR(AC_Log[[#This Row],[Service Date ]]) & \"-\" & \"Q\" & INT((MONTH(AC_Log[[#This Row],[Service Date ]])+2)/3), \"\")","v":""}]
[null,null,null,null,null,null,{"$f":"IF(AC_Log[[#This Row],[Service Date ]], YEAR(AC_Log[[#This Row],[Service Date ]]) & \"-\" & \"Q\" & INT((MONTH(AC_Log[[#This Row],[Service Date ]])+2)/3), \"\")","v":""}]
[null,null,null,null,null,null,{"$f":"IF(AC_Log[[#This Row],[Service Date ]], YEAR(AC_Log[[#This Row],[Service Date ]]) & \"-\" & \"Q\" & INT((MONTH(AC_Log[[#This Row],[Service Date ]])+2)/3), \"\")","v":""}]
[null,null,null,null,null,null,{"$f":"IF(AC_Log[[#This Row],[Service Date ]], YEAR(AC_Log[[#This Row],[Service Date ]]) & \"-\" & \"Q\" & INT((MONTH(AC_Log[[#This Row],[Service Date ]])+2)/3), \"\")","v":""}]
[null,null,null,null,null,null,{"$f":"IF(AC_Log[[#This Row],[Service Date ]], YEAR(AC_Log[[#This Row],[Service Date ]]) & \"-\" & \"Q\" & INT((MONTH(AC_Log[[#This Row],[Service Date ]])+2)/3), \"\")","v":""}]
[null,null,null,null,null,null,{"$f":"IF(AC_Log[[#This Row],[Service Date ]], YEAR(AC_Log[[#This Row],[Service Date ]]) & \"-\" & \"Q\" & INT((MONTH(AC_Log[[#This Row],[Service Date ]])+2)/3), \"\")","v":""}]
[null,null,null,null,null,null,{"$f":"IF(AC_Log[[#This Row],[Service Date ]], YEAR(AC_Log[[#This Row],[Service Date ]]) & \"-\" & \"Q\" & INT((MONTH(AC_Log[[#This Row],[Service Date ]])+2)/3), \"\")","v":""}]
[null,null,null,null,null,null,{"$f":"IF(AC_Log[[#This Row],[Service Date ]], YEAR(AC_Log[[#This Row],[Service Date ]]) & \"-\" & \"Q\" & INT((MONTH(AC_Log[[#This Row],[Service Date ]])+2)/3), \"\")","v":""}]
[null,null,null,null,null,null,{"$f":"IF(AC_Log[[#This Row],[Service Date ]], YEAR(AC_Log[[#This Row],[Service Date ]]) & \"-\" & \"Q\" & INT((MONTH(AC_Log[[#This Row],[Service Date ]])+2)/3), \"\")","v":""}]
[null,null,null,null,null,null,{"$f":"IF(AC_Log[[#This Row],[Service Date ]], YEAR(AC_Log[[#This Row],[Service Date ]]) & \"-\" & \"Q\" & INT((MONTH(AC_Log[[#This Row],[Service Date ]])+2)/3), \"\")","v":""}]
[null,null,null,null,null,null,{"$f":"IF(AC_Log[[#This Row],[Service Date ]], YEAR(AC_Log[[#This Row],[Service Date ]]) & \"-\" & \"Q\" & INT((MONTH(AC_Log[[#This Row],[Service Date ]])+2)/3), \"\")","v":""}]
[null,null,null,null,null,null,{"$f":"IF(AC_Log[[#This Row],[Service Date ]], YEAR(AC_Log[[#This Row],[Service Date ]]) & \"-\" & \"Q\" & INT((MONTH(AC_Log[[#This Row],[Service Date ]])+2)/3), \"\")","v":""}]
[null,null,null,null,null,null,{"$f":"IF(AC_Log[[#This Row],[Service Date ]], YEAR(AC_Log[[#This Row],[Service Date ]]) & \"-\" & \"Q\" & INT((MONTH(AC_Log[[#This Row],[Service Date ]])+2)/3), \"\")","v":""}]
[null,null,null,null,null,null,{"$f":"IF(AC_Log[[#This Row],[Service Date ]], YEAR(AC_Log[[#This Row],[Service Date ]]) & \"-\" & \"Q\" & INT((MONTH(AC_Log[[#This Row],[Service Date ]])+2)/3), \"\")","v":""}]
[null,null,null,null,null,null,{"$f":"IF(AC_Log[[#This Row],[Service Date ]], YEAR(AC_Log[[#This Row],[Service Date ]]) & \"-\" & \"Q\" & INT((MONTH(AC_Log[[#This Row],[Service Date ]])+2)/3), \"\")","v":""}]
[null,null,null,null,null,null,{"$f":"IF(AC_Log[[#This Row],[Service Date ]], YEAR(AC_Log[[#This Row],[Service Date ]]) & \"-\" & \"Q\" & INT((MONTH(AC_Log[[#This Row],[Service Date ]])+2)/3), \"\")","v":""}]
[null,null,null,null,null,null,{"$f":"IF(AC_Log[[#This Row],[Service Date ]], YEAR(AC_Log[[#This Row],[Service Date ]]) & \"-\" & \"Q\" & INT((MONTH(AC_Log[[#This Row],[Service Date ]])+2)/3), \"\")","v":""}]
[null,null,null,null,null,null,{"$f":"IF(AC_Log[[#This Row],[Service Date ]], YEAR(AC_Log[[#This Row],[Service Date ]]) & \"-\" & \"Q\" & INT((MONTH(AC_Log[[#This Row],[Service Date ]])+2)/3), \"\")","v":""}]
[null,null,null,null,null,null,{"$f":"IF(AC_Log[[#This Row],[Service Date ]], YEAR(AC_Log[[#This Row],[Service Date ]]) & \"-\" & \"Q\" & INT((MONTH(AC_Log[[#This Row],[Service Date ]])+2)/3), \"\")","v":""}]
[null,null,null,null,null,null,{"$f":"IF(AC_Log[[#This Row],[Service Date ]], YEAR(AC_Log[[#This Row],[Service Date ]]) & \"-\" & \"Q\" & INT((MONTH(AC_Log[[#This Row],[Service Date ]])+2)/3), \"\")","v":""}]
[null,null,null,null,null,null,{"$f":"IF(AC_Log[[#This Row],[Service Date ]], YEAR(AC_Log[[#This Row],[Service Date ]]) & \"-\" & \"Q\" & INT((MONTH(AC_Log[[#This Row],[Service Date ]])+2)/3), \"\")","v":""}]
[null,null,null,null,null,null,{"$f":"IF(AC_Log[[#This Row],[Service Date ]], YEAR(AC_Log[[#This Row],[Service Date ]]) & \"-\" & \"Q\" & INT((MONTH(AC_Log[[#This Row],[Service Date ]])+2)/3), \"\")","v":""}]
[null,null,null,null,null,null,{"$f":"IF(AC_Log[[#This Row],[Service Date ]], YEAR(AC_Log[[#This Row],[Service Date ]]) & \"-\" & \"Q\" & INT((MONTH(AC_Log[[#This Row],[Service Date ]])+2)/3), \"\")","v":""}]
[null,null,null,null,null,null,{"$f":"IF(AC_Log[[#This Row],[Service Date ]], YEAR(AC_Log[[#This Row],[Service Date ]]) & \"-\" & \"Q\" & INT((MONTH(AC_Log[[#This Row],[Service Date ]])+2)/3), \"\")","v":""}]
[null,null,null,null,null,null,{"$f":"IF(AC_Log[[#This Row],[Service Date ]], YEAR(AC_Log[[#This Row],[Service Date ]]) & \"-\" & \"Q\" & INT((MONTH(AC_Log[[#This Row],[Service Date ]])+2)/3), \"\")","v":""}]
[null,null,null,null,null,null,{"$f":"IF(AC_Log[[#This Row],[Service Date ]], YEAR(AC_Log[[#This Row],[Service Date ]]) & \"-\" & \"Q\" & INT((MONTH(AC_Log[[#This Row],[Service Date ]])+2)/3), \"\")","v":""}]
[null,null,null,null,null,null,{"$f":"IF(AC_Log[[#This Row],[Service Date ]], YEAR(AC_Log[[#This Row],[Service Date ]]) & \"-\" & \"Q\" & INT((MONTH(AC_Log[[#This Row],[Service Date ]])+2)/3), \"\")","v":""}]
[null,null,null,null,null,null,{"$f":"IF(AC_Log[[#This Row],[Service Date ]], YEAR(AC_Log[[#This Row],[Service Date ]]) & \"-\" & \"Q\" & INT((MONTH(AC_Log[[#This Row],[Service Date ]])+2)/3), \"\")","v":""}]
[null,null,null,null,null,null,{"$f":"IF(AC_Log[[#This Row],[Service Date ]], YEAR(AC_Log[[#This Row],[Service Date ]]) & \"-\" & \"Q\" & INT((MONTH(AC_Log[[#This Row],[Service Date ]])+2)/3), \"\")","v":""}]
[null,null,null,null,null,null,{"$f":"IF(AC_Log[[#This Row],[Service Date ]], YEAR(AC_Log[[#This Row],[Service Date ]]) & \"-\" & \"Q\" & INT((MONTH(AC_Log[[#This Row],[Service Date ]])+2)/3), \"\")","v":""}]
[null,null,null,null,null,null,{"$f":"IF(AC_Log[[#This Row],[Service Date ]], YEAR(AC_Log[[#This Row],[Service Date ]]) & \"-\" & \"Q\" & INT((MONTH(AC_Log[[#This Row],[Service Date ]])+2)/3), \"\")","v":""}]
[null,null,null,null,null,null,{"$f":"IF(AC_Log[[#This Row],[Service Date ]], YEAR(AC_Log[[#This Row],[Service Date ]]) & \"-\" & \"Q\" & INT((MONTH(AC_Log[[#This Row],[Service Date ]])+2)/3), \"\")","v":""}]
[null,null,null,null,null,null,{"$f":"IF(AC_Log[[#This Row],[Service Date ]], YEAR(AC_Log[[#This Row],[Service Date ]]) & \"-\" & \"Q\" & INT((MONTH(AC_Log[[#This Row],[Service Date ]])+2)/3), \"\")","v":""}]
[null,null,null,null,null,null,{"$f":"IF(AC_Log[[#This Row],[Service Date ]], YEAR(AC_Log[[#This Row],[Service Date ]]) & \"-\" & \"Q\" & INT((MONTH(AC_Log[[#This Row],[Service Date ]])+2)/3), \"\")","v":""}]
[null,null,null,null,null,null,{"$f":"IF(AC_Log[[#This Row],[Service Date ]], YEAR(AC_Log[[#This Row],[Service Date ]]) & \"-\" & \"Q\" & INT((MONTH(AC_Log[[#This Row],[Service Date ]])+2)/3), \"\")","v":""}]
[null,null,null,null,null,null,{"$f":"IF(AC_Log[[#This Row],[Service Date ]], YEAR(AC_Log[[#This Row],[Service Date ]]) & \"-\" & \"Q\" & INT((MONTH(AC_Log[[#This Row],[Service Date ]])+2)/3), \"\")","v":""}]
[null,null,null,null,null,null,{"$f":"IF(AC_Log[[#This Row],[Service Date ]], YEAR(AC_Log[[#This Row],[Service Date ]]) & \"-\" & \"Q\" & INT((MONTH(AC_Log[[#This Row],[Service Date ]])+2)/3), \"\")","v":""}]
[null,null,null,null,null,null,{"$f":"IF(AC_Log[[#This Row],[Service Date ]], YEAR(AC_Log[[#This Row],[Service Date ]]) & \"-\" & \"Q\" & INT((MONTH(AC_Log[[#This Row],[Service Date ]])+2)/3), \"\")","v":""}]
[null,null,null,null,null,null,{"$f":"IF(AC_Log[[#This Row],[Service Date ]], YEAR(AC_Log[[#This Row],[Service Date ]]) & \"-\" & \"Q\" & INT((MONTH(AC_Log[[#This Row],[Service Date ]])+2)/3), \"\")","v":""}]
[null,null,null,null,null,null,{"$f":"IF(AC_Log[[#This Row],[Service Date ]], YEAR(AC_Log[[#This Row],[Service Date ]]) & \"-\" & \"Q\" & INT((MONTH(AC_Log[[#This Row],[Service Date ]])+2)/3), \"\")","v":""}]
[null,null,null,null,null,null,{"$f":"IF(AC_Log[[#This Row],[Service Date ]], YEAR(AC_Log[[#This Row],[Service Date ]]) & \"-\" & \"Q\" & INT((MONTH(AC_Log[[#This Row],[Service Date ]])+2)/3), \"\")","v":""}]
[null,null,null,null,null,null,{"$f":"IF(AC_Log[[#This Row],[Service Date ]], YEAR(AC_Log[[#This Row],[Service Date ]]) & \"-\" & \"Q\" & INT((MONTH(AC_Log[[#This Row],[Service Date ]])+2)/3), \"\")","v":""}]
[null,null,null,null,null,null,{"$f":"IF(AC_Log[[#This Row],[Service Date ]], YEAR(AC_Log[[#This Row],[Service Date ]]) & \"-\" & \"Q\" & INT((MONTH(AC_Log[[#This Row],[Service Date ]])+2)/3), \"\")","v":""}]
[null,null,null,null,null,null,{"$f":"IF(AC_Log[[#This Row],[Service Date ]], YEAR(AC_Log[[#This Row],[Service Date ]]) & \"-\" & \"Q\" & INT((MONTH(AC_Log[[#This Row],[Service Date ]])+2)/3), \"\")","v":""}]
[null,null,null,null,null,null,{"$f":"IF(AC_Log[[#This Row],[Service Date ]], YEAR(AC_Log[[#This Row],[Service Date ]]) & \"-\" & \"Q\" & INT((MONTH(AC_Log[[#This Row],[Service Date ]])+2)/3), \"\")","v":""}]
[null,null,null,null,null,null,{"$f":"IF(AC_Log[[#This Row],[Service Date ]], YEAR(AC_Log[[#This Row],[Service Date ]]) & \"-\" & \"Q\" & INT((MONTH(AC_Log[[#This Row],[Service Date ]])+2)/3), \"\")","v":""}]
[null,null,null,null,null,null,{"$f":"IF(AC_Log[[#This Row],[Service Date ]], YEAR(AC_Log[[#This Row],[Service Date ]]) & \"-\" & \"Q\" & INT((MONTH(AC_Log[[#This Row],[Service Date ]])+2)/3), \"\")","v":""}]
[null,null,null,null,null,null,{"$f":"IF(AC_Log[[#This Row],[Service Date ]], YEAR(AC_Log[[#This Row],[Service Date ]]) & \"-\" & \"Q\" & INT((MONTH(AC_Log[[#This Row],[Service Date ]])+2)/3), \"\")","v":""}]
[null,null,null,null,null,null,{"$f":"IF(AC_Log[[#This Row],[Service Date ]], YEAR(AC_Log[[#This Row],[Service Date ]]) & \"-\" & \"Q\" & INT((MONTH(AC_Log[[#This Row],[Service Date ]])+2)/3), \"\")","v":""}]
[null,null,null,null,null,null,{"$f":"IF(AC_Log[[#This Row],[Service Date ]], YEAR(AC_Log[[#This Row],[Service Date ]]) & \"-\" & \"Q\" & INT((MONTH(AC_Log[[#This Row],[Service Date ]])+2)/3), \"\")","v":""}]
[null,null,null,null,null,null,{"$f":"IF(AC_Log[[#This Row],[Service Date ]], YEAR(AC_Log[[#This Row],[Service Date ]]) & \"-\" & \"Q\" & INT((MONTH(AC_Log[[#This Row],[Service Date ]])+2)/3), \"\")","v":""}]
[null,null,null,null,null,null,{"$f":"IF(AC_Log[[#This Row],[Service Date ]], YEAR(AC_Log[[#This Row],[Service Date ]]) & \"-\" & \"Q\" & INT((MONTH(AC_Log[[#This Row],[Service Date ]])+2)/3), \"\")","v":""}]
[null,null,null,null,null,null,{"$f":"IF(AC_Log[[#This Row],[Service Date ]], YEAR(AC_Log[[#This Row],[Service Date ]]) & \"-\" & \"Q\" & INT((MONTH(AC_Log[[#This Row],[Service Date ]])+2)/3), \"\")","v":""}]
[null,null,null,null,null,null,{"$f":"IF(AC_Log[[#This Row],[Service Date ]], YEAR(AC_Log[[#This Row],[Service Date ]]) & \"-\" & \"Q\" & INT((MONTH(AC_Log[[#This Row],[Service Date ]])+2)/3), \"\")","v":""}]
[null,null,null,null,null,null,{"$f":"IF(AC_Log[[#This Row],[Service Date ]], YEAR(AC_Log[[#This Row],[Service Date ]]) & \"-\" & \"Q\" & INT((MONTH(AC_Log[[#This Row],[Service Date ]])+2)/3), \"\")","v":""}]
[null,null,null,null,null,null,{"$f":"IF(AC_Log[[#This Row],[Service Date ]], YEAR(AC_Log[[#This Row],[Service Date ]]) & \"-\" & \"Q\" & INT((MONTH(AC_Log[[#This Row],[Service Date ]])+2)/3), \"\")","v":""}]
[null,null,null,null,null,null,{"$f":"IF(AC_Log[[#This Row],[Service Date ]], YEAR(AC_Log[[#This Row],[Service Date ]]) & \"-\" & \"Q\" & INT((MONTH(AC_Log[[#This Row],[Service Date ]])+2)/3), \"\")","v":""}]
[null,null,null,null,null,null,{"$f":"IF(AC_Log[[#This Row],[Service Date ]], YEAR(AC_Log[[#This Row],[Service Date ]]) & \"-\" & \"Q\" & INT((MONTH(AC_Log[[#This Row],[Service Date ]])+2)/3), \"\")","v":""}]
[null,null,null,null,null,null,{"$f":"IF(AC_Log[[#This Row],[Service Date ]], YEAR(AC_Log[[#This Row],[Service Date ]]) & \"-\" & \"Q\" & INT((MONTH(AC_Log[[#This Row],[Service Date ]])+2)/3), \"\")","v":""}]
[null,null,null,null,null,null,{"$f":"IF(AC_Log[[#This Row],[Service Date ]], YEAR(AC_Log[[#This Row],[Service Date ]]) & \"-\" & \"Q\" & INT((MONTH(AC_Log[[#This Row],[Service Date ]])+2)/3), \"\")","v":""}]
[null,null,null,null,null,null,{"$f":"IF(AC_Log[[#This Row],[Service Date ]], YEAR(AC_Log[[#This Row],[Service Date ]]) & \"-\" & \"Q\" & INT((MONTH(AC_Log[[#This Row],[Service Date ]])+2)/3), \"\")","v":""}]
[null,null,null,null,null,null,{"$f":"IF(AC_Log[[#This Row],[Service Date ]], YEAR(AC_Log[[#This Row],[Service Date ]]) & \"-\" & \"Q\" & INT((MONTH(AC_Log[[#This Row],[Service Date ]])+2)/3), \"\")","v":""}]
[null,null,null,null,null,null,{"$f":"IF(AC_Log[[#This Row],[Service Date ]], YEAR(AC_Log[[#This Row],[Service Date ]]) & \"-\" & \"Q\" & INT((MONTH(AC_Log[[#This Row],[Service Date ]])+2)/3), \"\")","v":""}]
[null,null,null,null,null,null,{"$f":"IF(AC_Log[[#This Row],[Service Date ]], YEAR(AC_Log[[#This Row],[Service Date ]]) & \"-\" & \"Q\" & INT((MONTH(AC_Log[[#This Row],[Service Date ]])+2)/3), \"\")","v":""}]
[null,null,null,null,null,null,{"$f":"IF(AC_Log[[#This Row],[Service Date ]], YEAR(AC_Log[[#This Row],[Service Date ]]) & \"-\" & \"Q\" & INT((MONTH(AC_Log[[#This Row],[Service Date ]])+2)/3), \"\")","v":""}]
[null,null,null,null,null,null,{"$f":"IF(AC_Log[[#This Row],[Service Date ]], YEAR(AC_Log[[#This Row],[Service Date ]]) & \"-\" & \"Q\" & INT((MONTH(AC_Log[[#This Row],[Service Date ]])+2)/3), \"\")","v":""}]
[null,null,null,null,null,null,{"$f":"IF(AC_Log[[#This Row],[Service Date ]], YEAR(AC_Log[[#This Row],[Service Date ]]) & \"-\" & \"Q\" & INT((MONTH(AC_Log[[#This Row],[Service Date ]])+2)/3), \"\")","v":""}]
[null,null,null,null,null,null,{"$f":"IF(AC_Log[[#This Row],[Service Date ]], YEAR(AC_Log[[#This Row],[Service Date ]]) & \"-\" & \"Q\" & INT((MONTH(AC_Log[[#This Row],[Service Date ]])+2)/3), \"\")","v":""}]
[null,null,null,null,null,null,{"$f":"IF(AC_Log[[#This Row],[Service Date ]], YEAR(AC_Log[[#This Row],[Service Date ]]) & \"-\" & \"Q\" & INT((MONTH(AC_Log[[#This Row],[Service Date ]])+2)/3), \"\")","v":""}]
[null,null,null,null,null,null,{"$f":"IF(AC_Log[[#This Row],[Service Date ]], YEAR(AC_Log[[#This Row],[Service Date ]]) & \"-\" & \"Q\" & INT((MONTH(AC_Log[[#This Row],[Service Date ]])+2)/3), \"\")","v":""}]
[null,null,null,null,null,null,{"$f":"IF(AC_Log[[#This Row],[Service Date ]], YEAR(AC_Log[[#This Row],[Service Date ]]) & \"-\" & \"Q\" & INT((MONTH(AC_Log[[#This Row],[Service Date ]])+2)/3), \"\")","v":""}]
[null,null,null,null,null,null,{"$f":"IF(AC_Log[[#This Row],[Service Date ]], YEAR(AC_Log[[#This Row],[Service Date ]]) & \"-\" & \"Q\" & INT((MONTH(AC_Log[[#This Row],[Service Date ]])+2)/3), \"\")","v":""}]
[null,null,null,null,null,null,{"$f":"IF(AC_Log[[#This Row],[Service Date ]], YEAR(AC_Log[[#This Row],[Service Date ]]) & \"-\" & \"Q\" & INT((MONTH(AC_Log[[#This Row],[Service Date ]])+2)/3), \"\")","v":""}]
[null,null,null,null,null,null,{"$f":"IF(AC_Log[[#This Row],[Service Date ]], YEAR(AC_Log[[#This Row],[Service Date ]]) & \"-\" & \"Q\" & INT((MONTH(AC_Log[[#This Row],[Service Date ]])+2)/3), \"\")","v":""}]
[null,null,null,null,null,null,{"$f":"IF(AC_Log[[#This Row],[Service Date ]], YEAR(AC_Log[[#This Row],[Service Date ]]) & \"-\" & \"Q\" & INT((MONTH(AC_Log[[#This Row],[Service Date ]])+2)/3), \"\")","v":""}]
[null,null,null,null,null,null,{"$f":"IF(AC_Log[[#This Row],[Service Date ]], YEAR(AC_Log[[#This Row],[Service Date ]]) & \"-\" & \"Q\" & INT((MONTH(AC_Log[[#This Row],[Service Date ]])+2)/3), \"\")","v":""}]
[null,null,null,null,null,null,{"$f":"IF(AC_Log[[#This Row],[Service Date ]], YEAR(AC_Log[[#This Row],[Service Date ]]) & \"-\" & \"Q\" & INT((MONTH(AC_Log[[#This Row],[Service Date ]])+2)/3), \"\")","v":""}]
[null,null,null,null,null,null,{"$f":"IF(AC_Log[[#This Row],[Service Date ]], YEAR(AC_Log[[#This Row],[Service Date ]]) & \"-\" & \"Q\" & INT((MONTH(AC_Log[[#This Row],[Service Date ]])+2)/3), \"\")","v":""}]
[null,null,null,null,null,null,{"$f":"IF(AC_Log[[#This Row],[Service Date ]], YEAR(AC_Log[[#This Row],[Service Date ]]) & \"-\" & \"Q\" & INT((MONTH(AC_Log[[#This Row],[Service Date ]])+2)/3), \"\")","v":""}]
[null,null,null,null,null,null,{"$f":"IF(AC_Log[[#This Row],[Service Date ]], YEAR(AC_Log[[#This Row],[Service Date ]]) & \"-\" & \"Q\" & INT((MONTH(AC_Log[[#This Row],[Service Date ]])+2)/3), \"\")","v":""}]
[null,null,null,null,null,null,{"$f":"IF(AC_Log[[#This Row],[Service Date ]], YEAR(AC_Log[[#This Row],[Service Date ]]) & \"-\" & \"Q\" & INT((MONTH(AC_Log[[#This Row],[Service Date ]])+2)/3), \"\")","v":""}]
[null,null,null,null,null,null,{"$f":"IF(AC_Log[[#This Row],[Service Date ]], YEAR(AC_Log[[#This Row],[Service Date ]]) & \"-\" & \"Q\" & INT((MONTH(AC_Log[[#This Row],[Service Date ]])+2)/3), \"\")","v":""}]
[null,null,null,null,null,null,{"$f":"IF(AC_Log[[#This Row],[Service Date ]], YEAR(AC_Log[[#This Row],[Service Date ]]) & \"-\" & \"Q\" & INT((MONTH(AC_Log[[#This Row],[Service Date ]])+2)/3), \"\")","v":""}]
[null,null,null,null,null,null,{"$f":"IF(AC_Log[[#This Row],[Service Date ]], YEAR(AC_Log[[#This Row],[Service Date ]]) & \"-\" & \"Q\" & INT((MONTH(AC_Log[[#This Row],[Service Date ]])+2)/3), \"\")","v":""}]
[null,null,null,null,null,null,{"$f":"IF(AC_Log[[#This Row],[Service Date ]], YEAR(AC_Log[[#This Row],[Service Date ]]) & \"-\" & \"Q\" & INT((MONTH(AC_Log[[#This Row],[Service Date ]])+2)/3), \"\")","v":""}]
[null,null,null,null,null,null,{"$f":"IF(AC_Log[[#This Row],[Service Date ]], YEAR(AC_Log[[#This Row],[Service Date ]]) & \"-\" & \"Q\" & INT((MONTH(AC_Log[[#This Row],[Service Date ]])+2)/3), \"\")","v":""}]
[null,null,null,null,null,null,{"$f":"IF(AC_Log[[#This Row],[Service Date ]], YEAR(AC_Log[[#This Row],[Service Date ]]) & \"-\" & \"Q\" & INT((MONTH(AC_Log[[#This Row],[Service Date ]])+2)/3), \"\")","v":""}]
[null,null,null,null,null,null,{"$f":"IF(AC_Log[[#This Row],[Service Date ]], YEAR(AC_Log[[#This Row],[Service Date ]]) & \"-\" & \"Q\" & INT((MONTH(AC_Log[[#This Row],[Service Date ]])+2)/3), \"\")","v":""}]
[null,null,null,null,null,null,{"$f":"IF(AC_Log[[#This Row],[Service Date ]], YEAR(AC_Log[[#This Row],[Service Date ]]) & \"-\" & \"Q\" & INT((MONTH(AC_Log[[#This Row],[Service Date ]])+2)/3), \"\")","v":""}]
[null,null,null,null,null,null,{"$f":"IF(AC_Log[[#This Row],[Service Date ]], YEAR(AC_Log[[#This Row],[Service Date ]]) & \"-\" & \"Q\" & INT((MONTH(AC_Log[[#This Row],[Service Date ]])+2)/3), \"\")","v":""}]
[null,null,null,null,null,null,{"$f":"IF(AC_Log[[#This Row],[Service Date ]], YEAR(AC_Log[[#This Row],[Service Date ]]) & \"-\" & \"Q\" & INT((MONTH(AC_Log[[#This Row],[Service Date ]])+2)/3), \"\")","v":""}]
[null,null,null,null,null,null,{"$f":"IF(AC_Log[[#This Row],[Service Date ]], YEAR(AC_Log[[#This Row],[Service Date ]]) & \"-\" & \"Q\" & INT((MONTH(AC_Log[[#This Row],[Service Date ]])+2)/3), \"\")","v":""}]
[null,null,null,null,null,null,{"$f":"IF(AC_Log[[#This Row],[Service Date ]], YEAR(AC_Log[[#This Row],[Service Date ]]) & \"-\" & \"Q\" & INT((MONTH(AC_Log[[#This Row],[Service Date ]])+2)/3), \"\")","v":""}]
[null,null,null,null,null,null,{"$f":"IF(AC_Log[[#This Row],[Service Date ]], YEAR(AC_Log[[#This Row],[Service Date ]]) & \"-\" & \"Q\" & INT((MONTH(AC_Log[[#This Row],[Service Date ]])+2)/3), \"\")","v":""}]
[null,null,null,null,null,null,{"$f":"IF(AC_Log[[#This Row],[Service Date ]], YEAR(AC_Log[[#This Row],[Service Date ]]) & \"-\" & \"Q\" & INT((MONTH(AC_Log[[#This Row],[Service Date ]])+2)/3), \"\")","v":""}]
[null,null,null,null,null,null,{"$f":"IF(AC_Log[[#This Row],[Service Date ]], YEAR(AC_Log[[#This Row],[Service Date ]]) & \"-\" & \"Q\" & INT((MONTH(AC_Log[[#This Row],[Service Date ]])+2)/3), \"\")","v":""}]
[null,null,null,null,null,null,{"$f":"IF(AC_Log[[#This Row],[Service Date ]], YEAR(AC_Log[[#This Row],[Service Date ]]) & \"-\" & \"Q\" & INT((MONTH(AC_Log[[#This Row],[Service Date ]])+2)/3), \"\")","v":""}]
[null,null,null,null,null,null,{"$f":"IF(AC_Log[[#This Row],[Service Date ]], YEAR(AC_Log[[#This Row],[Service Date ]]) & \"-\" & \"Q\" & INT((MONTH(AC_Log[[#This Row],[Service Date ]])+2)/3), \"\")","v":""}]
[null,null,null,null,null,null,{"$f":"IF(AC_Log[[#This Row],[Service Date ]], YEAR(AC_Log[[#This Row],[Service Date ]]) & \"-\" & \"Q\" & INT((MONTH(AC_Log[[#This Row],[Service Date ]])+2)/3), \"\")","v":""}]
[null,null,null,null,null,null,{"$f":"IF(AC_Log[[#This Row],[Service Date ]], YEAR(AC_Log[[#This Row],[Service Date ]]) & \"-\" & \"Q\" & INT((MONTH(AC_Log[[#This Row],[Service Date ]])+2)/3), \"\")","v":""}]
[null,null,null,null,null,null,{"$f":"IF(AC_Log[[#This Row],[Service Date ]], YEAR(AC_Log[[#This Row],[Service Date ]]) & \"-\" & \"Q\" & INT((MONTH(AC_Log[[#This Row],[Service Date ]])+2)/3), \"\")","v":""}]
[null,null,null,null,null,null,{"$f":"IF(AC_Log[[#This Row],[Service Date ]], YEAR(AC_Log[[#This Row],[Service Date ]]) & \"-\" & \"Q\" & INT((MONTH(AC_Log[[#This Row],[Service Date ]])+2)/3), \"\")","v":""}]
[null,null,null,null,null,null,{"$f":"IF(AC_Log[[#This Row],[Service Date ]], YEAR(AC_Log[[#This Row],[Service Date ]]) & \"-\" & \"Q\" & INT((MONTH(AC_Log[[#This Row],[Service Date ]])+2)/3), \"\")","v":""}]
[null,null,null,null,null,null,{"$f":"IF(AC_Log[[#This Row],[Service Date ]], YEAR(AC_Log[[#This Row],[Service Date ]]) & \"-\" & \"Q\" & INT((MONTH(AC_Log[[#This Row],[Service Date ]])+2)/3), \"\")","v":""}]
[null,null,null,null,null,null,{"$f":"IF(AC_Log[[#This Row],[Service Date ]], YEAR(AC_Log[[#This Row],[Service Date ]]) & \"-\" & \"Q\" & INT((MONTH(AC_Log[[#This Row],[Service Date ]])+2)/3), \"\")","v":""}]
[null,null,null,null,null,null,{"$f":"IF(AC_Log[[#This Row],[Service Date ]], YEAR(AC_Log[[#This Row],[Service Date ]]) & \"-\" & \"Q\" & INT((MONTH(AC_Log[[#This Row],[Service Date ]])+2)/3), \"\")","v":""}]
[null,null,null,null,null,null,{"$f":"IF(AC_Log[[#This Row],[Service Date ]], YEAR(AC_Log[[#This Row],[Service Date ]]) & \"-\" & \"Q\" & INT((MONTH(AC_Log[[#This Row],[Service Date ]])+2)/3), \"\")","v":""}]
[null,null,null,null,null,null,{"$f":"IF(AC_Log[[#This Row],[Service Date ]], YEAR(AC_Log[[#This Row],[Service Date ]]) & \"-\" & \"Q\" & INT((MONTH(AC_Log[[#This Row],[Service Date ]])+2)/3), \"\")","v":""}]
[null,null,null,null,null,null,{"$f":"IF(AC_Log[[#This Row],[Service Date ]], YEAR(AC_Log[[#This Row],[Service Date ]]) & \"-\" & \"Q\" & INT((MONTH(AC_Log[[#This Row],[Service Date ]])+2)/3), \"\")","v":""}]
[null,null,null,null,null,null,{"$f":"IF(AC_Log[[#This Row],[Service Date ]], YEAR(AC_Log[[#This Row],[Service Date ]]) & \"-\" & \"Q\" & INT((MONTH(AC_Log[[#This Row],[Service Date ]])+2)/3), \"\")","v":""}]
[null,null,null,null,null,null,{"$f":"IF(AC_Log[[#This Row],[Service Date ]], YEAR(AC_Log[[#This Row],[Service Date ]]) & \"-\" & \"Q\" & INT((MONTH(AC_Log[[#This Row],[Service Date ]])+2)/3), \"\")","v":""}]
[null,null,null,null,null,null,{"$f":"IF(AC_Log[[#This Row],[Service Date ]], YEAR(AC_Log[[#This Row],[Service Date ]]) & \"-\" & \"Q\" & INT((MONTH(AC_Log[[#This Row],[Service Date ]])+2)/3), \"\")","v":""}]
[null,null,null,null,null,null,{"$f":"IF(AC_Log[[#This Row],[Service Date ]], YEAR(AC_Log[[#This Row],[Service Date ]]) & \"-\" & \"Q\" & INT((MONTH(AC_Log[[#This Row],[Service Date ]])+2)/3), \"\")","v":""}]
[null,null,null,null,null,null,{"$f":"IF(AC_Log[[#This Row],[Service Date ]], YEAR(AC_Log[[#This Row],[Service Date ]]) & \"-\" & \"Q\" & INT((MONTH(AC_Log[[#This Row],[Service Date ]])+2)/3), \"\")","v":""}]
[null,null,null,null,null,null,{"$f":"IF(AC_Log[[#This Row],[Service Date ]], YEAR(AC_Log[[#This Row],[Service Date ]]) & \"-\" & \"Q\" & INT((MONTH(AC_Log[[#This Row],[Service Date ]])+2)/3), \"\")","v":""}]
[null,null,null,null,null,null,{"$f":"IF(AC_Log[[#This Row],[Service Date ]], YEAR(AC_Log[[#This Row],[Service Date ]]) & \"-\" & \"Q\" & INT((MONTH(AC_Log[[#This Row],[Service Date ]])+2)/3), \"\")","v":""}]
[null,null,null,null,null,null,{"$f":"IF(AC_Log[[#This Row],[Service Date ]], YEAR(AC_Log[[#This Row],[Service Date ]]) & \"-\" & \"Q\" & INT((MONTH(AC_Log[[#This Row],[Service Date ]])+2)/3), \"\")","v":""}]
[null,null,null,null,null,null,{"$f":"IF(AC_Log[[#This Row],[Service Date ]], YEAR(AC_Log[[#This Row],[Service Date ]]) & \"-\" & \"Q\" & INT((MONTH(AC_Log[[#This Row],[Service Date ]])+2)/3), \"\")","v":""}]
[null,null,null,null,null,null,{"$f":"IF(AC_Log[[#This Row],[Service Date ]], YEAR(AC_Log[[#This Row],[Service Date ]]) & \"-\" & \"Q\" & INT((MONTH(AC_Log[[#This Row],[Service Date ]])+2)/3), \"\")","v":""}]
[null,null,null,null,null,null,{"$f":"IF(AC_Log[[#This Row],[Service Date ]], YEAR(AC_Log[[#This Row],[Service Date ]]) & \"-\" & \"Q\" & INT((MONTH(AC_Log[[#This Row],[Service Date ]])+2)/3), \"\")","v":""}]
[null,null,null,null,null,null,{"$f":"IF(AC_Log[[#This Row],[Service Date ]], YEAR(AC_Log[[#This Row],[Service Date ]]) & \"-\" & \"Q\" & INT((MONTH(AC_Log[[#This Row],[Service Date ]])+2)/3), \"\")","v":""}]
[null,null,null,null,null,null,{"$f":"IF(AC_Log[[#This Row],[Service Date ]], YEAR(AC_Log[[#This Row],[Service Date ]]) & \"-\" & \"Q\" & INT((MONTH(AC_Log[[#This Row],[Service Date ]])+2)/3), \"\")","v":""}]
[null,null,null,null,null,null,{"$f":"IF(AC_Log[[#This Row],[Service Date ]], YEAR(AC_Log[[#This Row],[Service Date ]]) & \"-\" & \"Q\" & INT((MONTH(AC_Log[[#This Row],[Service Date ]])+2)/3), \"\")","v":""}]
[null,null,null,null,null,null,{"$f":"IF(AC_Log[[#This Row],[Service Date ]], YEAR(AC_Log[[#This Row],[Service Date ]]) & \"-\" & \"Q\" & INT((MONTH(AC_Log[[#This Row],[Service Date ]])+2)/3), \"\")","v":""}]
[null,null,null,null,null,null,{"$f":"IF(AC_Log[[#This Row],[Service Date ]], YEAR(AC_Log[[#This Row],[Service Date ]]) & \"-\" & \"Q\" & INT((MONTH(AC_Log[[#This Row],[Service Date ]])+2)/3), \"\")","v":""}]
[null,null,null,null,null,null,{"$f":"IF(AC_Log[[#This Row],[Service Date ]], YEAR(AC_Log[[#This Row],[Service Date ]]) & \"-\" & \"Q\" & INT((MONTH(AC_Log[[#This Row],[Service Date ]])+2)/3), \"\")","v":""}]
[null,null,null,null,null,null,{"$f":"IF(AC_Log[[#This Row],[Service Date ]], YEAR(AC_Log[[#This Row],[Service Date ]]) & \"-\" & \"Q\" & INT((MONTH(AC_Log[[#This Row],[Service Date ]])+2)/3), \"\")","v":""}]
[null,null,null,null,null,null,{"$f":"IF(AC_Log[[#This Row],[Service Date ]], YEAR(AC_Log[[#This Row],[Service Date ]]) & \"-\" & \"Q\" & INT((MONTH(AC_Log[[#This Row],[Service Date ]])+2)/3), \"\")","v":""}]
[null,null,null,null,null,null,{"$f":"IF(AC_Log[[#This Row],[Service Date ]], YEAR(AC_Log[[#This Row],[Service Date ]]) & \"-\" & \"Q\" & INT((MONTH(AC_Log[[#This Row],[Service Date ]])+2)/3), \"\")","v":""}]
[null,null,null,null,null,null,{"$f":"IF(AC_Log[[#This Row],[Service Date ]], YEAR(AC_Log[[#This Row],[Service Date ]]) & \"-\" & \"Q\" & INT((MONTH(AC_Log[[#This Row],[Service Date ]])+2)/3), \"\")","v":""}]
[null,null,null,null,null,null,{"$f":"IF(AC_Log[[#This Row],[Service Date ]], YEAR(AC_Log[[#This Row],[Service Date ]]) & \"-\" & \"Q\" & INT((MONTH(AC_Log[[#This Row],[Service Date ]])+2)/3), \"\")","v":""}]
[null,null,null,null,null,null,{"$f":"IF(AC_Log[[#This Row],[Service Date ]], YEAR(AC_Log[[#This Row],[Service Date ]]) & \"-\" & \"Q\" & INT((MONTH(AC_Log[[#This Row],[Service Date ]])+2)/3), \"\")","v":""}]
[null,null,null,null,null,null,{"$f":"IF(AC_Log[[#This Row],[Service Date ]], YEAR(AC_Log[[#This Row],[Service Date ]]) & \"-\" & \"Q\" & INT((MONTH(AC_Log[[#This Row],[Service Date ]])+2)/3), \"\")","v":""}]
[null,null,null,null,null,null,{"$f":"IF(AC_Log[[#This Row],[Service Date ]], YEAR(AC_Log[[#This Row],[Service Date ]]) & \"-\" & \"Q\" & INT((MONTH(AC_Log[[#This Row],[Service Date ]])+2)/3), \"\")","v":""}]
[null,null,null,null,null,null,{"$f":"IF(AC_Log[[#This Row],[Service Date ]], YEAR(AC_Log[[#This Row],[Service Date ]]) & \"-\" & \"Q\" & INT((MONTH(AC_Log[[#This Row],[Service Date ]])+2)/3), \"\")","v":""}]
[null,null,null,null,null,null,{"$f":"IF(AC_Log[[#This Row],[Service Date ]], YEAR(AC_Log[[#This Row],[Service Date ]]) & \"-\" & \"Q\" & INT((MONTH(AC_Log[[#This Row],[Service Date ]])+2)/3), \"\")","v":""}]
[null,null,null,null,null,null,{"$f":"IF(AC_Log[[#This Row],[Service Date ]], YEAR(AC_Log[[#This Row],[Service Date ]]) & \"-\" & \"Q\" & INT((MONTH(AC_Log[[#This Row],[Service Date ]])+2)/3), \"\")","v":""}]
[null,null,null,null,null,null,{"$f":"IF(AC_Log[[#This Row],[Service Date ]], YEAR(AC_Log[[#This Row],[Service Date ]]) & \"-\" & \"Q\" & INT((MONTH(AC_Log[[#This Row],[Service Date ]])+2)/3), \"\")","v":""}]
[null,null,null,null,null,null,{"$f":"IF(AC_Log[[#This Row],[Service Date ]], YEAR(AC_Log[[#This Row],[Service Date ]]) & \"-\" & \"Q\" & INT((MONTH(AC_Log[[#This Row],[Service Date ]])+2)/3), \"\")","v":""}]
[null,null,null,null,null,null,{"$f":"IF(AC_Log[[#This Row],[Service Date ]], YEAR(AC_Log[[#This Row],[Service Date ]]) & \"-\" & \"Q\" & INT((MONTH(AC_Log[[#This Row],[Service Date ]])+2)/3), \"\")","v":""}]
[null,null,null,null,null,null,{"$f":"IF(AC_Log[[#This Row],[Service Date ]], YEAR(AC_Log[[#This Row],[Service Date ]]) & \"-\" & \"Q\" & INT((MONTH(AC_Log[[#This Row],[Service Date ]])+2)/3), \"\")","v":""}]
[null,null,null,null,null,null,{"$f":"IF(AC_Log[[#This Row],[Service Date ]], YEAR(AC_Log[[#This Row],[Service Date ]]) & \"-\" & \"Q\" & INT((MONTH(AC_Log[[#This Row],[Service Date ]])+2)/3), \"\")","v":""}]
[null,null,null,null,null,null,{"$f":"IF(AC_Log[[#This Row],[Service Date ]], YEAR(AC_Log[[#This Row],[Service Date ]]) & \"-\" & \"Q\" & INT((MONTH(AC_Log[[#This Row],[Service Date ]])+2)/3), \"\")","v":""}]
[null,null,null,null,null,null,{"$f":"IF(AC_Log[[#This Row],[Service Date ]], YEAR(AC_Log[[#This Row],[Service Date ]]) & \"-\" & \"Q\" & INT((MONTH(AC_Log[[#This Row],[Service Date ]])+2)/3), \"\")","v":""}]
[null,null,null,null,null,null,{"$f":"IF(AC_Log[[#This Row],[Service Date ]], YEAR(AC_Log[[#This Row],[Service Date ]]) & \"-\" & \"Q\" & INT((MONTH(AC_Log[[#This Row],[Service Date ]])+2)/3), \"\")","v":""}]
[null,null,null,null,null,null,{"$f":"IF(AC_Log[[#This Row],[Service Date ]], YEAR(AC_Log[[#This Row],[Service Date ]]) & \"-\" & \"Q\" & INT((MONTH(AC_Log[[#This Row],[Service Date ]])+2)/3), \"\")","v":""}]
[null,null,null,null,null,null,{"$f":"IF(AC_Log[[#This Row],[Service Date ]], YEAR(AC_Log[[#This Row],[Service Date ]]) & \"-\" & \"Q\" & INT((MONTH(AC_Log[[#This Row],[Service Date ]])+2)/3), \"\")","v":""}]
[null,null,null,null,null,null,{"$f":"IF(AC_Log[[#This Row],[Service Date ]], YEAR(AC_Log[[#This Row],[Service Date ]]) & \"-\" & \"Q\" & INT((MONTH(AC_Log[[#This Row],[Service Date ]])+2)/3), \"\")","v":""}]
[null,null,null,null,null,null,{"$f":"IF(AC_Log[[#This Row],[Service Date ]], YEAR(AC_Log[[#This Row],[Service Date ]]) & \"-\" & \"Q\" & INT((MONTH(AC_Log[[#This Row],[Service Date ]])+2)/3), \"\")","v":""}]
[null,null,null,null,null,null,{"$f":"IF(AC_Log[[#This Row],[Service Date ]], YEAR(AC_Log[[#This Row],[Service Date ]]) & \"-\" & \"Q\" & INT((MONTH(AC_Log[[#This Row],[Service Date ]])+2)/3), \"\")","v":""}]
[null,null,null,null,null,null,{"$f":"IF(AC_Log[[#This Row],[Service Date ]], YEAR(AC_Log[[#This Row],[Service Date ]]) & \"-\" & \"Q\" & INT((MONTH(AC_Log[[#This Row],[Service Date ]])+2)/3), \"\")","v":""}]
[null,null,null,null,null,null,{"$f":"IF(AC_Log[[#This Row],[Service Date ]], YEAR(AC_Log[[#This Row],[Service Date ]]) & \"-\" & \"Q\" & INT((MONTH(AC_Log[[#This Row],[Service Date ]])+2)/3), \"\")","v":""}]
[null,null,null,null,null,null,{"$f":"IF(AC_Log[[#This Row],[Service Date ]], YEAR(AC_Log[[#This Row],[Service Date ]]) & \"-\" & \"Q\" & INT((MONTH(AC_Log[[#This Row],[Service Date ]])+2)/3), \"\")","v":""}]
[null,null,null,null,null,null,{"$f":"IF(AC_Log[[#This Row],[Service Date ]], YEAR(AC_Log[[#This Row],[Service Date ]]) & \"-\" & \"Q\" & INT((MONTH(AC_Log[[#This Row],[Service Date ]])+2)/3), \"\")","v":""}]
[null,null,null,null,null,null,{"$f":"IF(AC_Log[[#This Row],[Service Date ]], YEAR(AC_Log[[#This Row],[Service Date ]]) & \"-\" & \"Q\" & INT((MONTH(AC_Log[[#This Row],[Service Date ]])+2)/3), \"\")","v":""}]
[null,null,null,null,null,null,{"$f":"IF(AC_Log[[#This Row],[Service Date ]], YEAR(AC_Log[[#This Row],[Service Date ]]) & \"-\" & \"Q\" & INT((MONTH(AC_Log[[#This Row],[Service Date ]])+2)/3), \"\")","v":""}]
[null,null,null,null,null,null,{"$f":"IF(AC_Log[[#This Row],[Service Date ]], YEAR(AC_Log[[#This Row],[Service Date ]]) & \"-\" & \"Q\" & INT((MONTH(AC_Log[[#This Row],[Service Date ]])+2)/3), \"\")","v":""}]
[null,null,null,null,null,null,{"$f":"IF(AC_Log[[#This Row],[Service Date ]], YEAR(AC_Log[[#This Row],[Service Date ]]) & \"-\" & \"Q\" & INT((MONTH(AC_Log[[#This Row],[Service Date ]])+2)/3), \"\")","v":""}]
[null,null,null,null,null,null,{"$f":"IF(AC_Log[[#This Row],[Service Date ]], YEAR(AC_Log[[#This Row],[Service Date ]]) & \"-\" & \"Q\" & INT((MONTH(AC_Log[[#This Row],[Service Date ]])+2)/3), \"\")","v":""}]
[null,null,null,null,null,null,{"$f":"IF(AC_Log[[#This Row],[Service Date ]], YEAR(AC_Log[[#This Row],[Service Date ]]) & \"-\" & \"Q\" & INT((MONTH(AC_Log[[#This Row],[Service Date ]])+2)/3), \"\")","v":""}]
[null,null,null,null,null,null,{"$f":"IF(AC_Log[[#This Row],[Service Date ]], YEAR(AC_Log[[#This Row],[Service Date ]]) & \"-\" & \"Q\" & INT((MONTH(AC_Log[[#This Row],[Service Date ]])+2)/3), \"\")","v":""}]
[null,null,null,null,null,null,{"$f":"IF(AC_Log[[#This Row],[Service Date ]], YEAR(AC_Log[[#This Row],[Service Date ]]) & \"-\" & \"Q\" & INT((MONTH(AC_Log[[#This Row],[Service Date ]])+2)/3), \"\")","v":""}]
[null,null,null,null,null,null,{"$f":"IF(AC_Log[[#This Row],[Service Date ]], YEAR(AC_Log[[#This Row],[Service Date ]]) & \"-\" & \"Q\" & INT((MONTH(AC_Log[[#This Row],[Service Date ]])+2)/3), \"\")","v":""}]
[null,null,null,null,null,null,{"$f":"IF(AC_Log[[#This Row],[Service Date ]], YEAR(AC_Log[[#This Row],[Service Date ]]) & \"-\" & \"Q\" & INT((MONTH(AC_Log[[#This Row],[Service Date ]])+2)/3), \"\")","v":""}]
[null,null,null,null,null,null,{"$f":"IF(AC_Log[[#This Row],[Service Date ]], YEAR(AC_Log[[#This Row],[Service Date ]]) & \"-\" & \"Q\" & INT((MONTH(AC_Log[[#This Row],[Service Date ]])+2)/3), \"\")","v":""}]
[null,null,null,null,null,null,{"$f":"IF(AC_Log[[#This Row],[Service Date ]], YEAR(AC_Log[[#This Row],[Service Date ]]) & \"-\" & \"Q\" & INT((MONTH(AC_Log[[#This Row],[Service Date ]])+2)/3), \"\")","v":""}]
[null,null,null,null,null,null,{"$f":"IF(AC_Log[[#This Row],[Service Date ]], YEAR(AC_Log[[#This Row],[Service Date ]]) & \"-\" & \"Q\" & INT((MONTH(AC_Log[[#This Row],[Service Date ]])+2)/3), \"\")","v":""}]
[null,null,null,null,null,null,{"$f":"IF(AC_Log[[#This Row],[Service Date ]], YEAR(AC_Log[[#This Row],[Service Date ]]) & \"-\" & \"Q\" & INT((MONTH(AC_Log[[#This Row],[Service Date ]])+2)/3), \"\")","v":""}]
[null,null,null,null,null,null,{"$f":"IF(AC_Log[[#This Row],[Service Date ]], YEAR(AC_Log[[#This Row],[Service Date ]]) & \"-\" & \"Q\" & INT((MONTH(AC_Log[[#This Row],[Service Date ]])+2)/3), \"\")","v":""}]
[null,null,null,null,null,null,{"$f":"IF(AC_Log[[#This Row],[Service Date ]], YEAR(AC_Log[[#This Row],[Service Date ]]) & \"-\" & \"Q\" & INT((MONTH(AC_Log[[#This Row],[Service Date ]])+2)/3), \"\")","v":""}]
[null,null,null,null,null,null,{"$f":"IF(AC_Log[[#This Row],[Service Date ]], YEAR(AC_Log[[#This Row],[Service Date ]]) & \"-\" & \"Q\" & INT((MONTH(AC_Log[[#This Row],[Service Date ]])+2)/3), \"\")","v":""}]
[null,null,null,null,null,null,{"$f":"IF(AC_Log[[#This Row],[Service Date ]], YEAR(AC_Log[[#This Row],[Service Date ]]) & \"-\" & \"Q\" & INT((MONTH(AC_Log[[#This Row],[Service Date ]])+2)/3), \"\")","v":""}]
[null,null,null,null,null,null,{"$f":"IF(AC_Log[[#This Row],[Service Date ]], YEAR(AC_Log[[#This Row],[Service Date ]]) & \"-\" & \"Q\" & INT((MONTH(AC_Log[[#This Row],[Service Date ]])+2)/3), \"\")","v":""}]
[null,null,null,null,null,null,{"$f":"IF(AC_Log[[#This Row],[Service Date ]], YEAR(AC_Log[[#This Row],[Service Date ]]) & \"-\" & \"Q\" & INT((MONTH(AC_Log[[#This Row],[Service Date ]])+2)/3), \"\")","v":""}]
[null,null,null,null,null,null,{"$f":"IF(AC_Log[[#This Row],[Service Date ]], YEAR(AC_Log[[#This Row],[Service Date ]]) & \"-\" & \"Q\" & INT((MONTH(AC_Log[[#This Row],[Service Date ]])+2)/3), \"\")","v":""}]
[null,null,null,null,null,null,{"$f":"IF(AC_Log[[#This Row],[Service Date ]], YEAR(AC_Log[[#This Row],[Service Date ]]) & \"-\" & \"Q\" & INT((MONTH(AC_Log[[#This Row],[Service Date ]])+2)/3), \"\")","v":""}]
[null,null,null,null,null,null,{"$f":"IF(AC_Log[[#This Row],[Service Date ]], YEAR(AC_Log[[#This Row],[Service Date ]]) & \"-\" & \"Q\" & INT((MONTH(AC_Log[[#This Row],[Service Date ]])+2)/3), \"\")","v":""}]
[null,null,null,null,null,null,{"$f":"IF(AC_Log[[#This Row],[Service Date ]], YEAR(AC_Log[[#This Row],[Service Date ]]) & \"-\" & \"Q\" & INT((MONTH(AC_Log[[#This Row],[Service Date ]])+2)/3), \"\")","v":""}]
[null,null,null,null,null,null,{"$f":"IF(AC_Log[[#This Row],[Service Date ]], YEAR(AC_Log[[#This Row],[Service Date ]]) & \"-\" & \"Q\" & INT((MONTH(AC_Log[[#This Row],[Service Date ]])+2)/3), \"\")","v":""}]
[null,null,null,null,null,null,{"$f":"IF(AC_Log[[#This Row],[Service Date ]], YEAR(AC_Log[[#This Row],[Service Date ]]) & \"-\" & \"Q\" & INT((MONTH(AC_Log[[#This Row],[Service Date ]])+2)/3), \"\")","v":""}]
[null,null,null,null,null,null,{"$f":"IF(AC_Log[[#This Row],[Service Date ]], YEAR(AC_Log[[#This Row],[Service Date ]]) & \"-\" & \"Q\" & INT((MONTH(AC_Log[[#This Row],[Service Date ]])+2)/3), \"\")","v":""}]
[null,null,null,null,null,null,{"$f":"IF(AC_Log[[#This Row],[Service Date ]], YEAR(AC_Log[[#This Row],[Service Date ]]) & \"-\" & \"Q\" & INT((MONTH(AC_Log[[#This Row],[Service Date ]])+2)/3), \"\")","v":""}]
[null,null,null,null,null,null,{"$f":"IF(AC_Log[[#This Row],[Service Date ]], YEAR(AC_Log[[#This Row],[Service Date ]]) & \"-\" & \"Q\" & INT((MONTH(AC_Log[[#This Row],[Service Date ]])+2)/3), \"\")","v":""}]
[null,null,null,null,null,null,{"$f":"IF(AC_Log[[#This Row],[Service Date ]], YEAR(AC_Log[[#This Row],[Service Date ]]) & \"-\" & \"Q\" & INT((MONTH(AC_Log[[#This Row],[Service Date ]])+2)/3), \"\")","v":""}]
[null,null,null,null,null,null,{"$f":"IF(AC_Log[[#This Row],[Service Date ]], YEAR(AC_Log[[#This Row],[Service Date ]]) & \"-\" & \"Q\" & INT((MONTH(AC_Log[[#This Row],[Service Date ]])+2)/3), \"\")","v":""}]
[null,null,null,null,null,null,{"$f":"IF(AC_Log[[#This Row],[Service Date ]], YEAR(AC_Log[[#This Row],[Service Date ]]) & \"-\" & \"Q\" & INT((MONTH(AC_Log[[#This Row],[Service Date ]])+2)/3), \"\")","v":""}]
[null,null,null,null,null,null,{"$f":"IF(AC_Log[[#This Row],[Service Date ]], YEAR(AC_Log[[#This Row],[Service Date ]]) & \"-\" & \"Q\" & INT((MONTH(AC_Log[[#This Row],[Service Date ]])+2)/3), \"\")","v":""}]
[null,null,null,null,null,null,{"$f":"IF(AC_Log[[#This Row],[Service Date ]], YEAR(AC_Log[[#This Row],[Service Date ]]) & \"-\" & \"Q\" & INT((MONTH(AC_Log[[#This Row],[Service Date ]])+2)/3), \"\")","v":""}]
[null,null,null,null,null,null,{"$f":"IF(AC_Log[[#This Row],[Service Date ]], YEAR(AC_Log[[#This Row],[Service Date ]]) & \"-\" & \"Q\" & INT((MONTH(AC_Log[[#This Row],[Service Date ]])+2)/3), \"\")","v":""}]
[null,null,null,null,null,null,{"$f":"IF(AC_Log[[#This Row],[Service Date ]], YEAR(AC_Log[[#This Row],[Service Date ]]) & \"-\" & \"Q\" & INT((MONTH(AC_Log[[#This Row],[Service Date ]])+2)/3), \"\")","v":""}]
[null,null,null,null,null,null,{"$f":"IF(AC_Log[[#This Row],[Service Date ]], YEAR(AC_Log[[#This Row],[Service Date ]]) & \"-\" & \"Q\" & INT((MONTH(AC_Log[[#This Row],[Service Date ]])+2)/3), \"\")","v":""}]
[null,null,null,null,null,null,{"$f":"IF(AC_Log[[#This Row],[Service Date ]], YEAR(AC_Log[[#This Row],[Service Date ]]) & \"-\" & \"Q\" & INT((MONTH(AC_Log[[#This Row],[Service Date ]])+2)/3), \"\")","v":""}]
[null,null,null,null,null,null,{"$f":"IF(AC_Log[[#This Row],[Service Date ]], YEAR(AC_Log[[#This Row],[Service Date ]]) & \"-\" & \"Q\" & INT((MONTH(AC_Log[[#This Row],[Service Date ]])+2)/3), \"\")","v":""}]
[null,null,null,null,null,null,{"$f":"IF(AC_Log[[#This Row],[Service Date ]], YEAR(AC_Log[[#This Row],[Service Date ]]) & \"-\" & \"Q\" & INT((MONTH(AC_Log[[#This Row],[Service Date ]])+2)/3), \"\")","v":""}]
[null,null,null,null,null,null,{"$f":"IF(AC_Log[[#This Row],[Service Date ]], YEAR(AC_Log[[#This Row],[Service Date ]]) & \"-\" & \"Q\" & INT((MONTH(AC_Log[[#This Row],[Service Date ]])+2)/3), \"\")","v":""}]
[null,null,null,null,null,null,{"$f":"IF(AC_Log[[#This Row],[Service Date ]], YEAR(AC_Log[[#This Row],[Service Date ]]) & \"-\" & \"Q\" & INT((MONTH(AC_Log[[#This Row],[Service Date ]])+2)/3), \"\")","v":""}]
[null,null,null,null,null,null,{"$f":"IF(AC_Log[[#This Row],[Service Date ]], YEAR(AC_Log[[#This Row],[Service Date ]]) & \"-\" & \"Q\" & INT((MONTH(AC_Log[[#This Row],[Service Date ]])+2)/3), \"\")","v":""}]
[null,null,null,null,null,null,{"$f":"IF(AC_Log[[#This Row],[Service Date ]], YEAR(AC_Log[[#This Row],[Service Date ]]) & \"-\" & \"Q\" & INT((MONTH(AC_Log[[#This Row],[Service Date ]])+2)/3), \"\")","v":""}]
[null,null,null,null,null,null,{"$f":"IF(AC_Log[[#This Row],[Service Date ]], YEAR(AC_Log[[#This Row],[Service Date ]]) & \"-\" & \"Q\" & INT((MONTH(AC_Log[[#This Row],[Service Date ]])+2)/3), \"\")","v":""}]
[null,null,null,null,null,null,{"$f":"IF(AC_Log[[#This Row],[Service Date ]], YEAR(AC_Log[[#This Row],[Service Date ]]) & \"-\" & \"Q\" & INT((MONTH(AC_Log[[#This Row],[Service Date ]])+2)/3), \"\")","v":""}]
[null,null,null,null,null,null,{"$f":"IF(AC_Log[[#This Row],[Service Date ]], YEAR(AC_Log[[#This Row],[Service Date ]]) & \"-\" & \"Q\" & INT((MONTH(AC_Log[[#This Row],[Service Date ]])+2)/3), \"\")","v":""}]
[null,null,null,null,null,null,{"$f":"IF(AC_Log[[#This Row],[Service Date ]], YEAR(AC_Log[[#This Row],[Service Date ]]) & \"-\" & \"Q\" & INT((MONTH(AC_Log[[#This Row],[Service Date ]])+2)/3), \"\")","v":""}]
[null,null,null,null,null,null,{"$f":"IF(AC_Log[[#This Row],[Service Date ]], YEAR(AC_Log[[#This Row],[Service Date ]]) & \"-\" & \"Q\" & INT((MONTH(AC_Log[[#This Row],[Service Date ]])+2)/3), \"\")","v":""}]
[null,null,null,null,null,null,{"$f":"IF(AC_Log[[#This Row],[Service Date ]], YEAR(AC_Log[[#This Row],[Service Date ]]) & \"-\" & \"Q\" & INT((MONTH(AC_Log[[#This Row],[Service Date ]])+2)/3), \"\")","v":""}]
[null,null,null,null,null,null,{"$f":"IF(AC_Log[[#This Row],[Service Date ]], YEAR(AC_Log[[#This Row],[Service Date ]]) & \"-\" & \"Q\" & INT((MONTH(AC_Log[[#This Row],[Service Date ]])+2)/3), \"\")","v":""}]
[null,null,null,null,null,null,{"$f":"IF(AC_Log[[#This Row],[Service Date ]], YEAR(AC_Log[[#This Row],[Service Date ]]) & \"-\" & \"Q\" & INT((MONTH(AC_Log[[#This Row],[Service Date ]])+2)/3), \"\")","v":""}]
[null,null,null,null,null,null,{"$f":"IF(AC_Log[[#This Row],[Service Date ]], YEAR(AC_Log[[#This Row],[Service Date ]]) & \"-\" & \"Q\" & INT((MONTH(AC_Log[[#This Row],[Service Date ]])+2)/3), \"\")","v":""}]
[null,null,null,null,null,null,{"$f":"IF(AC_Log[[#This Row],[Service Date ]], YEAR(AC_Log[[#This Row],[Service Date ]]) & \"-\" & \"Q\" & INT((MONTH(AC_Log[[#This Row],[Service Date ]])+2)/3), \"\")","v":""}]
[null,null,null,null,null,null,{"$f":"IF(AC_Log[[#This Row],[Service Date ]], YEAR(AC_Log[[#This Row],[Service Date ]]) & \"-\" & \"Q\" & INT((MONTH(AC_Log[[#This Row],[Service Date ]])+2)/3), \"\")","v":""}]
[null,null,null,null,null,null,{"$f":"IF(AC_Log[[#This Row],[Service Date ]], YEAR(AC_Log[[#This Row],[Service Date ]]) & \"-\" & \"Q\" & INT((MONTH(AC_Log[[#This Row],[Service Date ]])+2)/3), \"\")","v":""}]
[null,null,null,null,null,null,{"$f":"IF(AC_Log[[#This Row],[Service Date ]], YEAR(AC_Log[[#This Row],[Service Date ]]) & \"-\" & \"Q\" & INT((MONTH(AC_Log[[#This Row],[Service Date ]])+2)/3), \"\")","v":""}]
[null,null,null,null,null,null,{"$f":"IF(AC_Log[[#This Row],[Service Date ]], YEAR(AC_Log[[#This Row],[Service Date ]]) & \"-\" & \"Q\" & INT((MONTH(AC_Log[[#This Row],[Service Date ]])+2)/3), \"\")","v":""}]
[null,null,null,null,null,null,{"$f":"IF(AC_Log[[#This Row],[Service Date ]], YEAR(AC_Log[[#This Row],[Service Date ]]) & \"-\" & \"Q\" & INT((MONTH(AC_Log[[#This Row],[Service Date ]])+2)/3), \"\")","v":""}]
[null,null,null,null,null,null,{"$f":"IF(AC_Log[[#This Row],[Service Date ]], YEAR(AC_Log[[#This Row],[Service Date ]]) & \"-\" & \"Q\" & INT((MONTH(AC_Log[[#This Row],[Service Date ]])+2)/3), \"\")","v":""}]
[null,null,null,null,null,null,{"$f":"IF(AC_Log[[#This Row],[Service Date ]], YEAR(AC_Log[[#This Row],[Service Date ]]) & \"-\" & \"Q\" & INT((MONTH(AC_Log[[#This Row],[Service Date ]])+2)/3), \"\")","v":""}]
[null,null,null,null,null,null,{"$f":"IF(AC_Log[[#This Row],[Service Date ]], YEAR(AC_Log[[#This Row],[Service Date ]]) & \"-\" & \"Q\" & INT((MONTH(AC_Log[[#This Row],[Service Date ]])+2)/3), \"\")","v":""}]
[null,null,null,null,null,null,{"$f":"IF(AC_Log[[#This Row],[Service Date ]], YEAR(AC_Log[[#This Row],[Service Date ]]) & \"-\" & \"Q\" & INT((MONTH(AC_Log[[#This Row],[Service Date ]])+2)/3), \"\")","v":""}]
[null,null,null,null,null,null,{"$f":"IF(AC_Log[[#This Row],[Service Date ]], YEAR(AC_Log[[#This Row],[Service Date ]]) & \"-\" & \"Q\" & INT((MONTH(AC_Log[[#This Row],[Service Date ]])+2)/3), \"\")","v":""}]
[null,null,null,null,null,null,{"$f":"IF(AC_Log[[#This Row],[Service Date ]], YEAR(AC_Log[[#This Row],[Service Date ]]) & \"-\" & \"Q\" & INT((MONTH(AC_Log[[#This Row],[Service Date ]])+2)/3), \"\")","v":""}]
[null,null,null,null,null,null,{"$f":"IF(AC_Log[[#This Row],[Service Date ]], YEAR(AC_Log[[#This Row],[Service Date ]]) & \"-\" & \"Q\" & INT((MONTH(AC_Log[[#This Row],[Service Date ]])+2)/3), \"\")","v":""}]
[null,null,null,null,null,null,{"$f":"IF(AC_Log[[#This Row],[Service Date ]], YEAR(AC_Log[[#This Row],[Service Date ]]) & \"-\" & \"Q\" & INT((MONTH(AC_Log[[#This Row],[Service Date ]])+2)/3), \"\")","v":""}]
[null,null,null,null,null,null,{"$f":"IF(AC_Log[[#This Row],[Service Date ]], YEAR(AC_Log[[#This Row],[Service Date ]]) & \"-\" & \"Q\" & INT((MONTH(AC_Log[[#This Row],[Service Date ]])+2)/3), \"\")","v":""}]
[null,null,null,null,null,null,{"$f":"IF(AC_Log[[#This Row],[Service Date ]], YEAR(AC_Log[[#This Row],[Service Date ]]) & \"-\" & \"Q\" & INT((MONTH(AC_Log[[#This Row],[Service Date ]])+2)/3), \"\")","v":""}]
[null,null,null,null,null,null,{"$f":"IF(AC_Log[[#This Row],[Service Date ]], YEAR(AC_Log[[#This Row],[Service Date ]]) & \"-\" & \"Q\" & INT((MONTH(AC_Log[[#This Row],[Service Date ]])+2)/3), \"\")","v":""}]
[null,null,null,null,null,null,{"$f":"IF(AC_Log[[#This Row],[Service Date ]], YEAR(AC_Log[[#This Row],[Service Date ]]) & \"-\" & \"Q\" & INT((MONTH(AC_Log[[#This Row],[Service Date ]])+2)/3), \"\")","v":""}]
[null,null,null,null,null,null,{"$f":"IF(AC_Log[[#This Row],[Service Date ]], YEAR(AC_Log[[#This Row],[Service Date ]]) & \"-\" & \"Q\" & INT((MONTH(AC_Log[[#This Row],[Service Date ]])+2)/3), \"\")","v":""}]
[null,null,null,null,null,null,{"$f":"IF(AC_Log[[#This Row],[Service Date ]], YEAR(AC_Log[[#This Row],[Service Date ]]) & \"-\" & \"Q\" & INT((MONTH(AC_Log[[#This Row],[Service Date ]])+2)/3), \"\")","v":""}]
[null,null,null,null,null,null,{"$f":"IF(AC_Log[[#This Row],[Service Date ]], YEAR(AC_Log[[#This Row],[Service Date ]]) & \"-\" & \"Q\" & INT((MONTH(AC_Log[[#This Row],[Service Date ]])+2)/3), \"\")","v":""}]
[null,null,null,null,null,null,{"$f":"IF(AC_Log[[#This Row],[Service Date ]], YEAR(AC_Log[[#This Row],[Service Date ]]) & \"-\" & \"Q\" & INT((MONTH(AC_Log[[#This Row],[Service Date ]])+2)/3), \"\")","v":""}]
[null,null,null,null,null,null,{"$f":"IF(AC_Log[[#This Row],[Service Date ]], YEAR(AC_Log[[#This Row],[Service Date ]]) & \"-\" & \"Q\" & INT((MONTH(AC_Log[[#This Row],[Service Date ]])+2)/3), \"\")","v":""}]
[null,null,null,null,null,null,{"$f":"IF(AC_Log[[#This Row],[Service Date ]], YEAR(AC_Log[[#This Row],[Service Date ]]) & \"-\" & \"Q\" & INT((MONTH(AC_Log[[#This Row],[Service Date ]])+2)/3), \"\")","v":""}]
[null,null,null,null,null,null,{"$f":"IF(AC_Log[[#This Row],[Service Date ]], YEAR(AC_Log[[#This Row],[Service Date ]]) & \"-\" & \"Q\" & INT((MONTH(AC_Log[[#This Row],[Service Date ]])+2)/3), \"\")","v":""}]
[null,null,null,null,null,null,{"$f":"IF(AC_Log[[#This Row],[Service Date ]], YEAR(AC_Log[[#This Row],[Service Date ]]) & \"-\" & \"Q\" & INT((MONTH(AC_Log[[#This Row],[Service Date ]])+2)/3), \"\")","v":""}]
[null,null,null,null,null,null,{"$f":"IF(AC_Log[[#This Row],[Service Date ]], YEAR(AC_Log[[#This Row],[Service Date ]]) & \"-\" & \"Q\" & INT((MONTH(AC_Log[[#This Row],[Service Date ]])+2)/3), \"\")","v":""}]
[null,null,null,null,null,null,{"$f":"IF(AC_Log[[#This Row],[Service Date ]], YEAR(AC_Log[[#This Row],[Service Date ]]) & \"-\" & \"Q\" & INT((MONTH(AC_Log[[#This Row],[Service Date ]])+2)/3), \"\")","v":""}]
[null,null,null,null,null,null,{"$f":"IF(AC_Log[[#This Row],[Service Date ]], YEAR(AC_Log[[#This Row],[Service Date ]]) & \"-\" & \"Q\" & INT((MONTH(AC_Log[[#This Row],[Service Date ]])+2)/3), \"\")","v":""}]
[null,null,null,null,null,null,{"$f":"IF(AC_Log[[#This Row],[Service Date ]], YEAR(AC_Log[[#This Row],[Service Date ]]) & \"-\" & \"Q\" & INT((MONTH(AC_Log[[#This Row],[Service Date ]])+2)/3), \"\")","v":""}]
[null,null,null,null,null,null,{"$f":"IF(AC_Log[[#This Row],[Service Date ]], YEAR(AC_Log[[#This Row],[Service Date ]]) & \"-\" & \"Q\" & INT((MONTH(AC_Log[[#This Row],[Service Date ]])+2)/3), \"\")","v":""}]
[null,null,null,null,null,null,{"$f":"IF(AC_Log[[#This Row],[Service Date ]], YEAR(AC_Log[[#This Row],[Service Date ]]) & \"-\" & \"Q\" & INT((MONTH(AC_Log[[#This Row],[Service Date ]])+2)/3), \"\")","v":""}]
[null,null,null,null,null,null,{"$f":"IF(AC_Log[[#This Row],[Service Date ]], YEAR(AC_Log[[#This Row],[Service Date ]]) & \"-\" & \"Q\" & INT((MONTH(AC_Log[[#This Row],[Service Date ]])+2)/3), \"\")","v":""}]
[null,null,null,null,null,null,{"$f":"IF(AC_Log[[#This Row],[Service Date ]], YEAR(AC_Log[[#This Row],[Service Date ]]) & \"-\" & \"Q\" & INT((MONTH(AC_Log[[#This Row],[Service Date ]])+2)/3), \"\")","v":""}]
[null,null,null,null,null,null,{"$f":"IF(AC_Log[[#This Row],[Service Date ]], YEAR(AC_Log[[#This Row],[Service Date ]]) & \"-\" & \"Q\" & INT((MONTH(AC_Log[[#This Row],[Service Date ]])+2)/3), \"\")","v":""}]
[null,null,null,null,null,null,{"$f":"IF(AC_Log[[#This Row],[Service Date ]], YEAR(AC_Log[[#This Row],[Service Date ]]) & \"-\" & \"Q\" & INT((MONTH(AC_Log[[#This Row],[Service Date ]])+2)/3), \"\")","v":""}]
[null,null,null,null,null,null,{"$f":"IF(AC_Log[[#This Row],[Service Date ]], YEAR(AC_Log[[#This Row],[Service Date ]]) & \"-\" & \"Q\" & INT((MONTH(AC_Log[[#This Row],[Service Date ]])+2)/3), \"\")","v":""}]
[null,null,null,null,null,null,{"$f":"IF(AC_Log[[#This Row],[Service Date ]], YEAR(AC_Log[[#This Row],[Service Date ]]) & \"-\" & \"Q\" & INT((MONTH(AC_Log[[#This Row],[Service Date ]])+2)/3), \"\")","v":""}]
[null,null,null,null,null,null,{"$f":"IF(AC_Log[[#This Row],[Service Date ]], YEAR(AC_Log[[#This Row],[Service Date ]]) & \"-\" & \"Q\" & INT((MONTH(AC_Log[[#This Row],[Service Date ]])+2)/3), \"\")","v":""}]
[null,null,null,null,null,null,{"$f":"IF(AC_Log[[#This Row],[Service Date ]], YEAR(AC_Log[[#This Row],[Service Date ]]) & \"-\" & \"Q\" & INT((MONTH(AC_Log[[#This Row],[Service Date ]])+2)/3), \"\")","v":""}]
[null,null,null,null,null,null,{"$f":"IF(AC_Log[[#This Row],[Service Date ]], YEAR(AC_Log[[#This Row],[Service Date ]]) & \"-\" & \"Q\" & INT((MONTH(AC_Log[[#This Row],[Service Date ]])+2)/3), \"\")","v":""}]
[null,null,null,null,null,null,{"$f":"IF(AC_Log[[#This Row],[Service Date ]], YEAR(AC_Log[[#This Row],[Service Date ]]) & \"-\" & \"Q\" & INT((MONTH(AC_Log[[#This Row],[Service Date ]])+2)/3), \"\")","v":""}]
[null,null,null,null,null,null,{"$f":"IF(AC_Log[[#This Row],[Service Date ]], YEAR(AC_Log[[#This Row],[Service Date ]]) & \"-\" & \"Q\" & INT((MONTH(AC_Log[[#This Row],[Service Date ]])+2)/3), \"\")","v":""}]
[null,null,null,null,null,null,{"$f":"IF(AC_Log[[#This Row],[Service Date ]], YEAR(AC_Log[[#This Row],[Service Date ]]) & \"-\" & \"Q\" & INT((MONTH(AC_Log[[#This Row],[Service Date ]])+2)/3), \"\")","v":""}]
[null,null,null,null,null,null,{"$f":"IF(AC_Log[[#This Row],[Service Date ]], YEAR(AC_Log[[#This Row],[Service Date ]]) & \"-\" & \"Q\" & INT((MONTH(AC_Log[[#This Row],[Service Date ]])+2)/3), \"\")","v":""}]
[null,null,null,null,null,null,{"$f":"IF(AC_Log[[#This Row],[Service Date ]], YEAR(AC_Log[[#This Row],[Service Date ]]) & \"-\" & \"Q\" & INT((MONTH(AC_Log[[#This Row],[Service Date ]])+2)/3), \"\")","v":""}]
[null,null,null,null,null,null,{"$f":"IF(AC_Log[[#This Row],[Service Date ]], YEAR(AC_Log[[#This Row],[Service Date ]]) & \"-\" & \"Q\" & INT((MONTH(AC_Log[[#This Row],[Service Date ]])+2)/3), \"\")","v":""}]
[null,null,null,null,null,null,{"$f":"IF(AC_Log[[#This Row],[Service Date ]], YEAR(AC_Log[[#This Row],[Service Date ]]) & \"-\" & \"Q\" & INT((MONTH(AC_Log[[#This Row],[Service Date ]])+2)/3), \"\")","v":""}]
[null,null,null,null,null,null,{"$f":"IF(AC_Log[[#This Row],[Service Date ]], YEAR(AC_Log[[#This Row],[Service Date ]]) & \"-\" & \"Q\" & INT((MONTH(AC_Log[[#This Row],[Service Date ]])+2)/3), \"\")","v":""}]
[null,null,null,null,null,null,{"$f":"IF(AC_Log[[#This Row],[Service Date ]], YEAR(AC_Log[[#This Row],[Service Date ]]) & \"-\" & \"Q\" & INT((MONTH(AC_Log[[#This Row],[Service Date ]])+2)/3), \"\")","v":""}]
[null,null,null,null,null,null,{"$f":"IF(AC_Log[[#This Row],[Service Date ]], YEAR(AC_Log[[#This Row],[Service Date ]]) & \"-\" & \"Q\" & INT((MONTH(AC_Log[[#This Row],[Service Date ]])+2)/3), \"\")","v":""}]
[null,null,null,null,null,null,{"$f":"IF(AC_Log[[#This Row],[Service Date ]], YEAR(AC_Log[[#This Row],[Service Date ]]) & \"-\" & \"Q\" & INT((MONTH(AC_Log[[#This Row],[Service Date ]])+2)/3), \"\")","v":""}]
[null,null,null,null,null,null,{"$f":"IF(AC_Log[[#This Row],[Service Date ]], YEAR(AC_Log[[#This Row],[Service Date ]]) & \"-\" & \"Q\" & INT((MONTH(AC_Log[[#This Row],[Service Date ]])+2)/3), \"\")","v":""}]
[null,null,null,null,null,null,{"$f":"IF(AC_Log[[#This Row],[Service Date ]], YEAR(AC_Log[[#This Row],[Service Date ]]) & \"-\" & \"Q\" & INT((MONTH(AC_Log[[#This Row],[Service Date ]])+2)/3), \"\")","v":""}]
[null,null,null,null,null,null,{"$f":"IF(AC_Log[[#This Row],[Service Date ]], YEAR(AC_Log[[#This Row],[Service Date ]]) & \"-\" & \"Q\" & INT((MONTH(AC_Log[[#This Row],[Service Date ]])+2)/3), \"\")","v":""}]
[null,null,null,null,null,null,{"$f":"IF(AC_Log[[#This Row],[Service Date ]], YEAR(AC_Log[[#This Row],[Service Date ]]) & \"-\" & \"Q\" & INT((MONTH(AC_Log[[#This Row],[Service Date ]])+2)/3), \"\")","v":""}]
[null,null,null,null,null,null,{"$f":"IF(AC_Log[[#This Row],[Service Date ]], YEAR(AC_Log[[#This Row],[Service Date ]]) & \"-\" & \"Q\" & INT((MONTH(AC_Log[[#This Row],[Service Date ]])+2)/3), \"\")","v":""}]
[null,null,null,null,null,null,{"$f":"IF(AC_Log[[#This Row],[Service Date ]], YEAR(AC_Log[[#This Row],[Service Date ]]) & \"-\" & \"Q\" & INT((MONTH(AC_Log[[#This Row],[Service Date ]])+2)/3), \"\")","v":""}]
[null,null,null,null,null,null,{"$f":"IF(AC_Log[[#This Row],[Service Date ]], YEAR(AC_Log[[#This Row],[Service Date ]]) & \"-\" & \"Q\" & INT((MONTH(AC_Log[[#This Row],[Service Date ]])+2)/3), \"\")","v":""}]
[null,null,null,null,null,null,{"$f":"IF(AC_Log[[#This Row],[Service Date ]], YEAR(AC_Log[[#This Row],[Service Date ]]) & \"-\" & \"Q\" & INT((MONTH(AC_Log[[#This Row],[Service Date ]])+2)/3), \"\")","v":""}]
[null,null,null,null,null,null,{"$f":"IF(AC_Log[[#This Row],[Service Date ]], YEAR(AC_Log[[#This Row],[Service Date ]]) & \"-\" & \"Q\" & INT((MONTH(AC_Log[[#This Row],[Service Date ]])+2)/3), \"\")","v":""}]
[null,null,null,null,null,null,{"$f":"IF(AC_Log[[#This Row],[Service Date ]], YEAR(AC_Log[[#This Row],[Service Date ]]) & \"-\" & \"Q\" & INT((MONTH(AC_Log[[#This Row],[Service Date ]])+2)/3), \"\")","v":""}]
[null,null,null,null,null,null,{"$f":"IF(AC_Log[[#This Row],[Service Date ]], YEAR(AC_Log[[#This Row],[Service Date ]]) & \"-\" & \"Q\" & INT((MONTH(AC_Log[[#This Row],[Service Date ]])+2)/3), \"\")","v":""}]
[null,null,null,null,null,null,{"$f":"IF(AC_Log[[#This Row],[Service Date ]], YEAR(AC_Log[[#This Row],[Service Date ]]) & \"-\" & \"Q\" & INT((MONTH(AC_Log[[#This Row],[Service Date ]])+2)/3), \"\")","v":""}]
[null,null,null,null,null,null,{"$f":"IF(AC_Log[[#This Row],[Service Date ]], YEAR(AC_Log[[#This Row],[Service Date ]]) & \"-\" & \"Q\" & INT((MONTH(AC_Log[[#This Row],[Service Date ]])+2)/3), \"\")","v":""}]
[null,null,null,null,null,null,{"$f":"IF(AC_Log[[#This Row],[Service Date ]], YEAR(AC_Log[[#This Row],[Service Date ]]) & \"-\" & \"Q\" & INT((MONTH(AC_Log[[#This Row],[Service Date ]])+2)/3), \"\")","v":""}]
[null,null,null,null,null,null,{"$f":"IF(AC_Log[[#This Row],[Service Date ]], YEAR(AC_Log[[#This Row],[Service Date ]]) & \"-\" & \"Q\" & INT((MONTH(AC_Log[[#This Row],[Service Date ]])+2)/3), \"\")","v":""}]
[null,null,null,null,null,null,{"$f":"IF(AC_Log[[#This Row],[Service Date ]], YEAR(AC_Log[[#This Row],[Service Date ]]) & \"-\" & \"Q\" & INT((MONTH(AC_Log[[#This Row],[Service Date ]])+2)/3), \"\")","v":""}]
[null,null,null,null,null,null,{"$f":"IF(AC_Log[[#This Row],[Service Date ]], YEAR(AC_Log[[#This Row],[Service Date ]]) & \"-\" & \"Q\" & INT((MONTH(AC_Log[[#This Row],[Service Date ]])+2)/3), \"\")","v":""}]
[null,null,null,null,null,null,{"$f":"IF(AC_Log[[#This Row],[Service Date ]], YEAR(AC_Log[[#This Row],[Service Date ]]) & \"-\" & \"Q\" & INT((MONTH(AC_Log[[#This Row],[Service Date ]])+2)/3), \"\")","v":""}]
[null,null,null,null,null,null,{"$f":"IF(AC_Log[[#This Row],[Service Date ]], YEAR(AC_Log[[#This Row],[Service Date ]]) & \"-\" & \"Q\" & INT((MONTH(AC_Log[[#This Row],[Service Date ]])+2)/3), \"\")","v":""}]
[null,null,null,null,null,null,{"$f":"IF(AC_Log[[#This Row],[Service Date ]], YEAR(AC_Log[[#This Row],[Service Date ]]) & \"-\" & \"Q\" & INT((MONTH(AC_Log[[#This Row],[Service Date ]])+2)/3), \"\")","v":""}]
[null,null,null,null,null,null,{"$f":"IF(AC_Log[[#This Row],[Service Date ]], YEAR(AC_Log[[#This Row],[Service Date ]]) & \"-\" & \"Q\" & INT((MONTH(AC_Log[[#This Row],[Service Date ]])+2)/3), \"\")","v":""}]
[null,null,null,null,null,null,{"$f":"IF(AC_Log[[#This Row],[Service Date ]], YEAR(AC_Log[[#This Row],[Service Date ]]) & \"-\" & \"Q\" & INT((MONTH(AC_Log[[#This Row],[Service Date ]])+2)/3), \"\")","v":""}]
[null,null,null,null,null,null,{"$f":"IF(AC_Log[[#This Row],[Service Date ]], YEAR(AC_Log[[#This Row],[Service Date ]]) & \"-\" & \"Q\" & INT((MONTH(AC_Log[[#This Row],[Service Date ]])+2)/3), \"\")","v":""}]
[null,null,null,null,null,null,{"$f":"IF(AC_Log[[#This Row],[Service Date ]], YEAR(AC_Log[[#This Row],[Service Date ]]) & \"-\" & \"Q\" & INT((MONTH(AC_Log[[#This Row],[Service Date ]])+2)/3), \"\")","v":""}]
[null,null,null,null,null,null,{"$f":"IF(AC_Log[[#This Row],[Service Date ]], YEAR(AC_Log[[#This Row],[Service Date ]]) & \"-\" & \"Q\" & INT((MONTH(AC_Log[[#This Row],[Service Date ]])+2)/3), \"\")","v":""}]
[null,null,null,null,null,null,{"$f":"IF(AC_Log[[#This Row],[Service Date ]], YEAR(AC_Log[[#This Row],[Service Date ]]) & \"-\" & \"Q\" & INT((MONTH(AC_Log[[#This Row],[Service Date ]])+2)/3), \"\")","v":""}]
[null,null,null,null,null,null,{"$f":"IF(AC_Log[[#This Row],[Service Date ]], YEAR(AC_Log[[#This Row],[Service Date ]]) & \"-\" & \"Q\" & INT((MONTH(AC_Log[[#This Row],[Service Date ]])+2)/3), \"\")","v":""}]
[null,null,null,null,null,null,{"$f":"IF(AC_Log[[#This Row],[Service Date ]], YEAR(AC_Log[[#This Row],[Service Date ]]) & \"-\" & \"Q\" & INT((MONTH(AC_Log[[#This Row],[Service Date ]])+2)/3), \"\")","v":""}]
[null,null,null,null,null,null,{"$f":"IF(AC_Log[[#This Row],[Service Date ]], YEAR(AC_Log[[#This Row],[Service Date ]]) & \"-\" & \"Q\" & INT((MONTH(AC_Log[[#This Row],[Service Date ]])+2)/3), \"\")","v":""}]
[null,null,null,null,null,null,{"$f":"IF(AC_Log[[#This Row],[Service Date ]], YEAR(AC_Log[[#This Row],[Service Date ]]) & \"-\" & \"Q\" & INT((MONTH(AC_Log[[#This Row],[Service Date ]])+2)/3), \"\")","v":""}]
[null,null,null,null,null,null,{"$f":"IF(AC_Log[[#This Row],[Service Date ]], YEAR(AC_Log[[#This Row],[Service Date ]]) & \"-\" & \"Q\" & INT((MONTH(AC_Log[[#This Row],[Service Date ]])+2)/3), \"\")","v":""}]
[null,null,null,null,null,null,{"$f":"IF(AC_Log[[#This Row],[Service Date ]], YEAR(AC_Log[[#This Row],[Service Date ]]) & \"-\" & \"Q\" & INT((MONTH(AC_Log[[#This Row],[Service Date ]])+2)/3), \"\")","v":""}]
[null,null,null,null,null,null,{"$f":"IF(AC_Log[[#This Row],[Service Date ]], YEAR(AC_Log[[#This Row],[Service Date ]]) & \"-\" & \"Q\" & INT((MONTH(AC_Log[[#This Row],[Service Date ]])+2)/3), \"\")","v":""}]
[null,null,null,null,null,null,{"$f":"IF(AC_Log[[#This Row],[Service Date ]], YEAR(AC_Log[[#This Row],[Service Date ]]) & \"-\" & \"Q\" & INT((MONTH(AC_Log[[#This Row],[Service Date ]])+2)/3), \"\")","v":""}]
[null,null,null,null,null,null,{"$f":"IF(AC_Log[[#This Row],[Service Date ]], YEAR(AC_Log[[#This Row],[Service Date ]]) & \"-\" & \"Q\" & INT((MONTH(AC_Log[[#This Row],[Service Date ]])+2)/3), \"\")","v":""}]
[null,null,null,null,null,null,{"$f":"IF(AC_Log[[#This Row],[Service Date ]], YEAR(AC_Log[[#This Row],[Service Date ]]) & \"-\" & \"Q\" & INT((MONTH(AC_Log[[#This Row],[Service Date ]])+2)/3), \"\")","v":""}]
[null,null,null,null,null,null,{"$f":"IF(AC_Log[[#This Row],[Service Date ]], YEAR(AC_Log[[#This Row],[Service Date ]]) & \"-\" & \"Q\" & INT((MONTH(AC_Log[[#This Row],[Service Date ]])+2)/3), \"\")","v":""}]
[null,null,null,null,null,null,{"$f":"IF(AC_Log[[#This Row],[Service Date ]], YEAR(AC_Log[[#This Row],[Service Date ]]) & \"-\" & \"Q\" & INT((MONTH(AC_Log[[#This Row],[Service Date ]])+2)/3), \"\")","v":""}]
[null,null,null,null,null,null,{"$f":"IF(AC_Log[[#This Row],[Service Date ]], YEAR(AC_Log[[#This Row],[Service Date ]]) & \"-\" & \"Q\" & INT((MONTH(AC_Log[[#This Row],[Service Date ]])+2)/3), \"\")","v":""}]
[null,null,null,null,null,null,{"$f":"IF(AC_Log[[#This Row],[Service Date ]], YEAR(AC_Log[[#This Row],[Service Date ]]) & \"-\" & \"Q\" & INT((MONTH(AC_Log[[#This Row],[Service Date ]])+2)/3), \"\")","v":""}]
[null,null,null,null,null,null,{"$f":"IF(AC_Log[[#This Row],[Service Date ]], YEAR(AC_Log[[#This Row],[Service Date ]]) & \"-\" & \"Q\" & INT((MONTH(AC_Log[[#This Row],[Service Date ]])+2)/3), \"\")","v":""}]
[null,null,null,null,null,null,{"$f":"IF(AC_Log[[#This Row],[Service Date ]], YEAR(AC_Log[[#This Row],[Service Date ]]) & \"-\" & \"Q\" & INT((MONTH(AC_Log[[#This Row],[Service Date ]])+2)/3), \"\")","v":""}]
[null,null,null,null,null,null,{"$f":"IF(AC_Log[[#This Row],[Service Date ]], YEAR(AC_Log[[#This Row],[Service Date ]]) & \"-\" & \"Q\" & INT((MONTH(AC_Log[[#This Row],[Service Date ]])+2)/3), \"\")","v":""}]
[null,null,null,null,null,null,{"$f":"IF(AC_Log[[#This Row],[Service Date ]], YEAR(AC_Log[[#This Row],[Service Date ]]) & \"-\" & \"Q\" & INT((MONTH(AC_Log[[#This Row],[Service Date ]])+2)/3), \"\")","v":""}]
[null,null,null,null,null,null,{"$f":"IF(AC_Log[[#This Row],[Service Date ]], YEAR(AC_Log[[#This Row],[Service Date ]]) & \"-\" & \"Q\" & INT((MONTH(AC_Log[[#This Row],[Service Date ]])+2)/3), \"\")","v":""}]
[null,null,null,null,null,null,{"$f":"IF(AC_Log[[#This Row],[Service Date ]], YEAR(AC_Log[[#This Row],[Service Date ]]) & \"-\" & \"Q\" & INT((MONTH(AC_Log[[#This Row],[Service Date ]])+2)/3), \"\")","v":""}]
[null,null,null,null,null,null,{"$f":"IF(AC_Log[[#This Row],[Service Date ]], YEAR(AC_Log[[#This Row],[Service Date ]]) & \"-\" & \"Q\" & INT((MONTH(AC_Log[[#This Row],[Service Date ]])+2)/3), \"\")","v":""}]
[null,null,null,null,null,null,{"$f":"IF(AC_Log[[#This Row],[Service Date ]], YEAR(AC_Log[[#This Row],[Service Date ]]) & \"-\" & \"Q\" & INT((MONTH(AC_Log[[#This Row],[Service Date ]])+2)/3), \"\")","v":""}]
[null,null,null,null,null,null,{"$f":"IF(AC_Log[[#This Row],[Service Date ]], YEAR(AC_Log[[#This Row],[Service Date ]]) & \"-\" & \"Q\" & INT((MONTH(AC_Log[[#This Row],[Service Date ]])+2)/3), \"\")","v":""}]
[null,null,null,null,null,null,{"$f":"IF(AC_Log[[#This Row],[Service Date ]], YEAR(AC_Log[[#This Row],[Service Date ]]) & \"-\" & \"Q\" & INT((MONTH(AC_Log[[#This Row],[Service Date ]])+2)/3), \"\")","v":""}]
[null,null,null,null,null,null,{"$f":"IF(AC_Log[[#This Row],[Service Date ]], YEAR(AC_Log[[#This Row],[Service Date ]]) & \"-\" & \"Q\" & INT((MONTH(AC_Log[[#This Row],[Service Date ]])+2)/3), \"\")","v":""}]
[null,null,null,null,null,null,{"$f":"IF(AC_Log[[#This Row],[Service Date ]], YEAR(AC_Log[[#This Row],[Service Date ]]) & \"-\" & \"Q\" & INT((MONTH(AC_Log[[#This Row],[Service Date ]])+2)/3), \"\")","v":""}]
[null,null,null,null,null,null,{"$f":"IF(AC_Log[[#This Row],[Service Date ]], YEAR(AC_Log[[#This Row],[Service Date ]]) & \"-\" & \"Q\" & INT((MONTH(AC_Log[[#This Row],[Service Date ]])+2)/3), \"\")","v":""}]
[null,null,null,null,null,null,{"$f":"IF(AC_Log[[#This Row],[Service Date ]], YEAR(AC_Log[[#This Row],[Service Date ]]) & \"-\" & \"Q\" & INT((MONTH(AC_Log[[#This Row],[Service Date ]])+2)/3), \"\")","v":""}]
[null,null,null,null,null,null,{"$f":"IF(AC_Log[[#This Row],[Service Date ]], YEAR(AC_Log[[#This Row],[Service Date ]]) & \"-\" & \"Q\" & INT((MONTH(AC_Log[[#This Row],[Service Date ]])+2)/3), \"\")","v":""}]
[null,null,null,null,null,null,{"$f":"IF(AC_Log[[#This Row],[Service Date ]], YEAR(AC_Log[[#This Row],[Service Date ]]) & \"-\" & \"Q\" & INT((MONTH(AC_Log[[#This Row],[Service Date ]])+2)/3), \"\")","v":""}]
[null,null,null,null,null,null,{"$f":"IF(AC_Log[[#This Row],[Service Date ]], YEAR(AC_Log[[#This Row],[Service Date ]]) & \"-\" & \"Q\" & INT((MONTH(AC_Log[[#This Row],[Service Date ]])+2)/3), \"\")","v":""}]
[null,null,null,null,null,null,{"$f":"IF(AC_Log[[#This Row],[Service Date ]], YEAR(AC_Log[[#This Row],[Service Date ]]) & \"-\" & \"Q\" & INT((MONTH(AC_Log[[#This Row],[Service Date ]])+2)/3), \"\")","v":""}]
[null,null,null,null,null,null,{"$f":"IF(AC_Log[[#This Row],[Service Date ]], YEAR(AC_Log[[#This Row],[Service Date ]]) & \"-\" & \"Q\" & INT((MONTH(AC_Log[[#This Row],[Service Date ]])+2)/3), \"\")","v":""}]
[null,null,null,null,null,null,{"$f":"IF(AC_Log[[#This Row],[Service Date ]], YEAR(AC_Log[[#This Row],[Service Date ]]) & \"-\" & \"Q\" & INT((MONTH(AC_Log[[#This Row],[Service Date ]])+2)/3), \"\")","v":""}]
[null,null,null,null,null,null,{"$f":"IF(AC_Log[[#This Row],[Service Date ]], YEAR(AC_Log[[#This Row],[Service Date ]]) & \"-\" & \"Q\" & INT((MONTH(AC_Log[[#This Row],[Service Date ]])+2)/3), \"\")","v":""}]
[null,null,null,null,null,null,{"$f":"IF(AC_Log[[#This Row],[Service Date ]], YEAR(AC_Log[[#This Row],[Service Date ]]) & \"-\" & \"Q\" & INT((MONTH(AC_Log[[#This Row],[Service Date ]])+2)/3), \"\")","v":""}]
[null,null,null,null,null,null,{"$f":"IF(AC_Log[[#This Row],[Service Date ]], YEAR(AC_Log[[#This Row],[Service Date ]]) & \"-\" & \"Q\" & INT((MONTH(AC_Log[[#This Row],[Service Date ]])+2)/3), \"\")","v":""}]
[null,null,null,null,null,null,{"$f":"IF(AC_Log[[#This Row],[Service Date ]], YEAR(AC_Log[[#This Row],[Service Date ]]) & \"-\" & \"Q\" & INT((MONTH(AC_Log[[#This Row],[Service Date ]])+2)/3), \"\")","v":""}]
[null,null,null,null,null,null,{"$f":"IF(AC_Log[[#This Row],[Service Date ]], YEAR(AC_Log[[#This Row],[Service Date ]]) & \"-\" & \"Q\" & INT((MONTH(AC_Log[[#This Row],[Service Date ]])+2)/3), \"\")","v":""}]
[null,null,null,null,null,null,{"$f":"IF(AC_Log[[#This Row],[Service Date ]], YEAR(AC_Log[[#This Row],[Service Date ]]) & \"-\" & \"Q\" & INT((MONTH(AC_Log[[#This Row],[Service Date ]])+2)/3), \"\")","v":""}]
[null,null,null,null,null,null,{"$f":"IF(AC_Log[[#This Row],[Service Date ]], YEAR(AC_Log[[#This Row],[Service Date ]]) & \"-\" & \"Q\" & INT((MONTH(AC_Log[[#This Row],[Service Date ]])+2)/3), \"\")","v":""}]
[null,null,null,null,null,null,{"$f":"IF(AC_Log[[#This Row],[Service Date ]], YEAR(AC_Log[[#This Row],[Service Date ]]) & \"-\" & \"Q\" & INT((MONTH(AC_Log[[#This Row],[Service Date ]])+2)/3), \"\")","v":""}]
[null,null,null,null,null,null,{"$f":"IF(AC_Log[[#This Row],[Service Date ]], YEAR(AC_Log[[#This Row],[Service Date ]]) & \"-\" & \"Q\" & INT((MONTH(AC_Log[[#This Row],[Service Date ]])+2)/3), \"\")","v":""}]
[null,null,null,null,null,null,{"$f":"IF(AC_Log[[#This Row],[Service Date ]], YEAR(AC_Log[[#This Row],[Service Date ]]) & \"-\" & \"Q\" & INT((MONTH(AC_Log[[#This Row],[Service Date ]])+2)/3), \"\")","v":""}]
[null,null,null,null,null,null,{"$f":"IF(AC_Log[[#This Row],[Service Date ]], YEAR(AC_Log[[#This Row],[Service Date ]]) & \"-\" & \"Q\" & INT((MONTH(AC_Log[[#This Row],[Service Date ]])+2)/3), \"\")","v":""}]
[null,null,null,null,null,null,{"$f":"IF(AC_Log[[#This Row],[Service Date ]], YEAR(AC_Log[[#This Row],[Service Date ]]) & \"-\" & \"Q\" & INT((MONTH(AC_Log[[#This Row],[Service Date ]])+2)/3), \"\")","v":""}]
[null,null,null,null,null,null,{"$f":"IF(AC_Log[[#This Row],[Service Date ]], YEAR(AC_Log[[#This Row],[Service Date ]]) & \"-\" & \"Q\" & INT((MONTH(AC_Log[[#This Row],[Service Date ]])+2)/3), \"\")","v":""}]
[null,null,null,null,null,null,{"$f":"IF(AC_Log[[#This Row],[Service Date ]], YEAR(AC_Log[[#This Row],[Service Date ]]) & \"-\" & \"Q\" & INT((MONTH(AC_Log[[#This Row],[Service Date ]])+2)/3), \"\")","v":""}]
[null,null,null,null,null,null,{"$f":"IF(AC_Log[[#This Row],[Service Date ]], YEAR(AC_Log[[#This Row],[Service Date ]]) & \"-\" & \"Q\" & INT((MONTH(AC_Log[[#This Row],[Service Date ]])+2)/3), \"\")","v":""}]
[null,null,null,null,null,null,{"$f":"IF(AC_Log[[#This Row],[Service Date ]], YEAR(AC_Log[[#This Row],[Service Date ]]) & \"-\" & \"Q\" & INT((MONTH(AC_Log[[#This Row],[Service Date ]])+2)/3), \"\")","v":""}]
[null,null,null,null,null,null,{"$f":"IF(AC_Log[[#This Row],[Service Date ]], YEAR(AC_Log[[#This Row],[Service Date ]]) & \"-\" & \"Q\" & INT((MONTH(AC_Log[[#This Row],[Service Date ]])+2)/3), \"\")","v":""}]
[null,null,null,null,null,null,{"$f":"IF(AC_Log[[#This Row],[Service Date ]], YEAR(AC_Log[[#This Row],[Service Date ]]) & \"-\" & \"Q\" & INT((MONTH(AC_Log[[#This Row],[Service Date ]])+2)/3), \"\")","v":""}]
[null,null,null,null,null,null,{"$f":"IF(AC_Log[[#This Row],[Service Date ]], YEAR(AC_Log[[#This Row],[Service Date ]]) & \"-\" & \"Q\" & INT((MONTH(AC_Log[[#This Row],[Service Date ]])+2)/3), \"\")","v":""}]
[null,null,null,null,null,null,{"$f":"IF(AC_Log[[#This Row],[Service Date ]], YEAR(AC_Log[[#This Row],[Service Date ]]) & \"-\" & \"Q\" & INT((MONTH(AC_Log[[#This Row],[Service Date ]])+2)/3), \"\")","v":""}]
[null,null,null,null,null,null,{"$f":"IF(AC_Log[[#This Row],[Service Date ]], YEAR(AC_Log[[#This Row],[Service Date ]]) & \"-\" & \"Q\" & INT((MONTH(AC_Log[[#This Row],[Service Date ]])+2)/3), \"\")","v":""}]
[null,null,null,null,null,null,{"$f":"IF(AC_Log[[#This Row],[Service Date ]], YEAR(AC_Log[[#This Row],[Service Date ]]) & \"-\" & \"Q\" & INT((MONTH(AC_Log[[#This Row],[Service Date ]])+2)/3), \"\")","v":""}]
[null,null,null,null,null,null,{"$f":"IF(AC_Log[[#This Row],[Service Date ]], YEAR(AC_Log[[#This Row],[Service Date ]]) & \"-\" & \"Q\" & INT((MONTH(AC_Log[[#This Row],[Service Date ]])+2)/3), \"\")","v":""}]
[null,null,null,null,null,null,{"$f":"IF(AC_Log[[#This Row],[Service Date ]], YEAR(AC_Log[[#This Row],[Service Date ]]) & \"-\" & \"Q\" & INT((MONTH(AC_Log[[#This Row],[Service Date ]])+2)/3), \"\")","v":""}]
[null,null,null,null,null,null,{"$f":"IF(AC_Log[[#This Row],[Service Date ]], YEAR(AC_Log[[#This Row],[Service Date ]]) & \"-\" & \"Q\" & INT((MONTH(AC_Log[[#This Row],[Service Date ]])+2)/3), \"\")","v":""}]
[null,null,null,null,null,null,{"$f":"IF(AC_Log[[#This Row],[Service Date ]], YEAR(AC_Log[[#This Row],[Service Date ]]) & \"-\" & \"Q\" & INT((MONTH(AC_Log[[#This Row],[Service Date ]])+2)/3), \"\")","v":""}]
[null,null,null,null,null,null,{"$f":"IF(AC_Log[[#This Row],[Service Date ]], YEAR(AC_Log[[#This Row],[Service Date ]]) & \"-\" & \"Q\" & INT((MONTH(AC_Log[[#This Row],[Service Date ]])+2)/3), \"\")","v":""}]
[null,null,null,null,null,null,{"$f":"IF(AC_Log[[#This Row],[Service Date ]], YEAR(AC_Log[[#This Row],[Service Date ]]) & \"-\" & \"Q\" & INT((MONTH(AC_Log[[#This Row],[Service Date ]])+2)/3), \"\")","v":""}]
[null,null,null,null,null,null,{"$f":"IF(AC_Log[[#This Row],[Service Date ]], YEAR(AC_Log[[#This Row],[Service Date ]]) & \"-\" & \"Q\" & INT((MONTH(AC_Log[[#This Row],[Service Date ]])+2)/3), \"\")","v":""}]
[null,null,null,null,null,null,{"$f":"IF(AC_Log[[#This Row],[Service Date ]], YEAR(AC_Log[[#This Row],[Service Date ]]) & \"-\" & \"Q\" & INT((MONTH(AC_Log[[#This Row],[Service Date ]])+2)/3), \"\")","v":""}]
[null,null,null,null,null,null,{"$f":"IF(AC_Log[[#This Row],[Service Date ]], YEAR(AC_Log[[#This Row],[Service Date ]]) & \"-\" & \"Q\" & INT((MONTH(AC_Log[[#This Row],[Service Date ]])+2)/3), \"\")","v":""}]
[null,null,null,null,null,null,{"$f":"IF(AC_Log[[#This Row],[Service Date ]], YEAR(AC_Log[[#This Row],[Service Date ]]) & \"-\" & \"Q\" & INT((MONTH(AC_Log[[#This Row],[Service Date ]])+2)/3), \"\")","v":""}]
[null,null,null,null,null,null,{"$f":"IF(AC_Log[[#This Row],[Service Date ]], YEAR(AC_Log[[#This Row],[Service Date ]]) & \"-\" & \"Q\" & INT((MONTH(AC_Log[[#This Row],[Service Date ]])+2)/3), \"\")","v":""}]
[null,null,null,null,null,null,{"$f":"IF(AC_Log[[#This Row],[Service Date ]], YEAR(AC_Log[[#This Row],[Service Date ]]) & \"-\" & \"Q\" & INT((MONTH(AC_Log[[#This Row],[Service Date ]])+2)/3), \"\")","v":""}]
[null,null,null,null,null,null,{"$f":"IF(AC_Log[[#This Row],[Service Date ]], YEAR(AC_Log[[#This Row],[Service Date ]]) & \"-\" & \"Q\" & INT((MONTH(AC_Log[[#This Row],[Service Date ]])+2)/3), \"\")","v":""}]
[null,null,null,null,null,null,{"$f":"IF(AC_Log[[#This Row],[Service Date ]], YEAR(AC_Log[[#This Row],[Service Date ]]) & \"-\" & \"Q\" & INT((MONTH(AC_Log[[#This Row],[Service Date ]])+2)/3), \"\")","v":""}]
[null,null,null,null,null,null,{"$f":"IF(AC_Log[[#This Row],[Service Date ]], YEAR(AC_Log[[#This Row],[Service Date ]]) & \"-\" & \"Q\" & INT((MONTH(AC_Log[[#This Row],[Service Date ]])+2)/3), \"\")","v":""}]
[null,null,null,null,null,null,{"$f":"IF(AC_Log[[#This Row],[Service Date ]], YEAR(AC_Log[[#This Row],[Service Date ]]) & \"-\" & \"Q\" & INT((MONTH(AC_Log[[#This Row],[Service Date ]])+2)/3), \"\")","v":""}]
[null,null,null,null,null,null,{"$f":"IF(AC_Log[[#This Row],[Service Date ]], YEAR(AC_Log[[#This Row],[Service Date ]]) & \"-\" & \"Q\" & INT((MONTH(AC_Log[[#This Row],[Service Date ]])+2)/3), \"\")","v":""}]
[null,null,null,null,null,null,{"$f":"IF(AC_Log[[#This Row],[Service Date ]], YEAR(AC_Log[[#This Row],[Service Date ]]) & \"-\" & \"Q\" & INT((MONTH(AC_Log[[#This Row],[Service Date ]])+2)/3), \"\")","v":""}]
[null,null,null,null,null,null,{"$f":"IF(AC_Log[[#This Row],[Service Date ]], YEAR(AC_Log[[#This Row],[Service Date ]]) & \"-\" & \"Q\" & INT((MONTH(AC_Log[[#This Row],[Service Date ]])+2)/3), \"\")","v":""}]
[null,null,null,null,null,null,{"$f":"IF(AC_Log[[#This Row],[Service Date ]], YEAR(AC_Log[[#This Row],[Service Date ]]) & \"-\" & \"Q\" & INT((MONTH(AC_Log[[#This Row],[Service Date ]])+2)/3), \"\")","v":""}]
[null,null,null,null,null,null,{"$f":"IF(AC_Log[[#This Row],[Service Date ]], YEAR(AC_Log[[#This Row],[Service Date ]]) & \"-\" & \"Q\" & INT((MONTH(AC_Log[[#This Row],[Service Date ]])+2)/3), \"\")","v":""}]
[null,null,null,null,null,null,{"$f":"IF(AC_Log[[#This Row],[Service Date ]], YEAR(AC_Log[[#This Row],[Service Date ]]) & \"-\" & \"Q\" & INT((MONTH(AC_Log[[#This Row],[Service Date ]])+2)/3), \"\")","v":""}]
[null,null,null,null,null,null,{"$f":"IF(AC_Log[[#This Row],[Service Date ]], YEAR(AC_Log[[#This Row],[Service Date ]]) & \"-\" & \"Q\" & INT((MONTH(AC_Log[[#This Row],[Service Date ]])+2)/3), \"\")","v":""}]
[null,null,null,null,null,null,{"$f":"IF(AC_Log[[#This Row],[Service Date ]], YEAR(AC_Log[[#This Row],[Service Date ]]) & \"-\" & \"Q\" & INT((MONTH(AC_Log[[#This Row],[Service Date ]])+2)/3), \"\")","v":""}]
[null,null,null,null,null,null,{"$f":"IF(AC_Log[[#This Row],[Service Date ]], YEAR(AC_Log[[#This Row],[Service Date ]]) & \"-\" & \"Q\" & INT((MONTH(AC_Log[[#This Row],[Service Date ]])+2)/3), \"\")","v":""}]
[null,null,null,null,null,null,{"$f":"IF(AC_Log[[#This Row],[Service Date ]], YEAR(AC_Log[[#This Row],[Service Date ]]) & \"-\" & \"Q\" & INT((MONTH(AC_Log[[#This Row],[Service Date ]])+2)/3), \"\")","v":""}]
[null,null,null,null,null,null,{"$f":"IF(AC_Log[[#This Row],[Service Date ]], YEAR(AC_Log[[#This Row],[Service Date ]]) & \"-\" & \"Q\" & INT((MONTH(AC_Log[[#This Row],[Service Date ]])+2)/3), \"\")","v":""}]
[null,null,null,null,null,null,{"$f":"IF(AC_Log[[#This Row],[Service Date ]], YEAR(AC_Log[[#This Row],[Service Date ]]) & \"-\" & \"Q\" & INT((MONTH(AC_Log[[#This Row],[Service Date ]])+2)/3), \"\")","v":""}]
[null,null,null,null,null,null,{"$f":"IF(AC_Log[[#This Row],[Service Date ]], YEAR(AC_Log[[#This Row],[Service Date ]]) & \"-\" & \"Q\" & INT((MONTH(AC_Log[[#This Row],[Service Date ]])+2)/3), \"\")","v":""}]
[null,null,null,null,null,null,{"$f":"IF(AC_Log[[#This Row],[Service Date ]], YEAR(AC_Log[[#This Row],[Service Date ]]) & \"-\" & \"Q\" & INT((MONTH(AC_Log[[#This Row],[Service Date ]])+2)/3), \"\")","v":""}]
[null,null,null,null,null,null,{"$f":"IF(AC_Log[[#This Row],[Service Date ]], YEAR(AC_Log[[#This Row],[Service Date ]]) & \"-\" & \"Q\" & INT((MONTH(AC_Log[[#This Row],[Service Date ]])+2)/3), \"\")","v":""}]
[null,null,null,null,null,null,{"$f":"IF(AC_Log[[#This Row],[Service Date ]], YEAR(AC_Log[[#This Row],[Service Date ]]) & \"-\" & \"Q\" & INT((MONTH(AC_Log[[#This Row],[Service Date ]])+2)/3), \"\")","v":""}]
[null,null,null,null,null,null,{"$f":"IF(AC_Log[[#This Row],[Service Date ]], YEAR(AC_Log[[#This Row],[Service Date ]]) & \"-\" & \"Q\" & INT((MONTH(AC_Log[[#This Row],[Service Date ]])+2)/3), \"\")","v":""}]
[null,null,null,null,null,null,{"$f":"IF(AC_Log[[#This Row],[Service Date ]], YEAR(AC_Log[[#This Row],[Service Date ]]) & \"-\" & \"Q\" & INT((MONTH(AC_Log[[#This Row],[Service Date ]])+2)/3), \"\")","v":""}]
[null,null,null,null,null,null,{"$f":"IF(AC_Log[[#This Row],[Service Date ]], YEAR(AC_Log[[#This Row],[Service Date ]]) & \"-\" & \"Q\" & INT((MONTH(AC_Log[[#This Row],[Service Date ]])+2)/3), \"\")","v":""}]
[null,null,null,null,null,null,{"$f":"IF(AC_Log[[#This Row],[Service Date ]], YEAR(AC_Log[[#This Row],[Service Date ]]) & \"-\" & \"Q\" & INT((MONTH(AC_Log[[#This Row],[Service Date ]])+2)/3), \"\")","v":""}]
[null,null,null,null,null,null,{"$f":"IF(AC_Log[[#This Row],[Service Date ]], YEAR(AC_Log[[#This Row],[Service Date ]]) & \"-\" & \"Q\" & INT((MONTH(AC_Log[[#This Row],[Service Date ]])+2)/3), \"\")","v":""}]
[null,null,null,null,null,null,{"$f":"IF(AC_Log[[#This Row],[Service Date ]], YEAR(AC_Log[[#This Row],[Service Date ]]) & \"-\" & \"Q\" & INT((MONTH(AC_Log[[#This Row],[Service Date ]])+2)/3), \"\")","v":""}]
[null,null,null,null,null,null,{"$f":"IF(AC_Log[[#This Row],[Service Date ]], YEAR(AC_Log[[#This Row],[Service Date ]]) & \"-\" & \"Q\" & INT((MONTH(AC_Log[[#This Row],[Service Date ]])+2)/3), \"\")","v":""}]
[null,null,null,null,null,null,{"$f":"IF(AC_Log[[#This Row],[Service Date ]], YEAR(AC_Log[[#This Row],[Service Date ]]) & \"-\" & \"Q\" & INT((MONTH(AC_Log[[#This Row],[Service Date ]])+2)/3), \"\")","v":""}]
[null,null,null,null,null,null,{"$f":"IF(AC_Log[[#This Row],[Service Date ]], YEAR(AC_Log[[#This Row],[Service Date ]]) & \"-\" & \"Q\" & INT((MONTH(AC_Log[[#This Row],[Service Date ]])+2)/3), \"\")","v":""}]
[null,null,null,null,null,null,{"$f":"IF(AC_Log[[#This Row],[Service Date ]], YEAR(AC_Log[[#This Row],[Service Date ]]) & \"-\" & \"Q\" & INT((MONTH(AC_Log[[#This Row],[Service Date ]])+2)/3), \"\")","v":""}]
[null,null,null,null,null,null,{"$f":"IF(AC_Log[[#This Row],[Service Date ]], YEAR(AC_Log[[#This Row],[Service Date ]]) & \"-\" & \"Q\" & INT((MONTH(AC_Log[[#This Row],[Service Date ]])+2)/3), \"\")","v":""}]
[null,null,null,null,null,null,{"$f":"IF(AC_Log[[#This Row],[Service Date ]], YEAR(AC_Log[[#This Row],[Service Date ]]) & \"-\" & \"Q\" & INT((MONTH(AC_Log[[#This Row],[Service Date ]])+2)/3), \"\")","v":""}]
[null,null,null,null,null,null,{"$f":"IF(AC_Log[[#This Row],[Service Date ]], YEAR(AC_Log[[#This Row],[Service Date ]]) & \"-\" & \"Q\" & INT((MONTH(AC_Log[[#This Row],[Service Date ]])+2)/3), \"\")","v":""}]
[null,null,null,null,null,null,{"$f":"IF(AC_Log[[#This Row],[Service Date ]], YEAR(AC_Log[[#This Row],[Service Date ]]) & \"-\" & \"Q\" & INT((MONTH(AC_Log[[#This Row],[Service Date ]])+2)/3), \"\")","v":""}]
[null,null,null,null,null,null,{"$f":"IF(AC_Log[[#This Row],[Service Date ]], YEAR(AC_Log[[#This Row],[Service Date ]]) & \"-\" & \"Q\" & INT((MONTH(AC_Log[[#This Row],[Service Date ]])+2)/3), \"\")","v":""}]
[null,null,null,null,null,null,{"$f":"IF(AC_Log[[#This Row],[Service Date ]], YEAR(AC_Log[[#This Row],[Service Date ]]) & \"-\" & \"Q\" & INT((MONTH(AC_Log[[#This Row],[Service Date ]])+2)/3), \"\")","v":""}]
[null,null,null,null,null,null,{"$f":"IF(AC_Log[[#This Row],[Service Date ]], YEAR(AC_Log[[#This Row],[Service Date ]]) & \"-\" & \"Q\" & INT((MONTH(AC_Log[[#This Row],[Service Date ]])+2)/3), \"\")","v":""}]
[null,null,null,null,null,null,{"$f":"IF(AC_Log[[#This Row],[Service Date ]], YEAR(AC_Log[[#This Row],[Service Date ]]) & \"-\" & \"Q\" & INT((MONTH(AC_Log[[#This Row],[Service Date ]])+2)/3), \"\")","v":""}]
[null,null,null,null,null,null,{"$f":"IF(AC_Log[[#This Row],[Service Date ]], YEAR(AC_Log[[#This Row],[Service Date ]]) & \"-\" & \"Q\" & INT((MONTH(AC_Log[[#This Row],[Service Date ]])+2)/3), \"\")","v":""}]
[null,null,null,null,null,null,{"$f":"IF(AC_Log[[#This Row],[Service Date ]], YEAR(AC_Log[[#This Row],[Service Date ]]) & \"-\" & \"Q\" & INT((MONTH(AC_Log[[#This Row],[Service Date ]])+2)/3), \"\")","v":""}]
[null,null,null,null,null,null,{"$f":"IF(AC_Log[[#This Row],[Service Date ]], YEAR(AC_Log[[#This Row],[Service Date ]]) & \"-\" & \"Q\" & INT((MONTH(AC_Log[[#This Row],[Service Date ]])+2)/3), \"\")","v":""}]
[null,null,null,null,null,null,{"$f":"IF(AC_Log[[#This Row],[Service Date ]], YEAR(AC_Log[[#This Row],[Service Date ]]) & \"-\" & \"Q\" & INT((MONTH(AC_Log[[#This Row],[Service Date ]])+2)/3), \"\")","v":""}]
[null,null,null,null,null,null,{"$f":"IF(AC_Log[[#This Row],[Service Date ]], YEAR(AC_Log[[#This Row],[Service Date ]]) & \"-\" & \"Q\" & INT((MONTH(AC_Log[[#This Row],[Service Date ]])+2)/3), \"\")","v":""}]
[null,null,null,null,null,null,{"$f":"IF(AC_Log[[#This Row],[Service Date ]], YEAR(AC_Log[[#This Row],[Service Date ]]) & \"-\" & \"Q\" & INT((MONTH(AC_Log[[#This Row],[Service Date ]])+2)/3), \"\")","v":""}]
[null,null,null,null,null,null,{"$f":"IF(AC_Log[[#This Row],[Service Date ]], YEAR(AC_Log[[#This Row],[Service Date ]]) & \"-\" & \"Q\" & INT((MONTH(AC_Log[[#This Row],[Service Date ]])+2)/3), \"\")","v":""}]
[null,null,null,null,null,null,{"$f":"IF(AC_Log[[#This Row],[Service Date ]], YEAR(AC_Log[[#This Row],[Service Date ]]) & \"-\" & \"Q\" & INT((MONTH(AC_Log[[#This Row],[Service Date ]])+2)/3), \"\")","v":""}]
[null,null,null,null,null,null,{"$f":"IF(AC_Log[[#This Row],[Service Date ]], YEAR(AC_Log[[#This Row],[Service Date ]]) & \"-\" & \"Q\" & INT((MONTH(AC_Log[[#This Row],[Service Date ]])+2)/3), \"\")","v":""}]
[null,null,null,null,null,null,{"$f":"IF(AC_Log[[#This Row],[Service Date ]], YEAR(AC_Log[[#This Row],[Service Date ]]) & \"-\" & \"Q\" & INT((MONTH(AC_Log[[#This Row],[Service Date ]])+2)/3), \"\")","v":""}]
[null,null,null,null,null,null,{"$f":"IF(AC_Log[[#This Row],[Service Date ]], YEAR(AC_Log[[#This Row],[Service Date ]]) & \"-\" & \"Q\" & INT((MONTH(AC_Log[[#This Row],[Service Date ]])+2)/3), \"\")","v":""}]
[null,null,null,null,null,null,{"$f":"IF(AC_Log[[#This Row],[Service Date ]], YEAR(AC_Log[[#This Row],[Service Date ]]) & \"-\" & \"Q\" & INT((MONTH(AC_Log[[#This Row],[Service Date ]])+2)/3), \"\")","v":""}]
[null,null,null,null,null,null,{"$f":"IF(AC_Log[[#This Row],[Service Date ]], YEAR(AC_Log[[#This Row],[Service Date ]]) & \"-\" & \"Q\" & INT((MONTH(AC_Log[[#This Row],[Service Date ]])+2)/3), \"\")","v":""}]
[null,null,null,null,null,null,{"$f":"IF(AC_Log[[#This Row],[Service Date ]], YEAR(AC_Log[[#This Row],[Service Date ]]) & \"-\" & \"Q\" & INT((MONTH(AC_Log[[#This Row],[Service Date ]])+2)/3), \"\")","v":""}]
[null,null,null,null,null,null,{"$f":"IF(AC_Log[[#This Row],[Service Date ]], YEAR(AC_Log[[#This Row],[Service Date ]]) & \"-\" & \"Q\" & INT((MONTH(AC_Log[[#This Row],[Service Date ]])+2)/3), \"\")","v":""}]
[null,null,null,null,null,null,{"$f":"IF(AC_Log[[#This Row],[Service Date ]], YEAR(AC_Log[[#This Row],[Service Date ]]) & \"-\" & \"Q\" & INT((MONTH(AC_Log[[#This Row],[Service Date ]])+2)/3), \"\")","v":""}]
[null,null,null,null,null,null,{"$f":"IF(AC_Log[[#This Row],[Service Date ]], YEAR(AC_Log[[#This Row],[Service Date ]]) & \"-\" & \"Q\" & INT((MONTH(AC_Log[[#This Row],[Service Date ]])+2)/3), \"\")","v":""}]
[null,null,null,null,null,null,{"$f":"IF(AC_Log[[#This Row],[Service Date ]], YEAR(AC_Log[[#This Row],[Service Date ]]) & \"-\" & \"Q\" & INT((MONTH(AC_Log[[#This Row],[Service Date ]])+2)/3), \"\")","v":""}]
[null,null,null,null,null,null,{"$f":"IF(AC_Log[[#This Row],[Service Date ]], YEAR(AC_Log[[#This Row],[Service Date ]]) & \"-\" & \"Q\" & INT((MONTH(AC_Log[[#This Row],[Service Date ]])+2)/3), \"\")","v":""}]
[null,null,null,null,null,null,{"$f":"IF(AC_Log[[#This Row],[Service Date ]], YEAR(AC_Log[[#This Row],[Service Date ]]) & \"-\" & \"Q\" & INT((MONTH(AC_Log[[#This Row],[Service Date ]])+2)/3), \"\")","v":""}]
[null,null,null,null,null,null,{"$f":"IF(AC_Log[[#This Row],[Service Date ]], YEAR(AC_Log[[#This Row],[Service Date ]]) & \"-\" & \"Q\" & INT((MONTH(AC_Log[[#This Row],[Service Date ]])+2)/3), \"\")","v":""}]
[null,null,null,null,null,null,{"$f":"IF(AC_Log[[#This Row],[Service Date ]], YEAR(AC_Log[[#This Row],[Service Date ]]) & \"-\" & \"Q\" & INT((MONTH(AC_Log[[#This Row],[Service Date ]])+2)/3), \"\")","v":""}]
[null,null,null,null,null,null,{"$f":"IF(AC_Log[[#This Row],[Service Date ]], YEAR(AC_Log[[#This Row],[Service Date ]]) & \"-\" & \"Q\" & INT((MONTH(AC_Log[[#This Row],[Service Date ]])+2)/3), \"\")","v":""}]
[null,null,null,null,null,null,{"$f":"IF(AC_Log[[#This Row],[Service Date ]], YEAR(AC_Log[[#This Row],[Service Date ]]) & \"-\" & \"Q\" & INT((MONTH(AC_Log[[#This Row],[Service Date ]])+2)/3), \"\")","v":""}]
[null,null,null,null,null,null,{"$f":"IF(AC_Log[[#This Row],[Service Date ]], YEAR(AC_Log[[#This Row],[Service Date ]]) & \"-\" & \"Q\" & INT((MONTH(AC_Log[[#This Row],[Service Date ]])+2)/3), \"\")","v":""}]
[null,null,null,null,null,null,{"$f":"IF(AC_Log[[#This Row],[Service Date ]], YEAR(AC_Log[[#This Row],[Service Date ]]) & \"-\" & \"Q\" & INT((MONTH(AC_Log[[#This Row],[Service Date ]])+2)/3), \"\")","v":""}]
[null,null,null,null,null,null,{"$f":"IF(AC_Log[[#This Row],[Service Date ]], YEAR(AC_Log[[#This Row],[Service Date ]]) & \"-\" & \"Q\" & INT((MONTH(AC_Log[[#This Row],[Service Date ]])+2)/3), \"\")","v":""}]
[null,null,null,null,null,null,{"$f":"IF(AC_Log[[#This Row],[Service Date ]], YEAR(AC_Log[[#This Row],[Service Date ]]) & \"-\" & \"Q\" & INT((MONTH(AC_Log[[#This Row],[Service Date ]])+2)/3), \"\")","v":""}]
[null,null,null,null,null,null,{"$f":"IF(AC_Log[[#This Row],[Service Date ]], YEAR(AC_Log[[#This Row],[Service Date ]]) & \"-\" & \"Q\" & INT((MONTH(AC_Log[[#This Row],[Service Date ]])+2)/3), \"\")","v":""}]
[null,null,null,null,null,null,{"$f":"IF(AC_Log[[#This Row],[Service Date ]], YEAR(AC_Log[[#This Row],[Service Date ]]) & \"-\" & \"Q\" & INT((MONTH(AC_Log[[#This Row],[Service Date ]])+2)/3), \"\")","v":""}]
[null,null,null,null,null,null,{"$f":"IF(AC_Log[[#This Row],[Service Date ]], YEAR(AC_Log[[#This Row],[Service Date ]]) & \"-\" & \"Q\" & INT((MONTH(AC_Log[[#This Row],[Service Date ]])+2)/3), \"\")","v":""}]
[null,null,null,null,null,null,{"$f":"IF(AC_Log[[#This Row],[Service Date ]], YEAR(AC_Log[[#This Row],[Service Date ]]) & \"-\" & \"Q\" & INT((MONTH(AC_Log[[#This Row],[Service Date ]])+2)/3), \"\")","v":""}]
[null,null,null,null,null,null,{"$f":"IF(AC_Log[[#This Row],[Service Date ]], YEAR(AC_Log[[#This Row],[Service Date ]]) & \"-\" & \"Q\" & INT((MONTH(AC_Log[[#This Row],[Service Date ]])+2)/3), \"\")","v":""}]
[null,null,null,null,null,null,{"$f":"IF(AC_Log[[#This Row],[Service Date ]], YEAR(AC_Log[[#This Row],[Service Date ]]) & \"-\" & \"Q\" & INT((MONTH(AC_Log[[#This Row],[Service Date ]])+2)/3), \"\")","v":""}]
[null,null,null,null,null,null,{"$f":"IF(AC_Log[[#This Row],[Service Date ]], YEAR(AC_Log[[#This Row],[Service Date ]]) & \"-\" & \"Q\" & INT((MONTH(AC_Log[[#This Row],[Service Date ]])+2)/3), \"\")","v":""}]
[null,null,null,null,null,null,{"$f":"IF(AC_Log[[#This Row],[Service Date ]], YEAR(AC_Log[[#This Row],[Service Date ]]) & \"-\" & \"Q\" & INT((MONTH(AC_Log[[#This Row],[Service Date ]])+2)/3), \"\")","v":""}]
[null,null,null,null,null,null,{"$f":"IF(AC_Log[[#This Row],[Service Date ]], YEAR(AC_Log[[#This Row],[Service Date ]]) & \"-\" & \"Q\" & INT((MONTH(AC_Log[[#This Row],[Service Date ]])+2)/3), \"\")","v":""}]
[null,null,null,null,null,null,{"$f":"IF(AC_Log[[#This Row],[Service Date ]], YEAR(AC_Log[[#This Row],[Service Date ]]) & \"-\" & \"Q\" & INT((MONTH(AC_Log[[#This Row],[Service Date ]])+2)/3), \"\")","v":""}]
[null,null,null,null,null,null,{"$f":"IF(AC_Log[[#This Row],[Service Date ]], YEAR(AC_Log[[#This Row],[Service Date ]]) & \"-\" & \"Q\" & INT((MONTH(AC_Log[[#This Row],[Service Date ]])+2)/3), \"\")","v":""}]
[null,null,null,null,null,null,{"$f":"IF(AC_Log[[#This Row],[Service Date ]], YEAR(AC_Log[[#This Row],[Service Date ]]) & \"-\" & \"Q\" & INT((MONTH(AC_Log[[#This Row],[Service Date ]])+2)/3), \"\")","v":""}]
[null,null,null,null,null,null,{"$f":"IF(AC_Log[[#This Row],[Service Date ]], YEAR(AC_Log[[#This Row],[Service Date ]]) & \"-\" & \"Q\" & INT((MONTH(AC_Log[[#This Row],[Service Date ]])+2)/3), \"\")","v":""}]
[null,null,null,null,null,null,{"$f":"IF(AC_Log[[#This Row],[Service Date ]], YEAR(AC_Log[[#This Row],[Service Date ]]) & \"-\" & \"Q\" & INT((MONTH(AC_Log[[#This Row],[Service Date ]])+2)/3), \"\")","v":""}]
[null,null,null,null,null,null,{"$f":"IF(AC_Log[[#This Row],[Service Date ]], YEAR(AC_Log[[#This Row],[Service Date ]]) & \"-\" & \"Q\" & INT((MONTH(AC_Log[[#This Row],[Service Date ]])+2)/3), \"\")","v":""}]
[null,null,null,null,null,null,{"$f":"IF(AC_Log[[#This Row],[Service Date ]], YEAR(AC_Log[[#This Row],[Service Date ]]) & \"-\" & \"Q\" & INT((MONTH(AC_Log[[#This Row],[Service Date ]])+2)/3), \"\")","v":""}]
[null,null,null,null,null,null,{"$f":"IF(AC_Log[[#This Row],[Service Date ]], YEAR(AC_Log[[#This Row],[Service Date ]]) & \"-\" & \"Q\" & INT((MONTH(AC_Log[[#This Row],[Service Date ]])+2)/3), \"\")","v":""}]
[null,null,null,null,null,null,{"$f":"IF(AC_Log[[#This Row],[Service Date ]], YEAR(AC_Log[[#This Row],[Service Date ]]) & \"-\" & \"Q\" & INT((MONTH(AC_Log[[#This Row],[Service Date ]])+2)/3), \"\")","v":""}]
[null,null,null,null,null,null,{"$f":"IF(AC_Log[[#This Row],[Service Date ]], YEAR(AC_Log[[#This Row],[Service Date ]]) & \"-\" & \"Q\" & INT((MONTH(AC_Log[[#This Row],[Service Date ]])+2)/3), \"\")","v":""}]
[null,null,null,null,null,null,{"$f":"IF(AC_Log[[#This Row],[Service Date ]], YEAR(AC_Log[[#This Row],[Service Date ]]) & \"-\" & \"Q\" & INT((MONTH(AC_Log[[#This Row],[Service Date ]])+2)/3), \"\")","v":""}]
[null,null,null,null,null,null,{"$f":"IF(AC_Log[[#This Row],[Service Date ]], YEAR(AC_Log[[#This Row],[Service Date ]]) & \"-\" & \"Q\" & INT((MONTH(AC_Log[[#This Row],[Service Date ]])+2)/3), \"\")","v":""}]
[null,null,null,null,null,null,{"$f":"IF(AC_Log[[#This Row],[Service Date ]], YEAR(AC_Log[[#This Row],[Service Date ]]) & \"-\" & \"Q\" & INT((MONTH(AC_Log[[#This Row],[Service Date ]])+2)/3), \"\")","v":""}]
[null,null,null,null,null,null,{"$f":"IF(AC_Log[[#This Row],[Service Date ]], YEAR(AC_Log[[#This Row],[Service Date ]]) & \"-\" & \"Q\" & INT((MONTH(AC_Log[[#This Row],[Service Date ]])+2)/3), \"\")","v":""}]
[null,null,null,null,null,null,{"$f":"IF(AC_Log[[#This Row],[Service Date ]], YEAR(AC_Log[[#This Row],[Service Date ]]) & \"-\" & \"Q\" & INT((MONTH(AC_Log[[#This Row],[Service Date ]])+2)/3), \"\")","v":""}]
[null,null,null,null,null,null,{"$f":"IF(AC_Log[[#This Row],[Service Date ]], YEAR(AC_Log[[#This Row],[Service Date ]]) & \"-\" & \"Q\" & INT((MONTH(AC_Log[[#This Row],[Service Date ]])+2)/3), \"\")","v":""}]
[null,null,null,null,null,null,{"$f":"IF(AC_Log[[#This Row],[Service Date ]], YEAR(AC_Log[[#This Row],[Service Date ]]) & \"-\" & \"Q\" & INT((MONTH(AC_Log[[#This Row],[Service Date ]])+2)/3), \"\")","v":""}]
[null,null,null,null,null,null,{"$f":"IF(AC_Log[[#This Row],[Service Date ]], YEAR(AC_Log[[#This Row],[Service Date ]]) & \"-\" & \"Q\" & INT((MONTH(AC_Log[[#This Row],[Service Date ]])+2)/3), \"\")","v":""}]
[null,null,null,null,null,null,{"$f":"IF(AC_Log[[#This Row],[Service Date ]], YEAR(AC_Log[[#This Row],[Service Date ]]) & \"-\" & \"Q\" & INT((MONTH(AC_Log[[#This Row],[Service Date ]])+2)/3), \"\")","v":""}]
[null,null,null,null,null,null,{"$f":"IF(AC_Log[[#This Row],[Service Date ]], YEAR(AC_Log[[#This Row],[Service Date ]]) & \"-\" & \"Q\" & INT((MONTH(AC_Log[[#This Row],[Service Date ]])+2)/3), \"\")","v":""}]
[null,null,null,null,null,null,{"$f":"IF(AC_Log[[#This Row],[Service Date ]], YEAR(AC_Log[[#This Row],[Service Date ]]) & \"-\" & \"Q\" & INT((MONTH(AC_Log[[#This Row],[Service Date ]])+2)/3), \"\")","v":""}]
[null,null,null,null,null,null,{"$f":"IF(AC_Log[[#This Row],[Service Date ]], YEAR(AC_Log[[#This Row],[Service Date ]]) & \"-\" & \"Q\" & INT((MONTH(AC_Log[[#This Row],[Service Date ]])+2)/3), \"\")","v":""}]
[null,null,null,null,null,null,{"$f":"IF(AC_Log[[#This Row],[Service Date ]], YEAR(AC_Log[[#This Row],[Service Date ]]) & \"-\" & \"Q\" & INT((MONTH(AC_Log[[#This Row],[Service Date ]])+2)/3), \"\")","v":""}]
[null,null,null,null,null,null,{"$f":"IF(AC_Log[[#This Row],[Service Date ]], YEAR(AC_Log[[#This Row],[Service Date ]]) & \"-\" & \"Q\" & INT((MONTH(AC_Log[[#This Row],[Service Date ]])+2)/3), \"\")","v":""}]
[null,null,null,null,null,null,{"$f":"IF(AC_Log[[#This Row],[Service Date ]], YEAR(AC_Log[[#This Row],[Service Date ]]) & \"-\" & \"Q\" & INT((MONTH(AC_Log[[#This Row],[Service Date ]])+2)/3), \"\")","v":""}]
[null,null,null,null,null,null,{"$f":"IF(AC_Log[[#This Row],[Service Date ]], YEAR(AC_Log[[#This Row],[Service Date ]]) & \"-\" & \"Q\" & INT((MONTH(AC_Log[[#This Row],[Service Date ]])+2)/3), \"\")","v":""}]
[null,null,null,null,null,null,{"$f":"IF(AC_Log[[#This Row],[Service Date ]], YEAR(AC_Log[[#This Row],[Service Date ]]) & \"-\" & \"Q\" & INT((MONTH(AC_Log[[#This Row],[Service Date ]])+2)/3), \"\")","v":""}]
[null,null,null,null,null,null,{"$f":"IF(AC_Log[[#This Row],[Service Date ]], YEAR(AC_Log[[#This Row],[Service Date ]]) & \"-\" & \"Q\" & INT((MONTH(AC_Log[[#This Row],[Service Date ]])+2)/3), \"\")","v":""}]
[null,null,null,null,null,null,{"$f":"IF(AC_Log[[#This Row],[Service Date ]], YEAR(AC_Log[[#This Row],[Service Date ]]) & \"-\" & \"Q\" & INT((MONTH(AC_Log[[#This Row],[Service Date ]])+2)/3), \"\")","v":""}]
[null,null,null,null,null,null,{"$f":"IF(AC_Log[[#This Row],[Service Date ]], YEAR(AC_Log[[#This Row],[Service Date ]]) & \"-\" & \"Q\" & INT((MONTH(AC_Log[[#This Row],[Service Date ]])+2)/3), \"\")","v":""}]
[null,null,null,null,null,null,{"$f":"IF(AC_Log[[#This Row],[Service Date ]], YEAR(AC_Log[[#This Row],[Service Date ]]) & \"-\" & \"Q\" & INT((MONTH(AC_Log[[#This Row],[Service Date ]])+2)/3), \"\")","v":""}]
[null,null,null,null,null,null,{"$f":"IF(AC_Log[[#This Row],[Service Date ]], YEAR(AC_Log[[#This Row],[Service Date ]]) & \"-\" & \"Q\" & INT((MONTH(AC_Log[[#This Row],[Service Date ]])+2)/3), \"\")","v":""}]
[null,null,null,null,null,null,{"$f":"IF(AC_Log[[#This Row],[Service Date ]], YEAR(AC_Log[[#This Row],[Service Date ]]) & \"-\" & \"Q\" & INT((MONTH(AC_Log[[#This Row],[Service Date ]])+2)/3), \"\")","v":""}]
[null,null,null,null,null,null,{"$f":"IF(AC_Log[[#This Row],[Service Date ]], YEAR(AC_Log[[#This Row],[Service Date ]]) & \"-\" & \"Q\" & INT((MONTH(AC_Log[[#This Row],[Service Date ]])+2)/3), \"\")","v":""}]
[null,null,null,null,null,null,{"$f":"IF(AC_Log[[#This Row],[Service Date ]], YEAR(AC_Log[[#This Row],[Service Date ]]) & \"-\" & \"Q\" & INT((MONTH(AC_Log[[#This Row],[Service Date ]])+2)/3), \"\")","v":""}]
[null,null,null,null,null,null,{"$f":"IF(AC_Log[[#This Row],[Service Date ]], YEAR(AC_Log[[#This Row],[Service Date ]]) & \"-\" & \"Q\" & INT((MONTH(AC_Log[[#This Row],[Service Date ]])+2)/3), \"\")","v":""}]
[null,null,null,null,null,null,{"$f":"IF(AC_Log[[#This Row],[Service Date ]], YEAR(AC_Log[[#This Row],[Service Date ]]) & \"-\" & \"Q\" & INT((MONTH(AC_Log[[#This Row],[Service Date ]])+2)/3), \"\")","v":""}]
[null,null,null,null,null,null,{"$f":"IF(AC_Log[[#This Row],[Service Date ]], YEAR(AC_Log[[#This Row],[Service Date ]]) & \"-\" & \"Q\" & INT((MONTH(AC_Log[[#This Row],[Service Date ]])+2)/3), \"\")","v":""}]
[null,null,null,null,null,null,{"$f":"IF(AC_Log[[#This Row],[Service Date ]], YEAR(AC_Log[[#This Row],[Service Date ]]) & \"-\" & \"Q\" & INT((MONTH(AC_Log[[#This Row],[Service Date ]])+2)/3), \"\")","v":""}]
[null,null,null,null,null,null,{"$f":"IF(AC_Log[[#This Row],[Service Date ]], YEAR(AC_Log[[#This Row],[Service Date ]]) & \"-\" & \"Q\" & INT((MONTH(AC_Log[[#This Row],[Service Date ]])+2)/3), \"\")","v":""}]
[null,null,null,null,null,null,{"$f":"IF(AC_Log[[#This Row],[Service Date ]], YEAR(AC_Log[[#This Row],[Service Date ]]) & \"-\" & \"Q\" & INT((MONTH(AC_Log[[#This Row],[Service Date ]])+2)/3), \"\")","v":""}]
[null,null,null,null,null,null,{"$f":"IF(AC_Log[[#This Row],[Service Date ]], YEAR(AC_Log[[#This Row],[Service Date ]]) & \"-\" & \"Q\" & INT((MONTH(AC_Log[[#This Row],[Service Date ]])+2)/3), \"\")","v":""}]
[null,null,null,null,null,null,{"$f":"IF(AC_Log[[#This Row],[Service Date ]], YEAR(AC_Log[[#This Row],[Service Date ]]) & \"-\" & \"Q\" & INT((MONTH(AC_Log[[#This Row],[Service Date ]])+2)/3), \"\")","v":""}]
[null,null,null,null,null,null,{"$f":"IF(AC_Log[[#This Row],[Service Date ]], YEAR(AC_Log[[#This Row],[Service Date ]]) & \"-\" & \"Q\" & INT((MONTH(AC_Log[[#This Row],[Service Date ]])+2)/3), \"\")","v":""}]
[null,null,null,null,null,null,{"$f":"IF(AC_Log[[#This Row],[Service Date ]], YEAR(AC_Log[[#This Row],[Service Date ]]) & \"-\" & \"Q\" & INT((MONTH(AC_Log[[#This Row],[Service Date ]])+2)/3), \"\")","v":""}]
[null,null,null,null,null,null,{"$f":"IF(AC_Log[[#This Row],[Service Date ]], YEAR(AC_Log[[#This Row],[Service Date ]]) & \"-\" & \"Q\" & INT((MONTH(AC_Log[[#This Row],[Service Date ]])+2)/3), \"\")","v":""}]
[null,null,null,null,null,null,{"$f":"IF(AC_Log[[#This Row],[Service Date ]], YEAR(AC_Log[[#This Row],[Service Date ]]) & \"-\" & \"Q\" & INT((MONTH(AC_Log[[#This Row],[Service Date ]])+2)/3), \"\")","v":""}]
[null,null,null,null,null,null,{"$f":"IF(AC_Log[[#This Row],[Service Date ]], YEAR(AC_Log[[#This Row],[Service Date ]]) & \"-\" & \"Q\" & INT((MONTH(AC_Log[[#This Row],[Service Date ]])+2)/3), \"\")","v":""}]
[null,null,null,null,null,null,{"$f":"IF(AC_Log[[#This Row],[Service Date ]], YEAR(AC_Log[[#This Row],[Service Date ]]) & \"-\" & \"Q\" & INT((MONTH(AC_Log[[#This Row],[Service Date ]])+2)/3), \"\")","v":""}]
[null,null,null,null,null,null,{"$f":"IF(AC_Log[[#This Row],[Service Date ]], YEAR(AC_Log[[#This Row],[Service Date ]]) & \"-\" & \"Q\" & INT((MONTH(AC_Log[[#This Row],[Service Date ]])+2)/3), \"\")","v":""}]
[null,null,null,null,null,null,{"$f":"IF(AC_Log[[#This Row],[Service Date ]], YEAR(AC_Log[[#This Row],[Service Date ]]) & \"-\" & \"Q\" & INT((MONTH(AC_Log[[#This Row],[Service Date ]])+2)/3), \"\")","v":""}]
[null,null,null,null,null,null,{"$f":"IF(AC_Log[[#This Row],[Service Date ]], YEAR(AC_Log[[#This Row],[Service Date ]]) & \"-\" & \"Q\" & INT((MONTH(AC_Log[[#This Row],[Service Date ]])+2)/3), \"\")","v":""}]
[null,null,null,null,null,null,{"$f":"IF(AC_Log[[#This Row],[Service Date ]], YEAR(AC_Log[[#This Row],[Service Date ]]) & \"-\" & \"Q\" & INT((MONTH(AC_Log[[#This Row],[Service Date ]])+2)/3), \"\")","v":""}]
[null,null,null,null,null,null,{"$f":"IF(AC_Log[[#This Row],[Service Date ]], YEAR(AC_Log[[#This Row],[Service Date ]]) & \"-\" & \"Q\" & INT((MONTH(AC_Log[[#This Row],[Service Date ]])+2)/3), \"\")","v":""}]
[null,null,null,null,null,null,{"$f":"IF(AC_Log[[#This Row],[Service Date ]], YEAR(AC_Log[[#This Row],[Service Date ]]) & \"-\" & \"Q\" & INT((MONTH(AC_Log[[#This Row],[Service Date ]])+2)/3), \"\")","v":""}]
[null,null,null,null,null,null,{"$f":"IF(AC_Log[[#This Row],[Service Date ]], YEAR(AC_Log[[#This Row],[Service Date ]]) & \"-\" & \"Q\" & INT((MONTH(AC_Log[[#This Row],[Service Date ]])+2)/3), \"\")","v":""}]
[null,null,null,null,null,null,{"$f":"IF(AC_Log[[#This Row],[Service Date ]], YEAR(AC_Log[[#This Row],[Service Date ]]) & \"-\" & \"Q\" & INT((MONTH(AC_Log[[#This Row],[Service Date ]])+2)/3), \"\")","v":""}]
[null,null,null,null,null,null,{"$f":"IF(AC_Log[[#This Row],[Service Date ]], YEAR(AC_Log[[#This Row],[Service Date ]]) & \"-\" & \"Q\" & INT((MONTH(AC_Log[[#This Row],[Service Date ]])+2)/3), \"\")","v":""}]
[null,null,null,null,null,null,{"$f":"IF(AC_Log[[#This Row],[Service Date ]], YEAR(AC_Log[[#This Row],[Service Date ]]) & \"-\" & \"Q\" & INT((MONTH(AC_Log[[#This Row],[Service Date ]])+2)/3), \"\")","v":""}]
[null,null,null,null,null,null,{"$f":"IF(AC_Log[[#This Row],[Service Date ]], YEAR(AC_Log[[#This Row],[Service Date ]]) & \"-\" & \"Q\" & INT((MONTH(AC_Log[[#This Row],[Service Date ]])+2)/3), \"\")","v":""}]
[null,null,null,null,null,null,{"$f":"IF(AC_Log[[#This Row],[Service Date ]], YEAR(AC_Log[[#This Row],[Service Date ]]) & \"-\" & \"Q\" & INT((MONTH(AC_Log[[#This Row],[Service Date ]])+2)/3), \"\")","v":""}]
[null,null,null,null,null,null,{"$f":"IF(AC_Log[[#This Row],[Service Date ]], YEAR(AC_Log[[#This Row],[Service Date ]]) & \"-\" & \"Q\" & INT((MONTH(AC_Log[[#This Row],[Service Date ]])+2)/3), \"\")","v":""}]
[null,null,null,null,null,null,{"$f":"IF(AC_Log[[#This Row],[Service Date ]], YEAR(AC_Log[[#This Row],[Service Date ]]) & \"-\" & \"Q\" & INT((MONTH(AC_Log[[#This Row],[Service Date ]])+2)/3), \"\")","v":""}]
[null,null,null,null,null,null,{"$f":"IF(AC_Log[[#This Row],[Service Date ]], YEAR(AC_Log[[#This Row],[Service Date ]]) & \"-\" & \"Q\" & INT((MONTH(AC_Log[[#This Row],[Service Date ]])+2)/3), \"\")","v":""}]
[null,null,null,null,null,null,{"$f":"IF(AC_Log[[#This Row],[Service Date ]], YEAR(AC_Log[[#This Row],[Service Date ]]) & \"-\" & \"Q\" & INT((MONTH(AC_Log[[#This Row],[Service Date ]])+2)/3), \"\")","v":""}]
[null,null,null,null,null,null,{"$f":"IF(AC_Log[[#This Row],[Service Date ]], YEAR(AC_Log[[#This Row],[Service Date ]]) & \"-\" & \"Q\" & INT((MONTH(AC_Log[[#This Row],[Service Date ]])+2)/3), \"\")","v":""}]
[null,null,null,null,null,null,{"$f":"IF(AC_Log[[#This Row],[Service Date ]], YEAR(AC_Log[[#This Row],[Service Date ]]) & \"-\" & \"Q\" & INT((MONTH(AC_Log[[#This Row],[Service Date ]])+2)/3), \"\")","v":""}]
[null,null,null,null,null,null,{"$f":"IF(AC_Log[[#This Row],[Service Date ]], YEAR(AC_Log[[#This Row],[Service Date ]]) & \"-\" & \"Q\" & INT((MONTH(AC_Log[[#This Row],[Service Date ]])+2)/3), \"\")","v":""}]
[null,null,null,null,null,null,{"$f":"IF(AC_Log[[#This Row],[Service Date ]], YEAR(AC_Log[[#This Row],[Service Date ]]) & \"-\" & \"Q\" & INT((MONTH(AC_Log[[#This Row],[Service Date ]])+2)/3), \"\")","v":""}]
[null,null,null,null,null,null,{"$f":"IF(AC_Log[[#This Row],[Service Date ]], YEAR(AC_Log[[#This Row],[Service Date ]]) & \"-\" & \"Q\" & INT((MONTH(AC_Log[[#This Row],[Service Date ]])+2)/3), \"\")","v":""}]
[null,null,null,null,null,null,{"$f":"IF(AC_Log[[#This Row],[Service Date ]], YEAR(AC_Log[[#This Row],[Service Date ]]) & \"-\" & \"Q\" & INT((MONTH(AC_Log[[#This Row],[Service Date ]])+2)/3), \"\")","v":""}]
[null,null,null,null,null,null,{"$f":"IF(AC_Log[[#This Row],[Service Date ]], YEAR(AC_Log[[#This Row],[Service Date ]]) & \"-\" & \"Q\" & INT((MONTH(AC_Log[[#This Row],[Service Date ]])+2)/3), \"\")","v":""}]
[null,null,null,null,null,null,{"$f":"IF(AC_Log[[#This Row],[Service Date ]], YEAR(AC_Log[[#This Row],[Service Date ]]) & \"-\" & \"Q\" & INT((MONTH(AC_Log[[#This Row],[Service Date ]])+2)/3), \"\")","v":""}]
[null,null,null,null,null,null,{"$f":"IF(AC_Log[[#This Row],[Service Date ]], YEAR(AC_Log[[#This Row],[Service Date ]]) & \"-\" & \"Q\" & INT((MONTH(AC_Log[[#This Row],[Service Date ]])+2)/3), \"\")","v":""}]
[null,null,null,null,null,null,{"$f":"IF(AC_Log[[#This Row],[Service Date ]], YEAR(AC_Log[[#This Row],[Service Date ]]) & \"-\" & \"Q\" & INT((MONTH(AC_Log[[#This Row],[Service Date ]])+2)/3), \"\")","v":""}]
[null,null,null,null,null,null,{"$f":"IF(AC_Log[[#This Row],[Service Date ]], YEAR(AC_Log[[#This Row],[Service Date ]]) & \"-\" & \"Q\" & INT((MONTH(AC_Log[[#This Row],[Service Date ]])+2)/3), \"\")","v":""}]
[null,null,null,null,null,null,{"$f":"IF(AC_Log[[#This Row],[Service Date ]], YEAR(AC_Log[[#This Row],[Service Date ]]) & \"-\" & \"Q\" & INT((MONTH(AC_Log[[#This Row],[Service Date ]])+2)/3), \"\")","v":""}]
[null,null,null,null,null,null,{"$f":"IF(AC_Log[[#This Row],[Service Date ]], YEAR(AC_Log[[#This Row],[Service Date ]]) & \"-\" & \"Q\" & INT((MONTH(AC_Log[[#This Row],[Service Date ]])+2)/3), \"\")","v":""}]
[null,null,null,null,null,null,{"$f":"IF(AC_Log[[#This Row],[Service Date ]], YEAR(AC_Log[[#This Row],[Service Date ]]) & \"-\" & \"Q\" & INT((MONTH(AC_Log[[#This Row],[Service Date ]])+2)/3), \"\")","v":""}]
[null,null,null,null,null,null,{"$f":"IF(AC_Log[[#This Row],[Service Date ]], YEAR(AC_Log[[#This Row],[Service Date ]]) & \"-\" & \"Q\" & INT((MONTH(AC_Log[[#This Row],[Service Date ]])+2)/3), \"\")","v":""}]
[null,null,null,null,null,null,{"$f":"IF(AC_Log[[#This Row],[Service Date ]], YEAR(AC_Log[[#This Row],[Service Date ]]) & \"-\" & \"Q\" & INT((MONTH(AC_Log[[#This Row],[Service Date ]])+2)/3), \"\")","v":""}]
[null,null,null,null,null,null,{"$f":"IF(AC_Log[[#This Row],[Service Date ]], YEAR(AC_Log[[#This Row],[Service Date ]]) & \"-\" & \"Q\" & INT((MONTH(AC_Log[[#This Row],[Service Date ]])+2)/3), \"\")","v":""}]
[null,null,null,null,null,null,{"$f":"IF(AC_Log[[#This Row],[Service Date ]], YEAR(AC_Log[[#This Row],[Service Date ]]) & \"-\" & \"Q\" & INT((MONTH(AC_Log[[#This Row],[Service Date ]])+2)/3), \"\")","v":""}]
[null,null,null,null,null,null,{"$f":"IF(AC_Log[[#This Row],[Service Date ]], YEAR(AC_Log[[#This Row],[Service Date ]]) & \"-\" & \"Q\" & INT((MONTH(AC_Log[[#This Row],[Service Date ]])+2)/3), \"\")","v":""}]
[null,null,null,null,null,null,{"$f":"IF(AC_Log[[#This Row],[Service Date ]], YEAR(AC_Log[[#This Row],[Service Date ]]) & \"-\" & \"Q\" & INT((MONTH(AC_Log[[#This Row],[Service Date ]])+2)/3), \"\")","v":""}]
[null,null,null,null,null,null,{"$f":"IF(AC_Log[[#This Row],[Service Date ]], YEAR(AC_Log[[#This Row],[Service Date ]]) & \"-\" & \"Q\" & INT((MONTH(AC_Log[[#This Row],[Service Date ]])+2)/3), \"\")","v":""}]
[null,null,null,null,null,null,{"$f":"IF(AC_Log[[#This Row],[Service Date ]], YEAR(AC_Log[[#This Row],[Service Date ]]) & \"-\" & \"Q\" & INT((MONTH(AC_Log[[#This Row],[Service Date ]])+2)/3), \"\")","v":""}]
[null,null,null,null,null,null,{"$f":"IF(AC_Log[[#This Row],[Service Date ]], YEAR(AC_Log[[#This Row],[Service Date ]]) & \"-\" & \"Q\" & INT((MONTH(AC_Log[[#This Row],[Service Date ]])+2)/3), \"\")","v":""}]
[null,null,null,null,null,null,{"$f":"IF(AC_Log[[#This Row],[Service Date ]], YEAR(AC_Log[[#This Row],[Service Date ]]) & \"-\" & \"Q\" & INT((MONTH(AC_Log[[#This Row],[Service Date ]])+2)/3), \"\")","v":""}]
[null,null,null,null,null,null,{"$f":"IF(AC_Log[[#This Row],[Service Date ]], YEAR(AC_Log[[#This Row],[Service Date ]]) & \"-\" & \"Q\" & INT((MONTH(AC_Log[[#This Row],[Service Date ]])+2)/3), \"\")","v":""}]
[null,null,null,null,null,null,{"$f":"IF(AC_Log[[#This Row],[Service Date ]], YEAR(AC_Log[[#This Row],[Service Date ]]) & \"-\" & \"Q\" & INT((MONTH(AC_Log[[#This Row],[Service Date ]])+2)/3), \"\")","v":""}]
[null,null,null,null,null,null,{"$f":"IF(AC_Log[[#This Row],[Service Date ]], YEAR(AC_Log[[#This Row],[Service Date ]]) & \"-\" & \"Q\" & INT((MONTH(AC_Log[[#This Row],[Service Date ]])+2)/3), \"\")","v":""}]
[null,null,null,null,null,null,{"$f":"IF(AC_Log[[#This Row],[Service Date ]], YEAR(AC_Log[[#This Row],[Service Date ]]) & \"-\" & \"Q\" & INT((MONTH(AC_Log[[#This Row],[Service Date ]])+2)/3), \"\")","v":""}]
[null,null,null,null,null,null,{"$f":"IF(AC_Log[[#This Row],[Service Date ]], YEAR(AC_Log[[#This Row],[Service Date ]]) & \"-\" & \"Q\" & INT((MONTH(AC_Log[[#This Row],[Service Date ]])+2)/3), \"\")","v":""}]
[null,null,null,null,null,null,{"$f":"IF(AC_Log[[#This Row],[Service Date ]], YEAR(AC_Log[[#This Row],[Service Date ]]) & \"-\" & \"Q\" & INT((MONTH(AC_Log[[#This Row],[Service Date ]])+2)/3), \"\")","v":""}]
[null,null,null,null,null,null,{"$f":"IF(AC_Log[[#This Row],[Service Date ]], YEAR(AC_Log[[#This Row],[Service Date ]]) & \"-\" & \"Q\" & INT((MONTH(AC_Log[[#This Row],[Service Date ]])+2)/3), \"\")","v":""}]
[null,null,null,null,null,null,{"$f":"IF(AC_Log[[#This Row],[Service Date ]], YEAR(AC_Log[[#This Row],[Service Date ]]) & \"-\" & \"Q\" & INT((MONTH(AC_Log[[#This Row],[Service Date ]])+2)/3), \"\")","v":""}]
[null,null,null,null,null,null,{"$f":"IF(AC_Log[[#This Row],[Service Date ]], YEAR(AC_Log[[#This Row],[Service Date ]]) & \"-\" & \"Q\" & INT((MONTH(AC_Log[[#This Row],[Service Date ]])+2)/3), \"\")","v":""}]
[null,null,null,null,null,null,{"$f":"IF(AC_Log[[#This Row],[Service Date ]], YEAR(AC_Log[[#This Row],[Service Date ]]) & \"-\" & \"Q\" & INT((MONTH(AC_Log[[#This Row],[Service Date ]])+2)/3), \"\")","v":""}]
[null,null,null,null,null,null,{"$f":"IF(AC_Log[[#This Row],[Service Date ]], YEAR(AC_Log[[#This Row],[Service Date ]]) & \"-\" & \"Q\" & INT((MONTH(AC_Log[[#This Row],[Service Date ]])+2)/3), \"\")","v":""}]
[null,null,null,null,null,null,{"$f":"IF(AC_Log[[#This Row],[Service Date ]], YEAR(AC_Log[[#This Row],[Service Date ]]) & \"-\" & \"Q\" & INT((MONTH(AC_Log[[#This Row],[Service Date ]])+2)/3), \"\")","v":""}]
[null,null,null,null,null,null,{"$f":"IF(AC_Log[[#This Row],[Service Date ]], YEAR(AC_Log[[#This Row],[Service Date ]]) & \"-\" & \"Q\" & INT((MONTH(AC_Log[[#This Row],[Service Date ]])+2)/3), \"\")","v":""}]
[null,null,null,null,null,null,{"$f":"IF(AC_Log[[#This Row],[Service Date ]], YEAR(AC_Log[[#This Row],[Service Date ]]) & \"-\" & \"Q\" & INT((MONTH(AC_Log[[#This Row],[Service Date ]])+2)/3), \"\")","v":""}]
[null,null,null,null,null,null,{"$f":"IF(AC_Log[[#This Row],[Service Date ]], YEAR(AC_Log[[#This Row],[Service Date ]]) & \"-\" & \"Q\" & INT((MONTH(AC_Log[[#This Row],[Service Date ]])+2)/3), \"\")","v":""}]
[null,null,null,null,null,null,{"$f":"IF(AC_Log[[#This Row],[Service Date ]], YEAR(AC_Log[[#This Row],[Service Date ]]) & \"-\" & \"Q\" & INT((MONTH(AC_Log[[#This Row],[Service Date ]])+2)/3), \"\")","v":""}]
[null,null,null,null,null,null,{"$f":"IF(AC_Log[[#This Row],[Service Date ]], YEAR(AC_Log[[#This Row],[Service Date ]]) & \"-\" & \"Q\" & INT((MONTH(AC_Log[[#This Row],[Service Date ]])+2)/3), \"\")","v":""}]
[null,null,null,null,null,null,{"$f":"IF(AC_Log[[#This Row],[Service Date ]], YEAR(AC_Log[[#This Row],[Service Date ]]) & \"-\" & \"Q\" & INT((MONTH(AC_Log[[#This Row],[Service Date ]])+2)/3), \"\")","v":""}]
[null,null,null,null,null,null,{"$f":"IF(AC_Log[[#This Row],[Service Date ]], YEAR(AC_Log[[#This Row],[Service Date ]]) & \"-\" & \"Q\" & INT((MONTH(AC_Log[[#This Row],[Service Date ]])+2)/3), \"\")","v":""}]
[null,null,null,null,null,null,{"$f":"IF(AC_Log[[#This Row],[Service Date ]], YEAR(AC_Log[[#This Row],[Service Date ]]) & \"-\" & \"Q\" & INT((MONTH(AC_Log[[#This Row],[Service Date ]])+2)/3), \"\")","v":""}]
[null,null,null,null,null,null,{"$f":"IF(AC_Log[[#This Row],[Service Date ]], YEAR(AC_Log[[#This Row],[Service Date ]]) & \"-\" & \"Q\" & INT((MONTH(AC_Log[[#This Row],[Service Date ]])+2)/3), \"\")","v":""}]
[null,null,null,null,null,null,{"$f":"IF(AC_Log[[#This Row],[Service Date ]], YEAR(AC_Log[[#This Row],[Service Date ]]) & \"-\" & \"Q\" & INT((MONTH(AC_Log[[#This Row],[Service Date ]])+2)/3), \"\")","v":""}]
[null,null,null,null,null,null,{"$f":"IF(AC_Log[[#This Row],[Service Date ]], YEAR(AC_Log[[#This Row],[Service Date ]]) & \"-\" & \"Q\" & INT((MONTH(AC_Log[[#This Row],[Service Date ]])+2)/3), \"\")","v":""}]
[null,null,null,null,null,null,{"$f":"IF(AC_Log[[#This Row],[Service Date ]], YEAR(AC_Log[[#This Row],[Service Date ]]) & \"-\" & \"Q\" & INT((MONTH(AC_Log[[#This Row],[Service Date ]])+2)/3), \"\")","v":""}]
[null,null,null,null,null,null,{"$f":"IF(AC_Log[[#This Row],[Service Date ]], YEAR(AC_Log[[#This Row],[Service Date ]]) & \"-\" & \"Q\" & INT((MONTH(AC_Log[[#This Row],[Service Date ]])+2)/3), \"\")","v":""}]
[null,null,null,null,null,null,{"$f":"IF(AC_Log[[#This Row],[Service Date ]], YEAR(AC_Log[[#This Row],[Service Date ]]) & \"-\" & \"Q\" & INT((MONTH(AC_Log[[#This Row],[Service Date ]])+2)/3), \"\")","v":""}]
[null,null,null,null,null,null,{"$f":"IF(AC_Log[[#This Row],[Service Date ]], YEAR(AC_Log[[#This Row],[Service Date ]]) & \"-\" & \"Q\" & INT((MONTH(AC_Log[[#This Row],[Service Date ]])+2)/3), \"\")","v":""}]
[null,null,null,null,null,null,{"$f":"IF(AC_Log[[#This Row],[Service Date ]], YEAR(AC_Log[[#This Row],[Service Date ]]) & \"-\" & \"Q\" & INT((MONTH(AC_Log[[#This Row],[Service Date ]])+2)/3), \"\")","v":""}]
[null,null,null,null,null,null,{"$f":"IF(AC_Log[[#This Row],[Service Date ]], YEAR(AC_Log[[#This Row],[Service Date ]]) & \"-\" & \"Q\" & INT((MONTH(AC_Log[[#This Row],[Service Date ]])+2)/3), \"\")","v":""}]
[null,null,null,null,null,null,{"$f":"IF(AC_Log[[#This Row],[Service Date ]], YEAR(AC_Log[[#This Row],[Service Date ]]) & \"-\" & \"Q\" & INT((MONTH(AC_Log[[#This Row],[Service Date ]])+2)/3), \"\")","v":""}]
[null,null,null,null,null,null,{"$f":"IF(AC_Log[[#This Row],[Service Date ]], YEAR(AC_Log[[#This Row],[Service Date ]]) & \"-\" & \"Q\" & INT((MONTH(AC_Log[[#This Row],[Service Date ]])+2)/3), \"\")","v":""}]
[null,null,null,null,null,null,{"$f":"IF(AC_Log[[#This Row],[Service Date ]], YEAR(AC_Log[[#This Row],[Service Date ]]) & \"-\" & \"Q\" & INT((MONTH(AC_Log[[#This Row],[Service Date ]])+2)/3), \"\")","v":""}]
[null,null,null,null,null,null,{"$f":"IF(AC_Log[[#This Row],[Service Date ]], YEAR(AC_Log[[#This Row],[Service Date ]]) & \"-\" & \"Q\" & INT((MONTH(AC_Log[[#This Row],[Service Date ]])+2)/3), \"\")","v":""}]
[null,null,null,null,null,null,{"$f":"IF(AC_Log[[#This Row],[Service Date ]], YEAR(AC_Log[[#This Row],[Service Date ]]) & \"-\" & \"Q\" & INT((MONTH(AC_Log[[#This Row],[Service Date ]])+2)/3), \"\")","v":""}]
[null,null,null,null,null,null,{"$f":"IF(AC_Log[[#This Row],[Service Date ]], YEAR(AC_Log[[#This Row],[Service Date ]]) & \"-\" & \"Q\" & INT((MONTH(AC_Log[[#This Row],[Service Date ]])+2)/3), \"\")","v":""}]
[null,null,null,null,null,null,{"$f":"IF(AC_Log[[#This Row],[Service Date ]], YEAR(AC_Log[[#This Row],[Service Date ]]) & \"-\" & \"Q\" & INT((MONTH(AC_Log[[#This Row],[Service Date ]])+2)/3), \"\")","v":""}]
[null,null,null,null,null,null,{"$f":"IF(AC_Log[[#This Row],[Service Date ]], YEAR(AC_Log[[#This Row],[Service Date ]]) & \"-\" & \"Q\" & INT((MONTH(AC_Log[[#This Row],[Service Date ]])+2)/3), \"\")","v":""}]
[null,null,null,null,null,null,{"$f":"IF(AC_Log[[#This Row],[Service Date ]], YEAR(AC_Log[[#This Row],[Service Date ]]) & \"-\" & \"Q\" & INT((MONTH(AC_Log[[#This Row],[Service Date ]])+2)/3), \"\")","v":""}]
[null,null,null,null,null,null,{"$f":"IF(AC_Log[[#This Row],[Service Date ]], YEAR(AC_Log[[#This Row],[Service Date ]]) & \"-\" & \"Q\" & INT((MONTH(AC_Log[[#This Row],[Service Date ]])+2)/3), \"\")","v":""}]
[null,null,null,null,null,null,{"$f":"IF(AC_Log[[#This Row],[Service Date ]], YEAR(AC_Log[[#This Row],[Service Date ]]) & \"-\" & \"Q\" & INT((MONTH(AC_Log[[#This Row],[Service Date ]])+2)/3), \"\")","v":""}]
[null,null,null,null,null,null,{"$f":"IF(AC_Log[[#This Row],[Service Date ]], YEAR(AC_Log[[#This Row],[Service Date ]]) & \"-\" & \"Q\" & INT((MONTH(AC_Log[[#This Row],[Service Date ]])+2)/3), \"\")","v":""}]
[null,null,null,null,null,null,{"$f":"IF(AC_Log[[#This Row],[Service Date ]], YEAR(AC_Log[[#This Row],[Service Date ]]) & \"-\" & \"Q\" & INT((MONTH(AC_Log[[#This Row],[Service Date ]])+2)/3), \"\")","v":""}]
[null,null,null,null,null,null,{"$f":"IF(AC_Log[[#This Row],[Service Date ]], YEAR(AC_Log[[#This Row],[Service Date ]]) & \"-\" & \"Q\" & INT((MONTH(AC_Log[[#This Row],[Service Date ]])+2)/3), \"\")","v":""}]
[null,null,null,null,null,null,{"$f":"IF(AC_Log[[#This Row],[Service Date ]], YEAR(AC_Log[[#This Row],[Service Date ]]) & \"-\" & \"Q\" & INT((MONTH(AC_Log[[#This Row],[Service Date ]])+2)/3), \"\")","v":""}]
[null,null,null,null,null,null,{"$f":"IF(AC_Log[[#This Row],[Service Date ]], YEAR(AC_Log[[#This Row],[Service Date ]]) & \"-\" & \"Q\" & INT((MONTH(AC_Log[[#This Row],[Service Date ]])+2)/3), \"\")","v":""}]
[null,null,null,null,null,null,{"$f":"IF(AC_Log[[#This Row],[Service Date ]], YEAR(AC_Log[[#This Row],[Service Date ]]) & \"-\" & \"Q\" & INT((MONTH(AC_Log[[#This Row],[Service Date ]])+2)/3), \"\")","v":""}]
[null,null,null,null,null,null,{"$f":"IF(AC_Log[[#This Row],[Service Date ]], YEAR(AC_Log[[#This Row],[Service Date ]]) & \"-\" & \"Q\" & INT((MONTH(AC_Log[[#This Row],[Service Date ]])+2)/3), \"\")","v":""}]
[null,null,null,null,null,null,{"$f":"IF(AC_Log[[#This Row],[Service Date ]], YEAR(AC_Log[[#This Row],[Service Date ]]) & \"-\" & \"Q\" & INT((MONTH(AC_Log[[#This Row],[Service Date ]])+2)/3), \"\")","v":""}]
[null,null,null,null,null,null,{"$f":"IF(AC_Log[[#This Row],[Service Date ]], YEAR(AC_Log[[#This Row],[Service Date ]]) & \"-\" & \"Q\" & INT((MONTH(AC_Log[[#This Row],[Service Date ]])+2)/3), \"\")","v":""}]
[null,null,null,null,null,null,{"$f":"IF(AC_Log[[#This Row],[Service Date ]], YEAR(AC_Log[[#This Row],[Service Date ]]) & \"-\" & \"Q\" & INT((MONTH(AC_Log[[#This Row],[Service Date ]])+2)/3), \"\")","v":""}]
[null,null,null,null,null,null,{"$f":"IF(AC_Log[[#This Row],[Service Date ]], YEAR(AC_Log[[#This Row],[Service Date ]]) & \"-\" & \"Q\" & INT((MONTH(AC_Log[[#This Row],[Service Date ]])+2)/3), \"\")","v":""}]
[null,null,null,null,null,null,{"$f":"IF(AC_Log[[#This Row],[Service Date ]], YEAR(AC_Log[[#This Row],[Service Date ]]) & \"-\" & \"Q\" & INT((MONTH(AC_Log[[#This Row],[Service Date ]])+2)/3), \"\")","v":""}]
[null,null,null,null,null,null,{"$f":"IF(AC_Log[[#This Row],[Service Date ]], YEAR(AC_Log[[#This Row],[Service Date ]]) & \"-\" & \"Q\" & INT((MONTH(AC_Log[[#This Row],[Service Date ]])+2)/3), \"\")","v":""}]
[null,null,null,null,null,null,{"$f":"IF(AC_Log[[#This Row],[Service Date ]], YEAR(AC_Log[[#This Row],[Service Date ]]) & \"-\" & \"Q\" & INT((MONTH(AC_Log[[#This Row],[Service Date ]])+2)/3), \"\")","v":""}]
[null,null,null,null,null,null,{"$f":"IF(AC_Log[[#This Row],[Service Date ]], YEAR(AC_Log[[#This Row],[Service Date ]]) & \"-\" & \"Q\" & INT((MONTH(AC_Log[[#This Row],[Service Date ]])+2)/3), \"\")","v":""}]
[null,null,null,null,null,null,{"$f":"IF(AC_Log[[#This Row],[Service Date ]], YEAR(AC_Log[[#This Row],[Service Date ]]) & \"-\" & \"Q\" & INT((MONTH(AC_Log[[#This Row],[Service Date ]])+2)/3), \"\")","v":""}]
[null,null,null,null,null,null,{"$f":"IF(AC_Log[[#This Row],[Service Date ]], YEAR(AC_Log[[#This Row],[Service Date ]]) & \"-\" & \"Q\" & INT((MONTH(AC_Log[[#This Row],[Service Date ]])+2)/3), \"\")","v":""}]
[null,null,null,null,null,null,{"$f":"IF(AC_Log[[#This Row],[Service Date ]], YEAR(AC_Log[[#This Row],[Service Date ]]) & \"-\" & \"Q\" & INT((MONTH(AC_Log[[#This Row],[Service Date ]])+2)/3), \"\")","v":""}]
[null,null,null,null,null,null,{"$f":"IF(AC_Log[[#This Row],[Service Date ]], YEAR(AC_Log[[#This Row],[Service Date ]]) & \"-\" & \"Q\" & INT((MONTH(AC_Log[[#This Row],[Service Date ]])+2)/3), \"\")","v":""}]
[null,null,null,null,null,null,{"$f":"IF(AC_Log[[#This Row],[Service Date ]], YEAR(AC_Log[[#This Row],[Service Date ]]) & \"-\" & \"Q\" & INT((MONTH(AC_Log[[#This Row],[Service Date ]])+2)/3), \"\")","v":""}]
[null,null,null,null,null,null,{"$f":"IF(AC_Log[[#This Row],[Service Date ]], YEAR(AC_Log[[#This Row],[Service Date ]]) & \"-\" & \"Q\" & INT((MONTH(AC_Log[[#This Row],[Service Date ]])+2)/3), \"\")","v":""}]
[null,null,null,null,null,null,{"$f":"IF(AC_Log[[#This Row],[Service Date ]], YEAR(AC_Log[[#This Row],[Service Date ]]) & \"-\" & \"Q\" & INT((MONTH(AC_Log[[#This Row],[Service Date ]])+2)/3), \"\")","v":""}]
[null,null,null,null,null,null,{"$f":"IF(AC_Log[[#This Row],[Service Date ]], YEAR(AC_Log[[#This Row],[Service Date ]]) & \"-\" & \"Q\" & INT((MONTH(AC_Log[[#This Row],[Service Date ]])+2)/3), \"\")","v":""}]
[null,null,null,null,null,null,{"$f":"IF(AC_Log[[#This Row],[Service Date ]], YEAR(AC_Log[[#This Row],[Service Date ]]) & \"-\" & \"Q\" & INT((MONTH(AC_Log[[#This Row],[Service Date ]])+2)/3), \"\")","v":""}]
[null,null,null,null,null,null,{"$f":"IF(AC_Log[[#This Row],[Service Date ]], YEAR(AC_Log[[#This Row],[Service Date ]]) & \"-\" & \"Q\" & INT((MONTH(AC_Log[[#This Row],[Service Date ]])+2)/3), \"\")","v":""}]
[null,null,null,null,null,null,{"$f":"IF(AC_Log[[#This Row],[Service Date ]], YEAR(AC_Log[[#This Row],[Service Date ]]) & \"-\" & \"Q\" & INT((MONTH(AC_Log[[#This Row],[Service Date ]])+2)/3), \"\")","v":""}]
[null,null,null,null,null,null,{"$f":"IF(AC_Log[[#This Row],[Service Date ]], YEAR(AC_Log[[#This Row],[Service Date ]]) & \"-\" & \"Q\" & INT((MONTH(AC_Log[[#This Row],[Service Date ]])+2)/3), \"\")","v":""}]
[null,null,null,null,null,null,{"$f":"IF(AC_Log[[#This Row],[Service Date ]], YEAR(AC_Log[[#This Row],[Service Date ]]) & \"-\" & \"Q\" & INT((MONTH(AC_Log[[#This Row],[Service Date ]])+2)/3), \"\")","v":""}]
[null,null,null,null,null,null,{"$f":"IF(AC_Log[[#This Row],[Service Date ]], YEAR(AC_Log[[#This Row],[Service Date ]]) & \"-\" & \"Q\" & INT((MONTH(AC_Log[[#This Row],[Service Date ]])+2)/3), \"\")","v":""}]
[null,null,null,null,null,null,{"$f":"IF(AC_Log[[#This Row],[Service Date ]], YEAR(AC_Log[[#This Row],[Service Date ]]) & \"-\" & \"Q\" & INT((MONTH(AC_Log[[#This Row],[Service Date ]])+2)/3), \"\")","v":""}]
[null,null,null,null,null,null,{"$f":"IF(AC_Log[[#This Row],[Service Date ]], YEAR(AC_Log[[#This Row],[Service Date ]]) & \"-\" & \"Q\" & INT((MONTH(AC_Log[[#This Row],[Service Date ]])+2)/3), \"\")","v":""}]
[null,null,null,null,null,null,{"$f":"IF(AC_Log[[#This Row],[Service Date ]], YEAR(AC_Log[[#This Row],[Service Date ]]) & \"-\" & \"Q\" & INT((MONTH(AC_Log[[#This Row],[Service Date ]])+2)/3), \"\")","v":""}]
[null,null,null,null,null,null,{"$f":"IF(AC_Log[[#This Row],[Service Date ]], YEAR(AC_Log[[#This Row],[Service Date ]]) & \"-\" & \"Q\" & INT((MONTH(AC_Log[[#This Row],[Service Date ]])+2)/3), \"\")","v":""}]
[null,null,null,null,null,null,{"$f":"IF(AC_Log[[#This Row],[Service Date ]], YEAR(AC_Log[[#This Row],[Service Date ]]) & \"-\" & \"Q\" & INT((MONTH(AC_Log[[#This Row],[Service Date ]])+2)/3), \"\")","v":""}]
[null,null,null,null,null,null,{"$f":"IF(AC_Log[[#This Row],[Service Date ]], YEAR(AC_Log[[#This Row],[Service Date ]]) & \"-\" & \"Q\" & INT((MONTH(AC_Log[[#This Row],[Service Date ]])+2)/3), \"\")","v":""}]
[null,null,null,null,null,null,{"$f":"IF(AC_Log[[#This Row],[Service Date ]], YEAR(AC_Log[[#This Row],[Service Date ]]) & \"-\" & \"Q\" & INT((MONTH(AC_Log[[#This Row],[Service Date ]])+2)/3), \"\")","v":""}]
[null,null,null,null,null,null,{"$f":"IF(AC_Log[[#This Row],[Service Date ]], YEAR(AC_Log[[#This Row],[Service Date ]]) & \"-\" & \"Q\" & INT((MONTH(AC_Log[[#This Row],[Service Date ]])+2)/3), \"\")","v":""}]
[null,null,null,null,null,null,{"$f":"IF(AC_Log[[#This Row],[Service Date ]], YEAR(AC_Log[[#This Row],[Service Date ]]) & \"-\" & \"Q\" & INT((MONTH(AC_Log[[#This Row],[Service Date ]])+2)/3), \"\")","v":""}]
[null,null,null,null,null,null,{"$f":"IF(AC_Log[[#This Row],[Service Date ]], YEAR(AC_Log[[#This Row],[Service Date ]]) & \"-\" & \"Q\" & INT((MONTH(AC_Log[[#This Row],[Service Date ]])+2)/3), \"\")","v":""}]
[null,null,null,null,null,null,{"$f":"IF(AC_Log[[#This Row],[Service Date ]], YEAR(AC_Log[[#This Row],[Service Date ]]) & \"-\" & \"Q\" & INT((MONTH(AC_Log[[#This Row],[Service Date ]])+2)/3), \"\")","v":""}]
[null,null,null,null,null,null,{"$f":"IF(AC_Log[[#This Row],[Service Date ]], YEAR(AC_Log[[#This Row],[Service Date ]]) & \"-\" & \"Q\" & INT((MONTH(AC_Log[[#This Row],[Service Date ]])+2)/3), \"\")","v":""}]
[null,null,null,null,null,null,{"$f":"IF(AC_Log[[#This Row],[Service Date ]], YEAR(AC_Log[[#This Row],[Service Date ]]) & \"-\" & \"Q\" & INT((MONTH(AC_Log[[#This Row],[Service Date ]])+2)/3), \"\")","v":""}]
[null,null,null,null,null,null,{"$f":"IF(AC_Log[[#This Row],[Service Date ]], YEAR(AC_Log[[#This Row],[Service Date ]]) & \"-\" & \"Q\" & INT((MONTH(AC_Log[[#This Row],[Service Date ]])+2)/3), \"\")","v":""}]
[null,null,null,null,null,null,{"$f":"IF(AC_Log[[#This Row],[Service Date ]], YEAR(AC_Log[[#This Row],[Service Date ]]) & \"-\" & \"Q\" & INT((MONTH(AC_Log[[#This Row],[Service Date ]])+2)/3), \"\")","v":""}]
[null,null,null,null,null,null,{"$f":"IF(AC_Log[[#This Row],[Service Date ]], YEAR(AC_Log[[#This Row],[Service Date ]]) & \"-\" & \"Q\" & INT((MONTH(AC_Log[[#This Row],[Service Date ]])+2)/3), \"\")","v":""}]
[null,null,null,null,null,null,{"$f":"IF(AC_Log[[#This Row],[Service Date ]], YEAR(AC_Log[[#This Row],[Service Date ]]) & \"-\" & \"Q\" & INT((MONTH(AC_Log[[#This Row],[Service Date ]])+2)/3), \"\")","v":""}]
[null,null,null,null,null,null,{"$f":"IF(AC_Log[[#This Row],[Service Date ]], YEAR(AC_Log[[#This Row],[Service Date ]]) & \"-\" & \"Q\" & INT((MONTH(AC_Log[[#This Row],[Service Date ]])+2)/3), \"\")","v":""}]
[null,null,null,null,null,null,{"$f":"IF(AC_Log[[#This Row],[Service Date ]], YEAR(AC_Log[[#This Row],[Service Date ]]) & \"-\" & \"Q\" & INT((MONTH(AC_Log[[#This Row],[Service Date ]])+2)/3), \"\")","v":""}]
[null,null,null,null,null,null,{"$f":"IF(AC_Log[[#This Row],[Service Date ]], YEAR(AC_Log[[#This Row],[Service Date ]]) & \"-\" & \"Q\" & INT((MONTH(AC_Log[[#This Row],[Service Date ]])+2)/3), \"\")","v":""}]
[null,null,null,null,null,null,{"$f":"IF(AC_Log[[#This Row],[Service Date ]], YEAR(AC_Log[[#This Row],[Service Date ]]) & \"-\" & \"Q\" & INT((MONTH(AC_Log[[#This Row],[Service Date ]])+2)/3), \"\")","v":""}]
[null,null,null,null,null,null,{"$f":"IF(AC_Log[[#This Row],[Service Date ]], YEAR(AC_Log[[#This Row],[Service Date ]]) & \"-\" & \"Q\" & INT((MONTH(AC_Log[[#This Row],[Service Date ]])+2)/3), \"\")","v":""}]
[null,null,null,null,null,null,{"$f":"IF(AC_Log[[#This Row],[Service Date ]], YEAR(AC_Log[[#This Row],[Service Date ]]) & \"-\" & \"Q\" & INT((MONTH(AC_Log[[#This Row],[Service Date ]])+2)/3), \"\")","v":""}]
[null,null,null,null,null,null,{"$f":"IF(AC_Log[[#This Row],[Service Date ]], YEAR(AC_Log[[#This Row],[Service Date ]]) & \"-\" & \"Q\" & INT((MONTH(AC_Log[[#This Row],[Service Date ]])+2)/3), \"\")","v":""}]
[null,null,null,null,null,null,{"$f":"IF(AC_Log[[#This Row],[Service Date ]], YEAR(AC_Log[[#This Row],[Service Date ]]) & \"-\" & \"Q\" & INT((MONTH(AC_Log[[#This Row],[Service Date ]])+2)/3), \"\")","v":""}]
[null,null,null,null,null,null,{"$f":"IF(AC_Log[[#This Row],[Service Date ]], YEAR(AC_Log[[#This Row],[Service Date ]]) & \"-\" & \"Q\" & INT((MONTH(AC_Log[[#This Row],[Service Date ]])+2)/3), \"\")","v":""}]
[null,null,null,null,null,null,{"$f":"IF(AC_Log[[#This Row],[Service Date ]], YEAR(AC_Log[[#This Row],[Service Date ]]) & \"-\" & \"Q\" & INT((MONTH(AC_Log[[#This Row],[Service Date ]])+2)/3), \"\")","v":""}]
[null,null,null,null,null,null,{"$f":"IF(AC_Log[[#This Row],[Service Date ]], YEAR(AC_Log[[#This Row],[Service Date ]]) & \"-\" & \"Q\" & INT((MONTH(AC_Log[[#This Row],[Service Date ]])+2)/3), \"\")","v":""}]
[null,null,null,null,null,null,{"$f":"IF(AC_Log[[#This Row],[Service Date ]], YEAR(AC_Log[[#This Row],[Service Date ]]) & \"-\" & \"Q\" & INT((MONTH(AC_Log[[#This Row],[Service Date ]])+2)/3), \"\")","v":""}]
[null,null,null,null,null,null,{"$f":"IF(AC_Log[[#This Row],[Service Date ]], YEAR(AC_Log[[#This Row],[Service Date ]]) & \"-\" & \"Q\" & INT((MONTH(AC_Log[[#This Row],[Service Date ]])+2)/3), \"\")","v":""}]
[null,null,null,null,null,null,{"$f":"IF(AC_Log[[#This Row],[Service Date ]], YEAR(AC_Log[[#This Row],[Service Date ]]) & \"-\" & \"Q\" & INT((MONTH(AC_Log[[#This Row],[Service Date ]])+2)/3), \"\")","v":""}]
[null,null,null,null,null,null,{"$f":"IF(AC_Log[[#This Row],[Service Date ]], YEAR(AC_Log[[#This Row],[Service Date ]]) & \"-\" & \"Q\" & INT((MONTH(AC_Log[[#This Row],[Service Date ]])+2)/3), \"\")","v":""}]
[null,null,null,null,null,null,{"$f":"IF(AC_Log[[#This Row],[Service Date ]], YEAR(AC_Log[[#This Row],[Service Date ]]) & \"-\" & \"Q\" & INT((MONTH(AC_Log[[#This Row],[Service Date ]])+2)/3), \"\")","v":""}]
[null,null,null,null,null,null,{"$f":"IF(AC_Log[[#This Row],[Service Date ]], YEAR(AC_Log[[#This Row],[Service Date ]]) & \"-\" & \"Q\" & INT((MONTH(AC_Log[[#This Row],[Service Date ]])+2)/3), \"\")","v":""}]
[null,null,null,null,null,null,{"$f":"IF(AC_Log[[#This Row],[Service Date ]], YEAR(AC_Log[[#This Row],[Service Date ]]) & \"-\" & \"Q\" & INT((MONTH(AC_Log[[#This Row],[Service Date ]])+2)/3), \"\")","v":""}]
[null,null,null,null,null,null,{"$f":"IF(AC_Log[[#This Row],[Service Date ]], YEAR(AC_Log[[#This Row],[Service Date ]]) & \"-\" & \"Q\" & INT((MONTH(AC_Log[[#This Row],[Service Date ]])+2)/3), \"\")","v":""}]
[null,null,null,null,null,null,{"$f":"IF(AC_Log[[#This Row],[Service Date ]], YEAR(AC_Log[[#This Row],[Service Date ]]) & \"-\" & \"Q\" & INT((MONTH(AC_Log[[#This Row],[Service Date ]])+2)/3), \"\")","v":""}]
[null,null,null,null,null,null,{"$f":"IF(AC_Log[[#This Row],[Service Date ]], YEAR(AC_Log[[#This Row],[Service Date ]]) & \"-\" & \"Q\" & INT((MONTH(AC_Log[[#This Row],[Service Date ]])+2)/3), \"\")","v":""}]
[null,null,null,null,null,null,{"$f":"IF(AC_Log[[#This Row],[Service Date ]], YEAR(AC_Log[[#This Row],[Service Date ]]) & \"-\" & \"Q\" & INT((MONTH(AC_Log[[#This Row],[Service Date ]])+2)/3), \"\")","v":""}]
[null,null,null,null,null,null,{"$f":"IF(AC_Log[[#This Row],[Service Date ]], YEAR(AC_Log[[#This Row],[Service Date ]]) & \"-\" & \"Q\" & INT((MONTH(AC_Log[[#This Row],[Service Date ]])+2)/3), \"\")","v":""}]
[null,null,null,null,null,null,{"$f":"IF(AC_Log[[#This Row],[Service Date ]], YEAR(AC_Log[[#This Row],[Service Date ]]) & \"-\" & \"Q\" & INT((MONTH(AC_Log[[#This Row],[Service Date ]])+2)/3), \"\")","v":""}]
[null,null,null,null,null,null,{"$f":"IF(AC_Log[[#This Row],[Service Date ]], YEAR(AC_Log[[#This Row],[Service Date ]]) & \"-\" & \"Q\" & INT((MONTH(AC_Log[[#This Row],[Service Date ]])+2)/3), \"\")","v":""}]
[null,null,null,null,null,null,{"$f":"IF(AC_Log[[#This Row],[Service Date ]], YEAR(AC_Log[[#This Row],[Service Date ]]) & \"-\" & \"Q\" & INT((MONTH(AC_Log[[#This Row],[Service Date ]])+2)/3), \"\")","v":""}]
[null,null,null,null,null,null,{"$f":"IF(AC_Log[[#This Row],[Service Date ]], YEAR(AC_Log[[#This Row],[Service Date ]]) & \"-\" & \"Q\" & INT((MONTH(AC_Log[[#This Row],[Service Date ]])+2)/3), \"\")","v":""}]
[null,null,null,null,null,null,{"$f":"IF(AC_Log[[#This Row],[Service Date ]], YEAR(AC_Log[[#This Row],[Service Date ]]) & \"-\" & \"Q\" & INT((MONTH(AC_Log[[#This Row],[Service Date ]])+2)/3), \"\")","v":""}]
[null,null,null,null,null,null,{"$f":"IF(AC_Log[[#This Row],[Service Date ]], YEAR(AC_Log[[#This Row],[Service Date ]]) & \"-\" & \"Q\" & INT((MONTH(AC_Log[[#This Row],[Service Date ]])+2)/3), \"\")","v":""}]
[null,null,null,null,null,null,{"$f":"IF(AC_Log[[#This Row],[Service Date ]], YEAR(AC_Log[[#This Row],[Service Date ]]) & \"-\" & \"Q\" & INT((MONTH(AC_Log[[#This Row],[Service Date ]])+2)/3), \"\")","v":""}]
[null,null,null,null,null,null,{"$f":"IF(AC_Log[[#This Row],[Service Date ]], YEAR(AC_Log[[#This Row],[Service Date ]]) & \"-\" & \"Q\" & INT((MONTH(AC_Log[[#This Row],[Service Date ]])+2)/3), \"\")","v":""}]
[null,null,null,null,null,null,{"$f":"IF(AC_Log[[#This Row],[Service Date ]], YEAR(AC_Log[[#This Row],[Service Date ]]) & \"-\" & \"Q\" & INT((MONTH(AC_Log[[#This Row],[Service Date ]])+2)/3), \"\")","v":""}]
[null,null,null,null,null,null,{"$f":"IF(AC_Log[[#This Row],[Service Date ]], YEAR(AC_Log[[#This Row],[Service Date ]]) & \"-\" & \"Q\" & INT((MONTH(AC_Log[[#This Row],[Service Date ]])+2)/3), \"\")","v":""}]
[null,null,null,null,null,null,{"$f":"IF(AC_Log[[#This Row],[Service Date ]], YEAR(AC_Log[[#This Row],[Service Date ]]) & \"-\" & \"Q\" & INT((MONTH(AC_Log[[#This Row],[Service Date ]])+2)/3), \"\")","v":""}]
[null,null,null,null,null,null,{"$f":"IF(AC_Log[[#This Row],[Service Date ]], YEAR(AC_Log[[#This Row],[Service Date ]]) & \"-\" & \"Q\" & INT((MONTH(AC_Log[[#This Row],[Service Date ]])+2)/3), \"\")","v":""}]
[null,null,null,null,null,null,{"$f":"IF(AC_Log[[#This Row],[Service Date ]], YEAR(AC_Log[[#This Row],[Service Date ]]) & \"-\" & \"Q\" & INT((MONTH(AC_Log[[#This Row],[Service Date ]])+2)/3), \"\")","v":""}]
[null,null,null,null,null,null,{"$f":"IF(AC_Log[[#This Row],[Service Date ]], YEAR(AC_Log[[#This Row],[Service Date ]]) & \"-\" & \"Q\" & INT((MONTH(AC_Log[[#This Row],[Service Date ]])+2)/3), \"\")","v":""}]
[null,null,null,null,null,null,{"$f":"IF(AC_Log[[#This Row],[Service Date ]], YEAR(AC_Log[[#This Row],[Service Date ]]) & \"-\" & \"Q\" & INT((MONTH(AC_Log[[#This Row],[Service Date ]])+2)/3), \"\")","v":""}]
[null,null,null,null,null,null,{"$f":"IF(AC_Log[[#This Row],[Service Date ]], YEAR(AC_Log[[#This Row],[Service Date ]]) & \"-\" & \"Q\" & INT((MONTH(AC_Log[[#This Row],[Service Date ]])+2)/3), \"\")","v":""}]
[null,null,null,null,null,null,{"$f":"IF(AC_Log[[#This Row],[Service Date ]], YEAR(AC_Log[[#This Row],[Service Date ]]) & \"-\" & \"Q\" & INT((MONTH(AC_Log[[#This Row],[Service Date ]])+2)/3), \"\")","v":""}]
[null,null,null,null,null,null,{"$f":"IF(AC_Log[[#This Row],[Service Date ]], YEAR(AC_Log[[#This Row],[Service Date ]]) & \"-\" & \"Q\" & INT((MONTH(AC_Log[[#This Row],[Service Date ]])+2)/3), \"\")","v":""}]
[null,null,null,null,null,null,{"$f":"IF(AC_Log[[#This Row],[Service Date ]], YEAR(AC_Log[[#This Row],[Service Date ]]) & \"-\" & \"Q\" & INT((MONTH(AC_Log[[#This Row],[Service Date ]])+2)/3), \"\")","v":""}]
[null,null,null,null,null,null,{"$f":"IF(AC_Log[[#This Row],[Service Date ]], YEAR(AC_Log[[#This Row],[Service Date ]]) & \"-\" & \"Q\" & INT((MONTH(AC_Log[[#This Row],[Service Date ]])+2)/3), \"\")","v":""}]
[null,null,null,null,null,null,{"$f":"IF(AC_Log[[#This Row],[Service Date ]], YEAR(AC_Log[[#This Row],[Service Date ]]) & \"-\" & \"Q\" & INT((MONTH(AC_Log[[#This Row],[Service Date ]])+2)/3), \"\")","v":""}]
[null,null,null,null,null,null,{"$f":"IF(AC_Log[[#This Row],[Service Date ]], YEAR(AC_Log[[#This Row],[Service Date ]]) & \"-\" & \"Q\" & INT((MONTH(AC_Log[[#This Row],[Service Date ]])+2)/3), \"\")","v":""}]
[null,null,null,null,null,null,{"$f":"IF(AC_Log[[#This Row],[Service Date ]], YEAR(AC_Log[[#This Row],[Service Date ]]) & \"-\" & \"Q\" & INT((MONTH(AC_Log[[#This Row],[Service Date ]])+2)/3), \"\")","v":""}]
[null,null,null,null,null,null,{"$f":"IF(AC_Log[[#This Row],[Service Date ]], YEAR(AC_Log[[#This Row],[Service Date ]]) & \"-\" & \"Q\" & INT((MONTH(AC_Log[[#This Row],[Service Date ]])+2)/3), \"\")","v":""}]
[null,null,null,null,null,null,{"$f":"IF(AC_Log[[#This Row],[Service Date ]], YEAR(AC_Log[[#This Row],[Service Date ]]) & \"-\" & \"Q\" & INT((MONTH(AC_Log[[#This Row],[Service Date ]])+2)/3), \"\")","v":""}]
[null,null,null,null,null,null,{"$f":"IF(AC_Log[[#This Row],[Service Date ]], YEAR(AC_Log[[#This Row],[Service Date ]]) & \"-\" & \"Q\" & INT((MONTH(AC_Log[[#This Row],[Service Date ]])+2)/3), \"\")","v":""}]
[null,null,null,null,null,null,{"$f":"IF(AC_Log[[#This Row],[Service Date ]], YEAR(AC_Log[[#This Row],[Service Date ]]) & \"-\" & \"Q\" & INT((MONTH(AC_Log[[#This Row],[Service Date ]])+2)/3), \"\")","v":""}]
[null,null,null,null,null,null,{"$f":"IF(AC_Log[[#This Row],[Service Date ]], YEAR(AC_Log[[#This Row],[Service Date ]]) & \"-\" & \"Q\" & INT((MONTH(AC_Log[[#This Row],[Service Date ]])+2)/3), \"\")","v":""}]
[null,null,null,null,null,null,{"$f":"IF(AC_Log[[#This Row],[Service Date ]], YEAR(AC_Log[[#This Row],[Service Date ]]) & \"-\" & \"Q\" & INT((MONTH(AC_Log[[#This Row],[Service Date ]])+2)/3), \"\")","v":""}]
[null,null,null,null,null,null,{"$f":"IF(AC_Log[[#This Row],[Service Date ]], YEAR(AC_Log[[#This Row],[Service Date ]]) & \"-\" & \"Q\" & INT((MONTH(AC_Log[[#This Row],[Service Date ]])+2)/3), \"\")","v":""}]
[null,null,null,null,null,null,{"$f":"IF(AC_Log[[#This Row],[Service Date ]], YEAR(AC_Log[[#This Row],[Service Date ]]) & \"-\" & \"Q\" & INT((MONTH(AC_Log[[#This Row],[Service Date ]])+2)/3), \"\")","v":""}]
[null,null,null,null,null,null,{"$f":"IF(AC_Log[[#This Row],[Service Date ]], YEAR(AC_Log[[#This Row],[Service Date ]]) & \"-\" & \"Q\" & INT((MONTH(AC_Log[[#This Row],[Service Date ]])+2)/3), \"\")","v":""}]
[null,null,null,null,null,null,{"$f":"IF(AC_Log[[#This Row],[Service Date ]], YEAR(AC_Log[[#This Row],[Service Date ]]) & \"-\" & \"Q\" & INT((MONTH(AC_Log[[#This Row],[Service Date ]])+2)/3), \"\")","v":""}]
[null,null,null,null,null,null,{"$f":"IF(AC_Log[[#This Row],[Service Date ]], YEAR(AC_Log[[#This Row],[Service Date ]]) & \"-\" & \"Q\" & INT((MONTH(AC_Log[[#This Row],[Service Date ]])+2)/3), \"\")","v":""}]
[null,null,null,null,null,null,{"$f":"IF(AC_Log[[#This Row],[Service Date ]], YEAR(AC_Log[[#This Row],[Service Date ]]) & \"-\" & \"Q\" & INT((MONTH(AC_Log[[#This Row],[Service Date ]])+2)/3), \"\")","v":""}]
[null,null,null,null,null,null,{"$f":"IF(AC_Log[[#This Row],[Service Date ]], YEAR(AC_Log[[#This Row],[Service Date ]]) & \"-\" & \"Q\" & INT((MONTH(AC_Log[[#This Row],[Service Date ]])+2)/3), \"\")","v":""}]
[null,null,null,null,null,null,{"$f":"IF(AC_Log[[#This Row],[Service Date ]], YEAR(AC_Log[[#This Row],[Service Date ]]) & \"-\" & \"Q\" & INT((MONTH(AC_Log[[#This Row],[Service Date ]])+2)/3), \"\")","v":""}]
[null,null,null,null,null,null,{"$f":"IF(AC_Log[[#This Row],[Service Date ]], YEAR(AC_Log[[#This Row],[Service Date ]]) & \"-\" & \"Q\" & INT((MONTH(AC_Log[[#This Row],[Service Date ]])+2)/3), \"\")","v":""}]
[null,null,null,null,null,null,{"$f":"IF(AC_Log[[#This Row],[Service Date ]], YEAR(AC_Log[[#This Row],[Service Date ]]) & \"-\" & \"Q\" & INT((MONTH(AC_Log[[#This Row],[Service Date ]])+2)/3), \"\")","v":""}]
[null,null,null,null,null,null,{"$f":"IF(AC_Log[[#This Row],[Service Date ]], YEAR(AC_Log[[#This Row],[Service Date ]]) & \"-\" & \"Q\" & INT((MONTH(AC_Log[[#This Row],[Service Date ]])+2)/3), \"\")","v":""}]
[null,null,null,null,null,null,{"$f":"IF(AC_Log[[#This Row],[Service Date ]], YEAR(AC_Log[[#This Row],[Service Date ]]) & \"-\" & \"Q\" & INT((MONTH(AC_Log[[#This Row],[Service Date ]])+2)/3), \"\")","v":""}]
[null,null,null,null,null,null,{"$f":"IF(AC_Log[[#This Row],[Service Date ]], YEAR(AC_Log[[#This Row],[Service Date ]]) & \"-\" & \"Q\" & INT((MONTH(AC_Log[[#This Row],[Service Date ]])+2)/3), \"\")","v":""}]
[null,null,null,null,null,null,{"$f":"IF(AC_Log[[#This Row],[Service Date ]], YEAR(AC_Log[[#This Row],[Service Date ]]) & \"-\" & \"Q\" & INT((MONTH(AC_Log[[#This Row],[Service Date ]])+2)/3), \"\")","v":""}]
[null,null,null,null,null,null,{"$f":"IF(AC_Log[[#This Row],[Service Date ]], YEAR(AC_Log[[#This Row],[Service Date ]]) & \"-\" & \"Q\" & INT((MONTH(AC_Log[[#This Row],[Service Date ]])+2)/3), \"\")","v":""}]
[null,null,null,null,null,null,{"$f":"IF(AC_Log[[#This Row],[Service Date ]], YEAR(AC_Log[[#This Row],[Service Date ]]) & \"-\" & \"Q\" & INT((MONTH(AC_Log[[#This Row],[Service Date ]])+2)/3), \"\")","v":""}]
[null,null,null,null,null,null,{"$f":"IF(AC_Log[[#This Row],[Service Date ]], YEAR(AC_Log[[#This Row],[Service Date ]]) & \"-\" & \"Q\" & INT((MONTH(AC_Log[[#This Row],[Service Date ]])+2)/3), \"\")","v":""}]
[null,null,null,null,null,null,{"$f":"IF(AC_Log[[#This Row],[Service Date ]], YEAR(AC_Log[[#This Row],[Service Date ]]) & \"-\" & \"Q\" & INT((MONTH(AC_Log[[#This Row],[Service Date ]])+2)/3), \"\")","v":""}]
[null,null,null,null,null,null,{"$f":"IF(AC_Log[[#This Row],[Service Date ]], YEAR(AC_Log[[#This Row],[Service Date ]]) & \"-\" & \"Q\" & INT((MONTH(AC_Log[[#This Row],[Service Date ]])+2)/3), \"\")","v":""}]
[null,null,null,null,null,null,{"$f":"IF(AC_Log[[#This Row],[Service Date ]], YEAR(AC_Log[[#This Row],[Service Date ]]) & \"-\" & \"Q\" & INT((MONTH(AC_Log[[#This Row],[Service Date ]])+2)/3), \"\")","v":""}]
[null,null,null,null,null,null,{"$f":"IF(AC_Log[[#This Row],[Service Date ]], YEAR(AC_Log[[#This Row],[Service Date ]]) & \"-\" & \"Q\" & INT((MONTH(AC_Log[[#This Row],[Service Date ]])+2)/3), \"\")","v":""}]
[null,null,null,null,null,null,{"$f":"IF(AC_Log[[#This Row],[Service Date ]], YEAR(AC_Log[[#This Row],[Service Date ]]) & \"-\" & \"Q\" & INT((MONTH(AC_Log[[#This Row],[Service Date ]])+2)/3), \"\")","v":""}]
[null,null,null,null,null,null,{"$f":"IF(AC_Log[[#This Row],[Service Date ]], YEAR(AC_Log[[#This Row],[Service Date ]]) & \"-\" & \"Q\" & INT((MONTH(AC_Log[[#This Row],[Service Date ]])+2)/3), \"\")","v":""}]
[null,null,null,null,null,null,{"$f":"IF(AC_Log[[#This Row],[Service Date ]], YEAR(AC_Log[[#This Row],[Service Date ]]) & \"-\" & \"Q\" & INT((MONTH(AC_Log[[#This Row],[Service Date ]])+2)/3), \"\")","v":""}]
[null,null,null,null,null,null,{"$f":"IF(AC_Log[[#This Row],[Service Date ]], YEAR(AC_Log[[#This Row],[Service Date ]]) & \"-\" & \"Q\" & INT((MONTH(AC_Log[[#This Row],[Service Date ]])+2)/3), \"\")","v":""}]
[null,null,null,null,null,null,{"$f":"IF(AC_Log[[#This Row],[Service Date ]], YEAR(AC_Log[[#This Row],[Service Date ]]) & \"-\" & \"Q\" & INT((MONTH(AC_Log[[#This Row],[Service Date ]])+2)/3), \"\")","v":""}]
[null,null,null,null,null,null,{"$f":"IF(AC_Log[[#This Row],[Service Date ]], YEAR(AC_Log[[#This Row],[Service Date ]]) & \"-\" & \"Q\" & INT((MONTH(AC_Log[[#This Row],[Service Date ]])+2)/3), \"\")","v":""}]
[null,null,null,null,null,null,{"$f":"IF(AC_Log[[#This Row],[Service Date ]], YEAR(AC_Log[[#This Row],[Service Date ]]) & \"-\" & \"Q\" & INT((MONTH(AC_Log[[#This Row],[Service Date ]])+2)/3), \"\")","v":""}]
[null,null,null,null,null,null,{"$f":"IF(AC_Log[[#This Row],[Service Date ]], YEAR(AC_Log[[#This Row],[Service Date ]]) & \"-\" & \"Q\" & INT((MONTH(AC_Log[[#This Row],[Service Date ]])+2)/3), \"\")","v":""}]
[null,null,null,null,null,null,{"$f":"IF(AC_Log[[#This Row],[Service Date ]], YEAR(AC_Log[[#This Row],[Service Date ]]) & \"-\" & \"Q\" & INT((MONTH(AC_Log[[#This Row],[Service Date ]])+2)/3), \"\")","v":""}]
[null,null,null,null,null,null,{"$f":"IF(AC_Log[[#This Row],[Service Date ]], YEAR(AC_Log[[#This Row],[Service Date ]]) & \"-\" & \"Q\" & INT((MONTH(AC_Log[[#This Row],[Service Date ]])+2)/3), \"\")","v":""}]
[null,null,null,null,null,null,{"$f":"IF(AC_Log[[#This Row],[Service Date ]], YEAR(AC_Log[[#This Row],[Service Date ]]) & \"-\" & \"Q\" & INT((MONTH(AC_Log[[#This Row],[Service Date ]])+2)/3), \"\")","v":""}]
[null,null,null,null,null,null,{"$f":"IF(AC_Log[[#This Row],[Service Date ]], YEAR(AC_Log[[#This Row],[Service Date ]]) & \"-\" & \"Q\" & INT((MONTH(AC_Log[[#This Row],[Service Date ]])+2)/3), \"\")","v":""}]
[null,null,null,null,null,null,{"$f":"IF(AC_Log[[#This Row],[Service Date ]], YEAR(AC_Log[[#This Row],[Service Date ]]) & \"-\" & \"Q\" & INT((MONTH(AC_Log[[#This Row],[Service Date ]])+2)/3), \"\")","v":""}]
[null,null,null,null,null,null,{"$f":"IF(AC_Log[[#This Row],[Service Date ]], YEAR(AC_Log[[#This Row],[Service Date ]]) & \"-\" & \"Q\" & INT((MONTH(AC_Log[[#This Row],[Service Date ]])+2)/3), \"\")","v":""}]
[null,null,null,null,null,null,{"$f":"IF(AC_Log[[#This Row],[Service Date ]], YEAR(AC_Log[[#This Row],[Service Date ]]) & \"-\" & \"Q\" & INT((MONTH(AC_Log[[#This Row],[Service Date ]])+2)/3), \"\")","v":""}]
[null,null,null,null,null,null,{"$f":"IF(AC_Log[[#This Row],[Service Date ]], YEAR(AC_Log[[#This Row],[Service Date ]]) & \"-\" & \"Q\" & INT((MONTH(AC_Log[[#This Row],[Service Date ]])+2)/3), \"\")","v":""}]
[null,null,null,null,null,null,{"$f":"IF(AC_Log[[#This Row],[Service Date ]], YEAR(AC_Log[[#This Row],[Service Date ]]) & \"-\" & \"Q\" & INT((MONTH(AC_Log[[#This Row],[Service Date ]])+2)/3), \"\")","v":""}]
[null,null,null,null,null,null,{"$f":"IF(AC_Log[[#This Row],[Service Date ]], YEAR(AC_Log[[#This Row],[Service Date ]]) & \"-\" & \"Q\" & INT((MONTH(AC_Log[[#This Row],[Service Date ]])+2)/3), \"\")","v":""}]
[null,null,null,null,null,null,{"$f":"IF(AC_Log[[#This Row],[Service Date ]], YEAR(AC_Log[[#This Row],[Service Date ]]) & \"-\" & \"Q\" & INT((MONTH(AC_Log[[#This Row],[Service Date ]])+2)/3), \"\")","v":""}]
[null,null,null,null,null,null,{"$f":"IF(AC_Log[[#This Row],[Service Date ]], YEAR(AC_Log[[#This Row],[Service Date ]]) & \"-\" & \"Q\" & INT((MONTH(AC_Log[[#This Row],[Service Date ]])+2)/3), \"\")","v":""}]
[null,null,null,null,null,null,{"$f":"IF(AC_Log[[#This Row],[Service Date ]], YEAR(AC_Log[[#This Row],[Service Date ]]) & \"-\" & \"Q\" & INT((MONTH(AC_Log[[#This Row],[Service Date ]])+2)/3), \"\")","v":""}]
[null,null,null,null,null,null,{"$f":"IF(AC_Log[[#This Row],[Service Date ]], YEAR(AC_Log[[#This Row],[Service Date ]]) & \"-\" & \"Q\" & INT((MONTH(AC_Log[[#This Row],[Service Date ]])+2)/3), \"\")","v":""}]
[null,null,null,null,null,null,{"$f":"IF(AC_Log[[#This Row],[Service Date ]], YEAR(AC_Log[[#This Row],[Service Date ]]) & \"-\" & \"Q\" & INT((MONTH(AC_Log[[#This Row],[Service Date ]])+2)/3), \"\")","v":""}]
[null,null,null,null,null,null,{"$f":"IF(AC_Log[[#This Row],[Service Date ]], YEAR(AC_Log[[#This Row],[Service Date ]]) & \"-\" & \"Q\" & INT((MONTH(AC_Log[[#This Row],[Service Date ]])+2)/3), \"\")","v":""}]
[null,null,null,null,null,null,{"$f":"IF(AC_Log[[#This Row],[Service Date ]], YEAR(AC_Log[[#This Row],[Service Date ]]) & \"-\" & \"Q\" & INT((MONTH(AC_Log[[#This Row],[Service Date ]])+2)/3), \"\")","v":""}]
[null,null,null,null,null,null,{"$f":"IF(AC_Log[[#This Row],[Service Date ]], YEAR(AC_Log[[#This Row],[Service Date ]]) & \"-\" & \"Q\" & INT((MONTH(AC_Log[[#This Row],[Service Date ]])+2)/3), \"\")","v":""}]
[null,null,null,null,null,null,{"$f":"IF(AC_Log[[#This Row],[Service Date ]], YEAR(AC_Log[[#This Row],[Service Date ]]) & \"-\" & \"Q\" & INT((MONTH(AC_Log[[#This Row],[Service Date ]])+2)/3), \"\")","v":""}]
[null,null,null,null,null,null,{"$f":"IF(AC_Log[[#This Row],[Service Date ]], YEAR(AC_Log[[#This Row],[Service Date ]]) & \"-\" & \"Q\" & INT((MONTH(AC_Log[[#This Row],[Service Date ]])+2)/3), \"\")","v":""}]
[null,null,null,null,null,null,{"$f":"IF(AC_Log[[#This Row],[Service Date ]], YEAR(AC_Log[[#This Row],[Service Date ]]) & \"-\" & \"Q\" & INT((MONTH(AC_Log[[#This Row],[Service Date ]])+2)/3), \"\")","v":""}]
[null,null,null,null,null,null,{"$f":"IF(AC_Log[[#This Row],[Service Date ]], YEAR(AC_Log[[#This Row],[Service Date ]]) & \"-\" & \"Q\" & INT((MONTH(AC_Log[[#This Row],[Service Date ]])+2)/3), \"\")","v":""}]
[null,null,null,null,null,null,{"$f":"IF(AC_Log[[#This Row],[Service Date ]], YEAR(AC_Log[[#This Row],[Service Date ]]) & \"-\" & \"Q\" & INT((MONTH(AC_Log[[#This Row],[Service Date ]])+2)/3), \"\")","v":""}]
[null,null,null,null,null,null,{"$f":"IF(AC_Log[[#This Row],[Service Date ]], YEAR(AC_Log[[#This Row],[Service Date ]]) & \"-\" & \"Q\" & INT((MONTH(AC_Log[[#This Row],[Service Date ]])+2)/3), \"\")","v":""}]
[null,null,null,null,null,null,{"$f":"IF(AC_Log[[#This Row],[Service Date ]], YEAR(AC_Log[[#This Row],[Service Date ]]) & \"-\" & \"Q\" & INT((MONTH(AC_Log[[#This Row],[Service Date ]])+2)/3), \"\")","v":""}]
[null,null,null,null,null,null,{"$f":"IF(AC_Log[[#This Row],[Service Date ]], YEAR(AC_Log[[#This Row],[Service Date ]]) & \"-\" & \"Q\" & INT((MONTH(AC_Log[[#This Row],[Service Date ]])+2)/3), \"\")","v":""}]
[null,null,null,null,null,null,{"$f":"IF(AC_Log[[#This Row],[Service Date ]], YEAR(AC_Log[[#This Row],[Service Date ]]) & \"-\" & \"Q\" & INT((MONTH(AC_Log[[#This Row],[Service Date ]])+2)/3), \"\")","v":""}]
[null,null,null,null,null,null,{"$f":"IF(AC_Log[[#This Row],[Service Date ]], YEAR(AC_Log[[#This Row],[Service Date ]]) & \"-\" & \"Q\" & INT((MONTH(AC_Log[[#This Row],[Service Date ]])+2)/3), \"\")","v":""}]
[null,null,null,null,null,null,{"$f":"IF(AC_Log[[#This Row],[Service Date ]], YEAR(AC_Log[[#This Row],[Service Date ]]) & \"-\" & \"Q\" & INT((MONTH(AC_Log[[#This Row],[Service Date ]])+2)/3), \"\")","v":""}]
[null,null,null,null,null,null,{"$f":"IF(AC_Log[[#This Row],[Service Date ]], YEAR(AC_Log[[#This Row],[Service Date ]]) & \"-\" & \"Q\" & INT((MONTH(AC_Log[[#This Row],[Service Date ]])+2)/3), \"\")","v":""}]

{"sheet":"Grant Log Summary","index":3,"n_rows":35,"n_cols":13,"rows_kept":35,"cut":false,"hidden":false,"merged":[[3,11,3,12],[0,2,0,7],[3,7,15,7],[17,7,18,7],[34,7,35,7],[3,2,3,5]]}
[null,null,"Below is a summary of your organization's emergency financial assistance grants. This page is automatically generated based on the EFA Log and Related Cost Log. To see updated numbers based on your most recent log entries, please press the blue 'refresh' button to the right. Scroll to the bottom of the table to see the total grants given, total grant amounts, and total unique participants served. "]
[]
[]
[null,null,"EFA Summary",null,null,null,null,"Use the filters below to view data by reporting period and grant target demographic. \n\nSelected filters appear in BLUE, and unselected filters appear in GREY. \n\nTo select or unselect multiple categories in the same filter, press down the 'Ctrl' key while selecting categories with your mouse.\n\nTo clear selection, click the icon \nat the top-right of the filter.\n\nIf a category does not appear in the table or in the filters below, this means that there is no corresponding data in the log for this category. \n",null,null,null,"Related Cost Summary"]
[]
[null,null,"EFA Summary","Number of Grants","Total Grant Amount","Unique Participants",null,null,null,null,null,"Additional Cost Summary","Sum of Grant Amount"]
[null,null,"(blank)",1,0.01,1,null,null,null,null,null,"",0.01]
[null,null,"(blank)",1,0.01,1,null,null,null,null,null,"(enter purpose)",0.01]
[]
[null,null,"Grand Total",1,0.01,1,null,null,null,null,null,"Grand Total",0.01]
[]
[]
[]
[]
[]
[]
[]
[null,null,null,null,null,null,null,"Click below to filter your data by \nreporting period "]
[]
[]
[]
[]
[]
[]
[]
[]
[]
[]
[]
[]
[]
[]
[]
[]
[null,null,null,null,null,null,null,"Click below to filter your data by \ntarget grant demographic"]

{"sheet":"Hidden Value Key","index":4,"n_rows":21,"n_cols":4,"rows_kept":21,"cut":false,"hidden":true,"merged":[]}
["Trauma Survivor Type","Grant Type",null,"Grant Type"]
["African American or Black older adults","Appliance Repair and Replacement",null,"Caregiving"]
["Asian American older adults","Caregiving",null,"Case Management"]
["Family caregivers of older adults","Case Management",null,"Food Assistance"]
["First Responder older adults","Clothing",null,"Household and Personal Care Supplies"]
["Holocaust survivors","Dental Assistance",null,"Legal Costs"]
["Immigrant or refugee older adults","Food Assistance",null,"Staff or Administrative Support"]
["Latin American older adults","Funeral and Burial Expenses",null,"Translation and Interpretation"]
["LGBTQ older adults","Household and Personal Care Supplies",null,"Transportation"]
["American Indian, Alaska Native, Native Hawaiian older adults","Household Furnishings",null,"Other"]
["Older adult crime survivors","Housing Assistance"]
["Older adult disaster survivors","Housing Modifications"]
["Older adult domestic or sexual violence survivors","Housing Repairs"]
["Older adults with disabilities","Legal Costs"]
["Veteran older adults","Medical Assistance"]
["Other","Pet Care"]
[null,"Translation and Interpretation"]
[null,"Transportation"]
[null,"Utility Assistance"]
[null,"Utility Repair and Replacement"]
[null,"Other"]